Workbook

Sheet Home
B1: Kevin's Running Data
B3: =CONCATENATE("Hello! Today is ",TEXT(TODAY(), "mmmm dd, yyyy"),".") -> Hello! Today is May 13, 2019.
B5: =CONCATENATE("This month, I have run ",OFFSET(Months!A1,MATCH(YEAR(TODAY()),Months!$B:$B,0),6), " miles.") -> This month, I have run 70.19 miles.
B7: =CONCATENATE("In ",YEAR(TODAY()), ", I have run ",VLOOKUP(YEAR(TODAY()),Years!$A$3:$G$20,7,FALSE)," miles so far.") -> In 2019, I have run 370.4 miles so far.
B9: On April 25, 2020, I plan on running in the lllinois Marathon.
B11: Countdown until the Marathon:
B13: =CONCATENATE(ROUNDDOWN(DATE(2020,4,27)+TIME(7,0,0)-NOW(),0)," days, ",HOUR(DATE(2020,4,27)+TIME(7,0,0)-NOW())," hours, ",MINUTE(DATE(2020,4,27)+TIME(7,0,0)-NOW())," minutes, and ",SECOND(DATE(2020,4,27)+TIME(7,0,0)-NOW())," seconds.") -> 349 days, 18 hours, 47 minutes, and 50 seconds.
J16: Go to Raw Running Data
J17: Go to Weekdays
J18: Go to Weeks
J19: Go to Months
J20: Go to Years
J21: Go to Locations
J22: Go to Cumulatives
J23: Go to Streaks

Sheet Running
F1: Run | M1: Cooldown | T1: TOTAL
A2: Location | B2: Day | C2: Month | D2: Day | E2: Date | F2: Run Calories | G2: Run Distance | H2: Average Pace | I2: Average Pace Kevin | J2: MPH Kevin | K2: Run Minutes | L2: Run Seconds | M2: Walk Calories | N2: Walk Distance | O2: Average Pace | P2: Average Pace Kevin | Q2: MPH Kevin | R2: Walk Minutes | S2: Walk Seconds | T2: Calories | U2: Distance | V2: Minutes | W2: Seconds | X2: Time | Y2: Start Time
A3: CRCE | B3: Wednesday | C3: 1 | D3: 31 | E3: 2018-01-31 | F3: 595 | G3: 4.51 | H3: 09:26:00 | I3: =IFERROR(TIME(,,ROUNDUP(($K3*60+$L3)/$G3,0)),"") -> 00:09:28 | J3: =IF(ROUNDDOWN(IFERROR($G3*60*60/($K3*60+L3), 0),3)=0,"",ROUNDDOWN(IFERROR($G3*60*60/($K3*60+$L3), 0),3)) -> 6.344 | K3: 42 | L3: 39 | M3: 0 | N3: 0 | O3: 0 | P3: =IFERROR(TIME(,,ROUNDUP(($R3*60+$S3)/$N3,0)),"") ->  | Q3: =IF(ROUNDDOWN(IFERROR($N3*60*60/($R3*60+$S3), 0),3)=0,"",ROUNDDOWN(IFERROR($N3*60*60/($R3*60+$S3), 0),3)) ->  | R3: 0 | S3: 0 | T3: =$F3+$M3 -> 595 | U3: =$G3+$N3 -> 4.51 | V3: =$K3+$R3+INT(($L3+$S3)/60) -> 42 | W3: =MOD(($L3+$S3),60) -> 39 | X3: =TIME(,$V3,$W3) -> 00:42:39
A4: Arc | B4: Thursday | C4: 2 | D4: 1 | E4: 2018-02-01 | F4: 676 | G4: 5.17 | H4: 09:04:00 | I4: =IFERROR(TIME(,,ROUNDUP(($K4*60+$L4)/$G4,0)),"") -> 00:09:05 | J4: =IF(ROUNDDOWN(IFERROR($G4*60*60/($K4*60+L4), 0),3)=0,"",ROUNDDOWN(IFERROR($G4*60*60/($K4*60+$L4), 0),3)) -> 6.614 | K4: 46 | L4: 54 | M4: 0 | N4: 0 | O4: 0 | P4: =IFERROR(TIME(,,ROUNDUP(($R4*60+$S4)/$N4,0)),"") ->  | Q4: =IF(ROUNDDOWN(IFERROR($N4*60*60/($R4*60+$S4), 0),3)=0,"",ROUNDDOWN(IFERROR($N4*60*60/($R4*60+$S4), 0),3)) ->  | R4: 0 | S4: 0 | T4: =$F4+$M4 -> 676 | U4: =$G4+$N4 -> 5.17 | V4: =$K4+$R4+INT(($L4+$S4)/60) -> 46 | W4: =MOD(($L4+$S4),60) -> 54 | X4: =TIME(,$V4,$W4) -> 00:46:54 | Y4: 20:50:00
A5: Ike | B5: Friday | C5: 2 | D5: 2 | E5: 2018-02-02 | F5: 368 | G5: 3.03 | H5: 09:52:00 | I5: 00:09:55 | J5: 6.06 | K5: 30 | L5: 0 | M5: 42 | N5: 0.34 | O5: 14:40:00 | P5: 00:14:43 | Q5: 4.08 | R5: 5 | S5: 0 | T5: 410 | U5: 3.37 | V5: 35 | W5: 0 | X5: 00:35:00
A6: Ike | B6: Saturday | C6: 2 | D6: 3 | E6: 2018-02-03 | F6: 681 | G6: 5.68 | H6: 08:47:00 | I6: 00:08:49 | J6: 6.816 | K6: 50 | L6: 0 | M6: 24 | N6: 0.33 | O6: 15:01:00 | P6: 00:15:10 | Q6: 3.96 | R6: 5 | S6: 0 | T6: 705 | U6: 6.01 | V6: 55 | W6: 0 | X6: 00:55:00
B7: Sunday | C7: 2 | D7: 4 | E7: 2018-02-04 | F7: 0 | G7: 0 | H7: 0 | K7: 0 | L7: 0 | M7: 0 | N7: 0 | O7: 0 | R7: 0 | S7: 0 | T7: 0 | U7: 0 | V7: 0 | W7: 0 | X7: 00:00:00
A8: Ike | B8: Monday | C8: 2 | D8: 5 | E8: 2018-02-05 | F8: 405 | G8: 3.37 | H8: 08:52:00 | I8: 00:08:55 | J8: 6.74 | K8: 30 | L8: 0 | M8: 25 | N8: 0.33 | O8: 15:04:00 | P8: 00:15:10 | Q8: 3.96 | R8: 5 | S8: 0 | T8: 430 | U8: 3.7 | V8: 35 | W8: 0 | X8: 00:35:00
A9: Ike | B9: Tuesday | C9: 2 | D9: 6 | E9: 2018-02-06 | F9: 770 | G9: 6.43 | H9: 08:23:00 | I9: 00:08:24 | J9: 7.144 | K9: 54 | L9: 0 | M9: 24 | N9: 0.33 | O9: 14:58:00 | P9: 00:15:10 | Q9: 3.96 | R9: 5 | S9: 0 | T9: 794 | U9: 6.76 | V9: 59 | W9: 0 | X9: 00:59:00
A10: Elliptical | B10: Wednesday | C10: 2 | D10: 7 | E10: 2018-02-07 | F10: 206 | G10: 1.54 | H10: 16:22:00 | I10: =IFERROR(TIME(,,ROUNDUP(($K10*60+$L10)/$G10,0)),"") -> 00:16:24 | J10: 3.659 | K10: 25 | L10: 15 | M10: 0 | N10: 0 | O10: 0 | R10: 0 | S10: 0 | T10: 206 | U10: 1.54 | V10: 25 | W10: 15 | X10: 00:25:15
A11: CRCE | B11: Thursday | C11: 2 | D11: 8 | E11: 2018-02-08 | F11: 698 | G11: 5.88 | H11: 07:38:00 | I11: 00:07:40 | J11: 7.84 | K11: 45 | L11: 0 | M11: 24 | N11: 0.33 | O11: 15:04:00 | P11: 00:15:10 | Q11: 3.96 | R11: 5 | S11: 0 | T11: 722 | U11: 6.21 | V11: 50 | W11: 0 | X11: 00:50:00
A12: Outside | B12: Friday | C12: 2 | D12: 9 | E12: 2018-02-09 | F12: 0 | G12: 4 | H12: 07:40:00 | I12: 00:07:40 | J12: 7.826 | K12: 30 | L12: 40 | M12: 0 | N12: 0 | O12: 0 | R12: 0 | S12: 0 | T12: 0 | U12: 4 | V12: 30 | W12: 40 | X12: 00:30:40
A13: Ike | B13: Saturday | C13: 2 | D13: 10 | E13: 2018-02-10 | F13: 423 | G13: 3.53 | H13: 08:28:00 | I13: 00:08:30 | J13: 7.06 | K13: 30 | L13: 0 | M13: 24 | N13: 0.34 | O13: 15:04:00 | P13: 00:14:43 | Q13: 4.08 | R13: 5 | S13: 0 | T13: 447 | U13: 3.87 | V13: 35 | W13: 0 | X13: 00:35:00
A14: Ike | B14: Sunday | C14: 2 | D14: 11 | E14: 2018-02-11 | F14: 427 | G14: 3.57 | H14: 08:23:00 | I14: 00:08:25 | J14: 7.14 | K14: 30 | L14: 0 | M14: 25 | N14: 0.34 | O14: 15:01:00 | P14: 00:14:43 | Q14: 4.08 | R14: 5 | S14: 0 | T14: 452 | U14: 3.91 | V14: 35 | W14: 0 | X14: 00:35:00
A15: Ike | B15: Monday | C15: 2 | D15: 12 | E15: 2018-02-12 | F15: 598 | G15: 5.02 | H15: 08:10:00 | I15: 00:08:11 | J15: 7.346 | K15: 41 | L15: 0 | M15: 25 | N15: 0.33 | O15: 15:01:00 | P15: 00:15:10 | Q15: 3.96 | R15: 5 | S15: 0 | T15: 623 | U15: 5.35 | V15: 46 | W15: 0 | X15: 00:46:00 | Y15: 12:30:00
B16: Tuesday | C16: 2 | D16: 13 | E16: 2018-02-13 | F16: 0 | G16: 0 | H16: 0 | I16: =IFERROR(TIME(,,ROUNDUP(($K16*60+$L16)/$G16,0)),"") ->  | K16: 0 | L16: 0 | M16: 0 | N16: 0 | O16: 0 | R16: 0 | S16: 0 | T16: 0 | U16: 0 | V16: 0 | W16: 0 | X16: 00:00:00
B17: Wednesday | C17: 2 | D17: 14 | E17: 2018-02-14 | F17: 0 | G17: 0 | H17: 0 | K17: 0 | L17: 0 | M17: 0 | N17: 0 | O17: 0 | R17: 0 | S17: 0 | T17: 0 | U17: 0 | V17: 0 | W17: 0 | X17: 00:00:00
A18: Ike | B18: Thursday | C18: 2 | D18: 15 | E18: 2018-02-15 | F18: 437 | G18: 3.66 | H18: 08:11:00 | I18: 00:08:12 | J18: 7.32 | K18: 30 | L18: 0 | M18: 24 | N18: 0.33 | O18: 15:01:00 | P18: 00:15:10 | Q18: 3.96 | R18: 5 | S18: 0 | T18: 461 | U18: 3.99 | V18: 35 | W18: 0 | X18: 00:35:00 | Y18: 21:25:00
A19: Ike | B19: Friday | C19: 2 | D19: 16 | E19: 2018-02-16 | F19: 64 | G19: 0.53 | H19: 08:01:00 | I19: 00:08:11 | J19: 7.338 | K19: 4 | L19: 20 | M19: 10 | N19: 0.14 | O19: 14:46:00 | P19: 00:14:18 | Q19: 4.2 | R19: 2 | S19: 0 | T19: 74 | U19: 0.67 | V19: 6 | W19: 20 | X19: 00:06:20 | Y19: 22:30:00
A20: Ike | B20: Saturday | C20: 2 | D20: 17 | E20: 2018-02-17 | F20: 680 | G20: 5.71 | H20: 07:52:00 | I20: 00:07:53 | J20: 7.613 | K20: 45 | L20: 0 | M20: 24 | N20: 0.33 | O20: 15:04:00 | P20: 00:15:10 | Q20: 3.96 | R20: 5 | S20: 0 | T20: 704 | U20: 6.04 | V20: 50 | W20: 0 | X20: 00:50:00 | Y20: 07:00:00
A21: Ike | B21: Saturday | C21: 2 | D21: 17 | E21: 2018-02-17 | F21: 525 | G21: 4.39 | H21: 08:11:00 | I21: 00:08:13 | J21: 7.316 | K21: 36 | L21: 0 | M21: 24 | N21: 0.34 | O21: 15:01:00 | P21: 00:14:43 | Q21: 4.08 | R21: 5 | S21: 0 | T21: 549 | U21: 4.73 | V21: 41 | W21: 0 | X21: 00:41:00 | Y21: 18:20:00
A22: Ike | B22: Sunday | C22: 2 | D22: 18 | E22: 2018-02-18 | F22: 413 | G22: 3.44 | H22: 08:42:00 | I22: 00:08:44 | J22: 6.88 | K22: 30 | L22: 0 | M22: 24 | N22: 0.33 | O22: 15:04:00 | P22: 00:15:10 | Q22: 3.96 | R22: 5 | S22: 0 | T22: 437 | U22: 3.77 | V22: 35 | W22: 0 | X22: 00:35:00 | Y22: 16:45:00
B23: Monday | C23: 2 | D23: 19 | E23: 2018-02-19 | F23: 0 | G23: 0 | H23: 0 | K23: 0 | L23: 0 | M23: 0 | N23: 0 | O23: 0 | R23: 0 | S23: 0 | T23: 0 | U23: 0 | V23: 0 | W23: 0 | X23: 00:00:00
A24: Ike | B24: Tuesday | C24: 2 | D24: 20 | E24: 2018-02-20 | F24: 423 | G24: 3.53 | H24: 08:29:00 | I24: 00:08:30 | J24: 7.06 | K24: 30 | L24: 0 | M24: 24 | N24: 0.33 | O24: 15:01:00 | P24: 00:15:10 | Q24: 3.96 | R24: 5 | S24: 0 | T24: 447 | U24: 3.86 | V24: 35 | W24: 0 | X24: 00:35:00 | Y24: 19:30:00
A25: Ike | B25: Wednesday | C25: 2 | D25: 21 | E25: 2018-02-21 | F25: 428 | G25: 3.59 | H25: 08:21:00 | I25: 00:08:22 | J25: 7.18 | K25: 30 | L25: 0 | M25: 25 | N25: 0.33 | O25: 15:04:00 | P25: 00:15:10 | Q25: 3.96 | R25: 5 | S25: 0 | T25: 453 | U25: 3.92 | V25: 35 | W25: 0 | X25: 00:35:00 | Y25: 17:00:00
A26: Ike | B26: Thursday | C26: 2 | D26: 22 | E26: 2018-02-22 | F26: 668 | G26: 5.61 | H26: 08:01:00 | I26: 00:08:02 | J26: 7.48 | K26: 45 | L26: 0 | M26: 24 | N26: 0.33 | O26: 15:04:00 | P26: 00:15:10 | Q26: 3.96 | R26: 5 | S26: 0 | T26: 692 | U26: 5.94 | V26: 50 | W26: 0 | X26: 00:50:00 | Y26: 11:00:00
A27: Ike | B27: Friday | C27: 2 | D27: 23 | E27: 2018-02-23 | F27: 423 | G27: 3.53 | H27: 08:28:00 | I27: 00:08:30 | J27: 7.06 | K27: 30 | L27: 0 | M27: 24 | N27: 0.34 | O27: 15:04:00 | P27: 00:14:43 | Q27: 4.08 | R27: 5 | S27: 0 | T27: 447 | U27: 3.87 | V27: 35 | W27: 0 | X27: 00:35:00 | Y27: 00:05:00
A28: Ike | B28: Saturday | C28: 2 | D28: 24 | E28: 2018-02-24 | F28: 690 | G28: 5.8 | H28: 07:56:00 | I28: 00:07:56 | J28: 7.565 | K28: 46 | L28: 0 | M28: 24 | N28: 0.33 | O28: 15:04:00 | P28: 00:15:10 | Q28: 3.96 | R28: 5 | S28: 0 | T28: 714 | U28: 6.13 | V28: 51 | W28: 0 | X28: 00:51:00 | Y28: 19:15:00
A29: Ike | B29: Sunday | C29: 2 | D29: 25 | E29: 2018-02-25 | F29: 527 | G29: 4.37 | H29: 09:08:00 | I29: 00:09:10 | J29: 6.555 | K29: 40 | L29: 0 | M29: 24 | N29: 0.33 | O29: 15:10:00 | P29: 00:15:10 | Q29: 3.96 | R29: 5 | S29: 0 | T29: 551 | U29: 4.7 | V29: 45 | W29: 0 | X29: 00:45:00 | Y29: 15:00:00
B30: Monday | C30: 2 | D30: 26 | E30: 2018-02-26 | F30: 0 | G30: 0 | H30: 0 | K30: 0 | L30: 0 | M30: 0 | N30: 0 | O30: 0 | R30: 0 | S30: 0 | T30: 0 | U30: 0 | V30: 0 | W30: 0 | X30: 00:00:00
A31: Ike | B31: Tuesday | C31: 2 | D31: 27 | E31: 2018-02-27 | F31: 443 | G31: 3.71 | H31: 08:21:00 | I31: 00:08:22 | J31: 7.18 | K31: 31 | L31: 0 | M31: 24 | N31: 0.33 | O31: 15:04:00 | P31: 00:15:10 | Q31: 3.96 | R31: 5 | S31: 0 | T31: 467 | U31: 4.04 | V31: 36 | W31: 0 | X31: 00:36:00 | Y31: 16:00:00
A32: Ike | B32: Wednesday | C32: 2 | D32: 28 | E32: 2018-02-28 | F32: 714 | G32: 6.01 | H32: 07:48:00 | I32: 00:07:50 | J32: 7.672 | K32: 47 | L32: 0 | M32: 25 | N32: 0.33 | O32: 15:04:00 | P32: 00:15:10 | Q32: 3.96 | R32: 5 | S32: 0 | T32: 739 | U32: 6.34 | V32: 52 | W32: 0 | X32: 00:52:00 | Y32: 18:30:00
A33: Ike | B33: Thursday | C33: 3 | D33: 1 | E33: 2018-03-01 | F33: 340 | G33: 2.84 | H33: 08:29:00 | I33: 00:08:31 | J33: 7.055 | K33: 24 | L33: 9 | M33: 24 | N33: 0.32 | O33: 15:01:00 | P33: 00:15:04 | Q33: 3.986 | R33: 4 | S33: 49 | T33: 364 | U33: 3.16 | V33: 28 | W33: 58 | X33: 00:28:58 | Y33: 11:05:00
A34: Ike | B34: Friday | C34: 3 | D34: 2 | E34: 2018-03-02 | F34: 126 | G34: 1.05 | H34: 08:30:00 | I34: 00:08:35 | J34: 7 | K34: 9 | L34: 0 | M34: 10 | N34: 0.14 | O34: 15:01:00 | P34: 00:14:18 | Q34: 4.2 | R34: 2 | S34: 0 | T34: 136 | U34: 1.19 | V34: 11 | W34: 0 | X34: 00:11:00 | Y34: 20:45:00
A35: Ike | B35: Saturday | C35: 3 | D35: 3 | E35: 2018-03-03 | F35: 443 | G35: 3.71 | H35: 08:21:00 | I35: 00:08:22 | J35: 7.18 | K35: 31 | L35: 0 | M35: 24 | N35: 0.33 | O35: 15:04:00 | P35: 00:15:10 | Q35: 3.96 | R35: 5 | S35: 0 | T35: 467 | U35: 4.04 | V35: 36 | W35: 0 | X35: 00:36:00 | Y35: 11:10:00
A36: Ike | B36: Sunday | C36: 3 | D36: 4 | E36: 2018-03-04 | F36: 447 | G36: 3.75 | H36: 07:59:00 | I36: 00:08:00 | J36: 7.5 | K36: 30 | L36: 0 | M36: 24 | N36: 0.33 | O36: 14:58:00 | P36: 00:15:10 | Q36: 3.96 | R36: 5 | S36: 0 | T36: 471 | U36: 4.08 | V36: 35 | W36: 0 | X36: 00:35:00 | Y36: 19:30:00
A37: Outside | B37: Monday | C37: 3 | D37: 5 | E37: 2018-03-05 | F37: 324 | G37: 3.25 | H37: 08:41:00 | I37: 00:08:41 | J37: 6.91 | K37: 28 | L37: 13 | M37: 0 | N37: 0 | O37: 0 | R37: 0 | S37: 0 | T37: 324 | U37: 3.25 | V37: 28 | W37: 13 | X37: 00:28:13
B38: Tuesday | C38: 3 | D38: 6 | E38: 2018-03-06 | F38: 0 | G38: 0 | H38: 0 | K38: 0 | L38: 0 | M38: 0 | N38: 0 | O38: 0 | R38: 0 | S38: 0 | T38: 0 | U38: 0 | V38: 0 | W38: 0 | X38: 00:00:00
B39: Wednesday | C39: 3 | D39: 7 | E39: 2018-03-07 | F39: 0 | G39: 0 | H39: 0 | K39: 0 | L39: 0 | M39: 0 | N39: 0 | O39: 0 | R39: 0 | S39: 0 | T39: 0 | U39: 0 | V39: 0 | W39: 0 | X39: 00:00:00
A40: Ike | B40: Thursday | C40: 3 | D40: 8 | E40: 2018-03-08 | F40: 428 | G40: 3.59 | H40: 08:21:00 | I40: 00:08:22 | J40: 7.18 | K40: 30 | L40: 0 | M40: 5 | N40: 0.06 | O40: 15:01:00 | P40: 00:16:40 | Q40: 3.6 | R40: 1 | S40: 0 | T40: 433 | U40: 3.65 | V40: 31 | W40: 0 | X40: 00:31:00 | Y40: 18:05:00
A41: Ike | B41: Friday | C41: 3 | D41: 9 | E41: 2018-03-09 | F41: 679 | G41: 5.68 | H41: 08:15:00 | I41: 00:08:17 | J41: 7.251 | K41: 47 | L41: 0 | M41: 24 | N41: 0.34 | O41: 15:01:00 | P41: 00:14:43 | Q41: 4.08 | R41: 5 | S41: 0 | T41: 703 | U41: 6.02 | V41: 52 | W41: 0 | X41: 00:52:00 | Y41: 11:10:00
A42: Ike | B42: Saturday | C42: 3 | D42: 10 | E42: 2018-03-10 | F42: 486 | G42: 4.07 | H42: 08:21:00 | I42: 00:08:22 | J42: 7.182 | K42: 34 | L42: 0 | M42: 24 | N42: 0.33 | O42: 15:01:00 | P42: 00:15:10 | Q42: 3.96 | R42: 5 | S42: 0 | T42: 510 | U42: 4.4 | V42: 39 | W42: 0 | X42: 00:39:00 | Y42: 11:00:00
A43: Soccer | B43: Sunday | C43: 3 | D43: 11 | E43: 2018-03-11 | F43: 0 | G43: 5.23 | H43: 0 | I43: 00:08:37 | J43: 6.973 | K43: 45 | L43: 0 | M43: 0 | N43: 0 | O43: 0 | R43: 0 | S43: 0 | T43: 0 | U43: 5.23 | V43: 45 | W43: 0 | X43: 00:45:00
B44: Monday | C44: 3 | D44: 12 | E44: 2018-03-12 | F44: 0 | G44: 0 | H44: 0 | K44: 0 | L44: 0 | M44: 0 | N44: 0 | O44: 0 | R44: 0 | S44: 0 | T44: 0 | U44: 0 | V44: 0 | W44: 0 | X44: 00:00:00
A45: Ike | B45: Tuesday | C45: 3 | D45: 13 | E45: 2018-03-13 | F45: 500 | G45: 4.19 | H45: 08:20:00 | I45: 00:08:22 | J45: 7.182 | K45: 35 | L45: 0 | M45: 24 | N45: 0.33 | O45: 15:04:00 | P45: 00:15:10 | Q45: 3.96 | R45: 5 | S45: 0 | T45: 524 | U45: 4.52 | V45: 40 | W45: 0 | X45: 00:40:00 | Y45: 15:20:00
A46: Ike | B46: Wednesday | C46: 3 | D46: 14 | E46: 2018-03-14 | F46: 715 | G46: 6 | H46: 07:59:00 | I46: 00:08:00 | J46: 7.5 | K46: 48 | L46: 0 | M46: 24 | N46: 0.33 | O46: 15:04:00 | P46: 00:15:10 | Q46: 3.96 | R46: 5 | S46: 0 | T46: 739 | U46: 6.33 | V46: 53 | W46: 0 | X46: 00:53:00 | Y46: 19:00:00
A47: Ike | B47: Thursday | C47: 3 | D47: 15 | E47: 2018-03-15 | F47: 479 | G47: 4.01 | H47: 08:13:00 | I47: 00:08:14 | J47: 7.29 | K47: 33 | L47: 0 | M47: 24 | N47: 0.33 | O47: 15:04:00 | P47: 00:15:10 | Q47: 3.96 | R47: 5 | S47: 0 | T47: 503 | U47: 4.34 | V47: 38 | W47: 0 | X47: 00:38:00 | Y47: 11:20:00
A48: Ike | B48: Friday | C48: 3 | D48: 16 | E48: 2018-03-16 | F48: 695 | G48: 5.82 | H48: 08:14:00 | I48: 00:08:15 | J48: 7.275 | K48: 48 | L48: 0 | M48: 24 | N48: 0.33 | O48: 14:58:00 | P48: 00:15:10 | Q48: 3.96 | R48: 5 | S48: 0 | T48: 719 | U48: 6.15 | V48: 53 | W48: 0 | X48: 00:53:00 | Y48: 11:10:00
B49: Saturday | C49: 3 | D49: 17 | E49: 2018-03-17 | F49: 0 | G49: 0 | H49: 0 | K49: 0 | L49: 0 | M49: 0 | N49: 0 | O49: 0 | R49: 0 | S49: 0 | T49: 0 | U49: 0 | V49: 0 | W49: 0 | X49: 00:00:00
A50: WN Track | B50: Sunday | C50: 3 | D50: 18 | E50: 2018-03-18 | F50: 419 | G50: 3.86 | H50: 07:47:00 | I50: 00:07:47 | J50: 7.72 | K50: 30 | L50: 0 | M50: 0 | N50: 0.36 | O50: 15:44:00 | P50: 00:15:45 | Q50: 3.811 | R50: 5 | S50: 40 | T50: 419 | U50: 4.22 | V50: 35 | W50: 40 | X50: 00:35:40 | Y50: 11:00:00
A51: Outside | B51: Monday | C51: 3 | D51: 19 | E51: 2018-03-19 | F51: 666 | G51: 6.27 | H51: 07:59:00 | I51: 00:07:59 | J51: 7.524 | K51: 50 | L51: 0 | M51: 0 | N51: 0.31 | O51: 16:07:00 | P51: 00:16:08 | Q51: 3.72 | R51: 5 | S51: 0 | T51: 666 | U51: 6.58 | V51: 55 | W51: 0 | X51: 00:55:00 | Y51: 09:50:00
A52: Outside | B52: Tuesday | C52: 3 | D52: 20 | E52: 2018-03-20 | F52: 460 | G52: 4.14 | H52: 0 | I52: 00:07:59 | J52: 7.527 | K52: 33 | L52: 0 | M52: 0 | N52: 0.32 | O52: 0 | P52: 00:18:45 | Q52: 3.2 | R52: 6 | S52: 0 | T52: 460 | U52: 4.46 | V52: 39 | W52: 0 | X52: 00:39:00 | Y52: 15:30:00
B53: Wednesday | C53: 3 | D53: 21 | E53: 2018-03-21 | F53: 0 | G53: 0 | H53: 0 | K53: 0 | L53: 0 | M53: 0 | N53: 0 | O53: 0 | R53: 0 | S53: 0 | T53: 0 | U53: 0 | V53: 0 | W53: 0 | X53: 00:00:00
B54: Thursday | C54: 3 | D54: 22 | E54: 2018-03-22 | F54: 0 | G54: 0 | H54: 0 | K54: 0 | L54: 0 | M54: 0 | N54: 0 | O54: 0 | R54: 0 | S54: 0 | T54: 0 | U54: 0 | V54: 0 | W54: 0 | X54: 00:00:00
B55: Friday | C55: 3 | D55: 23 | E55: 2018-03-23 | F55: 0 | G55: 0 | H55: 0 | K55: 0 | L55: 0 | M55: 0 | N55: 0 | O55: 0 | R55: 0 | S55: 0 | T55: 0 | U55: 0 | V55: 0 | W55: 0 | X55: 00:00:00
A56: Outside | B56: Saturday | C56: 3 | D56: 24 | E56: 2018-03-24 | F56: 369 | G56: 3.41 | H56: 0 | I56: 00:08:48 | J56: 6.82 | K56: 30 | L56: 0 | M56: 0 | N56: 0.31 | O56: 0 | P56: 00:16:08 | Q56: 3.72 | R56: 5 | S56: 0 | T56: 369 | U56: 3.72 | V56: 35 | W56: 0 | X56: 00:35:00 | Y56: 11:05:00
A57: Ike | B57: Sunday | C57: 3 | D57: 25 | E57: 2018-03-25 | F57: 374 | G57: 3.14 | H57: 07:56:00 | I57: 00:07:58 | J57: 7.536 | K57: 25 | L57: 0 | M57: 24 | N57: 0.33 | O57: 15:04:00 | P57: 00:15:10 | Q57: 3.96 | R57: 5 | S57: 0 | T57: 398 | U57: 3.47 | V57: 30 | W57: 0 | X57: 00:30:00 | Y57: 21:30:00
A58: Ike | B58: Monday | C58: 3 | D58: 26 | E58: 2018-03-26 | F58: 697 | G58: 5.84 | H58: 08:12:00 | I58: 00:08:14 | J58: 7.3 | K58: 48 | L58: 0 | M58: 24 | N58: 0.33 | O58: 15:04:00 | P58: 00:15:10 | Q58: 3.96 | R58: 5 | S58: 0 | T58: 721 | U58: 6.17 | V58: 53 | W58: 0 | X58: 00:53:00 | Y58: 18:50:00
A59: Ike | B59: Tuesday | C59: 3 | D59: 27 | E59: 2018-03-27 | F59: 477 | G59: 4 | H59: 08:14:00 | I59: 00:08:15 | J59: 7.272 | K59: 33 | L59: 0 | M59: 24 | N59: 0.33 | O59: 15:04:00 | P59: 00:15:10 | Q59: 3.96 | R59: 5 | S59: 0 | T59: 501 | U59: 4.33 | V59: 38 | W59: 0 | X59: 00:38:00 | Y59: 10:10:00
B60: Wednesday | C60: 3 | D60: 28 | E60: 2018-03-28 | F60: 0 | G60: 0 | H60: 0 | K60: 0 | L60: 0 | M60: 0 | N60: 0 | O60: 0 | R60: 0 | S60: 0 | T60: 0 | U60: 0 | V60: 0 | W60: 0 | X60: 00:00:00
A61: Ike | B61: Thursday | C61: 3 | D61: 29 | E61: 2018-03-29 | F61: 695 | G61: 5.82 | H61: 08:14:00 | I61: 00:08:15 | J61: 7.275 | K61: 48 | L61: 0 | M61: 24 | N61: 0.33 | O61: 15:01:00 | P61: 00:15:10 | Q61: 3.96 | R61: 5 | S61: 0 | T61: 719 | U61: 6.15 | V61: 53 | W61: 0 | X61: 00:53:00 | Y61: 08:15:00
A62: Ike | B62: Friday | C62: 3 | D62: 30 | E62: 2018-03-30 | F62: 479 | G62: 4.02 | H62: 08:12:00 | I62: 00:08:13 | J62: 7.309 | K62: 33 | L62: 0 | M62: 25 | N62: 0.33 | O62: 15:04:00 | P62: 00:15:10 | Q62: 3.96 | R62: 5 | S62: 0 | T62: 504 | U62: 4.35 | V62: 38 | W62: 0 | X62: 00:38:00 | Y62: 11:15:00
A63: Ike | B63: Saturday | C63: 3 | D63: 31 | E63: 2018-03-31 | F63: 172 | G63: 1.44 | H63: 08:17:00 | I63: 00:08:20 | J63: 7.2 | K63: 12 | L63: 0 | M63: 12 | N63: 0.16 | O63: 15:01:00 | P63: 00:15:00 | Q63: 4 | R63: 2 | S63: 24 | T63: 184 | U63: 1.6 | V63: 14 | W63: 24 | X63: 00:14:24 | Y63: 15:45:00
A64: Ike | B64: Sunday | C64: 4 | D64: 1 | E64: 2018-04-01 | F64: 725 | G64: 6.07 | H64: 08:14:00 | I64: 00:08:15 | J64: 7.284 | K64: 50 | L64: 0 | M64: 24 | N64: 0.33 | O64: 15:04:00 | P64: 00:15:10 | Q64: 3.96 | R64: 5 | S64: 0 | T64: 749 | U64: 6.4 | V64: 55 | W64: 0 | X64: 00:55:00 | Y64: 19:30:00
A65: Ike | B65: Monday | C65: 4 | D65: 2 | E65: 2018-04-02 | F65: 479 | G65: 4.01 | H65: 08:13:00 | I65: 00:08:14 | J65: 7.29 | K65: 33 | L65: 0 | M65: 24 | N65: 0.33 | O65: 14:58:00 | P65: 00:15:10 | Q65: 3.96 | R65: 5 | S65: 0 | T65: 503 | U65: 4.34 | V65: 38 | W65: 0 | X65: 00:38:00 | Y65: 11:30:00
A66: Ike | B66: Tuesday | C66: 4 | D66: 3 | E66: 2018-04-03 | F66: 715 | G66: 6 | H66: 07:59:00 | I66: 00:08:00 | J66: 7.5 | K66: 48 | L66: 0 | M66: 24 | N66: 0.34 | O66: 15:04:00 | P66: 00:14:43 | Q66: 4.08 | R66: 5 | S66: 0 | T66: 739 | U66: 6.34 | V66: 53 | W66: 0 | X66: 00:53:00 | Y66: 13:25:00
A67: Ike | B67: Wednesday | C67: 4 | D67: 4 | E67: 2018-04-04 | F67: 479 | G67: 4.01 | H67: 08:12:00 | I67: 00:08:14 | J67: 7.29 | K67: 33 | L67: 0 | M67: 24 | N67: 0.34 | O67: 15:04:00 | P67: 00:14:43 | Q67: 4.08 | R67: 5 | S67: 0 | T67: 503 | U67: 4.35 | V67: 38 | W67: 0 | X67: 00:38:00 | Y67: 18:30:00
B68: Thursday | C68: 4 | D68: 5 | E68: 2018-04-05 | F68: 0 | G68: 0 | H68: 0 | I68: =IFERROR(TIME(,,ROUNDUP(($K68*60+$L68)/$G68,0)),"") ->  | J68: =IF(ROUNDDOWN(IFERROR($G68*60*60/($K68*60+L68), 0),3)=0,"",ROUNDDOWN(IFERROR($G68*60*60/($K68*60+$L68), 0),3)) ->  | K68: 0 | L68: 0 | M68: 0 | N68: 0 | O68: 0 | P68: =IFERROR(TIME(,,ROUNDUP(($R68*60+$S68)/$N68,0)),"") ->  | Q68: =IF(ROUNDDOWN(IFERROR($N68*60*60/($R68*60+$S68), 0),3)=0,"",ROUNDDOWN(IFERROR($N68*60*60/($R68*60+$S68), 0),3)) ->  | R68: 0 | S68: 0 | T68: =$F68+$M68 -> 0 | U68: =$G68+$N68 -> 0 | V68: =$K68+$R68+INT(($L68+$S68)/60) -> 0 | W68: =MOD(($L68+$S68),60) -> 0 | X68: =TIME(,$V68,$W68) -> 00:00:00
A69: Ike | B69: Friday | C69: 4 | D69: 6 | E69: 2018-04-06 | F69: 285 | G69: 2.39 | H69: 07:55:00 | I69: 00:07:57 | J69: 7.547 | K69: 19 | L69: 0 | M69: 18 | N69: 0.26 | O69: 14:57:00 | P69: 00:14:37 | Q69: 4.105 | R69: 3 | S69: 48 | T69: 303 | U69: 2.65 | V69: 22 | W69: 48 | X69: 00:22:48 | Y69: 11:10:00
A70: Ike | B70: Saturday | C70: 4 | D70: 7 | E70: 2018-04-07 | F70: 728 | G70: 6.2 | H70: 07:53:00 | I70: 00:07:55 | J70: 7.591 | K70: 49 | L70: 0 | M70: 25 | N70: 0.34 | O70: 15:01:00 | P70: 00:14:43 | Q70: 4.08 | R70: 5 | S70: 0 | T70: 753 | U70: 6.54 | V70: 54 | W70: 0 | X70: 00:54:00 | Y70: 19:00:00
A71: Ike | B71: Sunday | C71: 4 | D71: 8 | E71: 2018-04-08 | F71: 480 | G71: 4.02 | H71: 08:12:00 | I71: 00:08:13 | J71: 7.309 | K71: 33 | L71: 0 | M71: 24 | N71: 0.33 | O71: 14:58:00 | P71: 00:15:10 | Q71: 3.96 | R71: 5 | S71: 0 | T71: 504 | U71: 4.35 | V71: 38 | W71: 0 | X71: 00:38:00 | Y71: 11:20:00
A72: Ike | B72: Monday | C72: 4 | D72: 9 | E72: 2018-04-09 | F72: 487 | G72: 4.09 | H72: 07:48:00 | I72: 00:07:50 | J72: 7.668 | K72: 32 | L72: 0 | M72: 24 | N72: 0.34 | O72: 14:55:00 | P72: 00:14:43 | Q72: 4.08 | R72: 5 | S72: 0 | T72: 511 | U72: 4.43 | V72: 37 | W72: 0 | X72: 00:37:00 | Y72: 11:30:00
B73: Tuesday | C73: 4 | D73: 10 | E73: 2018-04-10 | F73: 0 | G73: 0 | H73: 0 | K73: 0 | L73: 0 | M73: 0 | N73: 0 | O73: 0 | R73: 0 | S73: 0 | T73: 0 | U73: 0 | V73: 0 | W73: 0 | X73: 00:00:00
A74: Ike | B74: Wednesday | C74: 4 | D74: 11 | E74: 2018-04-11 | F74: 755 | G74: 6.34 | H74: 07:54:00 | I74: 00:07:54 | J74: 7.608 | K74: 50 | L74: 0 | M74: 24 | N74: 0.34 | O74: 14:58:00 | P74: 00:14:43 | Q74: 4.08 | R74: 5 | S74: 0 | T74: 779 | U74: 6.68 | V74: 55 | W74: 0 | X74: 00:55:00 | Y74: 17:10:00
A75: Ike | B75: Thursday | C75: 4 | D75: 12 | E75: 2018-04-12 | F75: 480 | G75: 4.04 | H75: 07:54:00 | I75: 00:07:56 | J75: 7.575 | K75: 32 | L75: 0 | M75: 24 | N75: 0.33 | O75: 15:04:00 | P75: 00:15:10 | Q75: 3.96 | R75: 5 | S75: 0 | T75: 504 | U75: 4.37 | V75: 37 | W75: 0 | X75: 00:37:00 | Y75: 15:40:00
A76: Ike | B76: Friday | C76: 4 | D76: 13 | E76: 2018-04-13 | F76: 747 | G76: 6.41 | H76: 07:47:00 | I76: 00:07:49 | J76: 7.692 | K76: 50 | L76: 0 | M76: 24 | N76: 0.33 | O76: 15:04:00 | P76: 00:15:10 | Q76: 3.96 | R76: 5 | S76: 0 | T76: 771 | U76: 6.74 | V76: 55 | W76: 0 | X76: 00:55:00 | Y76: 17:25:00
A77: Ike | B77: Saturday | C77: 4 | D77: 14 | E77: 2018-04-14 | F77: 0 | G77: 3.63 | H77: 0 | I77: 00:08:00 | J77: 7.51 | K77: 29 | L77: 0 | M77: 0 | N77: 0 | O77: 0 | R77: 0 | S77: 0 | T77: 0 | U77: 3.63 | V77: 29 | W77: 0 | X77: 00:29:00
B78: Sunday | C78: 4 | D78: 15 | E78: 2018-04-15 | F78: 0 | G78: 0 | H78: 0 | K78: 0 | L78: 0 | M78: 0 | N78: 0 | O78: 0 | R78: 0 | S78: 0 | T78: 0 | U78: 0 | V78: 0 | W78: 0 | X78: 00:00:00
A79: Ike | B79: Monday | C79: 4 | D79: 16 | E79: 2018-04-16 | F79: 715 | G79: 6 | H79: 07:59:00 | I79: 00:08:00 | J79: 7.5 | K79: 48 | L79: 0 | M79: 24 | N79: 0.34 | O79: 14:58:00 | P79: 00:14:43 | Q79: 4.08 | R79: 5 | S79: 0 | T79: 739 | U79: 6.34 | V79: 53 | W79: 0 | X79: 00:53:00 | Y79: 11:20:00
A80: Ike | B80: Tuesday | C80: 4 | D80: 17 | E80: 2018-04-17 | F80: 477 | G80: 4.01 | H80: 07:58:00 | I80: 00:07:59 | J80: 7.518 | K80: 32 | L80: 0 | M80: 24 | N80: 0.33 | O80: 15:04:00 | P80: 00:15:10 | Q80: 3.96 | R80: 5 | S80: 0 | T80: 501 | U80: 4.34 | V80: 37 | W80: 0 | X80: 00:37:00 | Y80: 14:55:00
A81: Ike | B81: Wednesday | C81: 4 | D81: 18 | E81: 2018-04-18 | F81: 763 | G81: 6.42 | H81: 07:47:00 | I81: 00:07:48 | J81: 7.704 | K81: 50 | L81: 0 | M81: 24 | N81: 0.33 | O81: 15:04:00 | P81: 00:15:10 | Q81: 3.96 | R81: 5 | S81: 0 | T81: 787 | U81: 6.75 | V81: 55 | W81: 0 | X81: 00:55:00 | Y81: 21:30:00
B82: Thursday | C82: 4 | D82: 19 | E82: 2018-04-19 | F82: 0 | G82: 0 | H82: 0 | K82: 0 | L82: 0 | M82: 0 | N82: 0 | O82: 0 | R82: 0 | S82: 0 | T82: 0 | U82: 0 | V82: 0 | W82: 0 | X82: 00:00:00
A83: Ike | B83: Friday | C83: 4 | D83: 20 | E83: 2018-04-20 | F83: 479 | G83: 4.01 | H83: 08:13:00 | I83: 00:08:14 | J83: 7.29 | K83: 33 | L83: 0 | M83: 24 | N83: 0.33 | O83: 15:04:00 | P83: 00:15:10 | Q83: 3.96 | R83: 5 | S83: 0 | T83: 503 | U83: 4.34 | V83: 38 | W83: 0 | X83: 00:38:00 | Y83: 23:35:00
A84: Ike | B84: Saturday | C84: 4 | D84: 21 | E84: 2018-04-21 | F84: 478 | G84: 4.01 | H84: 07:58:00 | I84: 00:07:59 | J84: 7.518 | K84: 32 | L84: 0 | M84: 24 | N84: 0.33 | O84: 14:58:00 | P84: 00:15:10 | Q84: 3.96 | R84: 5 | S84: 0 | T84: 502 | U84: 4.34 | V84: 37 | W84: 0 | X84: 00:37:00 | Y84: 17:00:00
B85: Sunday | C85: 4 | D85: 22 | E85: 2018-04-22 | F85: 0 | G85: 0 | H85: 0 | K85: 0 | L85: 0 | M85: 0 | N85: 0 | O85: 0 | R85: 0 | S85: 0 | T85: 0 | U85: 0 | V85: 0 | W85: 0 | X85: 00:00:00
A86: Ike | B86: Monday | C86: 4 | D86: 23 | E86: 2018-04-23 | F86: 774 | G86: 6.52 | H86: 07:39:00 | I86: 00:07:41 | J86: 7.824 | K86: 50 | L86: 0 | M86: 24 | N86: 0.33 | O86: 14:57:00 | P86: 00:15:10 | Q86: 3.96 | R86: 5 | S86: 0 | T86: 798 | U86: 6.85 | V86: 55 | W86: 0 | X86: 00:55:00 | Y86: 11:35:00
A87: Ike | B87: Tuesday | C87: 4 | D87: 24 | E87: 2018-04-24 | F87: 443 | G87: 3.68 | H87: 08:56:00 | I87: 00:08:59 | J87: 6.69 | K87: 33 | L87: 0 | M87: 24 | N87: 0.33 | O87: 15:04:00 | P87: 00:15:10 | Q87: 3.96 | R87: 5 | S87: 0 | T87: 467 | U87: 4.01 | V87: 38 | W87: 0 | X87: 00:38:00 | Y87: 13:55:00
B88: Wednesday | C88: 4 | D88: 25 | E88: 2018-04-25 | F88: 0 | G88: 0 | H88: 0 | K88: 0 | L88: 0 | M88: 0 | N88: 0 | O88: 00:00:00 | R88: 0 | S88: 0 | T88: 0 | U88: 0 | V88: 0 | W88: 0 | X88: 00:00:00
A89: Ike | B89: Thursday | C89: 4 | D89: 26 | E89: 2018-04-26 | F89: 784 | G89: 6.61 | H89: 07:33:00 | I89: 00:07:34 | J89: 7.932 | K89: 50 | L89: 0 | M89: 24 | N89: 0.33 | O89: 15:04:00 | P89: 00:15:10 | Q89: 3.96 | R89: 5 | S89: 0 | T89: 808 | U89: 6.94 | V89: 55 | W89: 0 | X89: 00:55:00 | Y89: 17:00:00
A90: Ike | B90: Friday | C90: 4 | D90: 27 | E90: 2018-04-27 | F90: 353 | G90: 2.96 | H90: 08:11:00 | I90: 00:08:13 | J90: 7.313 | K90: 24 | L90: 17 | M90: 24 | N90: 0.32 | O90: 15:01:00 | P90: 00:15:10 | Q90: 3.958 | R90: 4 | S90: 51 | T90: 377 | U90: 3.28 | V90: 29 | W90: 8 | X90: 00:29:08 | Y90: 16:30:00
B91: Saturday | C91: 4 | D91: 28 | E91: 2018-04-28 | F91: 0 | G91: 0 | H91: 0 | K91: 0 | L91: 0 | M91: 0 | N91: 0 | O91: 0 | R91: 0 | S91: 0 | T91: 0 | U91: 0 | V91: 0 | W91: 0 | X91: 00:00:00
B92: Sunday | C92: 4 | D92: 29 | E92: 2018-04-29 | F92: 0 | G92: 0 | H92: 0 | K92: 0 | L92: 0 | M92: 0 | N92: 0 | O92: 0 | R92: 0 | S92: 0 | T92: 0 | U92: 0 | V92: 0 | W92: 0 | X92: 00:00:00
A93: Ike | B93: Monday | C93: 4 | D93: 30 | E93: 2018-04-30 | F93: 723 | G93: 6.08 | H93: 07:48:00 | I93: 00:07:49 | J93: 7.68 | K93: 47 | L93: 30 | M93: 24 | N93: 0.33 | O93: 15:01:00 | P93: 00:15:10 | Q93: 3.96 | R93: 5 | S93: 0 | T93: 747 | U93: 6.41 | V93: 52 | W93: 30 | X93: 00:52:30 | Y93: 16:20:00
B94: Tuesday | C94: 5 | D94: 1 | E94: 2018-05-01 | F94: 0 | G94: 0 | H94: 0 | K94: 0 | L94: 0 | M94: 0 | N94: 0 | O94: 0 | R94: 0 | S94: 0 | T94: 0 | U94: 0 | V94: 0 | W94: 0 | X94: 00:00:00
A95: Ike | B95: Wednesday | C95: 5 | D95: 2 | E95: 2018-05-02 | F95: 478 | G95: 4.02 | H95: 07:57:00 | I95: 00:07:58 | J95: 7.537 | K95: 32 | L95: 0 | M95: 24 | N95: 0.33 | O95: 15:04:00 | P95: 00:15:10 | Q95: 3.96 | R95: 5 | S95: 0 | T95: 502 | U95: 4.35 | V95: 37 | W95: 0 | X95: 00:37:00 | Y95: 10:40:00
B96: Thursday | C96: 5 | D96: 3 | E96: 2018-05-03 | F96: 0 | G96: 0 | H96: 0 | K96: 0 | L96: 0 | M96: 0 | N96: 0 | O96: 0 | R96: 0 | S96: 0 | T96: 0 | U96: 0 | V96: 0 | W96: 0 | X96: 00:00:00
B97: Friday | C97: 5 | D97: 4 | E97: 2018-05-04 | F97: 0 | G97: 0 | H97: 0 | K97: 0 | L97: 0 | M97: 0 | N97: 0 | O97: 0 | R97: 0 | S97: 0 | T97: 0 | U97: 0 | V97: 0 | W97: 0 | X97: 00:00:00
A98: Ike | B98: Saturday | C98: 5 | D98: 5 | E98: 2018-05-05 | F98: 287 | G98: 2.44 | H98: 08:11:00 | I98: 00:08:12 | J98: 7.32 | K98: 20 | L98: 0 | M98: 20 | N98: 0.26 | O98: 14:57:00 | P98: 00:15:24 | Q98: 3.9 | R98: 4 | S98: 0 | T98: 307 | U98: 2.7 | V98: 24 | W98: 0 | X98: 00:24:00 | Y98: 15:40:00
A99: Ike | B99: Sunday | C99: 5 | D99: 6 | E99: 2018-05-06 | F99: 477 | G99: 4.01 | H99: 07:58:00 | I99: 00:07:59 | J99: 7.518 | K99: 32 | L99: 0 | M99: 24 | N99: 0.33 | O99: 15:04:00 | P99: 00:15:10 | Q99: 3.96 | R99: 5 | S99: 0 | T99: 501 | U99: 4.34 | V99: 37 | W99: 0 | X99: 00:37:00 | Y99: 15:30:00
B100: Monday | C100: 5 | D100: 7 | E100: 2018-05-07 | F100: 0 | G100: 0 | H100: 0 | K100: 0 | L100: 0 | M100: 0 | N100: 0 | O100: 0 | R100: 0 | S100: 0 | T100: 0 | U100: 0 | V100: 0 | W100: 0 | X100: 00:00:00
B101: Tuesday | C101: 5 | D101: 8 | E101: 2018-05-08 | F101: 0 | G101: 0 | H101: 0 | K101: 0 | L101: 0 | M101: 0 | N101: 0 | O101: 0 | R101: 0 | S101: 0 | T101: 0 | U101: 0 | V101: 0 | W101: 0 | X101: 00:00:00
B102: Wednesday | C102: 5 | D102: 9 | E102: 2018-05-09 | F102: 0 | G102: 0 | H102: 0 | K102: 0 | L102: 0 | M102: 0 | N102: 0 | O102: 0 | R102: 0 | S102: 0 | T102: 0 | U102: 0 | V102: 0 | W102: 0 | X102: 00:00:00
B103: Thursday | C103: 5 | D103: 10 | E103: 2018-05-10 | F103: 0 | G103: 0 | H103: 0 | K103: 0 | L103: 0 | M103: 0 | N103: 0 | O103: 0 | R103: 0 | S103: 0 | T103: 0 | U103: 0 | V103: 0 | W103: 0 | X103: 00:00:00
B104: Friday | C104: 5 | D104: 11 | E104: 2018-05-11 | F104: 0 | G104: 0 | H104: 0 | K104: 0 | L104: 0 | M104: 0 | N104: 0 | O104: 0 | R104: 0 | S104: 0 | T104: 0 | U104: 0 | V104: 0 | W104: 0 | X104: 00:00:00
B105: Saturday | C105: 5 | D105: 12 | E105: 2018-05-12 | F105: 0 | G105: 0 | H105: 0 | K105: 0 | L105: 0 | M105: 0 | N105: 0 | O105: 0 | R105: 0 | S105: 0 | T105: 0 | U105: 0 | V105: 0 | W105: 0 | X105: 00:00:00
A106: Outside | B106: Sunday | C106: 5 | D106: 13 | E106: 2018-05-13 | F106: 387 | G106: 3.55 | H106: 0 | I106: 00:09:01 | J106: 6.656 | K106: 32 | L106: 0 | M106: 0 | N106: 0.4 | O106: 0 | P106: 00:17:30 | Q106: 3.428 | R106: 7 | S106: 0 | T106: 387 | U106: 3.95 | V106: 39 | W106: 0 | X106: 00:39:00 | Y106: 10:10:00
B107: Monday | C107: 5 | D107: 14 | E107: 2018-05-14 | F107: 0 | G107: 0 | H107: 0 | K107: 0 | L107: 0 | M107: 0 | N107: 0 | O107: 0 | R107: 0 | S107: 0 | T107: 0 | U107: 0 | V107: 0 | W107: 0 | X107: 00:00:00
A108: Outside | B108: Tuesday | C108: 5 | D108: 15 | E108: 2018-05-15 | F108: 401 | G108: 3.67 | H108: 0 | I108: 00:08:11 | J108: 7.34 | K108: 30 | L108: 0 | M108: 0 | N108: 0.33 | O108: 0 | P108: 00:15:34 | Q108: 3.857 | R108: 5 | S108: 8 | T108: 401 | U108: 4 | V108: 35 | W108: 8 | X108: 00:35:08 | Y108: 18:10:00
B109: Wednesday | C109: 5 | D109: 16 | E109: 2018-05-16 | F109: 0 | G109: 0 | H109: 0 | K109: 0 | L109: 0 | M109: 0 | N109: 0 | O109: 0 | R109: 0 | S109: 0 | T109: 0 | U109: 0 | V109: 0 | W109: 0 | X109: 00:00:00
A110: Outside | B110: Thursday | C110: 5 | D110: 17 | E110: 2018-05-17 | F110: 406 | G110: 3.78 | H110: 0 | I110: 00:08:13 | J110: 7.316 | K110: 31 | L110: 0 | M110: 0 | N110: 0.27 | O110: 0 | P110: 00:16:40 | Q110: 3.6 | R110: 4 | S110: 30 | T110: 406 | U110: 4.05 | V110: 35 | W110: 30 | X110: 00:35:30 | Y110: 19:45:00
B111: Friday | C111: 5 | D111: 18 | E111: 2018-05-18 | F111: 0 | G111: 0 | H111: 0 | K111: 0 | L111: 0 | M111: 0 | N111: 0 | O111: 0 | R111: 0 | S111: 0 | T111: 0 | U111: 0 | V111: 0 | W111: 0 | X111: 00:00:00
B112: Saturday | C112: 5 | D112: 19 | E112: 2018-05-19 | F112: 0 | G112: 0 | H112: 0 | K112: 0 | L112: 0 | M112: 0 | N112: 0 | O112: 0 | R112: 0 | S112: 0 | T112: 0 | U112: 0 | V112: 0 | W112: 0 | X112: 00:00:00
B113: Sunday | C113: 5 | D113: 20 | E113: 2018-05-20 | F113: 0 | G113: 0 | H113: 0 | K113: 0 | L113: 0 | M113: 0 | N113: 0 | O113: 0 | R113: 0 | S113: 0 | T113: 0 | U113: 0 | V113: 0 | W113: 0 | X113: 00:00:00
B114: Monday | C114: 5 | D114: 21 | E114: 2018-05-21 | F114: 0 | G114: 0 | H114: 0 | K114: 0 | L114: 0 | M114: 0 | N114: 0 | O114: 0 | R114: 0 | S114: 0 | T114: 0 | U114: 0 | V114: 0 | W114: 0 | X114: 00:00:00
B115: Tuesday | C115: 5 | D115: 22 | E115: 2018-05-22 | F115: 0 | G115: 0 | H115: 0 | K115: 0 | L115: 0 | M115: 0 | N115: 0 | O115: 0 | R115: 0 | S115: 0 | T115: 0 | U115: 0 | V115: 0 | W115: 0 | X115: 00:00:00
A116: Outside | B116: Wednesday | C116: 5 | D116: 23 | E116: 2018-05-23 | F116: 389 | G116: 3.55 | H116: 0 | I116: 00:08:28 | J116: 7.1 | K116: 30 | L116: 0 | M116: 0 | N116: 0.4 | O116: 0 | P116: 00:17:30 | Q116: 3.428 | R116: 7 | S116: 0 | T116: 389 | U116: 3.95 | V116: 37 | W116: 0 | X116: 00:37:00 | Y116: 16:30:00
B117: Thursday | C117: 5 | D117: 24 | E117: 2018-05-24 | F117: 0 | G117: 0 | H117: 0 | K117: 0 | L117: 0 | M117: 0 | N117: 0 | O117: 0 | R117: 0 | S117: 0 | T117: 0 | U117: 0 | V117: 0 | W117: 0 | X117: 00:00:00
A118: Outside | B118: Friday | C118: 5 | D118: 25 | E118: 2018-05-25 | F118: 366 | G118: 3.51 | H118: 0 | I118: 00:08:33 | J118: 7.02 | K118: 30 | L118: 0 | M118: 0 | N118: 0.1 | O118: 0 | P118: 00:16:40 | Q118: 3.6 | R118: 1 | S118: 40 | T118: 366 | U118: 3.61 | V118: 31 | W118: 40 | X118: 00:31:40 | Y118: 10:40:00
B119: Saturday | C119: 5 | D119: 26 | E119: 2018-05-26 | F119: 0 | G119: 0 | H119: 0 | K119: 0 | L119: 0 | M119: 0 | N119: 0 | O119: 0 | R119: 0 | S119: 0 | T119: 0 | U119: 0 | V119: 0 | W119: 0 | X119: 00:00:00
A120: Outside | B120: Sunday | C120: 5 | D120: 27 | E120: 2018-05-27 | F120: 388 | G120: 3.53 | H120: 0 | I120: 00:08:30 | J120: 7.06 | K120: 30 | L120: 0 | M120: 0 | N120: 0.37 | O120: 0 | P120: 00:16:13 | Q120: 3.7 | R120: 6 | S120: 0 | T120: 388 | U120: 3.9 | V120: 36 | W120: 0 | X120: 00:36:00 | Y120: 10:40:00
B121: Monday | C121: 5 | D121: 28 | E121: 2018-05-28 | F121: 0 | G121: 0 | H121: 0 | K121: 0 | L121: 0 | M121: 0 | N121: 0 | O121: 0 | R121: 0 | S121: 0 | T121: 0 | U121: 0 | V121: 0 | W121: 0 | X121: 00:00:00
B122: Tuesday | C122: 5 | D122: 29 | E122: 2018-05-29 | F122: 0 | G122: 0 | H122: 0 | K122: 0 | L122: 0 | M122: 0 | N122: 0 | O122: 0 | R122: 0 | S122: 0 | T122: 0 | U122: 0 | V122: 0 | W122: 0 | X122: 00:00:00
B123: Wednesday | C123: 5 | D123: 30 | E123: 2018-05-30 | F123: 0 | G123: 0 | H123: 0 | K123: 0 | L123: 0 | M123: 0 | N123: 0 | O123: 0 | R123: 0 | S123: 0 | T123: 0 | U123: 0 | V123: 0 | W123: 0 | X123: 00:00:00
A124: Outside | B124: Thursday | C124: 5 | D124: 31 | E124: 2018-05-31 | F124: 382 | G124: 3 | H124: 0 | I124: 00:08:29 | J124: 7.077 | K124: 25 | L124: 26 | M124: 0 | N124: 1.06 | O124: 0 | P124: 00:17:31 | Q124: 3.425 | R124: 18 | S124: 34 | T124: 382 | U124: 4.06 | V124: 44 | W124: 0 | X124: 00:44:00
B125: Friday | C125: 6 | D125: 1 | E125: 2018-06-01 | F125: 0 | G125: 0 | H125: 0 | K125: 0 | L125: 0 | M125: 0 | N125: 0 | O125: 0 | R125: 0 | S125: 0 | T125: 0 | U125: 0 | V125: 0 | W125: 0 | X125: 00:00:00
A126: Outside | B126: Saturday | C126: 6 | D126: 2 | E126: 2018-06-02 | F126: 296 | G126: 2.73 | H126: 0 | I126: 00:08:34 | J126: 7.014 | K126: 23 | L126: 21 | M126: 0 | N126: 0.25 | O126: 0 | P126: 00:16:40 | Q126: 3.6 | R126: 4 | S126: 10 | T126: 296 | U126: 2.98 | V126: 27 | W126: 31 | X126: 00:27:31
B127: Sunday | C127: 6 | D127: 3 | E127: 2018-06-03 | F127: 0 | G127: 0 | H127: 0 | K127: 0 | L127: 0 | M127: 0 | N127: 0 | O127: 0 | R127: 0 | S127: 0 | T127: 0 | U127: 0 | V127: 0 | W127: 0 | X127: 00:00:00
A128: Outside | B128: Monday | C128: 6 | D128: 4 | E128: 2018-06-04 | F128: 408 | G128: 3.89 | H128: 0 | I128: 00:08:14 | J128: 7.293 | K128: 32 | L128: 0 | M128: 0 | N128: 0.14 | O128: 0 | P128: 00:17:52 | Q128: 3.36 | R128: 2 | S128: 30 | T128: 408 | U128: 4.03 | V128: 34 | W128: 30 | X128: 00:34:30 | Y128: 19:30:00
B129: Tuesday | C129: 6 | D129: 5 | E129: 2018-06-05 | F129: 0 | G129: 0 | H129: 0 | K129: 0 | L129: 0 | M129: 0 | N129: 0 | O129: 0 | R129: 0 | S129: 0 | T129: 0 | U129: 0 | V129: 0 | W129: 0 | X129: 00:00:00
A130: Outside | B130: Wednesday | C130: 6 | D130: 6 | E130: 2018-06-06 | F130: 492 | G130: 4.51 | H130: 0 | I130: 00:07:59 | J130: 7.516 | K130: 36 | L130: 0 | M130: 0 | N130: 0.43 | O130: 0 | P130: 00:17:39 | Q130: 3.402 | R130: 7 | S130: 35 | T130: 492 | U130: 4.94 | V130: 43 | W130: 35 | X130: 00:43:35 | Y130: 10:15:00
B131: Thursday | C131: 6 | D131: 7 | E131: 2018-06-07 | F131: 0 | G131: 0 | H131: 0 | K131: 0 | L131: 0 | M131: 0 | N131: 0 | O131: 0 | R131: 0 | S131: 0 | T131: 0 | U131: 0 | V131: 0 | W131: 0 | X131: 00:00:00
A132: Outside | B132: Friday | C132: 6 | D132: 8 | E132: 2018-06-08 | F132: 428 | G132: 4.02 | H132: 0 | I132: =IFERROR(TIME(,,ROUNDUP(($K132*60+$L132)/$G132,0)),"") -> 00:08:28 | J132: =IF(ROUNDDOWN(IFERROR($G132*60*60/($K132*60+L132), 0),3)=0,"",ROUNDDOWN(IFERROR($G132*60*60/($K132*60+$L132), 0),3)) -> 7.094 | K132: 34 | L132: 0 | M132: 0 | N132: 0.26 | O132: 0 | P132: =IFERROR(TIME(,,ROUNDUP(($R132*60+$S132)/$N132,0)),"") -> 00:17:19 | Q132: =IF(ROUNDDOWN(IFERROR($N132*60*60/($R132*60+$S132), 0),3)=0,"",ROUNDDOWN(IFERROR($N132*60*60/($R132*60+$S132), 0),3)) -> 3.466 | R132: 4 | S132: 30 | T132: =$F132+$M132 -> 428 | U132: =$G132+$N132 -> 4.28 | V132: =$K132+$R132+INT(($L132+$S132)/60) -> 38 | W132: =MOD(($L132+$S132),60) -> 30 | X132: =TIME(,$V132,$W132) -> 00:38:30 | Y132: 19:15:00
B133: Saturday | C133: 6 | D133: 9 | E133: 2018-06-09 | F133: 0 | G133: 0 | H133: 0 | K133: 0 | L133: 0 | M133: 0 | N133: 0 | O133: 0 | R133: 0 | S133: 0 | T133: 0 | U133: 0 | V133: 0 | W133: 0 | X133: 00:00:00
A134: Outside | B134: Sunday | C134: 6 | D134: 10 | E134: 2018-06-10 | F134: 410 | G134: 3.57 | H134: 0 | I134: 00:08:31 | J134: 7.057 | K134: 30 | L134: 21 | M134: 0 | N134: 0.69 | O134: 0 | P134: 00:18:20 | Q134: 3.272 | R134: 12 | S134: 39 | T134: 410 | U134: 4.26 | V134: 43 | W134: 0 | X134: 00:43:00 | Y134: 11:00:00
B135: Monday | C135: 6 | D135: 11 | E135: 2018-06-11 | F135: 0 | G135: 0 | H135: 0 | K135: 0 | L135: 0 | M135: 0 | N135: 0 | O135: 0 | R135: 0 | S135: 0 | T135: 0 | U135: 0 | V135: 0 | W135: 0 | X135: 00:00:00
A136: Outside | B136: Tuesday | C136: 6 | D136: 12 | E136: 2018-06-12 | F136: 437 | G136: 4.16 | H136: 0 | I136: 00:08:54 | J136: 6.745 | K136: 37 | L136: 0 | M136: 0 | N136: 0.22 | O136: 0 | P136: 00:18:11 | Q136: 3.3 | R136: 4 | S136: 0 | T136: 437 | U136: 4.38 | V136: 41 | W136: 0 | X136: 00:41:00 | Y136: 10:15:00
A137: Outside | B137: Wednesday | C137: 6 | D137: 13 | E137: 2018-06-13 | F137: 429 | G137: 4.02 | H137: 0 | I137: 00:07:58 | J137: 7.537 | K137: 32 | L137: 0 | M137: 0 | N137: 0.24 | O137: 0 | P137: 00:16:40 | Q137: 3.6 | R137: 4 | S137: 0 | T137: 429 | U137: 4.26 | V137: 36 | W137: 0 | X137: 00:36:00 | Y137: 17:55:00
B138: Thursday | C138: 6 | D138: 14 | E138: 2018-06-14 | F138: 0 | G138: 0 | H138: 0 | K138: 0 | L138: 0 | M138: 0 | N138: 0 | O138: 0 | R138: 0 | S138: 0 | T138: 0 | U138: 0 | V138: 0 | W138: 0 | X138: 00:00:00
A139: Outside | B139: Friday | C139: 6 | D139: 15 | E139: 2018-06-15 | F139: 422 | G139: 4.01 | H139: 0 | I139: 00:08:44 | J139: 6.874 | K139: 35 | L139: 0 | M139: 0 | N139: 0.21 | O139: 0 | P139: 00:19:03 | Q139: 3.15 | R139: 4 | S139: 0 | T139: 422 | U139: 4.22 | V139: 39 | W139: 0 | X139: 00:39:00 | Y139: 10:00:00
B140: Saturday | C140: 6 | D140: 16 | E140: 2018-06-16 | F140: 0 | G140: 0 | H140: 0 | K140: 0 | L140: 0 | M140: 0 | N140: 0 | O140: 0 | R140: 0 | S140: 0 | T140: 0 | U140: 0 | V140: 0 | W140: 0 | X140: 00:00:00
B141: Sunday | C141: 6 | D141: 17 | E141: 2018-06-17 | F141: 0 | G141: 0 | H141: 0 | K141: 0 | L141: 0 | M141: 0 | N141: 0 | O141: 0 | R141: 0 | S141: 0 | T141: 0 | U141: 0 | V141: 0 | W141: 0 | X141: 00:00:00
A142: Outside | B142: Monday | C142: 6 | D142: 18 | E142: 2018-06-18 | F142: 429 | G142: 4.09 | H142: 0 | I142: 00:08:34 | J142: 7.011 | K142: 35 | L142: 0 | M142: 0 | N142: 0.19 | O142: 0 | P142: 00:19:18 | Q142: 3.109 | R142: 3 | S142: 40 | T142: 429 | U142: 4.28 | V142: 38 | W142: 40 | X142: 00:38:40 | Y142: 20:00:00
B143: Tuesday | C143: 6 | D143: 19 | E143: 2018-06-19 | F143: 0 | G143: 0 | H143: 0 | K143: 0 | L143: 0 | M143: 0 | N143: 0 | O143: 0 | R143: 0 | S143: 0 | T143: 0 | U143: 0 | V143: 0 | W143: 0 | X143: 00:00:00
A144: Outside | B144: Wednesday | C144: 6 | D144: 20 | E144: 2018-06-20 | F144: 247 | G144: 0 | H144: 0 | K144: 0 | L144: 0 | M144: 0 | N144: 0 | O144: 0 | R144: 0 | S144: 0 | T144: 247 | U144: 0 | V144: 0 | W144: 0 | X144: 00:00:00 | Y144: 20:00:00
B145: Thursday | C145: 6 | D145: 21 | E145: 2018-06-21 | F145: 0 | G145: 0 | H145: 0 | K145: 0 | L145: 0 | M145: 0 | N145: 0 | O145: 0 | R145: 0 | S145: 0 | T145: 0 | U145: 0 | V145: 0 | W145: 0 | X145: 00:00:00
A146: Outside | B146: Friday | C146: 6 | D146: 22 | E146: 2018-06-22 | F146: 536 | G146: 5.13 | H146: 0 | I146: 00:08:47 | J146: 6.84 | K146: 45 | L146: 0 | M146: 0 | N146: 0.22 | O146: 0 | P146: 00:18:11 | Q146: 3.3 | R146: 4 | S146: 0 | T146: 536 | U146: 5.35 | V146: 49 | W146: 0 | X146: 00:49:00 | Y146: 14:30:00
B147: Saturday | C147: 6 | D147: 23 | E147: 2018-06-23 | F147: 0 | G147: 0 | H147: 0 | K147: 0 | L147: 0 | M147: 0 | N147: 0 | O147: 0 | R147: 0 | S147: 0 | T147: 0 | U147: 0 | V147: 0 | W147: 0 | X147: 00:00:00
A148: Outside | B148: Sunday | C148: 6 | D148: 24 | E148: 2018-06-24 | F148: 428 | G148: 4.04 | H148: 0 | I148: 00:08:55 | J148: 6.733 | K148: 36 | L148: 0 | M148: 0 | N148: 0.27 | O148: 0 | P148: 00:18:32 | Q148: 3.24 | R148: 5 | S148: 0 | T148: 428 | U148: 4.31 | V148: 41 | W148: 0 | X148: 00:41:00 | Y148: 12:00:00
B149: Monday | C149: 6 | D149: 25 | E149: 2018-06-25 | F149: 0 | G149: 0 | H149: 0 | K149: 0 | L149: 0 | M149: 0 | N149: 0 | O149: 0 | R149: 0 | S149: 0 | T149: 0 | U149: 0 | V149: 0 | W149: 0 | X149: 00:00:00
A150: Outside | B150: Tuesday | C150: 6 | D150: 26 | E150: 2018-06-26 | F150: 440 | G150: 4.29 | H150: 0 | I150: 00:08:10 | J150: 7.354 | K150: 35 | L150: 0 | M150: 0 | N150: 0.11 | O150: 0 | P150: 00:20:10 | Q150: 2.977 | R150: 2 | S150: 13 | T150: 440 | U150: 4.4 | V150: 37 | W150: 13 | X150: 00:37:13 | Y150: 19:05:00
B151: Wednesday | C151: 6 | D151: 27 | E151: 2018-06-27 | F151: 0 | G151: 0 | H151: 0 | K151: 0 | L151: 0 | M151: 0 | N151: 0 | O151: 0 | R151: 0 | S151: 0 | T151: 0 | U151: 0 | V151: 0 | W151: 0 | X151: 00:00:00
A152: Outside | B152: Thursday | C152: 6 | D152: 28 | E152: 2018-06-28 | F152: 373 | G152: 3.06 | H152: 0 | I152: 00:08:50 | J152: 6.8 | K152: 27 | L152: 0 | M152: 0 | N152: 1.01 | O152: 0 | P152: 00:18:10 | Q152: 3.305 | R152: 18 | S152: 20 | T152: 373 | U152: 4.07 | V152: 45 | W152: 20 | X152: 00:45:20 | Y152: 10:10:00
B153: Friday | C153: 6 | D153: 29 | E153: 2018-06-29 | F153: 0 | G153: 0 | H153: 0 | K153: 0 | L153: 0 | M153: 0 | N153: 0 | O153: 0 | R153: 0 | S153: 0 | T153: 0 | U153: 0 | V153: 0 | W153: 0 | X153: 00:00:00
A154: Outside | B154: Saturday | C154: 6 | D154: 30 | E154: 2018-06-30 | F154: 279 | G154: 2.69 | H154: 0 | I154: 00:08:34 | J154: 7.017 | K154: 23 | L154: 0 | M154: 0 | N154: 0.13 | O154: 0 | P154: 00:15:24 | Q154: 3.9 | R154: 2 | S154: 0 | T154: 279 | U154: 2.82 | V154: 25 | W154: 0 | X154: 00:25:00 | Y154: 11:00:00
A155: Outside | B155: Sunday | C155: 7 | D155: 1 | E155: 2018-07-01 | F155: 518 | G155: 5.05 | H155: 0 | I155: 00:08:37 | J155: 6.965 | K155: 43 | L155: 30 | M155: 0 | N155: 0.17 | O155: 0 | P155: 00:17:39 | Q155: 3.4 | R155: 3 | S155: 0 | T155: 518 | U155: 5.22 | V155: 46 | W155: 30 | X155: 00:46:30 | Y155: 20:10:00
B156: Monday | C156: 7 | D156: 2 | E156: 2018-07-02 | F156: 0 | G156: 0 | H156: 0 | K156: 0 | L156: 0 | M156: 0 | N156: 0 | O156: 0 | R156: 0 | S156: 0 | T156: 0 | U156: 0 | V156: 0 | W156: 0 | X156: 00:00:00
A157: Outside | B157: Tuesday | C157: 7 | D157: 3 | E157: 2018-07-03 | F157: 378 | G157: 3.21 | H157: 0 | I157: 00:08:47 | J157: 6.833 | K157: 28 | L157: 11 | M157: 0 | N157: 0.81 | O157: 0 | P157: 00:17:18 | Q157: 3.471 | R157: 14 | S157: 0 | T157: 378 | U157: 4.02 | V157: 42 | W157: 11 | X157: 00:42:11 | Y157: 10:45:00
A158: Outside | B158: Wednesday | C158: 7 | D158: 4 | E158: 2018-07-04 | F158: 273 | G158: 2.57 | H158: 0 | I158: 00:08:34 | J158: 7.009 | K158: 22 | L158: 0 | M158: 0 | N158: 0.23 | O158: 0 | P158: 00:16:19 | Q158: 3.68 | R158: 3 | S158: 45 | T158: 273 | U158: 2.8 | V158: 25 | W158: 45 | X158: 00:25:45 | Y158: 20:05:00
B159: Thursday | C159: 7 | D159: 5 | E159: 2018-07-05 | F159: 0 | G159: 0 | H159: 0 | K159: 0 | L159: 0 | M159: 0 | N159: 0 | O159: 0 | R159: 0 | S159: 0 | T159: 0 | U159: 0 | V159: 0 | W159: 0 | X159: 00:00:00
A160: Outside | B160: Friday | C160: 7 | D160: 6 | E160: 2018-07-06 | F160: 524 | G160: 5.17 | H160: 0 | I160: 00:08:31 | J160: 7.05 | K160: 44 | L160: 0 | M160: 0 | N160: 0.07 | O160: 0 | P160: 00:17:52 | Q160: 3.36 | R160: 1 | S160: 15 | T160: 524 | U160: 5.24 | V160: 45 | W160: 15 | X160: 00:45:15 | Y160: 11:00:00
B161: Saturday | C161: 7 | D161: 7 | E161: 2018-07-07 | F161: 0 | G161: 0 | H161: 0 | K161: 0 | L161: 0 | M161: 0 | N161: 0 | O161: 0 | R161: 0 | S161: 0 | T161: 0 | U161: 0 | V161: 0 | W161: 0 | X161: 00:00:00
A162: Outside | B162: Sunday | C162: 7 | D162: 8 | E162: 2018-07-08 | F162: 622 | G162: 6.02 | H162: 0 | I162: 00:07:52 | J162: 7.63 | K162: 47 | L162: 20 | M162: 0 | N162: 0.19 | O162: 0 | P162: 00:17:59 | Q162: 3.336 | R162: 3 | S162: 25 | T162: 622 | U162: 6.21 | V162: 50 | W162: 45 | X162: 00:50:45 | Y162: 18:10:00
B163: Monday | C163: 7 | D163: 9 | E163: 2018-07-09 | F163: 0 | G163: 0 | H163: 0 | K163: 0 | L163: 0 | M163: 0 | N163: 0 | O163: 0 | R163: 0 | S163: 0 | T163: 0 | U163: 0 | V163: 0 | W163: 0 | X163: 00:00:00
A164: Outside | B164: Tuesday | C164: 7 | D164: 10 | E164: 2018-07-10 | F164: 401 | G164: 3.85 | H164: 0 | I164: 00:08:35 | J164: 7 | K164: 33 | L164: 0 | M164: 0 | N164: 0.21 | O164: 0 | P164: 00:16:40 | Q164: 3.6 | R164: 3 | S164: 30 | T164: 401 | U164: 4.06 | V164: 36 | W164: 30 | X164: 00:36:30 | Y164: 18:00:00
B165: Wednesday | C165: 7 | D165: 11 | E165: 2018-07-11 | F165: 0 | G165: 0 | H165: 0 | K165: 0 | L165: 0 | M165: 0 | N165: 0 | O165: 0 | R165: 0 | S165: 0 | T165: 0 | U165: 0 | V165: 0 | W165: 0 | X165: 00:00:00
A166: Outside | B166: Thursday | C166: 7 | D166: 12 | E166: 2018-07-12 | F166: 402 | G166: 4 | H166: 0 | I166: 00:08:40 | J166: 6.926 | K166: 34 | L166: 39 | M166: 0 | N166: 0.37 | O166: 0 | P166: 00:18:31 | Q166: 3.24 | R166: 6 | S166: 51 | T166: 402 | U166: 4.37 | V166: 41 | W166: 30 | X166: 00:41:30
A167: Outside | B167: Friday | C167: 7 | D167: 13 | E167: 2018-07-13 | F167: 215 | G167: 2.02 | H167: 0 | I167: 00:08:40 | J167: 6.925 | K167: 17 | L167: 30 | M167: 0 | N167: 0.2 | O167: 0 | P167: 00:19:10 | Q167: 3.13 | R167: 3 | S167: 50 | T167: 215 | U167: 2.22 | V167: 21 | W167: 20 | X167: 00:21:20 | Y167: 11:05:00
A168: Outside | B168: Saturday | C168: 7 | D168: 14 | E168: 2018-07-14 | F168: 430 | G168: 4.21 | H168: 0 | I168: 00:09:02 | J168: 6.647 | K168: 38 | L168: 0 | M168: 0 | N168: 0.14 | O168: 0 | P168: 00:18:28 | Q168: 3.251 | R168: 2 | S168: 35 | T168: 430 | U168: 4.35 | V168: 40 | W168: 35 | X168: 00:40:35 | Y168: 17:50:00
B169: Sunday | C169: 7 | D169: 15 | E169: 2018-07-15 | F169: 0 | G169: 0 | H169: 0 | K169: 0 | L169: 0 | M169: 0 | N169: 0 | O169: 0 | R169: 0 | S169: 0 | T169: 0 | U169: 0 | V169: 0 | W169: 0 | X169: 00:00:00
A170: Outside | B170: Monday | C170: 7 | D170: 16 | E170: 2018-07-16 | F170: 391 | G170: 3.87 | H170: 0 | I170: 00:08:55 | J170: 6.73 | K170: 34 | L170: 30 | M170: 0 | N170: 0.06 | O170: 0 | P170: 00:16:40 | Q170: 3.6 | R170: 1 | S170: 0 | T170: 391 | U170: 3.93 | V170: 35 | W170: 30 | X170: 00:35:30 | Y170: 16:10:00
B171: Tuesday | C171: 7 | D171: 17 | E171: 2018-07-17 | F171: 0 | G171: 0 | H171: 0 | K171: 0 | L171: 0 | M171: 0 | N171: 0 | O171: 0 | R171: 0 | S171: 0 | T171: 0 | U171: 0 | V171: 0 | W171: 0 | X171: 00:00:00
A172: Outside | B172: Wednesday | C172: 7 | D172: 18 | E172: 2018-07-18 | F172: 527 | G172: 5.14 | H172: 0 | I172: 00:08:46 | J172: 6.853 | K172: 45 | L172: 0 | M172: 0 | N172: 0.2 | O172: 0 | P172: 00:17:30 | Q172: 3.428 | R172: 3 | S172: 30 | T172: 527 | U172: 5.34 | V172: 48 | W172: 30 | X172: 00:48:30 | Y172: 10:10:00
B173: Thursday | C173: 7 | D173: 19 | E173: 2018-07-19 | F173: 0 | G173: 0 | H173: 0 | K173: 0 | L173: 0 | M173: 0 | N173: 0 | O173: 0 | R173: 0 | S173: 0 | T173: 0 | U173: 0 | V173: 0 | W173: 0 | X173: 00:00:00
A174: Outside | B174: Friday | C174: 7 | D174: 20 | E174: 2018-07-20 | F174: 561 | G174: 5.47 | H174: 0 | I174: 00:08:58 | J174: 6.697 | K174: 49 | L174: 0 | M174: 0 | N174: 0.22 | O174: 0 | P174: 00:18:57 | Q174: 3.168 | R174: 4 | S174: 10 | T174: 561 | U174: 5.69 | V174: 53 | W174: 10 | X174: 00:53:10 | Y174: 10:25:00
B175: Saturday | C175: 7 | D175: 21 | E175: 2018-07-21 | F175: 0 | G175: 0 | H175: 0 | K175: 0 | L175: 0 | M175: 0 | N175: 0 | O175: 0 | R175: 0 | S175: 0 | T175: 0 | U175: 0 | V175: 0 | W175: 0 | X175: 00:00:00
A176: Outside | B176: Sunday | C176: 7 | D176: 22 | E176: 2018-07-22 | F176: 379 | G176: 3.31 | H176: 0 | I176: 00:08:28 | J176: 7.092 | K176: 28 | L176: 0 | M176: 0 | N176: 0.68 | O176: 0 | P176: 00:17:39 | Q176: 3.4 | R176: 12 | S176: 0 | T176: 379 | U176: 3.99 | V176: 40 | W176: 0 | X176: 00:40:00 | Y176: 18:20:00
B177: Monday | C177: 7 | D177: 23 | E177: 2018-07-23 | F177: 0 | G177: 0 | H177: 0 | K177: 0 | L177: 0 | M177: 0 | N177: 0 | O177: 0 | R177: 0 | S177: 0 | T177: 0 | U177: 0 | V177: 0 | W177: 0 | X177: 00:00:00
A178: Outside | B178: Tuesday | C178: 7 | D178: 24 | E178: 2018-07-24 | F178: 641 | G178: 6.23 | H178: 0 | I178: 00:08:50 | J178: 6.796 | K178: 55 | L178: 0 | M178: 0 | N178: 0.28 | O178: 0 | P178: 00:17:52 | Q178: 3.36 | R178: 5 | S178: 0 | T178: 641 | U178: 6.51 | V178: 60 | W178: 0 | X178: 01:00:00 | Y178: 18:05:00
B179: Wednesday | C179: 7 | D179: 25 | E179: 2018-07-25 | F179: 0 | G179: 0 | H179: 0 | K179: 0 | L179: 0 | M179: 0 | N179: 0 | O179: 0 | R179: 0 | S179: 0 | T179: 0 | U179: 0 | V179: 0 | W179: 0 | X179: 00:00:00
A180: Outside | B180: Thursday | C180: 7 | D180: 26 | E180: 2018-07-26 | F180: 428 | G180: 4.11 | H180: 0 | I180: 00:08:46 | J180: 6.85 | K180: 36 | L180: 0 | M180: 0 | N180: 0.24 | O180: 0 | P180: 00:19:27 | Q180: 3.085 | R180: 4 | S180: 40 | T180: 428 | U180: 4.35 | V180: 40 | W180: 40 | X180: 00:40:40 | Y180: 10:45:00
A181: Outside | B181: Friday | C181: 7 | D181: 27 | E181: 2018-07-27 | F181: 429 | G181: 4.11 | H181: 0 | I181: 00:08:31 | J181: 7.045 | K181: 35 | L181: 0 | M181: 0 | N181: 0.25 | O181: 0 | P181: 00:18:40 | Q181: 3.214 | R181: 4 | S181: 40 | T181: 429 | U181: 4.36 | V181: 39 | W181: 40 | X181: 00:39:40 | Y181: 10:35:00
B182: Saturday | C182: 7 | D182: 28 | E182: 2018-07-28 | F182: 0 | G182: 0 | H182: 0 | K182: 0 | L182: 0 | M182: 0 | N182: 0 | O182: 0 | R182: 0 | S182: 0 | T182: 0 | U182: 0 | V182: 0 | W182: 0 | X182: 00:00:00
A183: Outside | B183: Sunday | C183: 7 | D183: 29 | E183: 2018-07-29 | F183: 529 | G183: 5.18 | H183: 0 | I183: 00:08:53 | J183: 6.756 | K183: 46 | L183: 0 | M183: 0 | N183: 0.18 | O183: 0 | P183: 00:18:04 | Q183: 3.323 | R183: 3 | S183: 15 | T183: 529 | U183: 5.36 | V183: 49 | W183: 15 | X183: 00:49:15 | Y183: 18:00:00
B184: Monday | C184: 7 | D184: 30 | E184: 2018-07-30 | F184: 0 | G184: 0 | H184: 0 | K184: 0 | L184: 0 | M184: 0 | N184: 0 | O184: 0 | R184: 0 | S184: 0 | T184: 0 | U184: 0 | V184: 0 | W184: 0 | X184: 00:00:00
B185: Tuesday | C185: 7 | D185: 31 | E185: 2018-07-31 | F185: 0 | G185: 0 | H185: 0 | K185: 0 | L185: 0 | M185: 0 | N185: 0 | O185: 0 | R185: 0 | S185: 0 | T185: 0 | U185: 0 | V185: 0 | W185: 0 | X185: 00:00:00
B186: Wednesday | C186: 8 | D186: 1 | E186: 2018-08-01 | F186: 0 | G186: 0 | H186: 0 | K186: 0 | L186: 0 | M186: 0 | N186: 0 | O186: 0 | R186: 0 | S186: 0 | T186: 0 | U186: 0 | V186: 0 | W186: 0 | X186: 00:00:00
A187: Outside | B187: Thursday | C187: 8 | D187: 2 | E187: 2018-08-02 | F187: 431 | G187: 4.11 | H187: 0 | I187: 00:08:31 | J187: 7.045 | K187: 35 | L187: 0 | M187: 0 | N187: 0.27 | O187: 0 | P187: 00:16:40 | Q187: 3.6 | R187: 4 | S187: 30 | T187: 431 | U187: 4.38 | V187: 39 | W187: 30 | X187: 00:39:30 | Y187: 17:05:00
B188: Friday | C188: 8 | D188: 3 | E188: 2018-08-03 | F188: 0 | G188: 0 | H188: 0 | K188: 0 | L188: 0 | M188: 0 | N188: 0 | O188: 0 | R188: 0 | S188: 0 | T188: 0 | U188: 0 | V188: 0 | W188: 0 | X188: 00:00:00
A189: Outside | B189: Saturday | C189: 8 | D189: 4 | E189: 2018-08-04 | F189: 529 | G189: 5.13 | H189: 0 | I189: 00:08:59 | J189: 6.691 | K189: 46 | L189: 0 | M189: 0 | N189: 0.26 | O189: 0 | P189: 00:19:14 | Q189: 3.12 | R189: 5 | S189: 0 | T189: 529 | U189: 5.39 | V189: 51 | W189: 0 | X189: 00:51:00 | Y189: 18:35:00
B190: Sunday | C190: 8 | D190: 5 | E190: 2018-08-05 | F190: 0 | G190: 0 | H190: 0 | K190: 0 | L190: 0 | M190: 0 | N190: 0 | O190: 0 | R190: 0 | S190: 0 | T190: 0 | U190: 0 | V190: 0 | W190: 0 | X190: 00:00:00
A191: Outside | B191: Monday | C191: 8 | D191: 6 | E191: 2018-08-06 | F191: 57 | G191: 0.53 | H191: 0 | I191: 00:08:30 | J191: 7.066 | K191: 4 | L191: 30 | M191: 0 | N191: 0.04 | O191: 0 | P191: 00:12:30 | Q191: 4.8 | R191: 0 | S191: 30 | T191: 57 | U191: 0.57 | V191: 5 | W191: 0 | X191: 00:05:00 | Y191: 11:00:00
B192: Tuesday | C192: 8 | D192: 7 | E192: 2018-08-07 | F192: 0 | G192: 0 | H192: 0 | K192: 0 | L192: 0 | M192: 0 | N192: 0 | O192: 0 | R192: 0 | S192: 0 | T192: 0 | U192: 0 | V192: 0 | W192: 0 | X192: 00:00:00
A193: Outside | B193: Wednesday | C193: 8 | D193: 8 | E193: 2018-08-08 | F193: 431 | G193: 4.18 | H193: 0 | I193: 00:09:06 | J193: 6.6 | K193: 38 | L193: 0 | M193: 0 | N193: 0.21 | O193: 0 | P193: 00:19:03 | Q193: 3.15 | R193: 4 | S193: 0 | T193: 431 | U193: 4.39 | V193: 42 | W193: 0 | X193: 00:42:00 | Y193: 10:20:00
B194: Thursday | C194: 8 | D194: 9 | E194: 2018-08-09 | F194: 0 | G194: 0 | H194: 0 | K194: 0 | L194: 0 | M194: 0 | N194: 0 | O194: 0 | R194: 0 | S194: 0 | T194: 0 | U194: 0 | V194: 0 | W194: 0 | X194: 00:00:00
A195: Outside | B195: Friday | C195: 8 | D195: 10 | E195: 2018-08-10 | F195: 446 | G195: 4.34 | H195: 0 | I195: 00:09:13 | J195: 6.51 | K195: 40 | L195: 0 | M195: 0 | N195: 0.21 | O195: 0 | P195: 00:19:03 | Q195: 3.15 | R195: 4 | S195: 0 | T195: 446 | U195: 4.55 | V195: 44 | W195: 0 | X195: 00:44:00 | Y195: 10:30:00
B196: Saturday | C196: 8 | D196: 11 | E196: 2018-08-11 | F196: 0 | G196: 0 | H196: 0 | I196: =IFERROR(TIME(,,ROUNDUP(($K196*60+$L196)/$G196,0)),"") ->  | J196: =IF(ROUNDDOWN(IFERROR($G196*60*60/($K196*60+L196), 0),3)=0,"",ROUNDDOWN(IFERROR($G196*60*60/($K196*60+$L196), 0),3)) ->  | K196: 0 | L196: 0 | M196: 0 | N196: 0 | O196: 0 | P196: =IFERROR(TIME(,,ROUNDUP(($R196*60+$S196)/$N196,0)),"") ->  | Q196: =IF(ROUNDDOWN(IFERROR($N196*60*60/($R196*60+$S196), 0),3)=0,"",ROUNDDOWN(IFERROR($N196*60*60/($R196*60+$S196), 0),3)) ->  | R196: 0 | S196: 0 | T196: =$F196+$M196 -> 0 | U196: =$G196+$N196 -> 0 | V196: =$K196+$R196+INT(($L196+$S196)/60) -> 0 | W196: =MOD(($L196+$S196),60) -> 0 | X196: =TIME(,$V196,$W196) -> 00:00:00
A197: Outside | B197: Sunday | C197: 8 | D197: 12 | E197: 2018-08-12 | F197: 657 | G197: 6.39 | H197: 0 | I197: 00:08:56 | J197: 6.726 | K197: 57 | L197: 0 | M197: 0 | N197: 0.29 | O197: 0 | P197: 00:17:15 | Q197: 3.48 | R197: 5 | S197: 0 | T197: 657 | U197: 6.68 | V197: 62 | W197: 0 | X197: 01:02:00 | Y197: 19:30:00
A198: Outside | B198: Monday | C198: 8 | D198: 13 | E198: 2018-08-13 | F198: 370 | G198: 3.53 | H198: 0 | I198: 00:08:47 | J198: 6.832 | K198: 31 | L198: 0 | M198: 0 | N198: 0.24 | O198: 0 | P198: 00:16:40 | Q198: 3.6 | R198: 4 | S198: 0 | T198: 370 | U198: 3.77 | V198: 35 | W198: 0 | X198: 00:35:00 | Y198: 10:30:00
B199: Tuesday | C199: 8 | D199: 14 | E199: 2018-08-14 | F199: 0 | G199: 0 | H199: 0 | K199: 0 | L199: 0 | M199: 0 | N199: 0 | O199: 0 | R199: 0 | S199: 0 | T199: 0 | U199: 0 | V199: 0 | W199: 0 | X199: 00:00:00
A200: Outside | B200: Wednesday | C200: 8 | D200: 15 | E200: 2018-08-15 | F200: 206 | G200: 1.89 | H200: 0 | I200: 00:09:00 | J200: 6.67 | K200: 17 | L200: 0 | M200: 0 | N200: 0.25 | O200: 0 | P200: 00:20:00 | Q200: 3 | R200: 5 | S200: 0 | T200: 206 | U200: 2.14 | V200: 22 | W200: 0 | X200: 00:22:00 | Y200: 17:00:00
... 503 more rows

Sheet Weekdays
E1: Run | J1: Cooldown | O1: TOTAL
A2: Day | B2: Runs | C2: Days Off | D2: Run Percentage | E2: Calories | F2: Distance | G2: Time | H2: Pace | I2: MPH | J2: Calories | K2: Distance | L2: Time | M2: Pace | N2: MPH | O2: Calories | P2: Distance | Q2: Time | R2: Pace | S2: MPH | T2: Miles per Run | U2: Time Per Run | V2: Mile Percentage | W2: Day Percentage
A3: Monday | B3: =COUNTIFS(Running!$B:$B,$A3,Running!$A:$A,"*",Running!$E:$E,"<="&TODAY()) -> 32 | C3: =COUNTIFS(Running!$B:$B,$A3,Running!$A:$A,"",Running!$G:$G,0,Running!$E:$E,"<="&TODAY()) -> 34 | D3: =IFERROR(ROUNDDOWN($B3/SUM($B3:$C3),3),0) -> 0.484 | E3: =SUMIFS(Running!$F:$F,Running!$B:$B,$A3,Running!$A:$A,"*",Running!$E:$E,"<="&TODAY()) -> 15675 | F3: =SUMIFS(Running!$G:$G,Running!$B:$B,$A3,Running!$A:$A,"*",Running!$E:$E,"<="&TODAY()) -> 139.25 | G3: =TIME(INT((SUMIFS(Running!$K:$K,Running!$B:$B,$A3,Running!$A:$A,"*",Running!$E:$E,"<="&TODAY())*60+SUMIFS(Running!$L:$L,Running!$B:$B,$A3,Running!$A:$A,"*",Running!$E:$E,"<="&TODAY()))/(60*60)),MOD(MOD(SUMIFS(Running!$K:$K,Running!$B:$B,$A3,Running!$A:$A,"*",Running!$E:$E,"<="&TODAY()),60)+INT(SUMIFS(Running!$L:$L,Running!$B:$B,$A3,Running!$A:$A,"*",Running!$E:$E,"<="&TODAY())/60),60),MOD(SUMIFS(Running!$L:$L,Running!$B:$B,$A3,Running!$A:$A,"*",Running!$E:$E,"<="&TODAY()),60))+INT(INT((SUMIFS(Running!$K:$K,Running!$B:$B,$A3,Running!$A:$A,"*",Running!$E:$E,"<="&TODAY())*60+SUMIFS(Running!$L:$L,Running!$B:$B,$A3,Running!$A:$A,"*",Running!$E:$E,"<="&TODAY()))/(60*60))/24) -> 0.7932060185 | H3: =IFERROR(TIME(,,ROUNDUP((INT($G3)*24*60*60+HOUR($G3)*60*60+MINUTE($G3)*60+SECOND($G3))/$F3,0)),0) -> 00:08:13 | I3: =IFERROR(ROUNDDOWN($F3*60*60/(INT($G3)*24*60*60+HOUR($G3)*60*60+MINUTE($G3)*60+SECOND($G3)),3),0) -> 7.314 | J3: =SUMIFS(Running!$M:$M,Running!$B:$B,$A3,Running!$A:$A,"*",Running!$E:$E,"<="&TODAY()) -> 487 | K3: =SUMIFS(Running!$N:$N,Running!$B:$B,$A3,Running!$A:$A,"*",Running!$E:$E,"<="&TODAY()) -> 9.52 | L3: =TIME(INT((SUMIFS(Running!$R:$R,Running!$B:$B,$A3,Running!$A:$A,"*",Running!$E:$E,"<="&TODAY())*60+SUMIFS(Running!$S:$S,Running!$B:$B,$A3,Running!$A:$A,"*",Running!$E:$E,"<="&TODAY()))/(60*60)),MOD(MOD(SUMIFS(Running!$R:$R,Running!$B:$B,$A3,Running!$A:$A,"*",Running!$E:$E,"<="&TODAY()),60)+INT(SUMIFS(Running!$S:$S,Running!$B:$B,$A3,Running!$A:$A,"*",Running!$E:$E,"<="&TODAY())/60),60),MOD(SUMIFS(Running!$S:$S,Running!$B:$B,$A3,Running!$A:$A,"*",Running!$E:$E,"<="&TODAY()),60))+INT(INT((SUMIFS(Running!$R:$R,Running!$B:$B,$A3,Running!$A:$A,"*",Running!$E:$E,"<="&TODAY())*60+SUMIFS(Running!$S:$S,Running!$B:$B,$A3,Running!$A:$A,"*",Running!$E:$E,"<="&TODAY()))/(60*60))/24) -> 02:31:10 | M3: =IFERROR(TIME(,,ROUNDUP((INT($L3)*24*60*60+HOUR($L3)*60*60+MINUTE($L3)*60+SECOND($L3))/$K3,0)),0) -> 00:15:53 | N3: =IFERROR(ROUNDDOWN($K3*60*60/(INT($L3)*24*60*60+HOUR($L3)*60*60+MINUTE($L3)*60+SECOND($L3)),3),0) -> 3.778 | O3: =$E$3+$J$3 -> 16162 | P3: =$F$3+$K$3 -> 148.77 | Q3: =$G3+$L3 -> 0.8981828704 | R3: =IFERROR(TIME(,,ROUNDUP((INT($Q3)*24*60*60+HOUR($Q3)*60*60+MINUTE($Q3)*60+SECOND($Q3))/$P3,0)),0) -> 00:08:42 | S3: =IFERROR(ROUNDDOWN($P3*60*60/(INT($Q3)*24*60*60+HOUR($Q3)*60*60+MINUTE($Q3)*60+SECOND($Q3)),3),0) -> 6.901 | T3: =IFERROR(ROUNDDOWN($F3/$B3,3),0) -> 4.351 | U3: =IFERROR(ROUNDDOWN($G3/$B3,6),0) -> 00:35:41.597 | V3: =$F3/$F$11 -> 0.1016074777 | W3: =$B3/$B$11 -> 0.1
A4: Tuesday | B4: =COUNTIFS(Running!$B:$B,$A4,Running!$A:$A,"*",Running!$E:$E,"<="&TODAY()) -> 44 | C4: =COUNTIFS(Running!$B:$B,$A4,Running!$A:$A,"",Running!$G:$G,0,Running!$E:$E,"<="&TODAY()) -> 22 | D4: =IFERROR(ROUNDDOWN($B4/SUM($B4:$C4),3),0) -> 0.666 | E4: =SUMIFS(Running!$F:$F,Running!$B:$B,$A4,Running!$A:$A,"*",Running!$E:$E,"<="&TODAY()) -> 22092 | F4: =SUMIFS(Running!$G:$G,Running!$B:$B,$A4,Running!$A:$A,"*",Running!$E:$E,"<="&TODAY()) -> 190.42 | G4: =TIME(INT((SUMIFS(Running!$K:$K,Running!$B:$B,$A4,Running!$A:$A,"*",Running!$E:$E,"<="&TODAY())*60+SUMIFS(Running!$L:$L,Running!$B:$B,$A4,Running!$A:$A,"*",Running!$E:$E,"<="&TODAY()))/(60*60)),MOD(MOD(SUMIFS(Running!$K:$K,Running!$B:$B,$A4,Running!$A:$A,"*",Running!$E:$E,"<="&TODAY()),60)+INT(SUMIFS(Running!$L:$L,Running!$B:$B,$A4,Running!$A:$A,"*",Running!$E:$E,"<="&TODAY())/60),60),MOD(SUMIFS(Running!$L:$L,Running!$B:$B,$A4,Running!$A:$A,"*",Running!$E:$E,"<="&TODAY()),60))+INT(INT((SUMIFS(Running!$K:$K,Running!$B:$B,$A4,Running!$A:$A,"*",Running!$E:$E,"<="&TODAY())*60+SUMIFS(Running!$L:$L,Running!$B:$B,$A4,Running!$A:$A,"*",Running!$E:$E,"<="&TODAY()))/(60*60))/24) -> 1.095092593 | H4: 00:08:17 | I4: 7.245 | J4: =SUMIFS(Running!$M:$M,Running!$B:$B,$A4,Running!$A:$A,"*",Running!$E:$E,"<="&TODAY()) -> 763 | K4: =SUMIFS(Running!$N:$N,Running!$B:$B,$A4,Running!$A:$A,"*",Running!$E:$E,"<="&TODAY()) -> 14.29 | L4: =TIME(INT((SUMIFS(Running!$R:$R,Running!$B:$B,$A4,Running!$A:$A,"*",Running!$E:$E,"<="&TODAY())*60+SUMIFS(Running!$S:$S,Running!$B:$B,$A4,Running!$A:$A,"*",Running!$E:$E,"<="&TODAY()))/(60*60)),MOD(MOD(SUMIFS(Running!$R:$R,Running!$B:$B,$A4,Running!$A:$A,"*",Running!$E:$E,"<="&TODAY()),60)+INT(SUMIFS(Running!$S:$S,Running!$B:$B,$A4,Running!$A:$A,"*",Running!$E:$E,"<="&TODAY())/60),60),MOD(SUMIFS(Running!$S:$S,Running!$B:$B,$A4,Running!$A:$A,"*",Running!$E:$E,"<="&TODAY()),60))+INT(INT((SUMIFS(Running!$R:$R,Running!$B:$B,$A4,Running!$A:$A,"*",Running!$E:$E,"<="&TODAY())*60+SUMIFS(Running!$S:$S,Running!$B:$B,$A4,Running!$A:$A,"*",Running!$E:$E,"<="&TODAY()))/(60*60))/24) -> 03:44:21 | M4: 00:15:42 | N4: 3.821 | O4: =$E$4+$J$4 -> 22855 | P4: =$F$4+$K$4 -> 204.71 | Q4: 1.250891204 | R4: =IFERROR(TIME(,,ROUNDUP((INT($Q4)*24*60*60+HOUR($Q4)*60*60+MINUTE($Q4)*60+SECOND($Q4))/$P4,0)),0) -> 00:08:48 | S4: =IFERROR(ROUNDDOWN($P4*60*60/(INT($Q4)*24*60*60+HOUR($Q4)*60*60+MINUTE($Q4)*60+SECOND($Q4)),3),0) -> 6.818 | T4: 4.327 | U4: 00:35:50.323 | V4: =$F4/$F$11 -> 0.1389450335 | W4: =$B4/$B$11 -> 0.1375
A5: Wednesday | B5: =COUNTIFS(Running!$B:$B,$A5,Running!$A:$A,"*",Running!$E:$E,"<="&TODAY()) -> 43 | C5: =COUNTIFS(Running!$B:$B,$A5,Running!$A:$A,"",Running!$G:$G,0,Running!$E:$E,"<="&TODAY()) -> 24 | D5: 0.641 | E5: =SUMIFS(Running!$F:$F,Running!$B:$B,$A5,Running!$A:$A,"*",Running!$E:$E,"<="&TODAY()) -> 20929 | F5: =SUMIFS(Running!$G:$G,Running!$B:$B,$A5,Running!$A:$A,"*",Running!$E:$E,"<="&TODAY()) -> 177.94 | G5: =TIME(INT((SUMIFS(Running!$K:$K,Running!$B:$B,$A5,Running!$A:$A,"*",Running!$E:$E,"<="&TODAY())*60+SUMIFS(Running!$L:$L,Running!$B:$B,$A5,Running!$A:$A,"*",Running!$E:$E,"<="&TODAY()))/(60*60)),MOD(MOD(SUMIFS(Running!$K:$K,Running!$B:$B,$A5,Running!$A:$A,"*",Running!$E:$E,"<="&TODAY()),60)+INT(SUMIFS(Running!$L:$L,Running!$B:$B,$A5,Running!$A:$A,"*",Running!$E:$E,"<="&TODAY())/60),60),MOD(SUMIFS(Running!$L:$L,Running!$B:$B,$A5,Running!$A:$A,"*",Running!$E:$E,"<="&TODAY()),60))+INT(INT((SUMIFS(Running!$K:$K,Running!$B:$B,$A5,Running!$A:$A,"*",Running!$E:$E,"<="&TODAY())*60+SUMIFS(Running!$L:$L,Running!$B:$B,$A5,Running!$A:$A,"*",Running!$E:$E,"<="&TODAY()))/(60*60))/24) -> 1.023888889 | H5: 00:08:18 | I5: =IFERROR(ROUNDDOWN($F5*60*60/(INT($G5)*24*60*60+HOUR($G5)*60*60+MINUTE($G5)*60+SECOND($G5)),3),0) -> 7.241 | J5: =SUMIFS(Running!$M:$M,Running!$B:$B,$A5,Running!$A:$A,"*",Running!$E:$E,"<="&TODAY()) -> 623 | K5: =SUMIFS(Running!$N:$N,Running!$B:$B,$A5,Running!$A:$A,"*",Running!$E:$E,"<="&TODAY()) -> 12.11 | L5: =TIME(INT((SUMIFS(Running!$R:$R,Running!$B:$B,$A5,Running!$A:$A,"*",Running!$E:$E,"<="&TODAY())*60+SUMIFS(Running!$S:$S,Running!$B:$B,$A5,Running!$A:$A,"*",Running!$E:$E,"<="&TODAY()))/(60*60)),MOD(MOD(SUMIFS(Running!$R:$R,Running!$B:$B,$A5,Running!$A:$A,"*",Running!$E:$E,"<="&TODAY()),60)+INT(SUMIFS(Running!$S:$S,Running!$B:$B,$A5,Running!$A:$A,"*",Running!$E:$E,"<="&TODAY())/60),60),MOD(SUMIFS(Running!$S:$S,Running!$B:$B,$A5,Running!$A:$A,"*",Running!$E:$E,"<="&TODAY()),60))+INT(INT((SUMIFS(Running!$R:$R,Running!$B:$B,$A5,Running!$A:$A,"*",Running!$E:$E,"<="&TODAY())*60+SUMIFS(Running!$S:$S,Running!$B:$B,$A5,Running!$A:$A,"*",Running!$E:$E,"<="&TODAY()))/(60*60))/24) -> 03:13:16 | M5: 00:15:58 | N5: 3.759 | O5: =$E$5+$J$5 -> 21552 | P5: =$F$5+$K$5 -> 190.05 | Q5: 1.158101852 | R5: 00:08:47 | S5: 6.837 | T5: 4.138 | U5: 00:34:17.270 | V5: 0.1298386685 | W5: 0.134375
A6: Thursday | B6: =COUNTIFS(Running!$B:$B,$A6,Running!$A:$A,"*",Running!$E:$E,"<="&TODAY()) -> 46 | C6: =COUNTIFS(Running!$B:$B,$A6,Running!$A:$A,"",Running!$G:$G,0,Running!$E:$E,"<="&TODAY()) -> 21 | D6: 0.686 | E6: =SUMIFS(Running!$F:$F,Running!$B:$B,$A6,Running!$A:$A,"*",Running!$E:$E,"<="&TODAY()) -> 22574 | F6: =SUMIFS(Running!$G:$G,Running!$B:$B,$A6,Running!$A:$A,"*",Running!$E:$E,"<="&TODAY()) -> 193.05 | G6: =TIME(INT((SUMIFS(Running!$K:$K,Running!$B:$B,$A6,Running!$A:$A,"*",Running!$E:$E,"<="&TODAY())*60+SUMIFS(Running!$L:$L,Running!$B:$B,$A6,Running!$A:$A,"*",Running!$E:$E,"<="&TODAY()))/(60*60)),MOD(MOD(SUMIFS(Running!$K:$K,Running!$B:$B,$A6,Running!$A:$A,"*",Running!$E:$E,"<="&TODAY()),60)+INT(SUMIFS(Running!$L:$L,Running!$B:$B,$A6,Running!$A:$A,"*",Running!$E:$E,"<="&TODAY())/60),60),MOD(SUMIFS(Running!$L:$L,Running!$B:$B,$A6,Running!$A:$A,"*",Running!$E:$E,"<="&TODAY()),60))+INT(INT((SUMIFS(Running!$K:$K,Running!$B:$B,$A6,Running!$A:$A,"*",Running!$E:$E,"<="&TODAY())*60+SUMIFS(Running!$L:$L,Running!$B:$B,$A6,Running!$A:$A,"*",Running!$E:$E,"<="&TODAY()))/(60*60))/24) -> 1.107037037 | H6: 00:08:16 | I6: =IFERROR(ROUNDDOWN($F6*60*60/(INT($G6)*24*60*60+HOUR($G6)*60*60+MINUTE($G6)*60+SECOND($G6)),3),0) -> 7.266 | J6: =SUMIFS(Running!$M:$M,Running!$B:$B,$A6,Running!$A:$A,"*",Running!$E:$E,"<="&TODAY()) -> 682 | K6: =SUMIFS(Running!$N:$N,Running!$B:$B,$A6,Running!$A:$A,"*",Running!$E:$E,"<="&TODAY()) -> 14.43 | L6: =TIME(INT((SUMIFS(Running!$R:$R,Running!$B:$B,$A6,Running!$A:$A,"*",Running!$E:$E,"<="&TODAY())*60+SUMIFS(Running!$S:$S,Running!$B:$B,$A6,Running!$A:$A,"*",Running!$E:$E,"<="&TODAY()))/(60*60)),MOD(MOD(SUMIFS(Running!$R:$R,Running!$B:$B,$A6,Running!$A:$A,"*",Running!$E:$E,"<="&TODAY()),60)+INT(SUMIFS(Running!$S:$S,Running!$B:$B,$A6,Running!$A:$A,"*",Running!$E:$E,"<="&TODAY())/60),60),MOD(SUMIFS(Running!$S:$S,Running!$B:$B,$A6,Running!$A:$A,"*",Running!$E:$E,"<="&TODAY()),60))+INT(INT((SUMIFS(Running!$R:$R,Running!$B:$B,$A6,Running!$A:$A,"*",Running!$E:$E,"<="&TODAY())*60+SUMIFS(Running!$S:$S,Running!$B:$B,$A6,Running!$A:$A,"*",Running!$E:$E,"<="&TODAY()))/(60*60))/24) -> 03:50:02 | M6: 00:15:57 | N6: 3.763 | O6: =$E$6+$J$6 -> 23256 | P6: =$F$6+$K$6 -> 207.48 | Q6: 1.266782407 | R6: 00:08:48 | S6: 6.824 | T6: 4.196 | U6: 00:34:39.302 | V6: 0.1408640831 | W6: 0.14375
A7: Friday | B7: =COUNTIFS(Running!$B:$B,$A7,Running!$A:$A,"*",Running!$E:$E,"<="&TODAY()) -> 59 | C7: =COUNTIFS(Running!$B:$B,$A7,Running!$A:$A,"",Running!$G:$G,0,Running!$E:$E,"<="&TODAY()) -> 8 | D7: 0.88 | E7: =SUMIFS(Running!$F:$F,Running!$B:$B,$A7,Running!$A:$A,"*",Running!$E:$E,"<="&TODAY()) -> 27223 | F7: =SUMIFS(Running!$G:$G,Running!$B:$B,$A7,Running!$A:$A,"*",Running!$E:$E,"<="&TODAY()) -> 242.78 | G7: =TIME(INT((SUMIFS(Running!$K:$K,Running!$B:$B,$A7,Running!$A:$A,"*",Running!$E:$E,"<="&TODAY())*60+SUMIFS(Running!$L:$L,Running!$B:$B,$A7,Running!$A:$A,"*",Running!$E:$E,"<="&TODAY()))/(60*60)),MOD(MOD(SUMIFS(Running!$K:$K,Running!$B:$B,$A7,Running!$A:$A,"*",Running!$E:$E,"<="&TODAY()),60)+INT(SUMIFS(Running!$L:$L,Running!$B:$B,$A7,Running!$A:$A,"*",Running!$E:$E,"<="&TODAY())/60),60),MOD(SUMIFS(Running!$L:$L,Running!$B:$B,$A7,Running!$A:$A,"*",Running!$E:$E,"<="&TODAY()),60))+INT(INT((SUMIFS(Running!$K:$K,Running!$B:$B,$A7,Running!$A:$A,"*",Running!$E:$E,"<="&TODAY())*60+SUMIFS(Running!$L:$L,Running!$B:$B,$A7,Running!$A:$A,"*",Running!$E:$E,"<="&TODAY()))/(60*60))/24) -> 1.385266204 | H7: 00:08:13 | I7: 7.302 | J7: =SUMIFS(Running!$M:$M,Running!$B:$B,$A7,Running!$A:$A,"*",Running!$E:$E,"<="&TODAY()) -> 920 | K7: =SUMIFS(Running!$N:$N,Running!$B:$B,$A7,Running!$A:$A,"*",Running!$E:$E,"<="&TODAY()) -> 16.51 | L7: =TIME(INT((SUMIFS(Running!$R:$R,Running!$B:$B,$A7,Running!$A:$A,"*",Running!$E:$E,"<="&TODAY())*60+SUMIFS(Running!$S:$S,Running!$B:$B,$A7,Running!$A:$A,"*",Running!$E:$E,"<="&TODAY()))/(60*60)),MOD(MOD(SUMIFS(Running!$R:$R,Running!$B:$B,$A7,Running!$A:$A,"*",Running!$E:$E,"<="&TODAY()),60)+INT(SUMIFS(Running!$S:$S,Running!$B:$B,$A7,Running!$A:$A,"*",Running!$E:$E,"<="&TODAY())/60),60),MOD(SUMIFS(Running!$S:$S,Running!$B:$B,$A7,Running!$A:$A,"*",Running!$E:$E,"<="&TODAY()),60))+INT(INT((SUMIFS(Running!$R:$R,Running!$B:$B,$A7,Running!$A:$A,"*",Running!$E:$E,"<="&TODAY())*60+SUMIFS(Running!$S:$S,Running!$B:$B,$A7,Running!$A:$A,"*",Running!$E:$E,"<="&TODAY()))/(60*60))/24) -> 04:19:21 | M7: 00:15:43 | N7: 3.819 | O7: =$E$7+$J$7 -> 28143 | P7: =$F$7+$K$7 -> 259.29 | Q7: 1.56537037 | R7: 00:08:42 | S7: 6.901 | T7: 4.114 | U7: 00:33:48.586 | V7: 0.1771509044 | W7: 0.184375
A8: Saturday | B8: =COUNTIFS(Running!$B:$B,$A8,Running!$A:$A,"*",Running!$E:$E,"<="&TODAY()) -> 48 | C8: =COUNTIFS(Running!$B:$B,$A8,Running!$A:$A,"",Running!$G:$G,0,Running!$E:$E,"<="&TODAY()) -> 20 | D8: 0.705 | E8: =SUMIFS(Running!$F:$F,Running!$B:$B,$A8,Running!$A:$A,"*",Running!$E:$E,"<="&TODAY()) -> 22162 | F8: =SUMIFS(Running!$G:$G,Running!$B:$B,$A8,Running!$A:$A,"*",Running!$E:$E,"<="&TODAY()) -> 199.12 | G8: =TIME(INT((SUMIFS(Running!$K:$K,Running!$B:$B,$A8,Running!$A:$A,"*",Running!$E:$E,"<="&TODAY())*60+SUMIFS(Running!$L:$L,Running!$B:$B,$A8,Running!$A:$A,"*",Running!$E:$E,"<="&TODAY()))/(60*60)),MOD(MOD(SUMIFS(Running!$K:$K,Running!$B:$B,$A8,Running!$A:$A,"*",Running!$E:$E,"<="&TODAY()),60)+INT(SUMIFS(Running!$L:$L,Running!$B:$B,$A8,Running!$A:$A,"*",Running!$E:$E,"<="&TODAY())/60),60),MOD(SUMIFS(Running!$L:$L,Running!$B:$B,$A8,Running!$A:$A,"*",Running!$E:$E,"<="&TODAY()),60))+INT(INT((SUMIFS(Running!$K:$K,Running!$B:$B,$A8,Running!$A:$A,"*",Running!$E:$E,"<="&TODAY())*60+SUMIFS(Running!$L:$L,Running!$B:$B,$A8,Running!$A:$A,"*",Running!$E:$E,"<="&TODAY()))/(60*60))/24) -> 1.152083333 | H8: 00:08:20 | I8: 7.201 | J8: =SUMIFS(Running!$M:$M,Running!$B:$B,$A8,Running!$A:$A,"*",Running!$E:$E,"<="&TODAY()) -> 762 | K8: =SUMIFS(Running!$N:$N,Running!$B:$B,$A8,Running!$A:$A,"*",Running!$E:$E,"<="&TODAY()) -> 13.25 | L8: =TIME(INT((SUMIFS(Running!$R:$R,Running!$B:$B,$A8,Running!$A:$A,"*",Running!$E:$E,"<="&TODAY())*60+SUMIFS(Running!$S:$S,Running!$B:$B,$A8,Running!$A:$A,"*",Running!$E:$E,"<="&TODAY()))/(60*60)),MOD(MOD(SUMIFS(Running!$R:$R,Running!$B:$B,$A8,Running!$A:$A,"*",Running!$E:$E,"<="&TODAY()),60)+INT(SUMIFS(Running!$S:$S,Running!$B:$B,$A8,Running!$A:$A,"*",Running!$E:$E,"<="&TODAY())/60),60),MOD(SUMIFS(Running!$S:$S,Running!$B:$B,$A8,Running!$A:$A,"*",Running!$E:$E,"<="&TODAY()),60))+INT(INT((SUMIFS(Running!$R:$R,Running!$B:$B,$A8,Running!$A:$A,"*",Running!$E:$E,"<="&TODAY())*60+SUMIFS(Running!$S:$S,Running!$B:$B,$A8,Running!$A:$A,"*",Running!$E:$E,"<="&TODAY()))/(60*60))/24) -> 03:25:24 | M8: 00:15:31 | N8: =IFERROR(ROUNDDOWN($K8*60*60/(INT($L8)*24*60*60+HOUR($L8)*60*60+MINUTE($L8)*60+SECOND($L8)),3),0) -> 3.87 | O8: =$E$8+$J$8 -> 22924 | P8: =$F$8+$K$8 -> 212.37 | Q8: 1.294722222 | R8: 00:08:47 | S8: 6.834 | T8: 4.148 | U8: 00:34:33.686 | V8: 0.1452932206 | W8: 0.15
A9: Sunday | B9: =COUNTIFS(Running!$B:$B,$A9,Running!$A:$A,"*",Running!$E:$E,"<="&TODAY()) -> 48 | C9: =COUNTIFS(Running!$B:$B,$A9,Running!$A:$A,"",Running!$G:$G,0,Running!$E:$E,"<="&TODAY()) -> 19 | D9: 0.716 | E9: =SUMIFS(Running!$F:$F,Running!$B:$B,$A9,Running!$A:$A,"*",Running!$E:$E,"<="&TODAY()) -> 25592 | F9: =SUMIFS(Running!$G:$G,Running!$B:$B,$A9,Running!$A:$A,"*",Running!$E:$E,"<="&TODAY()) -> 227.91 | G9: =TIME(INT((SUMIFS(Running!$K:$K,Running!$B:$B,$A9,Running!$A:$A,"*",Running!$E:$E,"<="&TODAY())*60+SUMIFS(Running!$L:$L,Running!$B:$B,$A9,Running!$A:$A,"*",Running!$E:$E,"<="&TODAY()))/(60*60)),MOD(MOD(SUMIFS(Running!$K:$K,Running!$B:$B,$A9,Running!$A:$A,"*",Running!$E:$E,"<="&TODAY()),60)+INT(SUMIFS(Running!$L:$L,Running!$B:$B,$A9,Running!$A:$A,"*",Running!$E:$E,"<="&TODAY())/60),60),MOD(SUMIFS(Running!$L:$L,Running!$B:$B,$A9,Running!$A:$A,"*",Running!$E:$E,"<="&TODAY()),60))+INT(INT((SUMIFS(Running!$K:$K,Running!$B:$B,$A9,Running!$A:$A,"*",Running!$E:$E,"<="&TODAY())*60+SUMIFS(Running!$L:$L,Running!$B:$B,$A9,Running!$A:$A,"*",Running!$E:$E,"<="&TODAY()))/(60*60))/24) -> 1.302210648 | H9: 00:08:14 | I9: 7.292 | J9: =SUMIFS(Running!$M:$M,Running!$B:$B,$A9,Running!$A:$A,"*",Running!$E:$E,"<="&TODAY()) -> 761 | K9: =SUMIFS(Running!$N:$N,Running!$B:$B,$A9,Running!$A:$A,"*",Running!$E:$E,"<="&TODAY()) -> 15.18 | L9: =TIME(INT((SUMIFS(Running!$R:$R,Running!$B:$B,$A9,Running!$A:$A,"*",Running!$E:$E,"<="&TODAY())*60+SUMIFS(Running!$S:$S,Running!$B:$B,$A9,Running!$A:$A,"*",Running!$E:$E,"<="&TODAY()))/(60*60)),MOD(MOD(SUMIFS(Running!$R:$R,Running!$B:$B,$A9,Running!$A:$A,"*",Running!$E:$E,"<="&TODAY()),60)+INT(SUMIFS(Running!$S:$S,Running!$B:$B,$A9,Running!$A:$A,"*",Running!$E:$E,"<="&TODAY())/60),60),MOD(SUMIFS(Running!$S:$S,Running!$B:$B,$A9,Running!$A:$A,"*",Running!$E:$E,"<="&TODAY()),60))+INT(INT((SUMIFS(Running!$R:$R,Running!$B:$B,$A9,Running!$A:$A,"*",Running!$E:$E,"<="&TODAY())*60+SUMIFS(Running!$S:$S,Running!$B:$B,$A9,Running!$A:$A,"*",Running!$E:$E,"<="&TODAY()))/(60*60))/24) -> 04:00:08 | M9: 00:15:50 | N9: =IFERROR(ROUNDDOWN($K9*60*60/(INT($L9)*24*60*60+HOUR($L9)*60*60+MINUTE($L9)*60+SECOND($L9)),3),0) -> 3.792 | O9: =$E$9+$J$9 -> 26353 | P9: =$F$9+$K$9 -> 243.09 | Q9: =$G9+$L9 -> 1.468969907 | R9: 00:08:43 | S9: 6.895 | T9: 4.748 | U9: 00:39:03.946 | V9: 0.1663006122 | W9: 0.15
A11: TOTAL | B11: =SUM($B$3:$B$9) -> 320 | C11: =SUM($C$3:$C$9) -> 148 | D11: 0.683 | E11: =SUM($E$3:$E$9) -> 156247 | F11: =SUM($F$3:$F$9) -> 1370.47 | G11: =SUM($G$3:$G$9) -> 7.858784722 | H11: 00:08:16 | I11: =IFERROR(ROUNDDOWN($F11*60*60/(INT($G11)*24*60*60+HOUR($G11)*60*60+MINUTE($G11)*60+SECOND($G11)),3),0) -> 7.266 | J11: =SUM($J$3:$J$9) -> 4998 | K11: =SUM($K$3:$K$9) -> 95.29 | L11: =SUM($L$3:$L$9) -> 1.044236111 | M11: 00:15:47 | N11: =IFERROR(ROUNDDOWN($K11*60*60/(INT($L11)*24*60*60+HOUR($L11)*60*60+MINUTE($L11)*60+SECOND($L11)),3),0) -> 3.802 | O11: =SUM($O$3:$O$9) -> 161245 | P11: =SUM($P$3:$P$9) -> 1465.76 | Q11: =SUM($Q$3:$Q$9) -> 8.903020833 | R11: 00:08:45 | S11: 6.859 | T11: =IFERROR(ROUNDDOWN($F11/$B11,3),0) -> 4.282 | U11: =IFERROR(ROUNDDOWN($G11/$B11,6),0) -> 00:35:21.811 | V11: 1 | W11: 1
C14: TOTAL
B15: Days Run | C15: =$B$11 -> 320
B16: Days Off | C16: =$C$11 -> 148
B17: Total Calories | C17: =$O$11 -> 161245
B18: Run Distance | C18: =$F$11 -> 1370.47
B19: Walk Distance | C19: =$K$11 -> 95.29
B20: Total Distance | C20: =$P$11 -> 1465.76
B21: Run Time | C21: =$G$11 -> 7.858784722
B22: Run Pace | C22: =$H$11 -> 0.005740740741

Sheet Weeks
G1: Run | L1: Cooldown | Q1: TOTAL
A2: Week | B2: Saturday | C2: Sunday | D2: Runs | E2: Days Off | F2: Run Percentage | G2: Calories | H2: Distance | I2: Time | J2: Pace | K2: MPH | L2: Calories | M2: Distance | N2: Time | O2: Pace | P2: MPH | Q2: Calories | R2: Distance | S2: Time | T2: Pace | U2: MPH
A3: 2 | B3: 2018-01-01 | C3: 2018-01-07 | D3: =COUNTIFS(Running!$A:$A,"*",Running!$E:$E,"<="&TODAY(),Running!$E:$E,">="&EDATE($B3,0),Running!$E:$E,"<="&EDATE($C3,0)) -> 0 | E3: =COUNTIFS(Running!$A:$A,"",Running!$G:$G,0,Running!$E:$E,"<="&TODAY(),Running!$E:$E,">="&EDATE($B3,0),Running!$E:$E,"<="&EDATE($C3,0)) -> 0 | F3: =IFERROR(ROUNDDOWN($D3/SUM($D3:$E3),3),0) -> 0 | G3: =SUMIFS(Running!$F:$F,Running!$A:$A,"*",Running!$E:$E,"<="&TODAY(),Running!$E:$E,">="&EDATE($B3,0),Running!$E:$E,"<="&EDATE($C3,0)) -> 0 | H3: =SUMIFS(Running!$G:$G,Running!$A:$A,"*",Running!$E:$E,"<="&TODAY(),Running!$E:$E,">="&EDATE($B3,0),Running!$E:$E,"<="&EDATE($C3,0)) -> 0 | I3: =TIME(INT((SUMIFS(Running!$K:$K,Running!$E:$E,">="&EDATE($B3,0),Running!$E:$E,"<="&EDATE($C3,0),Running!$A:$A,"*",Running!$E:$E,"<="&TODAY())*60+SUMIFS(Running!$L:$L,Running!$E:$E,">="&EDATE($B3,0),Running!$E:$E,"<="&EDATE($C3,0),Running!$A:$A,"*",Running!$E:$E,"<="&TODAY()))/(60*60)),MOD(MOD(SUMIFS(Running!$K:$K,Running!$E:$E,">="&EDATE($B3,0),Running!$E:$E,"<="&EDATE($C3,0),Running!$A:$A,"*",Running!$E:$E,"<="&TODAY()),60)+INT(SUMIFS(Running!$L:$L,Running!$E:$E,">="&EDATE($B3,0),Running!$E:$E,"<="&EDATE($C3,0),Running!$A:$A,"*",Running!$E:$E,"<="&TODAY())/60),60),MOD(SUMIFS(Running!$L:$L,Running!$E:$E,">="&EDATE($B3,0),Running!$E:$E,"<="&EDATE($C3,0),Running!$A:$A,"*",Running!$E:$E,"<="&TODAY()),60))+INT(INT((SUMIFS(Running!$K:$K,Running!$E:$E,">="&EDATE($B3,0),Running!$E:$E,"<="&EDATE($C3,0),Running!$A:$A,"*",Running!$E:$E,"<="&TODAY())*60+SUMIFS(Running!$L:$L,Running!$E:$E,">="&EDATE($B3,0),Running!$E:$E,"<="&EDATE($C3,0),Running!$A:$A,"*",Running!$E:$E,"<="&TODAY()))/(60*60))/24) -> 0 | J3: =IFERROR(TIME(,,ROUNDUP((INT($I3)*24*60*60+HOUR($I3)*60*60+MINUTE($I3)*60+SECOND($I3))/$H3,0)),0) -> 00:00:00 | K3: =IFERROR(ROUNDDOWN($H3*60*60/(HOUR($I3)*60*60+MINUTE($I3)*60+SECOND($I3)),3),0) -> 0 | L3: =SUMIFS(Running!$M:$M,Running!$A:$A,"*",Running!$E:$E,"<="&TODAY(),Running!$E:$E,">="&EDATE($B3,0),Running!$E:$E,"<="&EDATE($C3,0)) -> 0 | M3: =SUMIFS(Running!$N:$N,Running!$A:$A,"*",Running!$E:$E,"<="&TODAY(),Running!$E:$E,">="&EDATE($B3,0),Running!$E:$E,"<="&EDATE($C3,0)) -> 0 | N3: =TIME(INT((SUMIFS(Running!$R:$R,Running!$E:$E,">="&EDATE($B3,0),Running!$E:$E,"<="&EDATE($C3,0),Running!$A:$A,"*",Running!$E:$E,"<="&TODAY())*60+SUMIFS(Running!$S:$S,Running!$E:$E,">="&EDATE($B3,0),Running!$E:$E,"<="&EDATE($C3,0),Running!$A:$A,"*",Running!$E:$E,"<="&TODAY()))/(60*60)),MOD(MOD(SUMIFS(Running!$R:$R,Running!$E:$E,">="&EDATE($B3,0),Running!$E:$E,"<="&EDATE($C3,0),Running!$A:$A,"*",Running!$E:$E,"<="&TODAY()),60)+INT(SUMIFS(Running!$S:$S,Running!$E:$E,">="&EDATE($B3,0),Running!$E:$E,"<="&EDATE($C3,0),Running!$A:$A,"*",Running!$E:$E,"<="&TODAY())/60),60),MOD(SUMIFS(Running!$S:$S,Running!$E:$E,">="&EDATE($B3,0),Running!$E:$E,"<="&EDATE($C3,0),Running!$A:$A,"*",Running!$E:$E,"<="&TODAY()),60))+INT(INT((SUMIFS(Running!$R:$R,Running!$E:$E,">="&EDATE($B3,0),Running!$E:$E,"<="&EDATE($C3,0),Running!$A:$A,"*",Running!$E:$E,"<="&TODAY())*60+SUMIFS(Running!$S:$S,Running!$E:$E,">="&EDATE($B3,0),Running!$E:$E,"<="&EDATE($C3,0),Running!$A:$A,"*",Running!$E:$E,"<="&TODAY()))/(60*60))/24) -> 0 | O3: =IFERROR(TIME(,,ROUNDUP((INT($N3)*24*60*60+HOUR($N3)*60*60+MINUTE($N3)*60+SECOND($N3))/$M3,0)),0) -> 00:00:00 | P3: =IFERROR(ROUNDDOWN($M3*60*60/(INT($N3)*24*60*60+HOUR($N3)*60*60+MINUTE($N3)*60+SECOND($N3)),3),0) -> 0 | Q3: =$G3+$L3 -> 0 | R3: =$H3+$M3 -> 0 | S3: =$I3+$N3 -> 00:00:00 | T3: =IFERROR(TIME(,,ROUNDUP((INT($S3)*24*60*60+HOUR($S3)*60*60+MINUTE($S3)*60+SECOND($S3))/$R3,0)),0) -> 00:00:00 | U3: =IFERROR(ROUNDDOWN($R3*60*60/(INT($S3)*24*60*60+HOUR($S3)*60*60+MINUTE($S3)*60+SECOND($S3)),3),0) -> 0 | W3: Days Run | X3: =SUM($D:$D) -> 320
A4: 3 | B4: 2018-01-08 | C4: 2018-01-14 | D4: =COUNTIFS(Running!$A:$A,"*",Running!$E:$E,"<="&TODAY(),Running!$E:$E,">="&EDATE($B4,0),Running!$E:$E,"<="&EDATE($C4,0)) -> 0 | E4: =COUNTIFS(Running!$A:$A,"",Running!$G:$G,0,Running!$E:$E,"<="&TODAY(),Running!$E:$E,">="&EDATE($B4,0),Running!$E:$E,"<="&EDATE($C4,0)) -> 0 | F4: =IFERROR(ROUNDDOWN($D4/SUM($D4:$E4),3),0) -> 0 | G4: =SUMIFS(Running!$F:$F,Running!$A:$A,"*",Running!$E:$E,"<="&TODAY(),Running!$E:$E,">="&EDATE($B4,0),Running!$E:$E,"<="&EDATE($C4,0)) -> 0 | H4: =SUMIFS(Running!$G:$G,Running!$A:$A,"*",Running!$E:$E,"<="&TODAY(),Running!$E:$E,">="&EDATE($B4,0),Running!$E:$E,"<="&EDATE($C4,0)) -> 0 | I4: =TIME(INT((SUMIFS(Running!$K:$K,Running!$E:$E,">="&EDATE($B4,0),Running!$E:$E,"<="&EDATE($C4,0),Running!$A:$A,"*",Running!$E:$E,"<="&TODAY())*60+SUMIFS(Running!$L:$L,Running!$E:$E,">="&EDATE($B4,0),Running!$E:$E,"<="&EDATE($C4,0),Running!$A:$A,"*",Running!$E:$E,"<="&TODAY()))/(60*60)),MOD(MOD(SUMIFS(Running!$K:$K,Running!$E:$E,">="&EDATE($B4,0),Running!$E:$E,"<="&EDATE($C4,0),Running!$A:$A,"*",Running!$E:$E,"<="&TODAY()),60)+INT(SUMIFS(Running!$L:$L,Running!$E:$E,">="&EDATE($B4,0),Running!$E:$E,"<="&EDATE($C4,0),Running!$A:$A,"*",Running!$E:$E,"<="&TODAY())/60),60),MOD(SUMIFS(Running!$L:$L,Running!$E:$E,">="&EDATE($B4,0),Running!$E:$E,"<="&EDATE($C4,0),Running!$A:$A,"*",Running!$E:$E,"<="&TODAY()),60))+INT(INT((SUMIFS(Running!$K:$K,Running!$E:$E,">="&EDATE($B4,0),Running!$E:$E,"<="&EDATE($C4,0),Running!$A:$A,"*",Running!$E:$E,"<="&TODAY())*60+SUMIFS(Running!$L:$L,Running!$E:$E,">="&EDATE($B4,0),Running!$E:$E,"<="&EDATE($C4,0),Running!$A:$A,"*",Running!$E:$E,"<="&TODAY()))/(60*60))/24) -> 0 | J4: =IFERROR(TIME(,,ROUNDUP((INT($I4)*24*60*60+HOUR($I4)*60*60+MINUTE($I4)*60+SECOND($I4))/$H4,0)),0) -> 00:00:00 | K4: =IFERROR(ROUNDDOWN($H4*60*60/(HOUR($I4)*60*60+MINUTE($I4)*60+SECOND($I4)),3),0) -> 0 | L4: =SUMIFS(Running!$M:$M,Running!$A:$A,"*",Running!$E:$E,"<="&TODAY(),Running!$E:$E,">="&EDATE($B4,0),Running!$E:$E,"<="&EDATE($C4,0)) -> 0 | M4: =SUMIFS(Running!$N:$N,Running!$A:$A,"*",Running!$E:$E,"<="&TODAY(),Running!$E:$E,">="&EDATE($B4,0),Running!$E:$E,"<="&EDATE($C4,0)) -> 0 | N4: =TIME(INT((SUMIFS(Running!$R:$R,Running!$E:$E,">="&EDATE($B4,0),Running!$E:$E,"<="&EDATE($C4,0),Running!$A:$A,"*",Running!$E:$E,"<="&TODAY())*60+SUMIFS(Running!$S:$S,Running!$E:$E,">="&EDATE($B4,0),Running!$E:$E,"<="&EDATE($C4,0),Running!$A:$A,"*",Running!$E:$E,"<="&TODAY()))/(60*60)),MOD(MOD(SUMIFS(Running!$R:$R,Running!$E:$E,">="&EDATE($B4,0),Running!$E:$E,"<="&EDATE($C4,0),Running!$A:$A,"*",Running!$E:$E,"<="&TODAY()),60)+INT(SUMIFS(Running!$S:$S,Running!$E:$E,">="&EDATE($B4,0),Running!$E:$E,"<="&EDATE($C4,0),Running!$A:$A,"*",Running!$E:$E,"<="&TODAY())/60),60),MOD(SUMIFS(Running!$S:$S,Running!$E:$E,">="&EDATE($B4,0),Running!$E:$E,"<="&EDATE($C4,0),Running!$A:$A,"*",Running!$E:$E,"<="&TODAY()),60))+INT(INT((SUMIFS(Running!$R:$R,Running!$E:$E,">="&EDATE($B4,0),Running!$E:$E,"<="&EDATE($C4,0),Running!$A:$A,"*",Running!$E:$E,"<="&TODAY())*60+SUMIFS(Running!$S:$S,Running!$E:$E,">="&EDATE($B4,0),Running!$E:$E,"<="&EDATE($C4,0),Running!$A:$A,"*",Running!$E:$E,"<="&TODAY()))/(60*60))/24) -> 0 | O4: =IFERROR(TIME(,,ROUNDUP((INT($N4)*24*60*60+HOUR($N4)*60*60+MINUTE($N4)*60+SECOND($N4))/$M4,0)),0) -> 00:00:00 | P4: =IFERROR(ROUNDDOWN($M4*60*60/(INT($N4)*24*60*60+HOUR($N4)*60*60+MINUTE($N4)*60+SECOND($N4)),3),0) -> 0 | Q4: =$G4+$L4 -> 0 | R4: =$H4+$M4 -> 0 | S4: =$I4+$N4 -> 00:00:00 | T4: =IFERROR(TIME(,,ROUNDUP((INT($S4)*24*60*60+HOUR($S4)*60*60+MINUTE($S4)*60+SECOND($S4))/$R4,0)),0) -> 00:00:00 | U4: =IFERROR(ROUNDDOWN($R4*60*60/(INT($S4)*24*60*60+HOUR($S4)*60*60+MINUTE($S4)*60+SECOND($S4)),3),0) -> 0 | W4: Days Off | X4: =SUM($F:$F) -> 45.815
A5: 4 | B5: 2018-01-15 | C5: 2018-01-21 | D5: =COUNTIFS(Running!$A:$A,"*",Running!$E:$E,"<="&TODAY(),Running!$E:$E,">="&EDATE($B5,0),Running!$E:$E,"<="&EDATE($C5,0)) -> 0 | E5: =COUNTIFS(Running!$A:$A,"",Running!$G:$G,0,Running!$E:$E,"<="&TODAY(),Running!$E:$E,">="&EDATE($B5,0),Running!$E:$E,"<="&EDATE($C5,0)) -> 0 | F5: 0 | G5: =SUMIFS(Running!$F:$F,Running!$A:$A,"*",Running!$E:$E,"<="&TODAY(),Running!$E:$E,">="&EDATE($B5,0),Running!$E:$E,"<="&EDATE($C5,0)) -> 0 | H5: =SUMIFS(Running!$G:$G,Running!$A:$A,"*",Running!$E:$E,"<="&TODAY(),Running!$E:$E,">="&EDATE($B5,0),Running!$E:$E,"<="&EDATE($C5,0)) -> 0 | I5: =TIME(INT((SUMIFS(Running!$K:$K,Running!$E:$E,">="&EDATE($B5,0),Running!$E:$E,"<="&EDATE($C5,0),Running!$A:$A,"*",Running!$E:$E,"<="&TODAY())*60+SUMIFS(Running!$L:$L,Running!$E:$E,">="&EDATE($B5,0),Running!$E:$E,"<="&EDATE($C5,0),Running!$A:$A,"*",Running!$E:$E,"<="&TODAY()))/(60*60)),MOD(MOD(SUMIFS(Running!$K:$K,Running!$E:$E,">="&EDATE($B5,0),Running!$E:$E,"<="&EDATE($C5,0),Running!$A:$A,"*",Running!$E:$E,"<="&TODAY()),60)+INT(SUMIFS(Running!$L:$L,Running!$E:$E,">="&EDATE($B5,0),Running!$E:$E,"<="&EDATE($C5,0),Running!$A:$A,"*",Running!$E:$E,"<="&TODAY())/60),60),MOD(SUMIFS(Running!$L:$L,Running!$E:$E,">="&EDATE($B5,0),Running!$E:$E,"<="&EDATE($C5,0),Running!$A:$A,"*",Running!$E:$E,"<="&TODAY()),60))+INT(INT((SUMIFS(Running!$K:$K,Running!$E:$E,">="&EDATE($B5,0),Running!$E:$E,"<="&EDATE($C5,0),Running!$A:$A,"*",Running!$E:$E,"<="&TODAY())*60+SUMIFS(Running!$L:$L,Running!$E:$E,">="&EDATE($B5,0),Running!$E:$E,"<="&EDATE($C5,0),Running!$A:$A,"*",Running!$E:$E,"<="&TODAY()))/(60*60))/24) -> 0 | J5: 00:00:00 | K5: 0 | L5: =SUMIFS(Running!$M:$M,Running!$A:$A,"*",Running!$E:$E,"<="&TODAY(),Running!$E:$E,">="&EDATE($B5,0),Running!$E:$E,"<="&EDATE($C5,0)) -> 0 | M5: =SUMIFS(Running!$N:$N,Running!$A:$A,"*",Running!$E:$E,"<="&TODAY(),Running!$E:$E,">="&EDATE($B5,0),Running!$E:$E,"<="&EDATE($C5,0)) -> 0 | N5: =TIME(INT((SUMIFS(Running!$R:$R,Running!$E:$E,">="&EDATE($B5,0),Running!$E:$E,"<="&EDATE($C5,0),Running!$A:$A,"*",Running!$E:$E,"<="&TODAY())*60+SUMIFS(Running!$S:$S,Running!$E:$E,">="&EDATE($B5,0),Running!$E:$E,"<="&EDATE($C5,0),Running!$A:$A,"*",Running!$E:$E,"<="&TODAY()))/(60*60)),MOD(MOD(SUMIFS(Running!$R:$R,Running!$E:$E,">="&EDATE($B5,0),Running!$E:$E,"<="&EDATE($C5,0),Running!$A:$A,"*",Running!$E:$E,"<="&TODAY()),60)+INT(SUMIFS(Running!$S:$S,Running!$E:$E,">="&EDATE($B5,0),Running!$E:$E,"<="&EDATE($C5,0),Running!$A:$A,"*",Running!$E:$E,"<="&TODAY())/60),60),MOD(SUMIFS(Running!$S:$S,Running!$E:$E,">="&EDATE($B5,0),Running!$E:$E,"<="&EDATE($C5,0),Running!$A:$A,"*",Running!$E:$E,"<="&TODAY()),60))+INT(INT((SUMIFS(Running!$R:$R,Running!$E:$E,">="&EDATE($B5,0),Running!$E:$E,"<="&EDATE($C5,0),Running!$A:$A,"*",Running!$E:$E,"<="&TODAY())*60+SUMIFS(Running!$S:$S,Running!$E:$E,">="&EDATE($B5,0),Running!$E:$E,"<="&EDATE($C5,0),Running!$A:$A,"*",Running!$E:$E,"<="&TODAY()))/(60*60))/24) -> 0 | O5: 00:00:00 | P5: 0 | Q5: 0 | R5: 0 | S5: 00:00:00 | T5: 00:00:00 | U5: 0 | W5: Total Calories | X5: =SUM($Q:$Q) -> 161245
A6: 5 | B6: 2018-01-22 | C6: 2018-01-28 | D6: =COUNTIFS(Running!$A:$A,"*",Running!$E:$E,"<="&TODAY(),Running!$E:$E,">="&EDATE($B6,0),Running!$E:$E,"<="&EDATE($C6,0)) -> 0 | E6: =COUNTIFS(Running!$A:$A,"",Running!$G:$G,0,Running!$E:$E,"<="&TODAY(),Running!$E:$E,">="&EDATE($B6,0),Running!$E:$E,"<="&EDATE($C6,0)) -> 0 | F6: 0 | G6: =SUMIFS(Running!$F:$F,Running!$A:$A,"*",Running!$E:$E,"<="&TODAY(),Running!$E:$E,">="&EDATE($B6,0),Running!$E:$E,"<="&EDATE($C6,0)) -> 0 | H6: =SUMIFS(Running!$G:$G,Running!$A:$A,"*",Running!$E:$E,"<="&TODAY(),Running!$E:$E,">="&EDATE($B6,0),Running!$E:$E,"<="&EDATE($C6,0)) -> 0 | I6: =TIME(INT((SUMIFS(Running!$K:$K,Running!$E:$E,">="&EDATE($B6,0),Running!$E:$E,"<="&EDATE($C6,0),Running!$A:$A,"*",Running!$E:$E,"<="&TODAY())*60+SUMIFS(Running!$L:$L,Running!$E:$E,">="&EDATE($B6,0),Running!$E:$E,"<="&EDATE($C6,0),Running!$A:$A,"*",Running!$E:$E,"<="&TODAY()))/(60*60)),MOD(MOD(SUMIFS(Running!$K:$K,Running!$E:$E,">="&EDATE($B6,0),Running!$E:$E,"<="&EDATE($C6,0),Running!$A:$A,"*",Running!$E:$E,"<="&TODAY()),60)+INT(SUMIFS(Running!$L:$L,Running!$E:$E,">="&EDATE($B6,0),Running!$E:$E,"<="&EDATE($C6,0),Running!$A:$A,"*",Running!$E:$E,"<="&TODAY())/60),60),MOD(SUMIFS(Running!$L:$L,Running!$E:$E,">="&EDATE($B6,0),Running!$E:$E,"<="&EDATE($C6,0),Running!$A:$A,"*",Running!$E:$E,"<="&TODAY()),60))+INT(INT((SUMIFS(Running!$K:$K,Running!$E:$E,">="&EDATE($B6,0),Running!$E:$E,"<="&EDATE($C6,0),Running!$A:$A,"*",Running!$E:$E,"<="&TODAY())*60+SUMIFS(Running!$L:$L,Running!$E:$E,">="&EDATE($B6,0),Running!$E:$E,"<="&EDATE($C6,0),Running!$A:$A,"*",Running!$E:$E,"<="&TODAY()))/(60*60))/24) -> 0 | J6: 00:00:00 | K6: 0 | L6: =SUMIFS(Running!$M:$M,Running!$A:$A,"*",Running!$E:$E,"<="&TODAY(),Running!$E:$E,">="&EDATE($B6,0),Running!$E:$E,"<="&EDATE($C6,0)) -> 0 | M6: =SUMIFS(Running!$N:$N,Running!$A:$A,"*",Running!$E:$E,"<="&TODAY(),Running!$E:$E,">="&EDATE($B6,0),Running!$E:$E,"<="&EDATE($C6,0)) -> 0 | N6: =TIME(INT((SUMIFS(Running!$R:$R,Running!$E:$E,">="&EDATE($B6,0),Running!$E:$E,"<="&EDATE($C6,0),Running!$A:$A,"*",Running!$E:$E,"<="&TODAY())*60+SUMIFS(Running!$S:$S,Running!$E:$E,">="&EDATE($B6,0),Running!$E:$E,"<="&EDATE($C6,0),Running!$A:$A,"*",Running!$E:$E,"<="&TODAY()))/(60*60)),MOD(MOD(SUMIFS(Running!$R:$R,Running!$E:$E,">="&EDATE($B6,0),Running!$E:$E,"<="&EDATE($C6,0),Running!$A:$A,"*",Running!$E:$E,"<="&TODAY()),60)+INT(SUMIFS(Running!$S:$S,Running!$E:$E,">="&EDATE($B6,0),Running!$E:$E,"<="&EDATE($C6,0),Running!$A:$A,"*",Running!$E:$E,"<="&TODAY())/60),60),MOD(SUMIFS(Running!$S:$S,Running!$E:$E,">="&EDATE($B6,0),Running!$E:$E,"<="&EDATE($C6,0),Running!$A:$A,"*",Running!$E:$E,"<="&TODAY()),60))+INT(INT((SUMIFS(Running!$R:$R,Running!$E:$E,">="&EDATE($B6,0),Running!$E:$E,"<="&EDATE($C6,0),Running!$A:$A,"*",Running!$E:$E,"<="&TODAY())*60+SUMIFS(Running!$S:$S,Running!$E:$E,">="&EDATE($B6,0),Running!$E:$E,"<="&EDATE($C6,0),Running!$A:$A,"*",Running!$E:$E,"<="&TODAY()))/(60*60))/24) -> 0 | O6: 00:00:00 | P6: 0 | Q6: 0 | R6: 0 | S6: 00:00:00 | T6: 00:00:00 | U6: 0 | W6: Run Distance | X6: =SUM($H:$H) -> 1370.47
A7: 6 | B7: 2018-01-29 | C7: 2018-02-04 | D7: =COUNTIFS(Running!$A:$A,"*",Running!$E:$E,"<="&TODAY(),Running!$E:$E,">="&EDATE($B7,0),Running!$E:$E,"<="&EDATE($C7,0)) -> 4 | E7: =COUNTIFS(Running!$A:$A,"",Running!$G:$G,0,Running!$E:$E,"<="&TODAY(),Running!$E:$E,">="&EDATE($B7,0),Running!$E:$E,"<="&EDATE($C7,0)) -> 1 | F7: 0.8 | G7: =SUMIFS(Running!$F:$F,Running!$A:$A,"*",Running!$E:$E,"<="&TODAY(),Running!$E:$E,">="&EDATE($B7,0),Running!$E:$E,"<="&EDATE($C7,0)) -> 2320 | H7: =SUMIFS(Running!$G:$G,Running!$A:$A,"*",Running!$E:$E,"<="&TODAY(),Running!$E:$E,">="&EDATE($B7,0),Running!$E:$E,"<="&EDATE($C7,0)) -> 18.39 | I7: =TIME(INT((SUMIFS(Running!$K:$K,Running!$E:$E,">="&EDATE($B7,0),Running!$E:$E,"<="&EDATE($C7,0),Running!$A:$A,"*",Running!$E:$E,"<="&TODAY())*60+SUMIFS(Running!$L:$L,Running!$E:$E,">="&EDATE($B7,0),Running!$E:$E,"<="&EDATE($C7,0),Running!$A:$A,"*",Running!$E:$E,"<="&TODAY()))/(60*60)),MOD(MOD(SUMIFS(Running!$K:$K,Running!$E:$E,">="&EDATE($B7,0),Running!$E:$E,"<="&EDATE($C7,0),Running!$A:$A,"*",Running!$E:$E,"<="&TODAY()),60)+INT(SUMIFS(Running!$L:$L,Running!$E:$E,">="&EDATE($B7,0),Running!$E:$E,"<="&EDATE($C7,0),Running!$A:$A,"*",Running!$E:$E,"<="&TODAY())/60),60),MOD(SUMIFS(Running!$L:$L,Running!$E:$E,">="&EDATE($B7,0),Running!$E:$E,"<="&EDATE($C7,0),Running!$A:$A,"*",Running!$E:$E,"<="&TODAY()),60))+INT(INT((SUMIFS(Running!$K:$K,Running!$E:$E,">="&EDATE($B7,0),Running!$E:$E,"<="&EDATE($C7,0),Running!$A:$A,"*",Running!$E:$E,"<="&TODAY())*60+SUMIFS(Running!$L:$L,Running!$E:$E,">="&EDATE($B7,0),Running!$E:$E,"<="&EDATE($C7,0),Running!$A:$A,"*",Running!$E:$E,"<="&TODAY()))/(60*60))/24) -> 0.1177430556 | J7: 00:09:14 | K7: 6.507 | L7: =SUMIFS(Running!$M:$M,Running!$A:$A,"*",Running!$E:$E,"<="&TODAY(),Running!$E:$E,">="&EDATE($B7,0),Running!$E:$E,"<="&EDATE($C7,0)) -> 66 | M7: =SUMIFS(Running!$N:$N,Running!$A:$A,"*",Running!$E:$E,"<="&TODAY(),Running!$E:$E,">="&EDATE($B7,0),Running!$E:$E,"<="&EDATE($C7,0)) -> 0.67 | N7: =TIME(INT((SUMIFS(Running!$R:$R,Running!$E:$E,">="&EDATE($B7,0),Running!$E:$E,"<="&EDATE($C7,0),Running!$A:$A,"*",Running!$E:$E,"<="&TODAY())*60+SUMIFS(Running!$S:$S,Running!$E:$E,">="&EDATE($B7,0),Running!$E:$E,"<="&EDATE($C7,0),Running!$A:$A,"*",Running!$E:$E,"<="&TODAY()))/(60*60)),MOD(MOD(SUMIFS(Running!$R:$R,Running!$E:$E,">="&EDATE($B7,0),Running!$E:$E,"<="&EDATE($C7,0),Running!$A:$A,"*",Running!$E:$E,"<="&TODAY()),60)+INT(SUMIFS(Running!$S:$S,Running!$E:$E,">="&EDATE($B7,0),Running!$E:$E,"<="&EDATE($C7,0),Running!$A:$A,"*",Running!$E:$E,"<="&TODAY())/60),60),MOD(SUMIFS(Running!$S:$S,Running!$E:$E,">="&EDATE($B7,0),Running!$E:$E,"<="&EDATE($C7,0),Running!$A:$A,"*",Running!$E:$E,"<="&TODAY()),60))+INT(INT((SUMIFS(Running!$R:$R,Running!$E:$E,">="&EDATE($B7,0),Running!$E:$E,"<="&EDATE($C7,0),Running!$A:$A,"*",Running!$E:$E,"<="&TODAY())*60+SUMIFS(Running!$S:$S,Running!$E:$E,">="&EDATE($B7,0),Running!$E:$E,"<="&EDATE($C7,0),Running!$A:$A,"*",Running!$E:$E,"<="&TODAY()))/(60*60))/24) -> 0.006944444444 | O7: 00:14:56 | P7: 4.02 | Q7: 2386 | R7: 19.06 | S7: 02:59:33 | T7: 00:09:26 | U7: 6.369 | W7: Walk Distance | X7: =SUM($M:$M) -> 95.29
A8: 7 | B8: 2018-02-05 | C8: 2018-02-11 | D8: =COUNTIFS(Running!$A:$A,"*",Running!$E:$E,"<="&TODAY(),Running!$E:$E,">="&EDATE($B8,0),Running!$E:$E,"<="&EDATE($C8,0)) -> 7 | E8: =COUNTIFS(Running!$A:$A,"",Running!$G:$G,0,Running!$E:$E,"<="&TODAY(),Running!$E:$E,">="&EDATE($B8,0),Running!$E:$E,"<="&EDATE($C8,0)) -> 0 | F8: 1 | G8: =SUMIFS(Running!$F:$F,Running!$A:$A,"*",Running!$E:$E,"<="&TODAY(),Running!$E:$E,">="&EDATE($B8,0),Running!$E:$E,"<="&EDATE($C8,0)) -> 2929 | H8: =SUMIFS(Running!$G:$G,Running!$A:$A,"*",Running!$E:$E,"<="&TODAY(),Running!$E:$E,">="&EDATE($B8,0),Running!$E:$E,"<="&EDATE($C8,0)) -> 28.32 | I8: =TIME(INT((SUMIFS(Running!$K:$K,Running!$E:$E,">="&EDATE($B8,0),Running!$E:$E,"<="&EDATE($C8,0),Running!$A:$A,"*",Running!$E:$E,"<="&TODAY())*60+SUMIFS(Running!$L:$L,Running!$E:$E,">="&EDATE($B8,0),Running!$E:$E,"<="&EDATE($C8,0),Running!$A:$A,"*",Running!$E:$E,"<="&TODAY()))/(60*60)),MOD(MOD(SUMIFS(Running!$K:$K,Running!$E:$E,">="&EDATE($B8,0),Running!$E:$E,"<="&EDATE($C8,0),Running!$A:$A,"*",Running!$E:$E,"<="&TODAY()),60)+INT(SUMIFS(Running!$L:$L,Running!$E:$E,">="&EDATE($B8,0),Running!$E:$E,"<="&EDATE($C8,0),Running!$A:$A,"*",Running!$E:$E,"<="&TODAY())/60),60),MOD(SUMIFS(Running!$L:$L,Running!$E:$E,">="&EDATE($B8,0),Running!$E:$E,"<="&EDATE($C8,0),Running!$A:$A,"*",Running!$E:$E,"<="&TODAY()),60))+INT(INT((SUMIFS(Running!$K:$K,Running!$E:$E,">="&EDATE($B8,0),Running!$E:$E,"<="&EDATE($C8,0),Running!$A:$A,"*",Running!$E:$E,"<="&TODAY())*60+SUMIFS(Running!$L:$L,Running!$E:$E,">="&EDATE($B8,0),Running!$E:$E,"<="&EDATE($C8,0),Running!$A:$A,"*",Running!$E:$E,"<="&TODAY()))/(60*60))/24) -> 0.1700810185 | J8: 00:08:39 | K8: 6.937 | L8: =SUMIFS(Running!$M:$M,Running!$A:$A,"*",Running!$E:$E,"<="&TODAY(),Running!$E:$E,">="&EDATE($B8,0),Running!$E:$E,"<="&EDATE($C8,0)) -> 122 | M8: =SUMIFS(Running!$N:$N,Running!$A:$A,"*",Running!$E:$E,"<="&TODAY(),Running!$E:$E,">="&EDATE($B8,0),Running!$E:$E,"<="&EDATE($C8,0)) -> 1.67 | N8: =TIME(INT((SUMIFS(Running!$R:$R,Running!$E:$E,">="&EDATE($B8,0),Running!$E:$E,"<="&EDATE($C8,0),Running!$A:$A,"*",Running!$E:$E,"<="&TODAY())*60+SUMIFS(Running!$S:$S,Running!$E:$E,">="&EDATE($B8,0),Running!$E:$E,"<="&EDATE($C8,0),Running!$A:$A,"*",Running!$E:$E,"<="&TODAY()))/(60*60)),MOD(MOD(SUMIFS(Running!$R:$R,Running!$E:$E,">="&EDATE($B8,0),Running!$E:$E,"<="&EDATE($C8,0),Running!$A:$A,"*",Running!$E:$E,"<="&TODAY()),60)+INT(SUMIFS(Running!$S:$S,Running!$E:$E,">="&EDATE($B8,0),Running!$E:$E,"<="&EDATE($C8,0),Running!$A:$A,"*",Running!$E:$E,"<="&TODAY())/60),60),MOD(SUMIFS(Running!$S:$S,Running!$E:$E,">="&EDATE($B8,0),Running!$E:$E,"<="&EDATE($C8,0),Running!$A:$A,"*",Running!$E:$E,"<="&TODAY()),60))+INT(INT((SUMIFS(Running!$R:$R,Running!$E:$E,">="&EDATE($B8,0),Running!$E:$E,"<="&EDATE($C8,0),Running!$A:$A,"*",Running!$E:$E,"<="&TODAY())*60+SUMIFS(Running!$S:$S,Running!$E:$E,">="&EDATE($B8,0),Running!$E:$E,"<="&EDATE($C8,0),Running!$A:$A,"*",Running!$E:$E,"<="&TODAY()))/(60*60))/24) -> 0.01736111111 | O8: 00:14:59 | P8: 4.008 | Q8: 3051 | R8: 29.99 | S8: 04:29:55 | T8: 00:09:01 | U8: 6.666 | W8: Total Distance | X8: =SUM($R:$R) -> 1465.76
A9: 8 | B9: 2018-02-12 | C9: 2018-02-18 | D9: =COUNTIFS(Running!$A:$A,"*",Running!$E:$E,"<="&TODAY(),Running!$E:$E,">="&EDATE($B9,0),Running!$E:$E,"<="&EDATE($C9,0)) -> 6 | E9: =COUNTIFS(Running!$A:$A,"",Running!$G:$G,0,Running!$E:$E,"<="&TODAY(),Running!$E:$E,">="&EDATE($B9,0),Running!$E:$E,"<="&EDATE($C9,0)) -> 2 | F9: 0.75 | G9: =SUMIFS(Running!$F:$F,Running!$A:$A,"*",Running!$E:$E,"<="&TODAY(),Running!$E:$E,">="&EDATE($B9,0),Running!$E:$E,"<="&EDATE($C9,0)) -> 2717 | H9: =SUMIFS(Running!$G:$G,Running!$A:$A,"*",Running!$E:$E,"<="&TODAY(),Running!$E:$E,">="&EDATE($B9,0),Running!$E:$E,"<="&EDATE($C9,0)) -> 22.75 | I9: =TIME(INT((SUMIFS(Running!$K:$K,Running!$E:$E,">="&EDATE($B9,0),Running!$E:$E,"<="&EDATE($C9,0),Running!$A:$A,"*",Running!$E:$E,"<="&TODAY())*60+SUMIFS(Running!$L:$L,Running!$E:$E,">="&EDATE($B9,0),Running!$E:$E,"<="&EDATE($C9,0),Running!$A:$A,"*",Running!$E:$E,"<="&TODAY()))/(60*60)),MOD(MOD(SUMIFS(Running!$K:$K,Running!$E:$E,">="&EDATE($B9,0),Running!$E:$E,"<="&EDATE($C9,0),Running!$A:$A,"*",Running!$E:$E,"<="&TODAY()),60)+INT(SUMIFS(Running!$L:$L,Running!$E:$E,">="&EDATE($B9,0),Running!$E:$E,"<="&EDATE($C9,0),Running!$A:$A,"*",Running!$E:$E,"<="&TODAY())/60),60),MOD(SUMIFS(Running!$L:$L,Running!$E:$E,">="&EDATE($B9,0),Running!$E:$E,"<="&EDATE($C9,0),Running!$A:$A,"*",Running!$E:$E,"<="&TODAY()),60))+INT(INT((SUMIFS(Running!$K:$K,Running!$E:$E,">="&EDATE($B9,0),Running!$E:$E,"<="&EDATE($C9,0),Running!$A:$A,"*",Running!$E:$E,"<="&TODAY())*60+SUMIFS(Running!$L:$L,Running!$E:$E,">="&EDATE($B9,0),Running!$E:$E,"<="&EDATE($C9,0),Running!$A:$A,"*",Running!$E:$E,"<="&TODAY()))/(60*60))/24) -> 0.1293981481 | J9: 00:08:12 | K9: 7.325 | L9: =SUMIFS(Running!$M:$M,Running!$A:$A,"*",Running!$E:$E,"<="&TODAY(),Running!$E:$E,">="&EDATE($B9,0),Running!$E:$E,"<="&EDATE($C9,0)) -> 131 | M9: =SUMIFS(Running!$N:$N,Running!$A:$A,"*",Running!$E:$E,"<="&TODAY(),Running!$E:$E,">="&EDATE($B9,0),Running!$E:$E,"<="&EDATE($C9,0)) -> 1.8 | N9: =TIME(INT((SUMIFS(Running!$R:$R,Running!$E:$E,">="&EDATE($B9,0),Running!$E:$E,"<="&EDATE($C9,0),Running!$A:$A,"*",Running!$E:$E,"<="&TODAY())*60+SUMIFS(Running!$S:$S,Running!$E:$E,">="&EDATE($B9,0),Running!$E:$E,"<="&EDATE($C9,0),Running!$A:$A,"*",Running!$E:$E,"<="&TODAY()))/(60*60)),MOD(MOD(SUMIFS(Running!$R:$R,Running!$E:$E,">="&EDATE($B9,0),Running!$E:$E,"<="&EDATE($C9,0),Running!$A:$A,"*",Running!$E:$E,"<="&TODAY()),60)+INT(SUMIFS(Running!$S:$S,Running!$E:$E,">="&EDATE($B9,0),Running!$E:$E,"<="&EDATE($C9,0),Running!$A:$A,"*",Running!$E:$E,"<="&TODAY())/60),60),MOD(SUMIFS(Running!$S:$S,Running!$E:$E,">="&EDATE($B9,0),Running!$E:$E,"<="&EDATE($C9,0),Running!$A:$A,"*",Running!$E:$E,"<="&TODAY()),60))+INT(INT((SUMIFS(Running!$R:$R,Running!$E:$E,">="&EDATE($B9,0),Running!$E:$E,"<="&EDATE($C9,0),Running!$A:$A,"*",Running!$E:$E,"<="&TODAY())*60+SUMIFS(Running!$S:$S,Running!$E:$E,">="&EDATE($B9,0),Running!$E:$E,"<="&EDATE($C9,0),Running!$A:$A,"*",Running!$E:$E,"<="&TODAY()))/(60*60))/24) -> 0.01875 | O9: 00:15:00 | P9: 4 | Q9: 2848 | R9: 24.55 | S9: 03:33:20 | T9: 00:08:42 | U9: 6.904 | W9: Run Time | X9: =SUM($I:$I) -> 7.858784722
A10: 9 | B10: 2018-02-19 | C10: 2018-02-25 | D10: =COUNTIFS(Running!$A:$A,"*",Running!$E:$E,"<="&TODAY(),Running!$E:$E,">="&EDATE($B10,0),Running!$E:$E,"<="&EDATE($C10,0)) -> 6 | E10: =COUNTIFS(Running!$A:$A,"",Running!$G:$G,0,Running!$E:$E,"<="&TODAY(),Running!$E:$E,">="&EDATE($B10,0),Running!$E:$E,"<="&EDATE($C10,0)) -> 1 | F10: 0.857 | G10: =SUMIFS(Running!$F:$F,Running!$A:$A,"*",Running!$E:$E,"<="&TODAY(),Running!$E:$E,">="&EDATE($B10,0),Running!$E:$E,"<="&EDATE($C10,0)) -> 3159 | H10: =SUMIFS(Running!$G:$G,Running!$A:$A,"*",Running!$E:$E,"<="&TODAY(),Running!$E:$E,">="&EDATE($B10,0),Running!$E:$E,"<="&EDATE($C10,0)) -> 26.43 | I10: =TIME(INT((SUMIFS(Running!$K:$K,Running!$E:$E,">="&EDATE($B10,0),Running!$E:$E,"<="&EDATE($C10,0),Running!$A:$A,"*",Running!$E:$E,"<="&TODAY())*60+SUMIFS(Running!$L:$L,Running!$E:$E,">="&EDATE($B10,0),Running!$E:$E,"<="&EDATE($C10,0),Running!$A:$A,"*",Running!$E:$E,"<="&TODAY()))/(60*60)),MOD(MOD(SUMIFS(Running!$K:$K,Running!$E:$E,">="&EDATE($B10,0),Running!$E:$E,"<="&EDATE($C10,0),Running!$A:$A,"*",Running!$E:$E,"<="&TODAY()),60)+INT(SUMIFS(Running!$L:$L,Running!$E:$E,">="&EDATE($B10,0),Running!$E:$E,"<="&EDATE($C10,0),Running!$A:$A,"*",Running!$E:$E,"<="&TODAY())/60),60),MOD(SUMIFS(Running!$L:$L,Running!$E:$E,">="&EDATE($B10,0),Running!$E:$E,"<="&EDATE($C10,0),Running!$A:$A,"*",Running!$E:$E,"<="&TODAY()),60))+INT(INT((SUMIFS(Running!$K:$K,Running!$E:$E,">="&EDATE($B10,0),Running!$E:$E,"<="&EDATE($C10,0),Running!$A:$A,"*",Running!$E:$E,"<="&TODAY())*60+SUMIFS(Running!$L:$L,Running!$E:$E,">="&EDATE($B10,0),Running!$E:$E,"<="&EDATE($C10,0),Running!$A:$A,"*",Running!$E:$E,"<="&TODAY()))/(60*60))/24) -> 0.1534722222 | J10: 00:08:22 | K10: 7.175 | L10: =SUMIFS(Running!$M:$M,Running!$A:$A,"*",Running!$E:$E,"<="&TODAY(),Running!$E:$E,">="&EDATE($B10,0),Running!$E:$E,"<="&EDATE($C10,0)) -> 145 | M10: =SUMIFS(Running!$N:$N,Running!$A:$A,"*",Running!$E:$E,"<="&TODAY(),Running!$E:$E,">="&EDATE($B10,0),Running!$E:$E,"<="&EDATE($C10,0)) -> 1.99 | N10: =TIME(INT((SUMIFS(Running!$R:$R,Running!$E:$E,">="&EDATE($B10,0),Running!$E:$E,"<="&EDATE($C10,0),Running!$A:$A,"*",Running!$E:$E,"<="&TODAY())*60+SUMIFS(Running!$S:$S,Running!$E:$E,">="&EDATE($B10,0),Running!$E:$E,"<="&EDATE($C10,0),Running!$A:$A,"*",Running!$E:$E,"<="&TODAY()))/(60*60)),MOD(MOD(SUMIFS(Running!$R:$R,Running!$E:$E,">="&EDATE($B10,0),Running!$E:$E,"<="&EDATE($C10,0),Running!$A:$A,"*",Running!$E:$E,"<="&TODAY()),60)+INT(SUMIFS(Running!$S:$S,Running!$E:$E,">="&EDATE($B10,0),Running!$E:$E,"<="&EDATE($C10,0),Running!$A:$A,"*",Running!$E:$E,"<="&TODAY())/60),60),MOD(SUMIFS(Running!$S:$S,Running!$E:$E,">="&EDATE($B10,0),Running!$E:$E,"<="&EDATE($C10,0),Running!$A:$A,"*",Running!$E:$E,"<="&TODAY()),60))+INT(INT((SUMIFS(Running!$R:$R,Running!$E:$E,">="&EDATE($B10,0),Running!$E:$E,"<="&EDATE($C10,0),Running!$A:$A,"*",Running!$E:$E,"<="&TODAY())*60+SUMIFS(Running!$S:$S,Running!$E:$E,">="&EDATE($B10,0),Running!$E:$E,"<="&EDATE($C10,0),Running!$A:$A,"*",Running!$E:$E,"<="&TODAY()))/(60*60))/24) -> 0.02083333333 | O10: 00:15:05 | P10: 3.98 | Q10: 3304 | R10: 28.42 | S10: 04:11:00 | T10: 00:08:50 | U10: 6.793 | W10: Run Pace | X10: =TIME(,,ROUNDUP(((HOUR($X$9)+INT($X$9)*24)*60*60+MINUTE($X$9)*60+SECOND($X$9))/$X$6,0)) -> 00:08:16
A11: 10 | B11: 2018-02-26 | C11: 2018-03-04 | D11: =COUNTIFS(Running!$A:$A,"*",Running!$E:$E,"<="&TODAY(),Running!$E:$E,">="&EDATE($B11,0),Running!$E:$E,"<="&EDATE($C11,0)) -> 6 | E11: =COUNTIFS(Running!$A:$A,"",Running!$G:$G,0,Running!$E:$E,"<="&TODAY(),Running!$E:$E,">="&EDATE($B11,0),Running!$E:$E,"<="&EDATE($C11,0)) -> 1 | F11: 0.857 | G11: =SUMIFS(Running!$F:$F,Running!$A:$A,"*",Running!$E:$E,"<="&TODAY(),Running!$E:$E,">="&EDATE($B11,0),Running!$E:$E,"<="&EDATE($C11,0)) -> 2513 | H11: =SUMIFS(Running!$G:$G,Running!$A:$A,"*",Running!$E:$E,"<="&TODAY(),Running!$E:$E,">="&EDATE($B11,0),Running!$E:$E,"<="&EDATE($C11,0)) -> 21.07 | I11: =TIME(INT((SUMIFS(Running!$K:$K,Running!$E:$E,">="&EDATE($B11,0),Running!$E:$E,"<="&EDATE($C11,0),Running!$A:$A,"*",Running!$E:$E,"<="&TODAY())*60+SUMIFS(Running!$L:$L,Running!$E:$E,">="&EDATE($B11,0),Running!$E:$E,"<="&EDATE($C11,0),Running!$A:$A,"*",Running!$E:$E,"<="&TODAY()))/(60*60)),MOD(MOD(SUMIFS(Running!$K:$K,Running!$E:$E,">="&EDATE($B11,0),Running!$E:$E,"<="&EDATE($C11,0),Running!$A:$A,"*",Running!$E:$E,"<="&TODAY()),60)+INT(SUMIFS(Running!$L:$L,Running!$E:$E,">="&EDATE($B11,0),Running!$E:$E,"<="&EDATE($C11,0),Running!$A:$A,"*",Running!$E:$E,"<="&TODAY())/60),60),MOD(SUMIFS(Running!$L:$L,Running!$E:$E,">="&EDATE($B11,0),Running!$E:$E,"<="&EDATE($C11,0),Running!$A:$A,"*",Running!$E:$E,"<="&TODAY()),60))+INT(INT((SUMIFS(Running!$K:$K,Running!$E:$E,">="&EDATE($B11,0),Running!$E:$E,"<="&EDATE($C11,0),Running!$A:$A,"*",Running!$E:$E,"<="&TODAY())*60+SUMIFS(Running!$L:$L,Running!$E:$E,">="&EDATE($B11,0),Running!$E:$E,"<="&EDATE($C11,0),Running!$A:$A,"*",Running!$E:$E,"<="&TODAY()))/(60*60))/24) -> 0.1195486111 | J11: 00:08:11 | K11: 7.343 | L11: =SUMIFS(Running!$M:$M,Running!$A:$A,"*",Running!$E:$E,"<="&TODAY(),Running!$E:$E,">="&EDATE($B11,0),Running!$E:$E,"<="&EDATE($C11,0)) -> 131 | M11: =SUMIFS(Running!$N:$N,Running!$A:$A,"*",Running!$E:$E,"<="&TODAY(),Running!$E:$E,">="&EDATE($B11,0),Running!$E:$E,"<="&EDATE($C11,0)) -> 1.78 | N11: =TIME(INT((SUMIFS(Running!$R:$R,Running!$E:$E,">="&EDATE($B11,0),Running!$E:$E,"<="&EDATE($C11,0),Running!$A:$A,"*",Running!$E:$E,"<="&TODAY())*60+SUMIFS(Running!$S:$S,Running!$E:$E,">="&EDATE($B11,0),Running!$E:$E,"<="&EDATE($C11,0),Running!$A:$A,"*",Running!$E:$E,"<="&TODAY()))/(60*60)),MOD(MOD(SUMIFS(Running!$R:$R,Running!$E:$E,">="&EDATE($B11,0),Running!$E:$E,"<="&EDATE($C11,0),Running!$A:$A,"*",Running!$E:$E,"<="&TODAY()),60)+INT(SUMIFS(Running!$S:$S,Running!$E:$E,">="&EDATE($B11,0),Running!$E:$E,"<="&EDATE($C11,0),Running!$A:$A,"*",Running!$E:$E,"<="&TODAY())/60),60),MOD(SUMIFS(Running!$S:$S,Running!$E:$E,">="&EDATE($B11,0),Running!$E:$E,"<="&EDATE($C11,0),Running!$A:$A,"*",Running!$E:$E,"<="&TODAY()),60))+INT(INT((SUMIFS(Running!$R:$R,Running!$E:$E,">="&EDATE($B11,0),Running!$E:$E,"<="&EDATE($C11,0),Running!$A:$A,"*",Running!$E:$E,"<="&TODAY())*60+SUMIFS(Running!$S:$S,Running!$E:$E,">="&EDATE($B11,0),Running!$E:$E,"<="&EDATE($C11,0),Running!$A:$A,"*",Running!$E:$E,"<="&TODAY()))/(60*60))/24) -> 0.01862268519 | O11: 00:15:04 | P11: 3.982 | Q11: 2644 | R11: 22.85 | S11: 03:18:58 | T11: 00:08:43 | U11: 6.89
A12: 11 | B12: 2018-03-05 | C12: 2018-03-11 | D12: =COUNTIFS(Running!$A:$A,"*",Running!$E:$E,"<="&TODAY(),Running!$E:$E,">="&EDATE($B12,0),Running!$E:$E,"<="&EDATE($C12,0)) -> 5 | E12: =COUNTIFS(Running!$A:$A,"",Running!$G:$G,0,Running!$E:$E,"<="&TODAY(),Running!$E:$E,">="&EDATE($B12,0),Running!$E:$E,"<="&EDATE($C12,0)) -> 2 | F12: 0.714 | G12: =SUMIFS(Running!$F:$F,Running!$A:$A,"*",Running!$E:$E,"<="&TODAY(),Running!$E:$E,">="&EDATE($B12,0),Running!$E:$E,"<="&EDATE($C12,0)) -> 1917 | H12: =SUMIFS(Running!$G:$G,Running!$A:$A,"*",Running!$E:$E,"<="&TODAY(),Running!$E:$E,">="&EDATE($B12,0),Running!$E:$E,"<="&EDATE($C12,0)) -> 21.82 | I12: =TIME(INT((SUMIFS(Running!$K:$K,Running!$E:$E,">="&EDATE($B12,0),Running!$E:$E,"<="&EDATE($C12,0),Running!$A:$A,"*",Running!$E:$E,"<="&TODAY())*60+SUMIFS(Running!$L:$L,Running!$E:$E,">="&EDATE($B12,0),Running!$E:$E,"<="&EDATE($C12,0),Running!$A:$A,"*",Running!$E:$E,"<="&TODAY()))/(60*60)),MOD(MOD(SUMIFS(Running!$K:$K,Running!$E:$E,">="&EDATE($B12,0),Running!$E:$E,"<="&EDATE($C12,0),Running!$A:$A,"*",Running!$E:$E,"<="&TODAY()),60)+INT(SUMIFS(Running!$L:$L,Running!$E:$E,">="&EDATE($B12,0),Running!$E:$E,"<="&EDATE($C12,0),Running!$A:$A,"*",Running!$E:$E,"<="&TODAY())/60),60),MOD(SUMIFS(Running!$L:$L,Running!$E:$E,">="&EDATE($B12,0),Running!$E:$E,"<="&EDATE($C12,0),Running!$A:$A,"*",Running!$E:$E,"<="&TODAY()),60))+INT(INT((SUMIFS(Running!$K:$K,Running!$E:$E,">="&EDATE($B12,0),Running!$E:$E,"<="&EDATE($C12,0),Running!$A:$A,"*",Running!$E:$E,"<="&TODAY())*60+SUMIFS(Running!$L:$L,Running!$E:$E,">="&EDATE($B12,0),Running!$E:$E,"<="&EDATE($C12,0),Running!$A:$A,"*",Running!$E:$E,"<="&TODAY()))/(60*60))/24) -> 0.1279282407 | J12: 00:08:27 | K12: 7.106 | L12: =SUMIFS(Running!$M:$M,Running!$A:$A,"*",Running!$E:$E,"<="&TODAY(),Running!$E:$E,">="&EDATE($B12,0),Running!$E:$E,"<="&EDATE($C12,0)) -> 53 | M12: =SUMIFS(Running!$N:$N,Running!$A:$A,"*",Running!$E:$E,"<="&TODAY(),Running!$E:$E,">="&EDATE($B12,0),Running!$E:$E,"<="&EDATE($C12,0)) -> 0.73 | N12: =TIME(INT((SUMIFS(Running!$R:$R,Running!$E:$E,">="&EDATE($B12,0),Running!$E:$E,"<="&EDATE($C12,0),Running!$A:$A,"*",Running!$E:$E,"<="&TODAY())*60+SUMIFS(Running!$S:$S,Running!$E:$E,">="&EDATE($B12,0),Running!$E:$E,"<="&EDATE($C12,0),Running!$A:$A,"*",Running!$E:$E,"<="&TODAY()))/(60*60)),MOD(MOD(SUMIFS(Running!$R:$R,Running!$E:$E,">="&EDATE($B12,0),Running!$E:$E,"<="&EDATE($C12,0),Running!$A:$A,"*",Running!$E:$E,"<="&TODAY()),60)+INT(SUMIFS(Running!$S:$S,Running!$E:$E,">="&EDATE($B12,0),Running!$E:$E,"<="&EDATE($C12,0),Running!$A:$A,"*",Running!$E:$E,"<="&TODAY())/60),60),MOD(SUMIFS(Running!$S:$S,Running!$E:$E,">="&EDATE($B12,0),Running!$E:$E,"<="&EDATE($C12,0),Running!$A:$A,"*",Running!$E:$E,"<="&TODAY()),60))+INT(INT((SUMIFS(Running!$R:$R,Running!$E:$E,">="&EDATE($B12,0),Running!$E:$E,"<="&EDATE($C12,0),Running!$A:$A,"*",Running!$E:$E,"<="&TODAY())*60+SUMIFS(Running!$S:$S,Running!$E:$E,">="&EDATE($B12,0),Running!$E:$E,"<="&EDATE($C12,0),Running!$A:$A,"*",Running!$E:$E,"<="&TODAY()))/(60*60))/24) -> 0.007638888889 | O12: 00:15:05 | P12: 3.981 | Q12: 1970 | R12: 22.55 | S12: 03:15:13 | T12: 00:08:40 | U12: 6.93
A13: 12 | B13: 2018-03-12 | C13: 2018-03-18 | D13: =COUNTIFS(Running!$A:$A,"*",Running!$E:$E,"<="&TODAY(),Running!$E:$E,">="&EDATE($B13,0),Running!$E:$E,"<="&EDATE($C13,0)) -> 5 | E13: =COUNTIFS(Running!$A:$A,"",Running!$G:$G,0,Running!$E:$E,"<="&TODAY(),Running!$E:$E,">="&EDATE($B13,0),Running!$E:$E,"<="&EDATE($C13,0)) -> 2 | F13: 0.714 | G13: =SUMIFS(Running!$F:$F,Running!$A:$A,"*",Running!$E:$E,"<="&TODAY(),Running!$E:$E,">="&EDATE($B13,0),Running!$E:$E,"<="&EDATE($C13,0)) -> 2808 | H13: =SUMIFS(Running!$G:$G,Running!$A:$A,"*",Running!$E:$E,"<="&TODAY(),Running!$E:$E,">="&EDATE($B13,0),Running!$E:$E,"<="&EDATE($C13,0)) -> 23.88 | I13: =TIME(INT((SUMIFS(Running!$K:$K,Running!$E:$E,">="&EDATE($B13,0),Running!$E:$E,"<="&EDATE($C13,0),Running!$A:$A,"*",Running!$E:$E,"<="&TODAY())*60+SUMIFS(Running!$L:$L,Running!$E:$E,">="&EDATE($B13,0),Running!$E:$E,"<="&EDATE($C13,0),Running!$A:$A,"*",Running!$E:$E,"<="&TODAY()))/(60*60)),MOD(MOD(SUMIFS(Running!$K:$K,Running!$E:$E,">="&EDATE($B13,0),Running!$E:$E,"<="&EDATE($C13,0),Running!$A:$A,"*",Running!$E:$E,"<="&TODAY()),60)+INT(SUMIFS(Running!$L:$L,Running!$E:$E,">="&EDATE($B13,0),Running!$E:$E,"<="&EDATE($C13,0),Running!$A:$A,"*",Running!$E:$E,"<="&TODAY())/60),60),MOD(SUMIFS(Running!$L:$L,Running!$E:$E,">="&EDATE($B13,0),Running!$E:$E,"<="&EDATE($C13,0),Running!$A:$A,"*",Running!$E:$E,"<="&TODAY()),60))+INT(INT((SUMIFS(Running!$K:$K,Running!$E:$E,">="&EDATE($B13,0),Running!$E:$E,"<="&EDATE($C13,0),Running!$A:$A,"*",Running!$E:$E,"<="&TODAY())*60+SUMIFS(Running!$L:$L,Running!$E:$E,">="&EDATE($B13,0),Running!$E:$E,"<="&EDATE($C13,0),Running!$A:$A,"*",Running!$E:$E,"<="&TODAY()))/(60*60))/24) -> 0.1347222222 | J13: 00:08:08 | K13: 7.385 | L13: =SUMIFS(Running!$M:$M,Running!$A:$A,"*",Running!$E:$E,"<="&TODAY(),Running!$E:$E,">="&EDATE($B13,0),Running!$E:$E,"<="&EDATE($C13,0)) -> 96 | M13: =SUMIFS(Running!$N:$N,Running!$A:$A,"*",Running!$E:$E,"<="&TODAY(),Running!$E:$E,">="&EDATE($B13,0),Running!$E:$E,"<="&EDATE($C13,0)) -> 1.68 | N13: =TIME(INT((SUMIFS(Running!$R:$R,Running!$E:$E,">="&EDATE($B13,0),Running!$E:$E,"<="&EDATE($C13,0),Running!$A:$A,"*",Running!$E:$E,"<="&TODAY())*60+SUMIFS(Running!$S:$S,Running!$E:$E,">="&EDATE($B13,0),Running!$E:$E,"<="&EDATE($C13,0),Running!$A:$A,"*",Running!$E:$E,"<="&TODAY()))/(60*60)),MOD(MOD(SUMIFS(Running!$R:$R,Running!$E:$E,">="&EDATE($B13,0),Running!$E:$E,"<="&EDATE($C13,0),Running!$A:$A,"*",Running!$E:$E,"<="&TODAY()),60)+INT(SUMIFS(Running!$S:$S,Running!$E:$E,">="&EDATE($B13,0),Running!$E:$E,"<="&EDATE($C13,0),Running!$A:$A,"*",Running!$E:$E,"<="&TODAY())/60),60),MOD(SUMIFS(Running!$S:$S,Running!$E:$E,">="&EDATE($B13,0),Running!$E:$E,"<="&EDATE($C13,0),Running!$A:$A,"*",Running!$E:$E,"<="&TODAY()),60))+INT(INT((SUMIFS(Running!$R:$R,Running!$E:$E,">="&EDATE($B13,0),Running!$E:$E,"<="&EDATE($C13,0),Running!$A:$A,"*",Running!$E:$E,"<="&TODAY())*60+SUMIFS(Running!$S:$S,Running!$E:$E,">="&EDATE($B13,0),Running!$E:$E,"<="&EDATE($C13,0),Running!$A:$A,"*",Running!$E:$E,"<="&TODAY()))/(60*60))/24) -> 0.01782407407 | O13: 00:15:17 | P13: 3.927 | Q13: 2904 | R13: 25.56 | S13: 03:39:40 | T13: 00:08:36 | U13: 6.981
A14: 13 | B14: 2018-03-19 | C14: 2018-03-25 | D14: =COUNTIFS(Running!$A:$A,"*",Running!$E:$E,"<="&TODAY(),Running!$E:$E,">="&EDATE($B14,0),Running!$E:$E,"<="&EDATE($C14,0)) -> 4 | E14: =COUNTIFS(Running!$A:$A,"",Running!$G:$G,0,Running!$E:$E,"<="&TODAY(),Running!$E:$E,">="&EDATE($B14,0),Running!$E:$E,"<="&EDATE($C14,0)) -> 3 | F14: 0.571 | G14: =SUMIFS(Running!$F:$F,Running!$A:$A,"*",Running!$E:$E,"<="&TODAY(),Running!$E:$E,">="&EDATE($B14,0),Running!$E:$E,"<="&EDATE($C14,0)) -> 1869 | H14: =SUMIFS(Running!$G:$G,Running!$A:$A,"*",Running!$E:$E,"<="&TODAY(),Running!$E:$E,">="&EDATE($B14,0),Running!$E:$E,"<="&EDATE($C14,0)) -> 16.96 | I14: =TIME(INT((SUMIFS(Running!$K:$K,Running!$E:$E,">="&EDATE($B14,0),Running!$E:$E,"<="&EDATE($C14,0),Running!$A:$A,"*",Running!$E:$E,"<="&TODAY())*60+SUMIFS(Running!$L:$L,Running!$E:$E,">="&EDATE($B14,0),Running!$E:$E,"<="&EDATE($C14,0),Running!$A:$A,"*",Running!$E:$E,"<="&TODAY()))/(60*60)),MOD(MOD(SUMIFS(Running!$K:$K,Running!$E:$E,">="&EDATE($B14,0),Running!$E:$E,"<="&EDATE($C14,0),Running!$A:$A,"*",Running!$E:$E,"<="&TODAY()),60)+INT(SUMIFS(Running!$L:$L,Running!$E:$E,">="&EDATE($B14,0),Running!$E:$E,"<="&EDATE($C14,0),Running!$A:$A,"*",Running!$E:$E,"<="&TODAY())/60),60),MOD(SUMIFS(Running!$L:$L,Running!$E:$E,">="&EDATE($B14,0),Running!$E:$E,"<="&EDATE($C14,0),Running!$A:$A,"*",Running!$E:$E,"<="&TODAY()),60))+INT(INT((SUMIFS(Running!$K:$K,Running!$E:$E,">="&EDATE($B14,0),Running!$E:$E,"<="&EDATE($C14,0),Running!$A:$A,"*",Running!$E:$E,"<="&TODAY())*60+SUMIFS(Running!$L:$L,Running!$E:$E,">="&EDATE($B14,0),Running!$E:$E,"<="&EDATE($C14,0),Running!$A:$A,"*",Running!$E:$E,"<="&TODAY()))/(60*60))/24) -> 0.09583333333 | J14: 00:08:09 | K14: 7.373 | L14: =SUMIFS(Running!$M:$M,Running!$A:$A,"*",Running!$E:$E,"<="&TODAY(),Running!$E:$E,">="&EDATE($B14,0),Running!$E:$E,"<="&EDATE($C14,0)) -> 24 | M14: =SUMIFS(Running!$N:$N,Running!$A:$A,"*",Running!$E:$E,"<="&TODAY(),Running!$E:$E,">="&EDATE($B14,0),Running!$E:$E,"<="&EDATE($C14,0)) -> 1.27 | N14: =TIME(INT((SUMIFS(Running!$R:$R,Running!$E:$E,">="&EDATE($B14,0),Running!$E:$E,"<="&EDATE($C14,0),Running!$A:$A,"*",Running!$E:$E,"<="&TODAY())*60+SUMIFS(Running!$S:$S,Running!$E:$E,">="&EDATE($B14,0),Running!$E:$E,"<="&EDATE($C14,0),Running!$A:$A,"*",Running!$E:$E,"<="&TODAY()))/(60*60)),MOD(MOD(SUMIFS(Running!$R:$R,Running!$E:$E,">="&EDATE($B14,0),Running!$E:$E,"<="&EDATE($C14,0),Running!$A:$A,"*",Running!$E:$E,"<="&TODAY()),60)+INT(SUMIFS(Running!$S:$S,Running!$E:$E,">="&EDATE($B14,0),Running!$E:$E,"<="&EDATE($C14,0),Running!$A:$A,"*",Running!$E:$E,"<="&TODAY())/60),60),MOD(SUMIFS(Running!$S:$S,Running!$E:$E,">="&EDATE($B14,0),Running!$E:$E,"<="&EDATE($C14,0),Running!$A:$A,"*",Running!$E:$E,"<="&TODAY()),60))+INT(INT((SUMIFS(Running!$R:$R,Running!$E:$E,">="&EDATE($B14,0),Running!$E:$E,"<="&EDATE($C14,0),Running!$A:$A,"*",Running!$E:$E,"<="&TODAY())*60+SUMIFS(Running!$S:$S,Running!$E:$E,">="&EDATE($B14,0),Running!$E:$E,"<="&EDATE($C14,0),Running!$A:$A,"*",Running!$E:$E,"<="&TODAY()))/(60*60))/24) -> 0.01458333333 | O14: 00:16:33 | P14: 3.628 | Q14: 1893 | R14: 18.23 | S14: 02:39:00 | T14: 00:08:44 | U14: 6.879
A15: 14 | B15: 2018-03-26 | C15: 2018-04-01 | D15: =COUNTIFS(Running!$A:$A,"*",Running!$E:$E,"<="&TODAY(),Running!$E:$E,">="&EDATE($B15,0),Running!$E:$E,"<="&EDATE($C15,0)) -> 6 | E15: =COUNTIFS(Running!$A:$A,"",Running!$G:$G,0,Running!$E:$E,"<="&TODAY(),Running!$E:$E,">="&EDATE($B15,0),Running!$E:$E,"<="&EDATE($C15,0)) -> 1 | F15: 0.857 | G15: =SUMIFS(Running!$F:$F,Running!$A:$A,"*",Running!$E:$E,"<="&TODAY(),Running!$E:$E,">="&EDATE($B15,0),Running!$E:$E,"<="&EDATE($C15,0)) -> 3245 | H15: =SUMIFS(Running!$G:$G,Running!$A:$A,"*",Running!$E:$E,"<="&TODAY(),Running!$E:$E,">="&EDATE($B15,0),Running!$E:$E,"<="&EDATE($C15,0)) -> 27.19 | I15: =TIME(INT((SUMIFS(Running!$K:$K,Running!$E:$E,">="&EDATE($B15,0),Running!$E:$E,"<="&EDATE($C15,0),Running!$A:$A,"*",Running!$E:$E,"<="&TODAY())*60+SUMIFS(Running!$L:$L,Running!$E:$E,">="&EDATE($B15,0),Running!$E:$E,"<="&EDATE($C15,0),Running!$A:$A,"*",Running!$E:$E,"<="&TODAY()))/(60*60)),MOD(MOD(SUMIFS(Running!$K:$K,Running!$E:$E,">="&EDATE($B15,0),Running!$E:$E,"<="&EDATE($C15,0),Running!$A:$A,"*",Running!$E:$E,"<="&TODAY()),60)+INT(SUMIFS(Running!$L:$L,Running!$E:$E,">="&EDATE($B15,0),Running!$E:$E,"<="&EDATE($C15,0),Running!$A:$A,"*",Running!$E:$E,"<="&TODAY())/60),60),MOD(SUMIFS(Running!$L:$L,Running!$E:$E,">="&EDATE($B15,0),Running!$E:$E,"<="&EDATE($C15,0),Running!$A:$A,"*",Running!$E:$E,"<="&TODAY()),60))+INT(INT((SUMIFS(Running!$K:$K,Running!$E:$E,">="&EDATE($B15,0),Running!$E:$E,"<="&EDATE($C15,0),Running!$A:$A,"*",Running!$E:$E,"<="&TODAY())*60+SUMIFS(Running!$L:$L,Running!$E:$E,">="&EDATE($B15,0),Running!$E:$E,"<="&EDATE($C15,0),Running!$A:$A,"*",Running!$E:$E,"<="&TODAY()))/(60*60))/24) -> 0.1555555556 | J15: 00:08:15 | K15: 7.283 | L15: =SUMIFS(Running!$M:$M,Running!$A:$A,"*",Running!$E:$E,"<="&TODAY(),Running!$E:$E,">="&EDATE($B15,0),Running!$E:$E,"<="&EDATE($C15,0)) -> 133 | M15: =SUMIFS(Running!$N:$N,Running!$A:$A,"*",Running!$E:$E,"<="&TODAY(),Running!$E:$E,">="&EDATE($B15,0),Running!$E:$E,"<="&EDATE($C15,0)) -> 1.81 | N15: =TIME(INT((SUMIFS(Running!$R:$R,Running!$E:$E,">="&EDATE($B15,0),Running!$E:$E,"<="&EDATE($C15,0),Running!$A:$A,"*",Running!$E:$E,"<="&TODAY())*60+SUMIFS(Running!$S:$S,Running!$E:$E,">="&EDATE($B15,0),Running!$E:$E,"<="&EDATE($C15,0),Running!$A:$A,"*",Running!$E:$E,"<="&TODAY()))/(60*60)),MOD(MOD(SUMIFS(Running!$R:$R,Running!$E:$E,">="&EDATE($B15,0),Running!$E:$E,"<="&EDATE($C15,0),Running!$A:$A,"*",Running!$E:$E,"<="&TODAY()),60)+INT(SUMIFS(Running!$S:$S,Running!$E:$E,">="&EDATE($B15,0),Running!$E:$E,"<="&EDATE($C15,0),Running!$A:$A,"*",Running!$E:$E,"<="&TODAY())/60),60),MOD(SUMIFS(Running!$S:$S,Running!$E:$E,">="&EDATE($B15,0),Running!$E:$E,"<="&EDATE($C15,0),Running!$A:$A,"*",Running!$E:$E,"<="&TODAY()),60))+INT(INT((SUMIFS(Running!$R:$R,Running!$E:$E,">="&EDATE($B15,0),Running!$E:$E,"<="&EDATE($C15,0),Running!$A:$A,"*",Running!$E:$E,"<="&TODAY())*60+SUMIFS(Running!$S:$S,Running!$E:$E,">="&EDATE($B15,0),Running!$E:$E,"<="&EDATE($C15,0),Running!$A:$A,"*",Running!$E:$E,"<="&TODAY()))/(60*60))/24) -> 0.01902777778 | O15: 00:15:09 | P15: 3.963 | Q15: 3378 | R15: 29 | S15: 04:11:24 | T15: 00:08:41 | U15: 6.921
A16: 15 | B16: 2018-04-02 | C16: 2018-04-08 | D16: =COUNTIFS(Running!$A:$A,"*",Running!$E:$E,"<="&TODAY(),Running!$E:$E,">="&EDATE($B16,0),Running!$E:$E,"<="&EDATE($C16,0)) -> 6 | E16: =COUNTIFS(Running!$A:$A,"",Running!$G:$G,0,Running!$E:$E,"<="&TODAY(),Running!$E:$E,">="&EDATE($B16,0),Running!$E:$E,"<="&EDATE($C16,0)) -> 1 | F16: 0.857 | G16: =SUMIFS(Running!$F:$F,Running!$A:$A,"*",Running!$E:$E,"<="&TODAY(),Running!$E:$E,">="&EDATE($B16,0),Running!$E:$E,"<="&EDATE($C16,0)) -> 3166 | H16: =SUMIFS(Running!$G:$G,Running!$A:$A,"*",Running!$E:$E,"<="&TODAY(),Running!$E:$E,">="&EDATE($B16,0),Running!$E:$E,"<="&EDATE($C16,0)) -> 26.63 | I16: =TIME(INT((SUMIFS(Running!$K:$K,Running!$E:$E,">="&EDATE($B16,0),Running!$E:$E,"<="&EDATE($C16,0),Running!$A:$A,"*",Running!$E:$E,"<="&TODAY())*60+SUMIFS(Running!$L:$L,Running!$E:$E,">="&EDATE($B16,0),Running!$E:$E,"<="&EDATE($C16,0),Running!$A:$A,"*",Running!$E:$E,"<="&TODAY()))/(60*60)),MOD(MOD(SUMIFS(Running!$K:$K,Running!$E:$E,">="&EDATE($B16,0),Running!$E:$E,"<="&EDATE($C16,0),Running!$A:$A,"*",Running!$E:$E,"<="&TODAY()),60)+INT(SUMIFS(Running!$L:$L,Running!$E:$E,">="&EDATE($B16,0),Running!$E:$E,"<="&EDATE($C16,0),Running!$A:$A,"*",Running!$E:$E,"<="&TODAY())/60),60),MOD(SUMIFS(Running!$L:$L,Running!$E:$E,">="&EDATE($B16,0),Running!$E:$E,"<="&EDATE($C16,0),Running!$A:$A,"*",Running!$E:$E,"<="&TODAY()),60))+INT(INT((SUMIFS(Running!$K:$K,Running!$E:$E,">="&EDATE($B16,0),Running!$E:$E,"<="&EDATE($C16,0),Running!$A:$A,"*",Running!$E:$E,"<="&TODAY())*60+SUMIFS(Running!$L:$L,Running!$E:$E,">="&EDATE($B16,0),Running!$E:$E,"<="&EDATE($C16,0),Running!$A:$A,"*",Running!$E:$E,"<="&TODAY()))/(60*60))/24) -> 0.1493055556 | J16: 00:08:05 | K16: 7.431 | L16: =SUMIFS(Running!$M:$M,Running!$A:$A,"*",Running!$E:$E,"<="&TODAY(),Running!$E:$E,">="&EDATE($B16,0),Running!$E:$E,"<="&EDATE($C16,0)) -> 139 | M16: =SUMIFS(Running!$N:$N,Running!$A:$A,"*",Running!$E:$E,"<="&TODAY(),Running!$E:$E,">="&EDATE($B16,0),Running!$E:$E,"<="&EDATE($C16,0)) -> 1.94 | N16: =TIME(INT((SUMIFS(Running!$R:$R,Running!$E:$E,">="&EDATE($B16,0),Running!$E:$E,"<="&EDATE($C16,0),Running!$A:$A,"*",Running!$E:$E,"<="&TODAY())*60+SUMIFS(Running!$S:$S,Running!$E:$E,">="&EDATE($B16,0),Running!$E:$E,"<="&EDATE($C16,0),Running!$A:$A,"*",Running!$E:$E,"<="&TODAY()))/(60*60)),MOD(MOD(SUMIFS(Running!$R:$R,Running!$E:$E,">="&EDATE($B16,0),Running!$E:$E,"<="&EDATE($C16,0),Running!$A:$A,"*",Running!$E:$E,"<="&TODAY()),60)+INT(SUMIFS(Running!$S:$S,Running!$E:$E,">="&EDATE($B16,0),Running!$E:$E,"<="&EDATE($C16,0),Running!$A:$A,"*",Running!$E:$E,"<="&TODAY())/60),60),MOD(SUMIFS(Running!$S:$S,Running!$E:$E,">="&EDATE($B16,0),Running!$E:$E,"<="&EDATE($C16,0),Running!$A:$A,"*",Running!$E:$E,"<="&TODAY()),60))+INT(INT((SUMIFS(Running!$R:$R,Running!$E:$E,">="&EDATE($B16,0),Running!$E:$E,"<="&EDATE($C16,0),Running!$A:$A,"*",Running!$E:$E,"<="&TODAY())*60+SUMIFS(Running!$S:$S,Running!$E:$E,">="&EDATE($B16,0),Running!$E:$E,"<="&EDATE($C16,0),Running!$A:$A,"*",Running!$E:$E,"<="&TODAY()))/(60*60))/24) -> 0.02 | O16: 00:14:51 | P16: 4.041 | Q16: 3305 | R16: 28.57 | S16: 04:03:48 | T16: 00:08:33 | U16: 7.031
A17: 16 | B17: 2018-04-09 | C17: 2018-04-15 | D17: =COUNTIFS(Running!$A:$A,"*",Running!$E:$E,"<="&TODAY(),Running!$E:$E,">="&EDATE($B17,0),Running!$E:$E,"<="&EDATE($C17,0)) -> 5 | E17: =COUNTIFS(Running!$A:$A,"",Running!$G:$G,0,Running!$E:$E,"<="&TODAY(),Running!$E:$E,">="&EDATE($B17,0),Running!$E:$E,"<="&EDATE($C17,0)) -> 2 | F17: 0.714 | G17: =SUMIFS(Running!$F:$F,Running!$A:$A,"*",Running!$E:$E,"<="&TODAY(),Running!$E:$E,">="&EDATE($B17,0),Running!$E:$E,"<="&EDATE($C17,0)) -> 2469 | H17: =SUMIFS(Running!$G:$G,Running!$A:$A,"*",Running!$E:$E,"<="&TODAY(),Running!$E:$E,">="&EDATE($B17,0),Running!$E:$E,"<="&EDATE($C17,0)) -> 24.51 | I17: =TIME(INT((SUMIFS(Running!$K:$K,Running!$E:$E,">="&EDATE($B17,0),Running!$E:$E,"<="&EDATE($C17,0),Running!$A:$A,"*",Running!$E:$E,"<="&TODAY())*60+SUMIFS(Running!$L:$L,Running!$E:$E,">="&EDATE($B17,0),Running!$E:$E,"<="&EDATE($C17,0),Running!$A:$A,"*",Running!$E:$E,"<="&TODAY()))/(60*60)),MOD(MOD(SUMIFS(Running!$K:$K,Running!$E:$E,">="&EDATE($B17,0),Running!$E:$E,"<="&EDATE($C17,0),Running!$A:$A,"*",Running!$E:$E,"<="&TODAY()),60)+INT(SUMIFS(Running!$L:$L,Running!$E:$E,">="&EDATE($B17,0),Running!$E:$E,"<="&EDATE($C17,0),Running!$A:$A,"*",Running!$E:$E,"<="&TODAY())/60),60),MOD(SUMIFS(Running!$L:$L,Running!$E:$E,">="&EDATE($B17,0),Running!$E:$E,"<="&EDATE($C17,0),Running!$A:$A,"*",Running!$E:$E,"<="&TODAY()),60))+INT(INT((SUMIFS(Running!$K:$K,Running!$E:$E,">="&EDATE($B17,0),Running!$E:$E,"<="&EDATE($C17,0),Running!$A:$A,"*",Running!$E:$E,"<="&TODAY())*60+SUMIFS(Running!$L:$L,Running!$E:$E,">="&EDATE($B17,0),Running!$E:$E,"<="&EDATE($C17,0),Running!$A:$A,"*",Running!$E:$E,"<="&TODAY()))/(60*60))/24) -> 0.1340277778 | J17: 00:07:53 | K17: 7.619 | L17: =SUMIFS(Running!$M:$M,Running!$A:$A,"*",Running!$E:$E,"<="&TODAY(),Running!$E:$E,">="&EDATE($B17,0),Running!$E:$E,"<="&EDATE($C17,0)) -> 96 | M17: =SUMIFS(Running!$N:$N,Running!$A:$A,"*",Running!$E:$E,"<="&TODAY(),Running!$E:$E,">="&EDATE($B17,0),Running!$E:$E,"<="&EDATE($C17,0)) -> 1.34 | N17: =TIME(INT((SUMIFS(Running!$R:$R,Running!$E:$E,">="&EDATE($B17,0),Running!$E:$E,"<="&EDATE($C17,0),Running!$A:$A,"*",Running!$E:$E,"<="&TODAY())*60+SUMIFS(Running!$S:$S,Running!$E:$E,">="&EDATE($B17,0),Running!$E:$E,"<="&EDATE($C17,0),Running!$A:$A,"*",Running!$E:$E,"<="&TODAY()))/(60*60)),MOD(MOD(SUMIFS(Running!$R:$R,Running!$E:$E,">="&EDATE($B17,0),Running!$E:$E,"<="&EDATE($C17,0),Running!$A:$A,"*",Running!$E:$E,"<="&TODAY()),60)+INT(SUMIFS(Running!$S:$S,Running!$E:$E,">="&EDATE($B17,0),Running!$E:$E,"<="&EDATE($C17,0),Running!$A:$A,"*",Running!$E:$E,"<="&TODAY())/60),60),MOD(SUMIFS(Running!$S:$S,Running!$E:$E,">="&EDATE($B17,0),Running!$E:$E,"<="&EDATE($C17,0),Running!$A:$A,"*",Running!$E:$E,"<="&TODAY()),60))+INT(INT((SUMIFS(Running!$R:$R,Running!$E:$E,">="&EDATE($B17,0),Running!$E:$E,"<="&EDATE($C17,0),Running!$A:$A,"*",Running!$E:$E,"<="&TODAY())*60+SUMIFS(Running!$S:$S,Running!$E:$E,">="&EDATE($B17,0),Running!$E:$E,"<="&EDATE($C17,0),Running!$A:$A,"*",Running!$E:$E,"<="&TODAY()))/(60*60))/24) -> 0.01388888889 | O17: 00:14:56 | P17: 4.02 | Q17: 2565 | R17: 25.85 | S17: 03:33:00 | T17: 00:08:15 | U17: 7.281
A18: 17 | B18: 2018-04-16 | C18: 2018-04-22 | D18: =COUNTIFS(Running!$A:$A,"*",Running!$E:$E,"<="&TODAY(),Running!$E:$E,">="&EDATE($B18,0),Running!$E:$E,"<="&EDATE($C18,0)) -> 5 | E18: =COUNTIFS(Running!$A:$A,"",Running!$G:$G,0,Running!$E:$E,"<="&TODAY(),Running!$E:$E,">="&EDATE($B18,0),Running!$E:$E,"<="&EDATE($C18,0)) -> 2 | F18: 0.714 | G18: =SUMIFS(Running!$F:$F,Running!$A:$A,"*",Running!$E:$E,"<="&TODAY(),Running!$E:$E,">="&EDATE($B18,0),Running!$E:$E,"<="&EDATE($C18,0)) -> 2912 | H18: =SUMIFS(Running!$G:$G,Running!$A:$A,"*",Running!$E:$E,"<="&TODAY(),Running!$E:$E,">="&EDATE($B18,0),Running!$E:$E,"<="&EDATE($C18,0)) -> 24.45 | I18: =TIME(INT((SUMIFS(Running!$K:$K,Running!$E:$E,">="&EDATE($B18,0),Running!$E:$E,"<="&EDATE($C18,0),Running!$A:$A,"*",Running!$E:$E,"<="&TODAY())*60+SUMIFS(Running!$L:$L,Running!$E:$E,">="&EDATE($B18,0),Running!$E:$E,"<="&EDATE($C18,0),Running!$A:$A,"*",Running!$E:$E,"<="&TODAY()))/(60*60)),MOD(MOD(SUMIFS(Running!$K:$K,Running!$E:$E,">="&EDATE($B18,0),Running!$E:$E,"<="&EDATE($C18,0),Running!$A:$A,"*",Running!$E:$E,"<="&TODAY()),60)+INT(SUMIFS(Running!$L:$L,Running!$E:$E,">="&EDATE($B18,0),Running!$E:$E,"<="&EDATE($C18,0),Running!$A:$A,"*",Running!$E:$E,"<="&TODAY())/60),60),MOD(SUMIFS(Running!$L:$L,Running!$E:$E,">="&EDATE($B18,0),Running!$E:$E,"<="&EDATE($C18,0),Running!$A:$A,"*",Running!$E:$E,"<="&TODAY()),60))+INT(INT((SUMIFS(Running!$K:$K,Running!$E:$E,">="&EDATE($B18,0),Running!$E:$E,"<="&EDATE($C18,0),Running!$A:$A,"*",Running!$E:$E,"<="&TODAY())*60+SUMIFS(Running!$L:$L,Running!$E:$E,">="&EDATE($B18,0),Running!$E:$E,"<="&EDATE($C18,0),Running!$A:$A,"*",Running!$E:$E,"<="&TODAY()))/(60*60))/24) -> 0.1354166667 | J18: 00:07:59 | K18: 7.523 | L18: =SUMIFS(Running!$M:$M,Running!$A:$A,"*",Running!$E:$E,"<="&TODAY(),Running!$E:$E,">="&EDATE($B18,0),Running!$E:$E,"<="&EDATE($C18,0)) -> 120 | M18: =SUMIFS(Running!$N:$N,Running!$A:$A,"*",Running!$E:$E,"<="&TODAY(),Running!$E:$E,">="&EDATE($B18,0),Running!$E:$E,"<="&EDATE($C18,0)) -> 1.66 | N18: =TIME(INT((SUMIFS(Running!$R:$R,Running!$E:$E,">="&EDATE($B18,0),Running!$E:$E,"<="&EDATE($C18,0),Running!$A:$A,"*",Running!$E:$E,"<="&TODAY())*60+SUMIFS(Running!$S:$S,Running!$E:$E,">="&EDATE($B18,0),Running!$E:$E,"<="&EDATE($C18,0),Running!$A:$A,"*",Running!$E:$E,"<="&TODAY()))/(60*60)),MOD(MOD(SUMIFS(Running!$R:$R,Running!$E:$E,">="&EDATE($B18,0),Running!$E:$E,"<="&EDATE($C18,0),Running!$A:$A,"*",Running!$E:$E,"<="&TODAY()),60)+INT(SUMIFS(Running!$S:$S,Running!$E:$E,">="&EDATE($B18,0),Running!$E:$E,"<="&EDATE($C18,0),Running!$A:$A,"*",Running!$E:$E,"<="&TODAY())/60),60),MOD(SUMIFS(Running!$S:$S,Running!$E:$E,">="&EDATE($B18,0),Running!$E:$E,"<="&EDATE($C18,0),Running!$A:$A,"*",Running!$E:$E,"<="&TODAY()),60))+INT(INT((SUMIFS(Running!$R:$R,Running!$E:$E,">="&EDATE($B18,0),Running!$E:$E,"<="&EDATE($C18,0),Running!$A:$A,"*",Running!$E:$E,"<="&TODAY())*60+SUMIFS(Running!$S:$S,Running!$E:$E,">="&EDATE($B18,0),Running!$E:$E,"<="&EDATE($C18,0),Running!$A:$A,"*",Running!$E:$E,"<="&TODAY()))/(60*60))/24) -> 0.01736111111 | O18: 00:15:04 | P18: 3.984 | Q18: 3032 | R18: 26.11 | S18: 03:40:00 | T18: 00:08:26 | U18: 7.12
A19: 18 | B19: 2018-04-23 | C19: 2018-04-29 | D19: =COUNTIFS(Running!$A:$A,"*",Running!$E:$E,"<="&TODAY(),Running!$E:$E,">="&EDATE($B19,0),Running!$E:$E,"<="&EDATE($C19,0)) -> 4 | E19: =COUNTIFS(Running!$A:$A,"",Running!$G:$G,0,Running!$E:$E,"<="&TODAY(),Running!$E:$E,">="&EDATE($B19,0),Running!$E:$E,"<="&EDATE($C19,0)) -> 3 | F19: 0.571 | G19: =SUMIFS(Running!$F:$F,Running!$A:$A,"*",Running!$E:$E,"<="&TODAY(),Running!$E:$E,">="&EDATE($B19,0),Running!$E:$E,"<="&EDATE($C19,0)) -> 2354 | H19: =SUMIFS(Running!$G:$G,Running!$A:$A,"*",Running!$E:$E,"<="&TODAY(),Running!$E:$E,">="&EDATE($B19,0),Running!$E:$E,"<="&EDATE($C19,0)) -> 19.77 | I19: =TIME(INT((SUMIFS(Running!$K:$K,Running!$E:$E,">="&EDATE($B19,0),Running!$E:$E,"<="&EDATE($C19,0),Running!$A:$A,"*",Running!$E:$E,"<="&TODAY())*60+SUMIFS(Running!$L:$L,Running!$E:$E,">="&EDATE($B19,0),Running!$E:$E,"<="&EDATE($C19,0),Running!$A:$A,"*",Running!$E:$E,"<="&TODAY()))/(60*60)),MOD(MOD(SUMIFS(Running!$K:$K,Running!$E:$E,">="&EDATE($B19,0),Running!$E:$E,"<="&EDATE($C19,0),Running!$A:$A,"*",Running!$E:$E,"<="&TODAY()),60)+INT(SUMIFS(Running!$L:$L,Running!$E:$E,">="&EDATE($B19,0),Running!$E:$E,"<="&EDATE($C19,0),Running!$A:$A,"*",Running!$E:$E,"<="&TODAY())/60),60),MOD(SUMIFS(Running!$L:$L,Running!$E:$E,">="&EDATE($B19,0),Running!$E:$E,"<="&EDATE($C19,0),Running!$A:$A,"*",Running!$E:$E,"<="&TODAY()),60))+INT(INT((SUMIFS(Running!$K:$K,Running!$E:$E,">="&EDATE($B19,0),Running!$E:$E,"<="&EDATE($C19,0),Running!$A:$A,"*",Running!$E:$E,"<="&TODAY())*60+SUMIFS(Running!$L:$L,Running!$E:$E,">="&EDATE($B19,0),Running!$E:$E,"<="&EDATE($C19,0),Running!$A:$A,"*",Running!$E:$E,"<="&TODAY()))/(60*60))/24) -> 0.109224537 | J19: 00:07:58 | K19: 7.541 | L19: =SUMIFS(Running!$M:$M,Running!$A:$A,"*",Running!$E:$E,"<="&TODAY(),Running!$E:$E,">="&EDATE($B19,0),Running!$E:$E,"<="&EDATE($C19,0)) -> 96 | M19: =SUMIFS(Running!$N:$N,Running!$A:$A,"*",Running!$E:$E,"<="&TODAY(),Running!$E:$E,">="&EDATE($B19,0),Running!$E:$E,"<="&EDATE($C19,0)) -> 1.31 | N19: =TIME(INT((SUMIFS(Running!$R:$R,Running!$E:$E,">="&EDATE($B19,0),Running!$E:$E,"<="&EDATE($C19,0),Running!$A:$A,"*",Running!$E:$E,"<="&TODAY())*60+SUMIFS(Running!$S:$S,Running!$E:$E,">="&EDATE($B19,0),Running!$E:$E,"<="&EDATE($C19,0),Running!$A:$A,"*",Running!$E:$E,"<="&TODAY()))/(60*60)),MOD(MOD(SUMIFS(Running!$R:$R,Running!$E:$E,">="&EDATE($B19,0),Running!$E:$E,"<="&EDATE($C19,0),Running!$A:$A,"*",Running!$E:$E,"<="&TODAY()),60)+INT(SUMIFS(Running!$S:$S,Running!$E:$E,">="&EDATE($B19,0),Running!$E:$E,"<="&EDATE($C19,0),Running!$A:$A,"*",Running!$E:$E,"<="&TODAY())/60),60),MOD(SUMIFS(Running!$S:$S,Running!$E:$E,">="&EDATE($B19,0),Running!$E:$E,"<="&EDATE($C19,0),Running!$A:$A,"*",Running!$E:$E,"<="&TODAY()),60))+INT(INT((SUMIFS(Running!$R:$R,Running!$E:$E,">="&EDATE($B19,0),Running!$E:$E,"<="&EDATE($C19,0),Running!$A:$A,"*",Running!$E:$E,"<="&TODAY())*60+SUMIFS(Running!$S:$S,Running!$E:$E,">="&EDATE($B19,0),Running!$E:$E,"<="&EDATE($C19,0),Running!$A:$A,"*",Running!$E:$E,"<="&TODAY()))/(60*60))/24) -> 0.01378472222 | O19: 00:15:10 | P19: 3.959 | Q19: 2450 | R19: 21.08 | S19: 02:57:08 | T19: 00:08:25 | U19: 7.14
A20: 19 | B20: 2018-04-30 | C20: 2018-05-06 | D20: =COUNTIFS(Running!$A:$A,"*",Running!$E:$E,"<="&TODAY(),Running!$E:$E,">="&EDATE($B20,0),Running!$E:$E,"<="&EDATE($C20,0)) -> 4 | E20: =COUNTIFS(Running!$A:$A,"",Running!$G:$G,0,Running!$E:$E,"<="&TODAY(),Running!$E:$E,">="&EDATE($B20,0),Running!$E:$E,"<="&EDATE($C20,0)) -> 3 | F20: 0.571 | G20: =SUMIFS(Running!$F:$F,Running!$A:$A,"*",Running!$E:$E,"<="&TODAY(),Running!$E:$E,">="&EDATE($B20,0),Running!$E:$E,"<="&EDATE($C20,0)) -> 1965 | H20: =SUMIFS(Running!$G:$G,Running!$A:$A,"*",Running!$E:$E,"<="&TODAY(),Running!$E:$E,">="&EDATE($B20,0),Running!$E:$E,"<="&EDATE($C20,0)) -> 16.55 | I20: =TIME(INT((SUMIFS(Running!$K:$K,Running!$E:$E,">="&EDATE($B20,0),Running!$E:$E,"<="&EDATE($C20,0),Running!$A:$A,"*",Running!$E:$E,"<="&TODAY())*60+SUMIFS(Running!$L:$L,Running!$E:$E,">="&EDATE($B20,0),Running!$E:$E,"<="&EDATE($C20,0),Running!$A:$A,"*",Running!$E:$E,"<="&TODAY()))/(60*60)),MOD(MOD(SUMIFS(Running!$K:$K,Running!$E:$E,">="&EDATE($B20,0),Running!$E:$E,"<="&EDATE($C20,0),Running!$A:$A,"*",Running!$E:$E,"<="&TODAY()),60)+INT(SUMIFS(Running!$L:$L,Running!$E:$E,">="&EDATE($B20,0),Running!$E:$E,"<="&EDATE($C20,0),Running!$A:$A,"*",Running!$E:$E,"<="&TODAY())/60),60),MOD(SUMIFS(Running!$L:$L,Running!$E:$E,">="&EDATE($B20,0),Running!$E:$E,"<="&EDATE($C20,0),Running!$A:$A,"*",Running!$E:$E,"<="&TODAY()),60))+INT(INT((SUMIFS(Running!$K:$K,Running!$E:$E,">="&EDATE($B20,0),Running!$E:$E,"<="&EDATE($C20,0),Running!$A:$A,"*",Running!$E:$E,"<="&TODAY())*60+SUMIFS(Running!$L:$L,Running!$E:$E,">="&EDATE($B20,0),Running!$E:$E,"<="&EDATE($C20,0),Running!$A:$A,"*",Running!$E:$E,"<="&TODAY()))/(60*60))/24) -> 0.09131944444 | J20: 00:07:57 | K20: 7.551 | L20: =SUMIFS(Running!$M:$M,Running!$A:$A,"*",Running!$E:$E,"<="&TODAY(),Running!$E:$E,">="&EDATE($B20,0),Running!$E:$E,"<="&EDATE($C20,0)) -> 92 | M20: =SUMIFS(Running!$N:$N,Running!$A:$A,"*",Running!$E:$E,"<="&TODAY(),Running!$E:$E,">="&EDATE($B20,0),Running!$E:$E,"<="&EDATE($C20,0)) -> 1.25 | N20: =TIME(INT((SUMIFS(Running!$R:$R,Running!$E:$E,">="&EDATE($B20,0),Running!$E:$E,"<="&EDATE($C20,0),Running!$A:$A,"*",Running!$E:$E,"<="&TODAY())*60+SUMIFS(Running!$S:$S,Running!$E:$E,">="&EDATE($B20,0),Running!$E:$E,"<="&EDATE($C20,0),Running!$A:$A,"*",Running!$E:$E,"<="&TODAY()))/(60*60)),MOD(MOD(SUMIFS(Running!$R:$R,Running!$E:$E,">="&EDATE($B20,0),Running!$E:$E,"<="&EDATE($C20,0),Running!$A:$A,"*",Running!$E:$E,"<="&TODAY()),60)+INT(SUMIFS(Running!$S:$S,Running!$E:$E,">="&EDATE($B20,0),Running!$E:$E,"<="&EDATE($C20,0),Running!$A:$A,"*",Running!$E:$E,"<="&TODAY())/60),60),MOD(SUMIFS(Running!$S:$S,Running!$E:$E,">="&EDATE($B20,0),Running!$E:$E,"<="&EDATE($C20,0),Running!$A:$A,"*",Running!$E:$E,"<="&TODAY()),60))+INT(INT((SUMIFS(Running!$R:$R,Running!$E:$E,">="&EDATE($B20,0),Running!$E:$E,"<="&EDATE($C20,0),Running!$A:$A,"*",Running!$E:$E,"<="&TODAY())*60+SUMIFS(Running!$S:$S,Running!$E:$E,">="&EDATE($B20,0),Running!$E:$E,"<="&EDATE($C20,0),Running!$A:$A,"*",Running!$E:$E,"<="&TODAY()))/(60*60))/24) -> 0.01319444444 | O20: 00:15:12 | P20: 3.947 | Q20: 2057 | R20: 17.8 | S20: 02:30:30 | T20: 00:08:28 | U20: 7.096
A21: 20 | B21: 2018-05-07 | C21: 2018-05-13 | D21: =COUNTIFS(Running!$A:$A,"*",Running!$E:$E,"<="&TODAY(),Running!$E:$E,">="&EDATE($B21,0),Running!$E:$E,"<="&EDATE($C21,0)) -> 1 | E21: =COUNTIFS(Running!$A:$A,"",Running!$G:$G,0,Running!$E:$E,"<="&TODAY(),Running!$E:$E,">="&EDATE($B21,0),Running!$E:$E,"<="&EDATE($C21,0)) -> 6 | F21: 0.142 | G21: =SUMIFS(Running!$F:$F,Running!$A:$A,"*",Running!$E:$E,"<="&TODAY(),Running!$E:$E,">="&EDATE($B21,0),Running!$E:$E,"<="&EDATE($C21,0)) -> 387 | H21: =SUMIFS(Running!$G:$G,Running!$A:$A,"*",Running!$E:$E,"<="&TODAY(),Running!$E:$E,">="&EDATE($B21,0),Running!$E:$E,"<="&EDATE($C21,0)) -> 3.55 | I21: =TIME(INT((SUMIFS(Running!$K:$K,Running!$E:$E,">="&EDATE($B21,0),Running!$E:$E,"<="&EDATE($C21,0),Running!$A:$A,"*",Running!$E:$E,"<="&TODAY())*60+SUMIFS(Running!$L:$L,Running!$E:$E,">="&EDATE($B21,0),Running!$E:$E,"<="&EDATE($C21,0),Running!$A:$A,"*",Running!$E:$E,"<="&TODAY()))/(60*60)),MOD(MOD(SUMIFS(Running!$K:$K,Running!$E:$E,">="&EDATE($B21,0),Running!$E:$E,"<="&EDATE($C21,0),Running!$A:$A,"*",Running!$E:$E,"<="&TODAY()),60)+INT(SUMIFS(Running!$L:$L,Running!$E:$E,">="&EDATE($B21,0),Running!$E:$E,"<="&EDATE($C21,0),Running!$A:$A,"*",Running!$E:$E,"<="&TODAY())/60),60),MOD(SUMIFS(Running!$L:$L,Running!$E:$E,">="&EDATE($B21,0),Running!$E:$E,"<="&EDATE($C21,0),Running!$A:$A,"*",Running!$E:$E,"<="&TODAY()),60))+INT(INT((SUMIFS(Running!$K:$K,Running!$E:$E,">="&EDATE($B21,0),Running!$E:$E,"<="&EDATE($C21,0),Running!$A:$A,"*",Running!$E:$E,"<="&TODAY())*60+SUMIFS(Running!$L:$L,Running!$E:$E,">="&EDATE($B21,0),Running!$E:$E,"<="&EDATE($C21,0),Running!$A:$A,"*",Running!$E:$E,"<="&TODAY()))/(60*60))/24) -> 0.02222222222 | J21: 00:09:01 | K21: 6.656 | L21: =SUMIFS(Running!$M:$M,Running!$A:$A,"*",Running!$E:$E,"<="&TODAY(),Running!$E:$E,">="&EDATE($B21,0),Running!$E:$E,"<="&EDATE($C21,0)) -> 0 | M21: =SUMIFS(Running!$N:$N,Running!$A:$A,"*",Running!$E:$E,"<="&TODAY(),Running!$E:$E,">="&EDATE($B21,0),Running!$E:$E,"<="&EDATE($C21,0)) -> 0.4 | N21: =TIME(INT((SUMIFS(Running!$R:$R,Running!$E:$E,">="&EDATE($B21,0),Running!$E:$E,"<="&EDATE($C21,0),Running!$A:$A,"*",Running!$E:$E,"<="&TODAY())*60+SUMIFS(Running!$S:$S,Running!$E:$E,">="&EDATE($B21,0),Running!$E:$E,"<="&EDATE($C21,0),Running!$A:$A,"*",Running!$E:$E,"<="&TODAY()))/(60*60)),MOD(MOD(SUMIFS(Running!$R:$R,Running!$E:$E,">="&EDATE($B21,0),Running!$E:$E,"<="&EDATE($C21,0),Running!$A:$A,"*",Running!$E:$E,"<="&TODAY()),60)+INT(SUMIFS(Running!$S:$S,Running!$E:$E,">="&EDATE($B21,0),Running!$E:$E,"<="&EDATE($C21,0),Running!$A:$A,"*",Running!$E:$E,"<="&TODAY())/60),60),MOD(SUMIFS(Running!$S:$S,Running!$E:$E,">="&EDATE($B21,0),Running!$E:$E,"<="&EDATE($C21,0),Running!$A:$A,"*",Running!$E:$E,"<="&TODAY()),60))+INT(INT((SUMIFS(Running!$R:$R,Running!$E:$E,">="&EDATE($B21,0),Running!$E:$E,"<="&EDATE($C21,0),Running!$A:$A,"*",Running!$E:$E,"<="&TODAY())*60+SUMIFS(Running!$S:$S,Running!$E:$E,">="&EDATE($B21,0),Running!$E:$E,"<="&EDATE($C21,0),Running!$A:$A,"*",Running!$E:$E,"<="&TODAY()))/(60*60))/24) -> 0.004861111111 | O21: 00:17:30 | P21: 3.428 | Q21: 387 | R21: 3.95 | S21: 00:39:00 | T21: 00:09:53 | U21: 6.076
A22: 21 | B22: 2018-05-14 | C22: 2018-05-20 | D22: =COUNTIFS(Running!$A:$A,"*",Running!$E:$E,"<="&TODAY(),Running!$E:$E,">="&EDATE($B22,0),Running!$E:$E,"<="&EDATE($C22,0)) -> 2 | E22: =COUNTIFS(Running!$A:$A,"",Running!$G:$G,0,Running!$E:$E,"<="&TODAY(),Running!$E:$E,">="&EDATE($B22,0),Running!$E:$E,"<="&EDATE($C22,0)) -> 5 | F22: 0.285 | G22: =SUMIFS(Running!$F:$F,Running!$A:$A,"*",Running!$E:$E,"<="&TODAY(),Running!$E:$E,">="&EDATE($B22,0),Running!$E:$E,"<="&EDATE($C22,0)) -> 807 | H22: =SUMIFS(Running!$G:$G,Running!$A:$A,"*",Running!$E:$E,"<="&TODAY(),Running!$E:$E,">="&EDATE($B22,0),Running!$E:$E,"<="&EDATE($C22,0)) -> 7.45 | I22: =TIME(INT((SUMIFS(Running!$K:$K,Running!$E:$E,">="&EDATE($B22,0),Running!$E:$E,"<="&EDATE($C22,0),Running!$A:$A,"*",Running!$E:$E,"<="&TODAY())*60+SUMIFS(Running!$L:$L,Running!$E:$E,">="&EDATE($B22,0),Running!$E:$E,"<="&EDATE($C22,0),Running!$A:$A,"*",Running!$E:$E,"<="&TODAY()))/(60*60)),MOD(MOD(SUMIFS(Running!$K:$K,Running!$E:$E,">="&EDATE($B22,0),Running!$E:$E,"<="&EDATE($C22,0),Running!$A:$A,"*",Running!$E:$E,"<="&TODAY()),60)+INT(SUMIFS(Running!$L:$L,Running!$E:$E,">="&EDATE($B22,0),Running!$E:$E,"<="&EDATE($C22,0),Running!$A:$A,"*",Running!$E:$E,"<="&TODAY())/60),60),MOD(SUMIFS(Running!$L:$L,Running!$E:$E,">="&EDATE($B22,0),Running!$E:$E,"<="&EDATE($C22,0),Running!$A:$A,"*",Running!$E:$E,"<="&TODAY()),60))+INT(INT((SUMIFS(Running!$K:$K,Running!$E:$E,">="&EDATE($B22,0),Running!$E:$E,"<="&EDATE($C22,0),Running!$A:$A,"*",Running!$E:$E,"<="&TODAY())*60+SUMIFS(Running!$L:$L,Running!$E:$E,">="&EDATE($B22,0),Running!$E:$E,"<="&EDATE($C22,0),Running!$A:$A,"*",Running!$E:$E,"<="&TODAY()))/(60*60))/24) -> 0.04236111111 | J22: 00:08:12 | K22: 7.327 | L22: =SUMIFS(Running!$M:$M,Running!$A:$A,"*",Running!$E:$E,"<="&TODAY(),Running!$E:$E,">="&EDATE($B22,0),Running!$E:$E,"<="&EDATE($C22,0)) -> 0 | M22: =SUMIFS(Running!$N:$N,Running!$A:$A,"*",Running!$E:$E,"<="&TODAY(),Running!$E:$E,">="&EDATE($B22,0),Running!$E:$E,"<="&EDATE($C22,0)) -> 0.6 | N22: =TIME(INT((SUMIFS(Running!$R:$R,Running!$E:$E,">="&EDATE($B22,0),Running!$E:$E,"<="&EDATE($C22,0),Running!$A:$A,"*",Running!$E:$E,"<="&TODAY())*60+SUMIFS(Running!$S:$S,Running!$E:$E,">="&EDATE($B22,0),Running!$E:$E,"<="&EDATE($C22,0),Running!$A:$A,"*",Running!$E:$E,"<="&TODAY()))/(60*60)),MOD(MOD(SUMIFS(Running!$R:$R,Running!$E:$E,">="&EDATE($B22,0),Running!$E:$E,"<="&EDATE($C22,0),Running!$A:$A,"*",Running!$E:$E,"<="&TODAY()),60)+INT(SUMIFS(Running!$S:$S,Running!$E:$E,">="&EDATE($B22,0),Running!$E:$E,"<="&EDATE($C22,0),Running!$A:$A,"*",Running!$E:$E,"<="&TODAY())/60),60),MOD(SUMIFS(Running!$S:$S,Running!$E:$E,">="&EDATE($B22,0),Running!$E:$E,"<="&EDATE($C22,0),Running!$A:$A,"*",Running!$E:$E,"<="&TODAY()),60))+INT(INT((SUMIFS(Running!$R:$R,Running!$E:$E,">="&EDATE($B22,0),Running!$E:$E,"<="&EDATE($C22,0),Running!$A:$A,"*",Running!$E:$E,"<="&TODAY())*60+SUMIFS(Running!$S:$S,Running!$E:$E,">="&EDATE($B22,0),Running!$E:$E,"<="&EDATE($C22,0),Running!$A:$A,"*",Running!$E:$E,"<="&TODAY()))/(60*60))/24) -> 0.006689814815 | O22: 00:16:04 | P22: 3.737 | Q22: 807 | R22: 8.05 | S22: 01:10:38 | T22: 00:08:47 | U22: 6.838
A23: 22 | B23: 2018-05-21 | C23: 2018-05-27 | D23: =COUNTIFS(Running!$A:$A,"*",Running!$E:$E,"<="&TODAY(),Running!$E:$E,">="&EDATE($B23,0),Running!$E:$E,"<="&EDATE($C23,0)) -> 3 | E23: =COUNTIFS(Running!$A:$A,"",Running!$G:$G,0,Running!$E:$E,"<="&TODAY(),Running!$E:$E,">="&EDATE($B23,0),Running!$E:$E,"<="&EDATE($C23,0)) -> 4 | F23: 0.428 | G23: =SUMIFS(Running!$F:$F,Running!$A:$A,"*",Running!$E:$E,"<="&TODAY(),Running!$E:$E,">="&EDATE($B23,0),Running!$E:$E,"<="&EDATE($C23,0)) -> 1143 | H23: =SUMIFS(Running!$G:$G,Running!$A:$A,"*",Running!$E:$E,"<="&TODAY(),Running!$E:$E,">="&EDATE($B23,0),Running!$E:$E,"<="&EDATE($C23,0)) -> 10.59 | I23: =TIME(INT((SUMIFS(Running!$K:$K,Running!$E:$E,">="&EDATE($B23,0),Running!$E:$E,"<="&EDATE($C23,0),Running!$A:$A,"*",Running!$E:$E,"<="&TODAY())*60+SUMIFS(Running!$L:$L,Running!$E:$E,">="&EDATE($B23,0),Running!$E:$E,"<="&EDATE($C23,0),Running!$A:$A,"*",Running!$E:$E,"<="&TODAY()))/(60*60)),MOD(MOD(SUMIFS(Running!$K:$K,Running!$E:$E,">="&EDATE($B23,0),Running!$E:$E,"<="&EDATE($C23,0),Running!$A:$A,"*",Running!$E:$E,"<="&TODAY()),60)+INT(SUMIFS(Running!$L:$L,Running!$E:$E,">="&EDATE($B23,0),Running!$E:$E,"<="&EDATE($C23,0),Running!$A:$A,"*",Running!$E:$E,"<="&TODAY())/60),60),MOD(SUMIFS(Running!$L:$L,Running!$E:$E,">="&EDATE($B23,0),Running!$E:$E,"<="&EDATE($C23,0),Running!$A:$A,"*",Running!$E:$E,"<="&TODAY()),60))+INT(INT((SUMIFS(Running!$K:$K,Running!$E:$E,">="&EDATE($B23,0),Running!$E:$E,"<="&EDATE($C23,0),Running!$A:$A,"*",Running!$E:$E,"<="&TODAY())*60+SUMIFS(Running!$L:$L,Running!$E:$E,">="&EDATE($B23,0),Running!$E:$E,"<="&EDATE($C23,0),Running!$A:$A,"*",Running!$E:$E,"<="&TODAY()))/(60*60))/24) -> 0.0625 | J23: 00:08:30 | K23: 7.06 | L23: =SUMIFS(Running!$M:$M,Running!$A:$A,"*",Running!$E:$E,"<="&TODAY(),Running!$E:$E,">="&EDATE($B23,0),Running!$E:$E,"<="&EDATE($C23,0)) -> 0 | M23: =SUMIFS(Running!$N:$N,Running!$A:$A,"*",Running!$E:$E,"<="&TODAY(),Running!$E:$E,">="&EDATE($B23,0),Running!$E:$E,"<="&EDATE($C23,0)) -> 0.87 | N23: =TIME(INT((SUMIFS(Running!$R:$R,Running!$E:$E,">="&EDATE($B23,0),Running!$E:$E,"<="&EDATE($C23,0),Running!$A:$A,"*",Running!$E:$E,"<="&TODAY())*60+SUMIFS(Running!$S:$S,Running!$E:$E,">="&EDATE($B23,0),Running!$E:$E,"<="&EDATE($C23,0),Running!$A:$A,"*",Running!$E:$E,"<="&TODAY()))/(60*60)),MOD(MOD(SUMIFS(Running!$R:$R,Running!$E:$E,">="&EDATE($B23,0),Running!$E:$E,"<="&EDATE($C23,0),Running!$A:$A,"*",Running!$E:$E,"<="&TODAY()),60)+INT(SUMIFS(Running!$S:$S,Running!$E:$E,">="&EDATE($B23,0),Running!$E:$E,"<="&EDATE($C23,0),Running!$A:$A,"*",Running!$E:$E,"<="&TODAY())/60),60),MOD(SUMIFS(Running!$S:$S,Running!$E:$E,">="&EDATE($B23,0),Running!$E:$E,"<="&EDATE($C23,0),Running!$A:$A,"*",Running!$E:$E,"<="&TODAY()),60))+INT(INT((SUMIFS(Running!$R:$R,Running!$E:$E,">="&EDATE($B23,0),Running!$E:$E,"<="&EDATE($C23,0),Running!$A:$A,"*",Running!$E:$E,"<="&TODAY())*60+SUMIFS(Running!$S:$S,Running!$E:$E,">="&EDATE($B23,0),Running!$E:$E,"<="&EDATE($C23,0),Running!$A:$A,"*",Running!$E:$E,"<="&TODAY()))/(60*60))/24) -> 0.01018518519 | O23: 00:16:52 | P23: 3.559 | Q23: 1143 | R23: 11.46 | S23: 01:44:40 | T23: 00:09:08 | U23: 6.569
A24: 23 | B24: 2018-05-28 | C24: 2018-06-03 | D24: =COUNTIFS(Running!$A:$A,"*",Running!$E:$E,"<="&TODAY(),Running!$E:$E,">="&EDATE($B24,0),Running!$E:$E,"<="&EDATE($C24,0)) -> 2 | E24: =COUNTIFS(Running!$A:$A,"",Running!$G:$G,0,Running!$E:$E,"<="&TODAY(),Running!$E:$E,">="&EDATE($B24,0),Running!$E:$E,"<="&EDATE($C24,0)) -> 5 | F24: 0.285 | G24: =SUMIFS(Running!$F:$F,Running!$A:$A,"*",Running!$E:$E,"<="&TODAY(),Running!$E:$E,">="&EDATE($B24,0),Running!$E:$E,"<="&EDATE($C24,0)) -> 678 | H24: =SUMIFS(Running!$G:$G,Running!$A:$A,"*",Running!$E:$E,"<="&TODAY(),Running!$E:$E,">="&EDATE($B24,0),Running!$E:$E,"<="&EDATE($C24,0)) -> 5.73 | I24: =TIME(INT((SUMIFS(Running!$K:$K,Running!$E:$E,">="&EDATE($B24,0),Running!$E:$E,"<="&EDATE($C24,0),Running!$A:$A,"*",Running!$E:$E,"<="&TODAY())*60+SUMIFS(Running!$L:$L,Running!$E:$E,">="&EDATE($B24,0),Running!$E:$E,"<="&EDATE($C24,0),Running!$A:$A,"*",Running!$E:$E,"<="&TODAY()))/(60*60)),MOD(MOD(SUMIFS(Running!$K:$K,Running!$E:$E,">="&EDATE($B24,0),Running!$E:$E,"<="&EDATE($C24,0),Running!$A:$A,"*",Running!$E:$E,"<="&TODAY()),60)+INT(SUMIFS(Running!$L:$L,Running!$E:$E,">="&EDATE($B24,0),Running!$E:$E,"<="&EDATE($C24,0),Running!$A:$A,"*",Running!$E:$E,"<="&TODAY())/60),60),MOD(SUMIFS(Running!$L:$L,Running!$E:$E,">="&EDATE($B24,0),Running!$E:$E,"<="&EDATE($C24,0),Running!$A:$A,"*",Running!$E:$E,"<="&TODAY()),60))+INT(INT((SUMIFS(Running!$K:$K,Running!$E:$E,">="&EDATE($B24,0),Running!$E:$E,"<="&EDATE($C24,0),Running!$A:$A,"*",Running!$E:$E,"<="&TODAY())*60+SUMIFS(Running!$L:$L,Running!$E:$E,">="&EDATE($B24,0),Running!$E:$E,"<="&EDATE($C24,0),Running!$A:$A,"*",Running!$E:$E,"<="&TODAY()))/(60*60))/24) -> 0.03387731481 | J24: 00:08:31 | K24: 7.047 | L24: =SUMIFS(Running!$M:$M,Running!$A:$A,"*",Running!$E:$E,"<="&TODAY(),Running!$E:$E,">="&EDATE($B24,0),Running!$E:$E,"<="&EDATE($C24,0)) -> 0 | M24: =SUMIFS(Running!$N:$N,Running!$A:$A,"*",Running!$E:$E,"<="&TODAY(),Running!$E:$E,">="&EDATE($B24,0),Running!$E:$E,"<="&EDATE($C24,0)) -> 1.31 | N24: =TIME(INT((SUMIFS(Running!$R:$R,Running!$E:$E,">="&EDATE($B24,0),Running!$E:$E,"<="&EDATE($C24,0),Running!$A:$A,"*",Running!$E:$E,"<="&TODAY())*60+SUMIFS(Running!$S:$S,Running!$E:$E,">="&EDATE($B24,0),Running!$E:$E,"<="&EDATE($C24,0),Running!$A:$A,"*",Running!$E:$E,"<="&TODAY()))/(60*60)),MOD(MOD(SUMIFS(Running!$R:$R,Running!$E:$E,">="&EDATE($B24,0),Running!$E:$E,"<="&EDATE($C24,0),Running!$A:$A,"*",Running!$E:$E,"<="&TODAY()),60)+INT(SUMIFS(Running!$S:$S,Running!$E:$E,">="&EDATE($B24,0),Running!$E:$E,"<="&EDATE($C24,0),Running!$A:$A,"*",Running!$E:$E,"<="&TODAY())/60),60),MOD(SUMIFS(Running!$S:$S,Running!$E:$E,">="&EDATE($B24,0),Running!$E:$E,"<="&EDATE($C24,0),Running!$A:$A,"*",Running!$E:$E,"<="&TODAY()),60))+INT(INT((SUMIFS(Running!$R:$R,Running!$E:$E,">="&EDATE($B24,0),Running!$E:$E,"<="&EDATE($C24,0),Running!$A:$A,"*",Running!$E:$E,"<="&TODAY())*60+SUMIFS(Running!$S:$S,Running!$E:$E,">="&EDATE($B24,0),Running!$E:$E,"<="&EDATE($C24,0),Running!$A:$A,"*",Running!$E:$E,"<="&TODAY()))/(60*60))/24) -> 0.01578703704 | O24: 00:17:22 | P24: 3.457 | Q24: 678 | R24: 7.04 | S24: 01:11:31 | T24: 00:10:10 | U24: 5.906
A25: 24 | B25: 2018-06-04 | C25: 2018-06-10 | D25: =COUNTIFS(Running!$A:$A,"*",Running!$E:$E,"<="&TODAY(),Running!$E:$E,">="&EDATE($B25,0),Running!$E:$E,"<="&EDATE($C25,0)) -> 4 | E25: =COUNTIFS(Running!$A:$A,"",Running!$G:$G,0,Running!$E:$E,"<="&TODAY(),Running!$E:$E,">="&EDATE($B25,0),Running!$E:$E,"<="&EDATE($C25,0)) -> 3 | F25: 0.571 | G25: =SUMIFS(Running!$F:$F,Running!$A:$A,"*",Running!$E:$E,"<="&TODAY(),Running!$E:$E,">="&EDATE($B25,0),Running!$E:$E,"<="&EDATE($C25,0)) -> 1738 | H25: =SUMIFS(Running!$G:$G,Running!$A:$A,"*",Running!$E:$E,"<="&TODAY(),Running!$E:$E,">="&EDATE($B25,0),Running!$E:$E,"<="&EDATE($C25,0)) -> 15.99 | I25: =TIME(INT((SUMIFS(Running!$K:$K,Running!$E:$E,">="&EDATE($B25,0),Running!$E:$E,"<="&EDATE($C25,0),Running!$A:$A,"*",Running!$E:$E,"<="&TODAY())*60+SUMIFS(Running!$L:$L,Running!$E:$E,">="&EDATE($B25,0),Running!$E:$E,"<="&EDATE($C25,0),Running!$A:$A,"*",Running!$E:$E,"<="&TODAY()))/(60*60)),MOD(MOD(SUMIFS(Running!$K:$K,Running!$E:$E,">="&EDATE($B25,0),Running!$E:$E,"<="&EDATE($C25,0),Running!$A:$A,"*",Running!$E:$E,"<="&TODAY()),60)+INT(SUMIFS(Running!$L:$L,Running!$E:$E,">="&EDATE($B25,0),Running!$E:$E,"<="&EDATE($C25,0),Running!$A:$A,"*",Running!$E:$E,"<="&TODAY())/60),60),MOD(SUMIFS(Running!$L:$L,Running!$E:$E,">="&EDATE($B25,0),Running!$E:$E,"<="&EDATE($C25,0),Running!$A:$A,"*",Running!$E:$E,"<="&TODAY()),60))+INT(INT((SUMIFS(Running!$K:$K,Running!$E:$E,">="&EDATE($B25,0),Running!$E:$E,"<="&EDATE($C25,0),Running!$A:$A,"*",Running!$E:$E,"<="&TODAY())*60+SUMIFS(Running!$L:$L,Running!$E:$E,">="&EDATE($B25,0),Running!$E:$E,"<="&EDATE($C25,0),Running!$A:$A,"*",Running!$E:$E,"<="&TODAY()))/(60*60))/24) -> 0.09190972222 | J25: 00:08:17 | K25: 7.248 | L25: =SUMIFS(Running!$M:$M,Running!$A:$A,"*",Running!$E:$E,"<="&TODAY(),Running!$E:$E,">="&EDATE($B25,0),Running!$E:$E,"<="&EDATE($C25,0)) -> 0 | M25: =SUMIFS(Running!$N:$N,Running!$A:$A,"*",Running!$E:$E,"<="&TODAY(),Running!$E:$E,">="&EDATE($B25,0),Running!$E:$E,"<="&EDATE($C25,0)) -> 1.52 | N25: =TIME(INT((SUMIFS(Running!$R:$R,Running!$E:$E,">="&EDATE($B25,0),Running!$E:$E,"<="&EDATE($C25,0),Running!$A:$A,"*",Running!$E:$E,"<="&TODAY())*60+SUMIFS(Running!$S:$S,Running!$E:$E,">="&EDATE($B25,0),Running!$E:$E,"<="&EDATE($C25,0),Running!$A:$A,"*",Running!$E:$E,"<="&TODAY()))/(60*60)),MOD(MOD(SUMIFS(Running!$R:$R,Running!$E:$E,">="&EDATE($B25,0),Running!$E:$E,"<="&EDATE($C25,0),Running!$A:$A,"*",Running!$E:$E,"<="&TODAY()),60)+INT(SUMIFS(Running!$S:$S,Running!$E:$E,">="&EDATE($B25,0),Running!$E:$E,"<="&EDATE($C25,0),Running!$A:$A,"*",Running!$E:$E,"<="&TODAY())/60),60),MOD(SUMIFS(Running!$S:$S,Running!$E:$E,">="&EDATE($B25,0),Running!$E:$E,"<="&EDATE($C25,0),Running!$A:$A,"*",Running!$E:$E,"<="&TODAY()),60))+INT(INT((SUMIFS(Running!$R:$R,Running!$E:$E,">="&EDATE($B25,0),Running!$E:$E,"<="&EDATE($C25,0),Running!$A:$A,"*",Running!$E:$E,"<="&TODAY())*60+SUMIFS(Running!$S:$S,Running!$E:$E,">="&EDATE($B25,0),Running!$E:$E,"<="&EDATE($C25,0),Running!$A:$A,"*",Running!$E:$E,"<="&TODAY()))/(60*60))/24) -> 0.01891203704 | O25: 00:17:55 | P25: 3.348 | Q25: 1738 | R25: 17.51 | S25: 02:39:35 | T25: 00:09:07 | U25: 6.583
A26: 25 | B26: 2018-06-11 | C26: 2018-06-17 | D26: =COUNTIFS(Running!$A:$A,"*",Running!$E:$E,"<="&TODAY(),Running!$E:$E,">="&EDATE($B26,0),Running!$E:$E,"<="&EDATE($C26,0)) -> 3 | E26: =COUNTIFS(Running!$A:$A,"",Running!$G:$G,0,Running!$E:$E,"<="&TODAY(),Running!$E:$E,">="&EDATE($B26,0),Running!$E:$E,"<="&EDATE($C26,0)) -> 4 | F26: 0.428 | G26: =SUMIFS(Running!$F:$F,Running!$A:$A,"*",Running!$E:$E,"<="&TODAY(),Running!$E:$E,">="&EDATE($B26,0),Running!$E:$E,"<="&EDATE($C26,0)) -> 1288 | H26: =SUMIFS(Running!$G:$G,Running!$A:$A,"*",Running!$E:$E,"<="&TODAY(),Running!$E:$E,">="&EDATE($B26,0),Running!$E:$E,"<="&EDATE($C26,0)) -> 12.19 | I26: =TIME(INT((SUMIFS(Running!$K:$K,Running!$E:$E,">="&EDATE($B26,0),Running!$E:$E,"<="&EDATE($C26,0),Running!$A:$A,"*",Running!$E:$E,"<="&TODAY())*60+SUMIFS(Running!$L:$L,Running!$E:$E,">="&EDATE($B26,0),Running!$E:$E,"<="&EDATE($C26,0),Running!$A:$A,"*",Running!$E:$E,"<="&TODAY()))/(60*60)),MOD(MOD(SUMIFS(Running!$K:$K,Running!$E:$E,">="&EDATE($B26,0),Running!$E:$E,"<="&EDATE($C26,0),Running!$A:$A,"*",Running!$E:$E,"<="&TODAY()),60)+INT(SUMIFS(Running!$L:$L,Running!$E:$E,">="&EDATE($B26,0),Running!$E:$E,"<="&EDATE($C26,0),Running!$A:$A,"*",Running!$E:$E,"<="&TODAY())/60),60),MOD(SUMIFS(Running!$L:$L,Running!$E:$E,">="&EDATE($B26,0),Running!$E:$E,"<="&EDATE($C26,0),Running!$A:$A,"*",Running!$E:$E,"<="&TODAY()),60))+INT(INT((SUMIFS(Running!$K:$K,Running!$E:$E,">="&EDATE($B26,0),Running!$E:$E,"<="&EDATE($C26,0),Running!$A:$A,"*",Running!$E:$E,"<="&TODAY())*60+SUMIFS(Running!$L:$L,Running!$E:$E,">="&EDATE($B26,0),Running!$E:$E,"<="&EDATE($C26,0),Running!$A:$A,"*",Running!$E:$E,"<="&TODAY()))/(60*60))/24) -> 0.07222222222 | J26: 00:08:32 | K26: 7.032 | L26: =SUMIFS(Running!$M:$M,Running!$A:$A,"*",Running!$E:$E,"<="&TODAY(),Running!$E:$E,">="&EDATE($B26,0),Running!$E:$E,"<="&EDATE($C26,0)) -> 0 | M26: =SUMIFS(Running!$N:$N,Running!$A:$A,"*",Running!$E:$E,"<="&TODAY(),Running!$E:$E,">="&EDATE($B26,0),Running!$E:$E,"<="&EDATE($C26,0)) -> 0.67 | N26: =TIME(INT((SUMIFS(Running!$R:$R,Running!$E:$E,">="&EDATE($B26,0),Running!$E:$E,"<="&EDATE($C26,0),Running!$A:$A,"*",Running!$E:$E,"<="&TODAY())*60+SUMIFS(Running!$S:$S,Running!$E:$E,">="&EDATE($B26,0),Running!$E:$E,"<="&EDATE($C26,0),Running!$A:$A,"*",Running!$E:$E,"<="&TODAY()))/(60*60)),MOD(MOD(SUMIFS(Running!$R:$R,Running!$E:$E,">="&EDATE($B26,0),Running!$E:$E,"<="&EDATE($C26,0),Running!$A:$A,"*",Running!$E:$E,"<="&TODAY()),60)+INT(SUMIFS(Running!$S:$S,Running!$E:$E,">="&EDATE($B26,0),Running!$E:$E,"<="&EDATE($C26,0),Running!$A:$A,"*",Running!$E:$E,"<="&TODAY())/60),60),MOD(SUMIFS(Running!$S:$S,Running!$E:$E,">="&EDATE($B26,0),Running!$E:$E,"<="&EDATE($C26,0),Running!$A:$A,"*",Running!$E:$E,"<="&TODAY()),60))+INT(INT((SUMIFS(Running!$R:$R,Running!$E:$E,">="&EDATE($B26,0),Running!$E:$E,"<="&EDATE($C26,0),Running!$A:$A,"*",Running!$E:$E,"<="&TODAY())*60+SUMIFS(Running!$S:$S,Running!$E:$E,">="&EDATE($B26,0),Running!$E:$E,"<="&EDATE($C26,0),Running!$A:$A,"*",Running!$E:$E,"<="&TODAY()))/(60*60))/24) -> 0.008333333333 | O26: 00:17:55 | P26: 3.35 | Q26: 1288 | R26: 12.86 | S26: 01:56:00 | T26: 00:09:02 | U26: 6.651
A27: 26 | B27: 2018-06-18 | C27: 2018-06-24 | D27: =COUNTIFS(Running!$A:$A,"*",Running!$E:$E,"<="&TODAY(),Running!$E:$E,">="&EDATE($B27,0),Running!$E:$E,"<="&EDATE($C27,0)) -> 4 | E27: =COUNTIFS(Running!$A:$A,"",Running!$G:$G,0,Running!$E:$E,"<="&TODAY(),Running!$E:$E,">="&EDATE($B27,0),Running!$E:$E,"<="&EDATE($C27,0)) -> 3 | F27: 0.571 | G27: =SUMIFS(Running!$F:$F,Running!$A:$A,"*",Running!$E:$E,"<="&TODAY(),Running!$E:$E,">="&EDATE($B27,0),Running!$E:$E,"<="&EDATE($C27,0)) -> 1640 | H27: =SUMIFS(Running!$G:$G,Running!$A:$A,"*",Running!$E:$E,"<="&TODAY(),Running!$E:$E,">="&EDATE($B27,0),Running!$E:$E,"<="&EDATE($C27,0)) -> 13.26 | I27: =TIME(INT((SUMIFS(Running!$K:$K,Running!$E:$E,">="&EDATE($B27,0),Running!$E:$E,"<="&EDATE($C27,0),Running!$A:$A,"*",Running!$E:$E,"<="&TODAY())*60+SUMIFS(Running!$L:$L,Running!$E:$E,">="&EDATE($B27,0),Running!$E:$E,"<="&EDATE($C27,0),Running!$A:$A,"*",Running!$E:$E,"<="&TODAY()))/(60*60)),MOD(MOD(SUMIFS(Running!$K:$K,Running!$E:$E,">="&EDATE($B27,0),Running!$E:$E,"<="&EDATE($C27,0),Running!$A:$A,"*",Running!$E:$E,"<="&TODAY()),60)+INT(SUMIFS(Running!$L:$L,Running!$E:$E,">="&EDATE($B27,0),Running!$E:$E,"<="&EDATE($C27,0),Running!$A:$A,"*",Running!$E:$E,"<="&TODAY())/60),60),MOD(SUMIFS(Running!$L:$L,Running!$E:$E,">="&EDATE($B27,0),Running!$E:$E,"<="&EDATE($C27,0),Running!$A:$A,"*",Running!$E:$E,"<="&TODAY()),60))+INT(INT((SUMIFS(Running!$K:$K,Running!$E:$E,">="&EDATE($B27,0),Running!$E:$E,"<="&EDATE($C27,0),Running!$A:$A,"*",Running!$E:$E,"<="&TODAY())*60+SUMIFS(Running!$L:$L,Running!$E:$E,">="&EDATE($B27,0),Running!$E:$E,"<="&EDATE($C27,0),Running!$A:$A,"*",Running!$E:$E,"<="&TODAY()))/(60*60))/24) -> 0.08055555556 | J27: 00:08:45 | K27: 6.858 | L27: =SUMIFS(Running!$M:$M,Running!$A:$A,"*",Running!$E:$E,"<="&TODAY(),Running!$E:$E,">="&EDATE($B27,0),Running!$E:$E,"<="&EDATE($C27,0)) -> 0 | M27: =SUMIFS(Running!$N:$N,Running!$A:$A,"*",Running!$E:$E,"<="&TODAY(),Running!$E:$E,">="&EDATE($B27,0),Running!$E:$E,"<="&EDATE($C27,0)) -> 0.68 | N27: =TIME(INT((SUMIFS(Running!$R:$R,Running!$E:$E,">="&EDATE($B27,0),Running!$E:$E,"<="&EDATE($C27,0),Running!$A:$A,"*",Running!$E:$E,"<="&TODAY())*60+SUMIFS(Running!$S:$S,Running!$E:$E,">="&EDATE($B27,0),Running!$E:$E,"<="&EDATE($C27,0),Running!$A:$A,"*",Running!$E:$E,"<="&TODAY()))/(60*60)),MOD(MOD(SUMIFS(Running!$R:$R,Running!$E:$E,">="&EDATE($B27,0),Running!$E:$E,"<="&EDATE($C27,0),Running!$A:$A,"*",Running!$E:$E,"<="&TODAY()),60)+INT(SUMIFS(Running!$S:$S,Running!$E:$E,">="&EDATE($B27,0),Running!$E:$E,"<="&EDATE($C27,0),Running!$A:$A,"*",Running!$E:$E,"<="&TODAY())/60),60),MOD(SUMIFS(Running!$S:$S,Running!$E:$E,">="&EDATE($B27,0),Running!$E:$E,"<="&EDATE($C27,0),Running!$A:$A,"*",Running!$E:$E,"<="&TODAY()),60))+INT(INT((SUMIFS(Running!$R:$R,Running!$E:$E,">="&EDATE($B27,0),Running!$E:$E,"<="&EDATE($C27,0),Running!$A:$A,"*",Running!$E:$E,"<="&TODAY())*60+SUMIFS(Running!$S:$S,Running!$E:$E,">="&EDATE($B27,0),Running!$E:$E,"<="&EDATE($C27,0),Running!$A:$A,"*",Running!$E:$E,"<="&TODAY()))/(60*60))/24) -> 0.008796296296 | O27: 00:18:38 | P27: 3.221 | Q27: 1640 | R27: 13.94 | S27: 02:08:40 | T27: 00:09:14 | U27: 6.5
A28: 27 | B28: 2018-06-25 | C28: 2018-07-01 | D28: =COUNTIFS(Running!$A:$A,"*",Running!$E:$E,"<="&TODAY(),Running!$E:$E,">="&EDATE($B28,0),Running!$E:$E,"<="&EDATE($C28,0)) -> 4 | E28: =COUNTIFS(Running!$A:$A,"",Running!$G:$G,0,Running!$E:$E,"<="&TODAY(),Running!$E:$E,">="&EDATE($B28,0),Running!$E:$E,"<="&EDATE($C28,0)) -> 3 | F28: 0.571 | G28: =SUMIFS(Running!$F:$F,Running!$A:$A,"*",Running!$E:$E,"<="&TODAY(),Running!$E:$E,">="&EDATE($B28,0),Running!$E:$E,"<="&EDATE($C28,0)) -> 1610 | H28: =SUMIFS(Running!$G:$G,Running!$A:$A,"*",Running!$E:$E,"<="&TODAY(),Running!$E:$E,">="&EDATE($B28,0),Running!$E:$E,"<="&EDATE($C28,0)) -> 15.09 | I28: =TIME(INT((SUMIFS(Running!$K:$K,Running!$E:$E,">="&EDATE($B28,0),Running!$E:$E,"<="&EDATE($C28,0),Running!$A:$A,"*",Running!$E:$E,"<="&TODAY())*60+SUMIFS(Running!$L:$L,Running!$E:$E,">="&EDATE($B28,0),Running!$E:$E,"<="&EDATE($C28,0),Running!$A:$A,"*",Running!$E:$E,"<="&TODAY()))/(60*60)),MOD(MOD(SUMIFS(Running!$K:$K,Running!$E:$E,">="&EDATE($B28,0),Running!$E:$E,"<="&EDATE($C28,0),Running!$A:$A,"*",Running!$E:$E,"<="&TODAY()),60)+INT(SUMIFS(Running!$L:$L,Running!$E:$E,">="&EDATE($B28,0),Running!$E:$E,"<="&EDATE($C28,0),Running!$A:$A,"*",Running!$E:$E,"<="&TODAY())/60),60),MOD(SUMIFS(Running!$L:$L,Running!$E:$E,">="&EDATE($B28,0),Running!$E:$E,"<="&EDATE($C28,0),Running!$A:$A,"*",Running!$E:$E,"<="&TODAY()),60))+INT(INT((SUMIFS(Running!$K:$K,Running!$E:$E,">="&EDATE($B28,0),Running!$E:$E,"<="&EDATE($C28,0),Running!$A:$A,"*",Running!$E:$E,"<="&TODAY())*60+SUMIFS(Running!$L:$L,Running!$E:$E,">="&EDATE($B28,0),Running!$E:$E,"<="&EDATE($C28,0),Running!$A:$A,"*",Running!$E:$E,"<="&TODAY()))/(60*60))/24) -> 0.08923611111 | J28: 00:08:31 | K28: 7.045 | L28: =SUMIFS(Running!$M:$M,Running!$A:$A,"*",Running!$E:$E,"<="&TODAY(),Running!$E:$E,">="&EDATE($B28,0),Running!$E:$E,"<="&EDATE($C28,0)) -> 0 | M28: =SUMIFS(Running!$N:$N,Running!$A:$A,"*",Running!$E:$E,"<="&TODAY(),Running!$E:$E,">="&EDATE($B28,0),Running!$E:$E,"<="&EDATE($C28,0)) -> 1.42 | N28: =TIME(INT((SUMIFS(Running!$R:$R,Running!$E:$E,">="&EDATE($B28,0),Running!$E:$E,"<="&EDATE($C28,0),Running!$A:$A,"*",Running!$E:$E,"<="&TODAY())*60+SUMIFS(Running!$S:$S,Running!$E:$E,">="&EDATE($B28,0),Running!$E:$E,"<="&EDATE($C28,0),Running!$A:$A,"*",Running!$E:$E,"<="&TODAY()))/(60*60)),MOD(MOD(SUMIFS(Running!$R:$R,Running!$E:$E,">="&EDATE($B28,0),Running!$E:$E,"<="&EDATE($C28,0),Running!$A:$A,"*",Running!$E:$E,"<="&TODAY()),60)+INT(SUMIFS(Running!$S:$S,Running!$E:$E,">="&EDATE($B28,0),Running!$E:$E,"<="&EDATE($C28,0),Running!$A:$A,"*",Running!$E:$E,"<="&TODAY())/60),60),MOD(SUMIFS(Running!$S:$S,Running!$E:$E,">="&EDATE($B28,0),Running!$E:$E,"<="&EDATE($C28,0),Running!$A:$A,"*",Running!$E:$E,"<="&TODAY()),60))+INT(INT((SUMIFS(Running!$R:$R,Running!$E:$E,">="&EDATE($B28,0),Running!$E:$E,"<="&EDATE($C28,0),Running!$A:$A,"*",Running!$E:$E,"<="&TODAY())*60+SUMIFS(Running!$S:$S,Running!$E:$E,">="&EDATE($B28,0),Running!$E:$E,"<="&EDATE($C28,0),Running!$A:$A,"*",Running!$E:$E,"<="&TODAY()))/(60*60))/24) -> 0.01774305556 | O28: 00:18:00 | P28: 3.334 | Q28: 1610 | R28: 16.51 | S28: 02:34:03 | T28: 00:09:20 | U28: 6.43
A29: 28 | B29: 2018-07-02 | C29: 2018-07-08 | D29: =COUNTIFS(Running!$A:$A,"*",Running!$E:$E,"<="&TODAY(),Running!$E:$E,">="&EDATE($B29,0),Running!$E:$E,"<="&EDATE($C29,0)) -> 4 | E29: =COUNTIFS(Running!$A:$A,"",Running!$G:$G,0,Running!$E:$E,"<="&TODAY(),Running!$E:$E,">="&EDATE($B29,0),Running!$E:$E,"<="&EDATE($C29,0)) -> 3 | F29: 0.571 | G29: =SUMIFS(Running!$F:$F,Running!$A:$A,"*",Running!$E:$E,"<="&TODAY(),Running!$E:$E,">="&EDATE($B29,0),Running!$E:$E,"<="&EDATE($C29,0)) -> 1797 | H29: =SUMIFS(Running!$G:$G,Running!$A:$A,"*",Running!$E:$E,"<="&TODAY(),Running!$E:$E,">="&EDATE($B29,0),Running!$E:$E,"<="&EDATE($C29,0)) -> 16.97 | I29: =TIME(INT((SUMIFS(Running!$K:$K,Running!$E:$E,">="&EDATE($B29,0),Running!$E:$E,"<="&EDATE($C29,0),Running!$A:$A,"*",Running!$E:$E,"<="&TODAY())*60+SUMIFS(Running!$L:$L,Running!$E:$E,">="&EDATE($B29,0),Running!$E:$E,"<="&EDATE($C29,0),Running!$A:$A,"*",Running!$E:$E,"<="&TODAY()))/(60*60)),MOD(MOD(SUMIFS(Running!$K:$K,Running!$E:$E,">="&EDATE($B29,0),Running!$E:$E,"<="&EDATE($C29,0),Running!$A:$A,"*",Running!$E:$E,"<="&TODAY()),60)+INT(SUMIFS(Running!$L:$L,Running!$E:$E,">="&EDATE($B29,0),Running!$E:$E,"<="&EDATE($C29,0),Running!$A:$A,"*",Running!$E:$E,"<="&TODAY())/60),60),MOD(SUMIFS(Running!$L:$L,Running!$E:$E,">="&EDATE($B29,0),Running!$E:$E,"<="&EDATE($C29,0),Running!$A:$A,"*",Running!$E:$E,"<="&TODAY()),60))+INT(INT((SUMIFS(Running!$K:$K,Running!$E:$E,">="&EDATE($B29,0),Running!$E:$E,"<="&EDATE($C29,0),Running!$A:$A,"*",Running!$E:$E,"<="&TODAY())*60+SUMIFS(Running!$L:$L,Running!$E:$E,">="&EDATE($B29,0),Running!$E:$E,"<="&EDATE($C29,0),Running!$A:$A,"*",Running!$E:$E,"<="&TODAY()))/(60*60))/24) -> 0.09827546296 | J29: 00:08:21 | K29: 7.194 | L29: =SUMIFS(Running!$M:$M,Running!$A:$A,"*",Running!$E:$E,"<="&TODAY(),Running!$E:$E,">="&EDATE($B29,0),Running!$E:$E,"<="&EDATE($C29,0)) -> 0 | M29: =SUMIFS(Running!$N:$N,Running!$A:$A,"*",Running!$E:$E,"<="&TODAY(),Running!$E:$E,">="&EDATE($B29,0),Running!$E:$E,"<="&EDATE($C29,0)) -> 1.3 | N29: =TIME(INT((SUMIFS(Running!$R:$R,Running!$E:$E,">="&EDATE($B29,0),Running!$E:$E,"<="&EDATE($C29,0),Running!$A:$A,"*",Running!$E:$E,"<="&TODAY())*60+SUMIFS(Running!$S:$S,Running!$E:$E,">="&EDATE($B29,0),Running!$E:$E,"<="&EDATE($C29,0),Running!$A:$A,"*",Running!$E:$E,"<="&TODAY()))/(60*60)),MOD(MOD(SUMIFS(Running!$R:$R,Running!$E:$E,">="&EDATE($B29,0),Running!$E:$E,"<="&EDATE($C29,0),Running!$A:$A,"*",Running!$E:$E,"<="&TODAY()),60)+INT(SUMIFS(Running!$S:$S,Running!$E:$E,">="&EDATE($B29,0),Running!$E:$E,"<="&EDATE($C29,0),Running!$A:$A,"*",Running!$E:$E,"<="&TODAY())/60),60),MOD(SUMIFS(Running!$S:$S,Running!$E:$E,">="&EDATE($B29,0),Running!$E:$E,"<="&EDATE($C29,0),Running!$A:$A,"*",Running!$E:$E,"<="&TODAY()),60))+INT(INT((SUMIFS(Running!$R:$R,Running!$E:$E,">="&EDATE($B29,0),Running!$E:$E,"<="&EDATE($C29,0),Running!$A:$A,"*",Running!$E:$E,"<="&TODAY())*60+SUMIFS(Running!$S:$S,Running!$E:$E,">="&EDATE($B29,0),Running!$E:$E,"<="&EDATE($C29,0),Running!$A:$A,"*",Running!$E:$E,"<="&TODAY()))/(60*60))/24) -> 0.01556712963 | O29: 00:17:15 | P29: 3.479 | Q29: 1797 | R29: 18.27 | S29: 02:43:56 | T29: 00:08:59 | U29: 6.686
A30: 29 | B30: 2018-07-09 | C30: 2018-07-15 | D30: =COUNTIFS(Running!$A:$A,"*",Running!$E:$E,"<="&TODAY(),Running!$E:$E,">="&EDATE($B30,0),Running!$E:$E,"<="&EDATE($C30,0)) -> 4 | E30: =COUNTIFS(Running!$A:$A,"",Running!$G:$G,0,Running!$E:$E,"<="&TODAY(),Running!$E:$E,">="&EDATE($B30,0),Running!$E:$E,"<="&EDATE($C30,0)) -> 3 | F30: 0.571 | G30: =SUMIFS(Running!$F:$F,Running!$A:$A,"*",Running!$E:$E,"<="&TODAY(),Running!$E:$E,">="&EDATE($B30,0),Running!$E:$E,"<="&EDATE($C30,0)) -> 1448 | H30: =SUMIFS(Running!$G:$G,Running!$A:$A,"*",Running!$E:$E,"<="&TODAY(),Running!$E:$E,">="&EDATE($B30,0),Running!$E:$E,"<="&EDATE($C30,0)) -> 14.08 | I30: =TIME(INT((SUMIFS(Running!$K:$K,Running!$E:$E,">="&EDATE($B30,0),Running!$E:$E,"<="&EDATE($C30,0),Running!$A:$A,"*",Running!$E:$E,"<="&TODAY())*60+SUMIFS(Running!$L:$L,Running!$E:$E,">="&EDATE($B30,0),Running!$E:$E,"<="&EDATE($C30,0),Running!$A:$A,"*",Running!$E:$E,"<="&TODAY()))/(60*60)),MOD(MOD(SUMIFS(Running!$K:$K,Running!$E:$E,">="&EDATE($B30,0),Running!$E:$E,"<="&EDATE($C30,0),Running!$A:$A,"*",Running!$E:$E,"<="&TODAY()),60)+INT(SUMIFS(Running!$L:$L,Running!$E:$E,">="&EDATE($B30,0),Running!$E:$E,"<="&EDATE($C30,0),Running!$A:$A,"*",Running!$E:$E,"<="&TODAY())/60),60),MOD(SUMIFS(Running!$L:$L,Running!$E:$E,">="&EDATE($B30,0),Running!$E:$E,"<="&EDATE($C30,0),Running!$A:$A,"*",Running!$E:$E,"<="&TODAY()),60))+INT(INT((SUMIFS(Running!$K:$K,Running!$E:$E,">="&EDATE($B30,0),Running!$E:$E,"<="&EDATE($C30,0),Running!$A:$A,"*",Running!$E:$E,"<="&TODAY())*60+SUMIFS(Running!$L:$L,Running!$E:$E,">="&EDATE($B30,0),Running!$E:$E,"<="&EDATE($C30,0),Running!$A:$A,"*",Running!$E:$E,"<="&TODAY()))/(60*60))/24) -> 0.08552083333 | J30: 00:08:45 | K30: 6.859 | L30: =SUMIFS(Running!$M:$M,Running!$A:$A,"*",Running!$E:$E,"<="&TODAY(),Running!$E:$E,">="&EDATE($B30,0),Running!$E:$E,"<="&EDATE($C30,0)) -> 0 | M30: =SUMIFS(Running!$N:$N,Running!$A:$A,"*",Running!$E:$E,"<="&TODAY(),Running!$E:$E,">="&EDATE($B30,0),Running!$E:$E,"<="&EDATE($C30,0)) -> 0.92 | N30: =TIME(INT((SUMIFS(Running!$R:$R,Running!$E:$E,">="&EDATE($B30,0),Running!$E:$E,"<="&EDATE($C30,0),Running!$A:$A,"*",Running!$E:$E,"<="&TODAY())*60+SUMIFS(Running!$S:$S,Running!$E:$E,">="&EDATE($B30,0),Running!$E:$E,"<="&EDATE($C30,0),Running!$A:$A,"*",Running!$E:$E,"<="&TODAY()))/(60*60)),MOD(MOD(SUMIFS(Running!$R:$R,Running!$E:$E,">="&EDATE($B30,0),Running!$E:$E,"<="&EDATE($C30,0),Running!$A:$A,"*",Running!$E:$E,"<="&TODAY()),60)+INT(SUMIFS(Running!$S:$S,Running!$E:$E,">="&EDATE($B30,0),Running!$E:$E,"<="&EDATE($C30,0),Running!$A:$A,"*",Running!$E:$E,"<="&TODAY())/60),60),MOD(SUMIFS(Running!$S:$S,Running!$E:$E,">="&EDATE($B30,0),Running!$E:$E,"<="&EDATE($C30,0),Running!$A:$A,"*",Running!$E:$E,"<="&TODAY()),60))+INT(INT((SUMIFS(Running!$R:$R,Running!$E:$E,">="&EDATE($B30,0),Running!$E:$E,"<="&EDATE($C30,0),Running!$A:$A,"*",Running!$E:$E,"<="&TODAY())*60+SUMIFS(Running!$S:$S,Running!$E:$E,">="&EDATE($B30,0),Running!$E:$E,"<="&EDATE($C30,0),Running!$A:$A,"*",Running!$E:$E,"<="&TODAY()))/(60*60))/24) -> 0.01164351852 | O30: 00:18:14 | P30: 3.292 | Q30: 1448 | R30: 15 | S30: 02:19:55 | T30: 00:09:20 | U30: 6.432
A31: 30 | B31: 2018-07-16 | C31: 2018-07-22 | D31: =COUNTIFS(Running!$A:$A,"*",Running!$E:$E,"<="&TODAY(),Running!$E:$E,">="&EDATE($B31,0),Running!$E:$E,"<="&EDATE($C31,0)) -> 4 | E31: =COUNTIFS(Running!$A:$A,"",Running!$G:$G,0,Running!$E:$E,"<="&TODAY(),Running!$E:$E,">="&EDATE($B31,0),Running!$E:$E,"<="&EDATE($C31,0)) -> 3 | F31: 0.571 | G31: =SUMIFS(Running!$F:$F,Running!$A:$A,"*",Running!$E:$E,"<="&TODAY(),Running!$E:$E,">="&EDATE($B31,0),Running!$E:$E,"<="&EDATE($C31,0)) -> 1858 | H31: =SUMIFS(Running!$G:$G,Running!$A:$A,"*",Running!$E:$E,"<="&TODAY(),Running!$E:$E,">="&EDATE($B31,0),Running!$E:$E,"<="&EDATE($C31,0)) -> 17.79 | I31: =TIME(INT((SUMIFS(Running!$K:$K,Running!$E:$E,">="&EDATE($B31,0),Running!$E:$E,"<="&EDATE($C31,0),Running!$A:$A,"*",Running!$E:$E,"<="&TODAY())*60+SUMIFS(Running!$L:$L,Running!$E:$E,">="&EDATE($B31,0),Running!$E:$E,"<="&EDATE($C31,0),Running!$A:$A,"*",Running!$E:$E,"<="&TODAY()))/(60*60)),MOD(MOD(SUMIFS(Running!$K:$K,Running!$E:$E,">="&EDATE($B31,0),Running!$E:$E,"<="&EDATE($C31,0),Running!$A:$A,"*",Running!$E:$E,"<="&TODAY()),60)+INT(SUMIFS(Running!$L:$L,Running!$E:$E,">="&EDATE($B31,0),Running!$E:$E,"<="&EDATE($C31,0),Running!$A:$A,"*",Running!$E:$E,"<="&TODAY())/60),60),MOD(SUMIFS(Running!$L:$L,Running!$E:$E,">="&EDATE($B31,0),Running!$E:$E,"<="&EDATE($C31,0),Running!$A:$A,"*",Running!$E:$E,"<="&TODAY()),60))+INT(INT((SUMIFS(Running!$K:$K,Running!$E:$E,">="&EDATE($B31,0),Running!$E:$E,"<="&EDATE($C31,0),Running!$A:$A,"*",Running!$E:$E,"<="&TODAY())*60+SUMIFS(Running!$L:$L,Running!$E:$E,">="&EDATE($B31,0),Running!$E:$E,"<="&EDATE($C31,0),Running!$A:$A,"*",Running!$E:$E,"<="&TODAY()))/(60*60))/24) -> 0.1086805556 | J31: 00:08:48 | K31: 6.82 | L31: =SUMIFS(Running!$M:$M,Running!$A:$A,"*",Running!$E:$E,"<="&TODAY(),Running!$E:$E,">="&EDATE($B31,0),Running!$E:$E,"<="&EDATE($C31,0)) -> 0 | M31: =SUMIFS(Running!$N:$N,Running!$A:$A,"*",Running!$E:$E,"<="&TODAY(),Running!$E:$E,">="&EDATE($B31,0),Running!$E:$E,"<="&EDATE($C31,0)) -> 1.16 | N31: =TIME(INT((SUMIFS(Running!$R:$R,Running!$E:$E,">="&EDATE($B31,0),Running!$E:$E,"<="&EDATE($C31,0),Running!$A:$A,"*",Running!$E:$E,"<="&TODAY())*60+SUMIFS(Running!$S:$S,Running!$E:$E,">="&EDATE($B31,0),Running!$E:$E,"<="&EDATE($C31,0),Running!$A:$A,"*",Running!$E:$E,"<="&TODAY()))/(60*60)),MOD(MOD(SUMIFS(Running!$R:$R,Running!$E:$E,">="&EDATE($B31,0),Running!$E:$E,"<="&EDATE($C31,0),Running!$A:$A,"*",Running!$E:$E,"<="&TODAY()),60)+INT(SUMIFS(Running!$S:$S,Running!$E:$E,">="&EDATE($B31,0),Running!$E:$E,"<="&EDATE($C31,0),Running!$A:$A,"*",Running!$E:$E,"<="&TODAY())/60),60),MOD(SUMIFS(Running!$S:$S,Running!$E:$E,">="&EDATE($B31,0),Running!$E:$E,"<="&EDATE($C31,0),Running!$A:$A,"*",Running!$E:$E,"<="&TODAY()),60))+INT(INT((SUMIFS(Running!$R:$R,Running!$E:$E,">="&EDATE($B31,0),Running!$E:$E,"<="&EDATE($C31,0),Running!$A:$A,"*",Running!$E:$E,"<="&TODAY())*60+SUMIFS(Running!$S:$S,Running!$E:$E,">="&EDATE($B31,0),Running!$E:$E,"<="&EDATE($C31,0),Running!$A:$A,"*",Running!$E:$E,"<="&TODAY()))/(60*60))/24) -> 0.01435185185 | O31: 00:17:49 | P31: 3.367 | Q31: 1858 | R31: 18.95 | S31: 02:57:10 | T31: 00:09:21 | U31: 6.417
A32: 31 | B32: 2018-07-23 | C32: 2018-07-29 | D32: =COUNTIFS(Running!$A:$A,"*",Running!$E:$E,"<="&TODAY(),Running!$E:$E,">="&EDATE($B32,0),Running!$E:$E,"<="&EDATE($C32,0)) -> 4 | E32: =COUNTIFS(Running!$A:$A,"",Running!$G:$G,0,Running!$E:$E,"<="&TODAY(),Running!$E:$E,">="&EDATE($B32,0),Running!$E:$E,"<="&EDATE($C32,0)) -> 3 | F32: 0.571 | G32: =SUMIFS(Running!$F:$F,Running!$A:$A,"*",Running!$E:$E,"<="&TODAY(),Running!$E:$E,">="&EDATE($B32,0),Running!$E:$E,"<="&EDATE($C32,0)) -> 2027 | H32: =SUMIFS(Running!$G:$G,Running!$A:$A,"*",Running!$E:$E,"<="&TODAY(),Running!$E:$E,">="&EDATE($B32,0),Running!$E:$E,"<="&EDATE($C32,0)) -> 19.63 | I32: =TIME(INT((SUMIFS(Running!$K:$K,Running!$E:$E,">="&EDATE($B32,0),Running!$E:$E,"<="&EDATE($C32,0),Running!$A:$A,"*",Running!$E:$E,"<="&TODAY())*60+SUMIFS(Running!$L:$L,Running!$E:$E,">="&EDATE($B32,0),Running!$E:$E,"<="&EDATE($C32,0),Running!$A:$A,"*",Running!$E:$E,"<="&TODAY()))/(60*60)),MOD(MOD(SUMIFS(Running!$K:$K,Running!$E:$E,">="&EDATE($B32,0),Running!$E:$E,"<="&EDATE($C32,0),Running!$A:$A,"*",Running!$E:$E,"<="&TODAY()),60)+INT(SUMIFS(Running!$L:$L,Running!$E:$E,">="&EDATE($B32,0),Running!$E:$E,"<="&EDATE($C32,0),Running!$A:$A,"*",Running!$E:$E,"<="&TODAY())/60),60),MOD(SUMIFS(Running!$L:$L,Running!$E:$E,">="&EDATE($B32,0),Running!$E:$E,"<="&EDATE($C32,0),Running!$A:$A,"*",Running!$E:$E,"<="&TODAY()),60))+INT(INT((SUMIFS(Running!$K:$K,Running!$E:$E,">="&EDATE($B32,0),Running!$E:$E,"<="&EDATE($C32,0),Running!$A:$A,"*",Running!$E:$E,"<="&TODAY())*60+SUMIFS(Running!$L:$L,Running!$E:$E,">="&EDATE($B32,0),Running!$E:$E,"<="&EDATE($C32,0),Running!$A:$A,"*",Running!$E:$E,"<="&TODAY()))/(60*60))/24) -> 0.1194444444 | J32: 00:08:46 | K32: 6.847 | L32: =SUMIFS(Running!$M:$M,Running!$A:$A,"*",Running!$E:$E,"<="&TODAY(),Running!$E:$E,">="&EDATE($B32,0),Running!$E:$E,"<="&EDATE($C32,0)) -> 0 | M32: =SUMIFS(Running!$N:$N,Running!$A:$A,"*",Running!$E:$E,"<="&TODAY(),Running!$E:$E,">="&EDATE($B32,0),Running!$E:$E,"<="&EDATE($C32,0)) -> 0.95 | N32: =TIME(INT((SUMIFS(Running!$R:$R,Running!$E:$E,">="&EDATE($B32,0),Running!$E:$E,"<="&EDATE($C32,0),Running!$A:$A,"*",Running!$E:$E,"<="&TODAY())*60+SUMIFS(Running!$S:$S,Running!$E:$E,">="&EDATE($B32,0),Running!$E:$E,"<="&EDATE($C32,0),Running!$A:$A,"*",Running!$E:$E,"<="&TODAY()))/(60*60)),MOD(MOD(SUMIFS(Running!$R:$R,Running!$E:$E,">="&EDATE($B32,0),Running!$E:$E,"<="&EDATE($C32,0),Running!$A:$A,"*",Running!$E:$E,"<="&TODAY()),60)+INT(SUMIFS(Running!$S:$S,Running!$E:$E,">="&EDATE($B32,0),Running!$E:$E,"<="&EDATE($C32,0),Running!$A:$A,"*",Running!$E:$E,"<="&TODAY())/60),60),MOD(SUMIFS(Running!$S:$S,Running!$E:$E,">="&EDATE($B32,0),Running!$E:$E,"<="&EDATE($C32,0),Running!$A:$A,"*",Running!$E:$E,"<="&TODAY()),60))+INT(INT((SUMIFS(Running!$R:$R,Running!$E:$E,">="&EDATE($B32,0),Running!$E:$E,"<="&EDATE($C32,0),Running!$A:$A,"*",Running!$E:$E,"<="&TODAY())*60+SUMIFS(Running!$S:$S,Running!$E:$E,">="&EDATE($B32,0),Running!$E:$E,"<="&EDATE($C32,0),Running!$A:$A,"*",Running!$E:$E,"<="&TODAY()))/(60*60))/24) -> 0.01221064815 | O32: 00:18:31 | P32: 3.241 | Q32: 2027 | R32: 20.58 | S32: 03:09:35 | T32: 00:09:13 | U32: 6.513
A33: 32 | B33: 2018-07-30 | C33: 2018-08-05 | D33: =COUNTIFS(Running!$A:$A,"*",Running!$E:$E,"<="&TODAY(),Running!$E:$E,">="&EDATE($B33,0),Running!$E:$E,"<="&EDATE($C33,0)) -> 2 | E33: =COUNTIFS(Running!$A:$A,"",Running!$G:$G,0,Running!$E:$E,"<="&TODAY(),Running!$E:$E,">="&EDATE($B33,0),Running!$E:$E,"<="&EDATE($C33,0)) -> 5 | F33: 0.285 | G33: =SUMIFS(Running!$F:$F,Running!$A:$A,"*",Running!$E:$E,"<="&TODAY(),Running!$E:$E,">="&EDATE($B33,0),Running!$E:$E,"<="&EDATE($C33,0)) -> 960 | H33: =SUMIFS(Running!$G:$G,Running!$A:$A,"*",Running!$E:$E,"<="&TODAY(),Running!$E:$E,">="&EDATE($B33,0),Running!$E:$E,"<="&EDATE($C33,0)) -> 9.24 | I33: =TIME(INT((SUMIFS(Running!$K:$K,Running!$E:$E,">="&EDATE($B33,0),Running!$E:$E,"<="&EDATE($C33,0),Running!$A:$A,"*",Running!$E:$E,"<="&TODAY())*60+SUMIFS(Running!$L:$L,Running!$E:$E,">="&EDATE($B33,0),Running!$E:$E,"<="&EDATE($C33,0),Running!$A:$A,"*",Running!$E:$E,"<="&TODAY()))/(60*60)),MOD(MOD(SUMIFS(Running!$K:$K,Running!$E:$E,">="&EDATE($B33,0),Running!$E:$E,"<="&EDATE($C33,0),Running!$A:$A,"*",Running!$E:$E,"<="&TODAY()),60)+INT(SUMIFS(Running!$L:$L,Running!$E:$E,">="&EDATE($B33,0),Running!$E:$E,"<="&EDATE($C33,0),Running!$A:$A,"*",Running!$E:$E,"<="&TODAY())/60),60),MOD(SUMIFS(Running!$L:$L,Running!$E:$E,">="&EDATE($B33,0),Running!$E:$E,"<="&EDATE($C33,0),Running!$A:$A,"*",Running!$E:$E,"<="&TODAY()),60))+INT(INT((SUMIFS(Running!$K:$K,Running!$E:$E,">="&EDATE($B33,0),Running!$E:$E,"<="&EDATE($C33,0),Running!$A:$A,"*",Running!$E:$E,"<="&TODAY())*60+SUMIFS(Running!$L:$L,Running!$E:$E,">="&EDATE($B33,0),Running!$E:$E,"<="&EDATE($C33,0),Running!$A:$A,"*",Running!$E:$E,"<="&TODAY()))/(60*60))/24) -> 0.05625 | J33: 00:08:46 | K33: 6.844 | L33: =SUMIFS(Running!$M:$M,Running!$A:$A,"*",Running!$E:$E,"<="&TODAY(),Running!$E:$E,">="&EDATE($B33,0),Running!$E:$E,"<="&EDATE($C33,0)) -> 0 | M33: =SUMIFS(Running!$N:$N,Running!$A:$A,"*",Running!$E:$E,"<="&TODAY(),Running!$E:$E,">="&EDATE($B33,0),Running!$E:$E,"<="&EDATE($C33,0)) -> 0.53 | N33: =TIME(INT((SUMIFS(Running!$R:$R,Running!$E:$E,">="&EDATE($B33,0),Running!$E:$E,"<="&EDATE($C33,0),Running!$A:$A,"*",Running!$E:$E,"<="&TODAY())*60+SUMIFS(Running!$S:$S,Running!$E:$E,">="&EDATE($B33,0),Running!$E:$E,"<="&EDATE($C33,0),Running!$A:$A,"*",Running!$E:$E,"<="&TODAY()))/(60*60)),MOD(MOD(SUMIFS(Running!$R:$R,Running!$E:$E,">="&EDATE($B33,0),Running!$E:$E,"<="&EDATE($C33,0),Running!$A:$A,"*",Running!$E:$E,"<="&TODAY()),60)+INT(SUMIFS(Running!$S:$S,Running!$E:$E,">="&EDATE($B33,0),Running!$E:$E,"<="&EDATE($C33,0),Running!$A:$A,"*",Running!$E:$E,"<="&TODAY())/60),60),MOD(SUMIFS(Running!$S:$S,Running!$E:$E,">="&EDATE($B33,0),Running!$E:$E,"<="&EDATE($C33,0),Running!$A:$A,"*",Running!$E:$E,"<="&TODAY()),60))+INT(INT((SUMIFS(Running!$R:$R,Running!$E:$E,">="&EDATE($B33,0),Running!$E:$E,"<="&EDATE($C33,0),Running!$A:$A,"*",Running!$E:$E,"<="&TODAY())*60+SUMIFS(Running!$S:$S,Running!$E:$E,">="&EDATE($B33,0),Running!$E:$E,"<="&EDATE($C33,0),Running!$A:$A,"*",Running!$E:$E,"<="&TODAY()))/(60*60))/24) -> 0.006597222222 | O33: 00:17:56 | P33: 3.347 | Q33: 960 | R33: 9.77 | S33: 01:30:30 | T33: 00:09:16 | U33: 6.477
A34: 33 | B34: 2018-08-06 | C34: 2018-08-12 | D34: =COUNTIFS(Running!$A:$A,"*",Running!$E:$E,"<="&TODAY(),Running!$E:$E,">="&EDATE($B34,0),Running!$E:$E,"<="&EDATE($C34,0)) -> 4 | E34: =COUNTIFS(Running!$A:$A,"",Running!$G:$G,0,Running!$E:$E,"<="&TODAY(),Running!$E:$E,">="&EDATE($B34,0),Running!$E:$E,"<="&EDATE($C34,0)) -> 3 | F34: 0.571 | G34: =SUMIFS(Running!$F:$F,Running!$A:$A,"*",Running!$E:$E,"<="&TODAY(),Running!$E:$E,">="&EDATE($B34,0),Running!$E:$E,"<="&EDATE($C34,0)) -> 1591 | H34: =SUMIFS(Running!$G:$G,Running!$A:$A,"*",Running!$E:$E,"<="&TODAY(),Running!$E:$E,">="&EDATE($B34,0),Running!$E:$E,"<="&EDATE($C34,0)) -> 15.44 | I34: =TIME(INT((SUMIFS(Running!$K:$K,Running!$E:$E,">="&EDATE($B34,0),Running!$E:$E,"<="&EDATE($C34,0),Running!$A:$A,"*",Running!$E:$E,"<="&TODAY())*60+SUMIFS(Running!$L:$L,Running!$E:$E,">="&EDATE($B34,0),Running!$E:$E,"<="&EDATE($C34,0),Running!$A:$A,"*",Running!$E:$E,"<="&TODAY()))/(60*60)),MOD(MOD(SUMIFS(Running!$K:$K,Running!$E:$E,">="&EDATE($B34,0),Running!$E:$E,"<="&EDATE($C34,0),Running!$A:$A,"*",Running!$E:$E,"<="&TODAY()),60)+INT(SUMIFS(Running!$L:$L,Running!$E:$E,">="&EDATE($B34,0),Running!$E:$E,"<="&EDATE($C34,0),Running!$A:$A,"*",Running!$E:$E,"<="&TODAY())/60),60),MOD(SUMIFS(Running!$L:$L,Running!$E:$E,">="&EDATE($B34,0),Running!$E:$E,"<="&EDATE($C34,0),Running!$A:$A,"*",Running!$E:$E,"<="&TODAY()),60))+INT(INT((SUMIFS(Running!$K:$K,Running!$E:$E,">="&EDATE($B34,0),Running!$E:$E,"<="&EDATE($C34,0),Running!$A:$A,"*",Running!$E:$E,"<="&TODAY())*60+SUMIFS(Running!$L:$L,Running!$E:$E,">="&EDATE($B34,0),Running!$E:$E,"<="&EDATE($C34,0),Running!$A:$A,"*",Running!$E:$E,"<="&TODAY()))/(60*60))/24) -> 0.096875 | J34: 00:09:03 | K34: 6.64 | L34: =SUMIFS(Running!$M:$M,Running!$A:$A,"*",Running!$E:$E,"<="&TODAY(),Running!$E:$E,">="&EDATE($B34,0),Running!$E:$E,"<="&EDATE($C34,0)) -> 0 | M34: =SUMIFS(Running!$N:$N,Running!$A:$A,"*",Running!$E:$E,"<="&TODAY(),Running!$E:$E,">="&EDATE($B34,0),Running!$E:$E,"<="&EDATE($C34,0)) -> 0.75 | N34: =TIME(INT((SUMIFS(Running!$R:$R,Running!$E:$E,">="&EDATE($B34,0),Running!$E:$E,"<="&EDATE($C34,0),Running!$A:$A,"*",Running!$E:$E,"<="&TODAY())*60+SUMIFS(Running!$S:$S,Running!$E:$E,">="&EDATE($B34,0),Running!$E:$E,"<="&EDATE($C34,0),Running!$A:$A,"*",Running!$E:$E,"<="&TODAY()))/(60*60)),MOD(MOD(SUMIFS(Running!$R:$R,Running!$E:$E,">="&EDATE($B34,0),Running!$E:$E,"<="&EDATE($C34,0),Running!$A:$A,"*",Running!$E:$E,"<="&TODAY()),60)+INT(SUMIFS(Running!$S:$S,Running!$E:$E,">="&EDATE($B34,0),Running!$E:$E,"<="&EDATE($C34,0),Running!$A:$A,"*",Running!$E:$E,"<="&TODAY())/60),60),MOD(SUMIFS(Running!$S:$S,Running!$E:$E,">="&EDATE($B34,0),Running!$E:$E,"<="&EDATE($C34,0),Running!$A:$A,"*",Running!$E:$E,"<="&TODAY()),60))+INT(INT((SUMIFS(Running!$R:$R,Running!$E:$E,">="&EDATE($B34,0),Running!$E:$E,"<="&EDATE($C34,0),Running!$A:$A,"*",Running!$E:$E,"<="&TODAY())*60+SUMIFS(Running!$S:$S,Running!$E:$E,">="&EDATE($B34,0),Running!$E:$E,"<="&EDATE($C34,0),Running!$A:$A,"*",Running!$E:$E,"<="&TODAY()))/(60*60))/24) -> 0.009375 | O34: 00:18:00 | P34: 3.333 | Q34: 1591 | R34: 16.19 | S34: 02:33:00 | T34: 00:09:28 | U34: 6.349
A35: 34 | B35: 2018-08-13 | C35: 2018-08-19 | D35: =COUNTIFS(Running!$A:$A,"*",Running!$E:$E,"<="&TODAY(),Running!$E:$E,">="&EDATE($B35,0),Running!$E:$E,"<="&EDATE($C35,0)) -> 4 | E35: =COUNTIFS(Running!$A:$A,"",Running!$G:$G,0,Running!$E:$E,"<="&TODAY(),Running!$E:$E,">="&EDATE($B35,0),Running!$E:$E,"<="&EDATE($C35,0)) -> 3 | F35: 0.571 | G35: =SUMIFS(Running!$F:$F,Running!$A:$A,"*",Running!$E:$E,"<="&TODAY(),Running!$E:$E,">="&EDATE($B35,0),Running!$E:$E,"<="&EDATE($C35,0)) -> 1446 | H35: =SUMIFS(Running!$G:$G,Running!$A:$A,"*",Running!$E:$E,"<="&TODAY(),Running!$E:$E,">="&EDATE($B35,0),Running!$E:$E,"<="&EDATE($C35,0)) -> 13.83 | I35: =TIME(INT((SUMIFS(Running!$K:$K,Running!$E:$E,">="&EDATE($B35,0),Running!$E:$E,"<="&EDATE($C35,0),Running!$A:$A,"*",Running!$E:$E,"<="&TODAY())*60+SUMIFS(Running!$L:$L,Running!$E:$E,">="&EDATE($B35,0),Running!$E:$E,"<="&EDATE($C35,0),Running!$A:$A,"*",Running!$E:$E,"<="&TODAY()))/(60*60)),MOD(MOD(SUMIFS(Running!$K:$K,Running!$E:$E,">="&EDATE($B35,0),Running!$E:$E,"<="&EDATE($C35,0),Running!$A:$A,"*",Running!$E:$E,"<="&TODAY()),60)+INT(SUMIFS(Running!$L:$L,Running!$E:$E,">="&EDATE($B35,0),Running!$E:$E,"<="&EDATE($C35,0),Running!$A:$A,"*",Running!$E:$E,"<="&TODAY())/60),60),MOD(SUMIFS(Running!$L:$L,Running!$E:$E,">="&EDATE($B35,0),Running!$E:$E,"<="&EDATE($C35,0),Running!$A:$A,"*",Running!$E:$E,"<="&TODAY()),60))+INT(INT((SUMIFS(Running!$K:$K,Running!$E:$E,">="&EDATE($B35,0),Running!$E:$E,"<="&EDATE($C35,0),Running!$A:$A,"*",Running!$E:$E,"<="&TODAY())*60+SUMIFS(Running!$L:$L,Running!$E:$E,">="&EDATE($B35,0),Running!$E:$E,"<="&EDATE($C35,0),Running!$A:$A,"*",Running!$E:$E,"<="&TODAY()))/(60*60))/24) -> 0.08263888889 | J35: 00:08:37 | K35: 6.973 | L35: =SUMIFS(Running!$M:$M,Running!$A:$A,"*",Running!$E:$E,"<="&TODAY(),Running!$E:$E,">="&EDATE($B35,0),Running!$E:$E,"<="&EDATE($C35,0)) -> 0 | M35: =SUMIFS(Running!$N:$N,Running!$A:$A,"*",Running!$E:$E,"<="&TODAY(),Running!$E:$E,">="&EDATE($B35,0),Running!$E:$E,"<="&EDATE($C35,0)) -> 0.86 | N35: =TIME(INT((SUMIFS(Running!$R:$R,Running!$E:$E,">="&EDATE($B35,0),Running!$E:$E,"<="&EDATE($C35,0),Running!$A:$A,"*",Running!$E:$E,"<="&TODAY())*60+SUMIFS(Running!$S:$S,Running!$E:$E,">="&EDATE($B35,0),Running!$E:$E,"<="&EDATE($C35,0),Running!$A:$A,"*",Running!$E:$E,"<="&TODAY()))/(60*60)),MOD(MOD(SUMIFS(Running!$R:$R,Running!$E:$E,">="&EDATE($B35,0),Running!$E:$E,"<="&EDATE($C35,0),Running!$A:$A,"*",Running!$E:$E,"<="&TODAY()),60)+INT(SUMIFS(Running!$S:$S,Running!$E:$E,">="&EDATE($B35,0),Running!$E:$E,"<="&EDATE($C35,0),Running!$A:$A,"*",Running!$E:$E,"<="&TODAY())/60),60),MOD(SUMIFS(Running!$S:$S,Running!$E:$E,">="&EDATE($B35,0),Running!$E:$E,"<="&EDATE($C35,0),Running!$A:$A,"*",Running!$E:$E,"<="&TODAY()),60))+INT(INT((SUMIFS(Running!$R:$R,Running!$E:$E,">="&EDATE($B35,0),Running!$E:$E,"<="&EDATE($C35,0),Running!$A:$A,"*",Running!$E:$E,"<="&TODAY())*60+SUMIFS(Running!$S:$S,Running!$E:$E,">="&EDATE($B35,0),Running!$E:$E,"<="&EDATE($C35,0),Running!$A:$A,"*",Running!$E:$E,"<="&TODAY()))/(60*60))/24) -> 0.01111111111 | O35: 00:18:37 | P35: 3.225 | Q35: 1446 | R35: 14.69 | S35: 02:15:00 | T35: 00:09:12 | U35: 6.528
A36: 35 | B36: 2018-08-20 | C36: 2018-08-26 | D36: =COUNTIFS(Running!$A:$A,"*",Running!$E:$E,"<="&TODAY(),Running!$E:$E,">="&EDATE($B36,0),Running!$E:$E,"<="&EDATE($C36,0)) -> 5 | E36: =COUNTIFS(Running!$A:$A,"",Running!$G:$G,0,Running!$E:$E,"<="&TODAY(),Running!$E:$E,">="&EDATE($B36,0),Running!$E:$E,"<="&EDATE($C36,0)) -> 2 | F36: 0.714 | G36: =SUMIFS(Running!$F:$F,Running!$A:$A,"*",Running!$E:$E,"<="&TODAY(),Running!$E:$E,">="&EDATE($B36,0),Running!$E:$E,"<="&EDATE($C36,0)) -> 2107 | H36: =SUMIFS(Running!$G:$G,Running!$A:$A,"*",Running!$E:$E,"<="&TODAY(),Running!$E:$E,">="&EDATE($B36,0),Running!$E:$E,"<="&EDATE($C36,0)) -> 18.95 | I36: =TIME(INT((SUMIFS(Running!$K:$K,Running!$E:$E,">="&EDATE($B36,0),Running!$E:$E,"<="&EDATE($C36,0),Running!$A:$A,"*",Running!$E:$E,"<="&TODAY())*60+SUMIFS(Running!$L:$L,Running!$E:$E,">="&EDATE($B36,0),Running!$E:$E,"<="&EDATE($C36,0),Running!$A:$A,"*",Running!$E:$E,"<="&TODAY()))/(60*60)),MOD(MOD(SUMIFS(Running!$K:$K,Running!$E:$E,">="&EDATE($B36,0),Running!$E:$E,"<="&EDATE($C36,0),Running!$A:$A,"*",Running!$E:$E,"<="&TODAY()),60)+INT(SUMIFS(Running!$L:$L,Running!$E:$E,">="&EDATE($B36,0),Running!$E:$E,"<="&EDATE($C36,0),Running!$A:$A,"*",Running!$E:$E,"<="&TODAY())/60),60),MOD(SUMIFS(Running!$L:$L,Running!$E:$E,">="&EDATE($B36,0),Running!$E:$E,"<="&EDATE($C36,0),Running!$A:$A,"*",Running!$E:$E,"<="&TODAY()),60))+INT(INT((SUMIFS(Running!$K:$K,Running!$E:$E,">="&EDATE($B36,0),Running!$E:$E,"<="&EDATE($C36,0),Running!$A:$A,"*",Running!$E:$E,"<="&TODAY())*60+SUMIFS(Running!$L:$L,Running!$E:$E,">="&EDATE($B36,0),Running!$E:$E,"<="&EDATE($C36,0),Running!$A:$A,"*",Running!$E:$E,"<="&TODAY()))/(60*60))/24) -> 0.1142361111 | J36: 00:08:41 | K36: 6.911 | L36: =SUMIFS(Running!$M:$M,Running!$A:$A,"*",Running!$E:$E,"<="&TODAY(),Running!$E:$E,">="&EDATE($B36,0),Running!$E:$E,"<="&EDATE($C36,0)) -> 42 | M36: =SUMIFS(Running!$N:$N,Running!$A:$A,"*",Running!$E:$E,"<="&TODAY(),Running!$E:$E,">="&EDATE($B36,0),Running!$E:$E,"<="&EDATE($C36,0)) -> 1.94 | N36: =TIME(INT((SUMIFS(Running!$R:$R,Running!$E:$E,">="&EDATE($B36,0),Running!$E:$E,"<="&EDATE($C36,0),Running!$A:$A,"*",Running!$E:$E,"<="&TODAY())*60+SUMIFS(Running!$S:$S,Running!$E:$E,">="&EDATE($B36,0),Running!$E:$E,"<="&EDATE($C36,0),Running!$A:$A,"*",Running!$E:$E,"<="&TODAY()))/(60*60)),MOD(MOD(SUMIFS(Running!$R:$R,Running!$E:$E,">="&EDATE($B36,0),Running!$E:$E,"<="&EDATE($C36,0),Running!$A:$A,"*",Running!$E:$E,"<="&TODAY()),60)+INT(SUMIFS(Running!$S:$S,Running!$E:$E,">="&EDATE($B36,0),Running!$E:$E,"<="&EDATE($C36,0),Running!$A:$A,"*",Running!$E:$E,"<="&TODAY())/60),60),MOD(SUMIFS(Running!$S:$S,Running!$E:$E,">="&EDATE($B36,0),Running!$E:$E,"<="&EDATE($C36,0),Running!$A:$A,"*",Running!$E:$E,"<="&TODAY()),60))+INT(INT((SUMIFS(Running!$R:$R,Running!$E:$E,">="&EDATE($B36,0),Running!$E:$E,"<="&EDATE($C36,0),Running!$A:$A,"*",Running!$E:$E,"<="&TODAY())*60+SUMIFS(Running!$S:$S,Running!$E:$E,">="&EDATE($B36,0),Running!$E:$E,"<="&EDATE($C36,0),Running!$A:$A,"*",Running!$E:$E,"<="&TODAY()))/(60*60))/24) -> 0.02436342593 | O36: 00:18:06 | P36: 3.317 | Q36: 2149 | R36: 20.89 | S36: 03:19:35 | T36: 00:09:34 | U36: 6.28
A37: 36 | B37: 2018-08-27 | C37: 2018-09-02 | D37: =COUNTIFS(Running!$A:$A,"*",Running!$E:$E,"<="&TODAY(),Running!$E:$E,">="&EDATE($B37,0),Running!$E:$E,"<="&EDATE($C37,0)) -> 5 | E37: =COUNTIFS(Running!$A:$A,"",Running!$G:$G,0,Running!$E:$E,"<="&TODAY(),Running!$E:$E,">="&EDATE($B37,0),Running!$E:$E,"<="&EDATE($C37,0)) -> 2 | F37: 0.714 | G37: =SUMIFS(Running!$F:$F,Running!$A:$A,"*",Running!$E:$E,"<="&TODAY(),Running!$E:$E,">="&EDATE($B37,0),Running!$E:$E,"<="&EDATE($C37,0)) -> 2483 | H37: =SUMIFS(Running!$G:$G,Running!$A:$A,"*",Running!$E:$E,"<="&TODAY(),Running!$E:$E,">="&EDATE($B37,0),Running!$E:$E,"<="&EDATE($C37,0)) -> 20.8 | I37: =TIME(INT((SUMIFS(Running!$K:$K,Running!$E:$E,">="&EDATE($B37,0),Running!$E:$E,"<="&EDATE($C37,0),Running!$A:$A,"*",Running!$E:$E,"<="&TODAY())*60+SUMIFS(Running!$L:$L,Running!$E:$E,">="&EDATE($B37,0),Running!$E:$E,"<="&EDATE($C37,0),Running!$A:$A,"*",Running!$E:$E,"<="&TODAY()))/(60*60)),MOD(MOD(SUMIFS(Running!$K:$K,Running!$E:$E,">="&EDATE($B37,0),Running!$E:$E,"<="&EDATE($C37,0),Running!$A:$A,"*",Running!$E:$E,"<="&TODAY()),60)+INT(SUMIFS(Running!$L:$L,Running!$E:$E,">="&EDATE($B37,0),Running!$E:$E,"<="&EDATE($C37,0),Running!$A:$A,"*",Running!$E:$E,"<="&TODAY())/60),60),MOD(SUMIFS(Running!$L:$L,Running!$E:$E,">="&EDATE($B37,0),Running!$E:$E,"<="&EDATE($C37,0),Running!$A:$A,"*",Running!$E:$E,"<="&TODAY()),60))+INT(INT((SUMIFS(Running!$K:$K,Running!$E:$E,">="&EDATE($B37,0),Running!$E:$E,"<="&EDATE($C37,0),Running!$A:$A,"*",Running!$E:$E,"<="&TODAY())*60+SUMIFS(Running!$L:$L,Running!$E:$E,">="&EDATE($B37,0),Running!$E:$E,"<="&EDATE($C37,0),Running!$A:$A,"*",Running!$E:$E,"<="&TODAY()))/(60*60))/24) -> 0.1180555556 | J37: 00:08:11 | K37: 7.341 | L37: =SUMIFS(Running!$M:$M,Running!$A:$A,"*",Running!$E:$E,"<="&TODAY(),Running!$E:$E,">="&EDATE($B37,0),Running!$E:$E,"<="&EDATE($C37,0)) -> 120 | M37: =SUMIFS(Running!$N:$N,Running!$A:$A,"*",Running!$E:$E,"<="&TODAY(),Running!$E:$E,">="&EDATE($B37,0),Running!$E:$E,"<="&EDATE($C37,0)) -> 1.67 | N37: =TIME(INT((SUMIFS(Running!$R:$R,Running!$E:$E,">="&EDATE($B37,0),Running!$E:$E,"<="&EDATE($C37,0),Running!$A:$A,"*",Running!$E:$E,"<="&TODAY())*60+SUMIFS(Running!$S:$S,Running!$E:$E,">="&EDATE($B37,0),Running!$E:$E,"<="&EDATE($C37,0),Running!$A:$A,"*",Running!$E:$E,"<="&TODAY()))/(60*60)),MOD(MOD(SUMIFS(Running!$R:$R,Running!$E:$E,">="&EDATE($B37,0),Running!$E:$E,"<="&EDATE($C37,0),Running!$A:$A,"*",Running!$E:$E,"<="&TODAY()),60)+INT(SUMIFS(Running!$S:$S,Running!$E:$E,">="&EDATE($B37,0),Running!$E:$E,"<="&EDATE($C37,0),Running!$A:$A,"*",Running!$E:$E,"<="&TODAY())/60),60),MOD(SUMIFS(Running!$S:$S,Running!$E:$E,">="&EDATE($B37,0),Running!$E:$E,"<="&EDATE($C37,0),Running!$A:$A,"*",Running!$E:$E,"<="&TODAY()),60))+INT(INT((SUMIFS(Running!$R:$R,Running!$E:$E,">="&EDATE($B37,0),Running!$E:$E,"<="&EDATE($C37,0),Running!$A:$A,"*",Running!$E:$E,"<="&TODAY())*60+SUMIFS(Running!$S:$S,Running!$E:$E,">="&EDATE($B37,0),Running!$E:$E,"<="&EDATE($C37,0),Running!$A:$A,"*",Running!$E:$E,"<="&TODAY()))/(60*60))/24) -> 0.01736111111 | O37: 00:14:59 | P37: 4.008 | Q37: 2603 | R37: 22.47 | S37: 03:15:00 | T37: 00:08:41 | U37: 6.913
A38: 37 | B38: 2018-09-03 | C38: 2018-09-09 | D38: =COUNTIFS(Running!$A:$A,"*",Running!$E:$E,"<="&TODAY(),Running!$E:$E,">="&EDATE($B38,0),Running!$E:$E,"<="&EDATE($C38,0)) -> 6 | E38: =COUNTIFS(Running!$A:$A,"",Running!$G:$G,0,Running!$E:$E,"<="&TODAY(),Running!$E:$E,">="&EDATE($B38,0),Running!$E:$E,"<="&EDATE($C38,0)) -> 1 | F38: 0.857 | G38: =SUMIFS(Running!$F:$F,Running!$A:$A,"*",Running!$E:$E,"<="&TODAY(),Running!$E:$E,">="&EDATE($B38,0),Running!$E:$E,"<="&EDATE($C38,0)) -> 2577 | H38: =SUMIFS(Running!$G:$G,Running!$A:$A,"*",Running!$E:$E,"<="&TODAY(),Running!$E:$E,">="&EDATE($B38,0),Running!$E:$E,"<="&EDATE($C38,0)) -> 21.2 | I38: =TIME(INT((SUMIFS(Running!$K:$K,Running!$E:$E,">="&EDATE($B38,0),Running!$E:$E,"<="&EDATE($C38,0),Running!$A:$A,"*",Running!$E:$E,"<="&TODAY())*60+SUMIFS(Running!$L:$L,Running!$E:$E,">="&EDATE($B38,0),Running!$E:$E,"<="&EDATE($C38,0),Running!$A:$A,"*",Running!$E:$E,"<="&TODAY()))/(60*60)),MOD(MOD(SUMIFS(Running!$K:$K,Running!$E:$E,">="&EDATE($B38,0),Running!$E:$E,"<="&EDATE($C38,0),Running!$A:$A,"*",Running!$E:$E,"<="&TODAY()),60)+INT(SUMIFS(Running!$L:$L,Running!$E:$E,">="&EDATE($B38,0),Running!$E:$E,"<="&EDATE($C38,0),Running!$A:$A,"*",Running!$E:$E,"<="&TODAY())/60),60),MOD(SUMIFS(Running!$L:$L,Running!$E:$E,">="&EDATE($B38,0),Running!$E:$E,"<="&EDATE($C38,0),Running!$A:$A,"*",Running!$E:$E,"<="&TODAY()),60))+INT(INT((SUMIFS(Running!$K:$K,Running!$E:$E,">="&EDATE($B38,0),Running!$E:$E,"<="&EDATE($C38,0),Running!$A:$A,"*",Running!$E:$E,"<="&TODAY())*60+SUMIFS(Running!$L:$L,Running!$E:$E,">="&EDATE($B38,0),Running!$E:$E,"<="&EDATE($C38,0),Running!$A:$A,"*",Running!$E:$E,"<="&TODAY()))/(60*60))/24) -> 0.1236111111 | J38: 00:08:24 | K38: 7.146 | L38: =SUMIFS(Running!$M:$M,Running!$A:$A,"*",Running!$E:$E,"<="&TODAY(),Running!$E:$E,">="&EDATE($B38,0),Running!$E:$E,"<="&EDATE($C38,0)) -> 140 | M38: =SUMIFS(Running!$N:$N,Running!$A:$A,"*",Running!$E:$E,"<="&TODAY(),Running!$E:$E,">="&EDATE($B38,0),Running!$E:$E,"<="&EDATE($C38,0)) -> 1.92 | N38: =TIME(INT((SUMIFS(Running!$R:$R,Running!$E:$E,">="&EDATE($B38,0),Running!$E:$E,"<="&EDATE($C38,0),Running!$A:$A,"*",Running!$E:$E,"<="&TODAY())*60+SUMIFS(Running!$S:$S,Running!$E:$E,">="&EDATE($B38,0),Running!$E:$E,"<="&EDATE($C38,0),Running!$A:$A,"*",Running!$E:$E,"<="&TODAY()))/(60*60)),MOD(MOD(SUMIFS(Running!$R:$R,Running!$E:$E,">="&EDATE($B38,0),Running!$E:$E,"<="&EDATE($C38,0),Running!$A:$A,"*",Running!$E:$E,"<="&TODAY()),60)+INT(SUMIFS(Running!$S:$S,Running!$E:$E,">="&EDATE($B38,0),Running!$E:$E,"<="&EDATE($C38,0),Running!$A:$A,"*",Running!$E:$E,"<="&TODAY())/60),60),MOD(SUMIFS(Running!$S:$S,Running!$E:$E,">="&EDATE($B38,0),Running!$E:$E,"<="&EDATE($C38,0),Running!$A:$A,"*",Running!$E:$E,"<="&TODAY()),60))+INT(INT((SUMIFS(Running!$R:$R,Running!$E:$E,">="&EDATE($B38,0),Running!$E:$E,"<="&EDATE($C38,0),Running!$A:$A,"*",Running!$E:$E,"<="&TODAY())*60+SUMIFS(Running!$S:$S,Running!$E:$E,">="&EDATE($B38,0),Running!$E:$E,"<="&EDATE($C38,0),Running!$A:$A,"*",Running!$E:$E,"<="&TODAY()))/(60*60))/24) -> 0.01972222222 | O38: 00:14:48 | P38: 4.056 | Q38: 2717 | R38: 23.12 | S38: 03:26:24 | T38: 00:08:56 | U38: 6.72
A39: 38 | B39: 2018-09-10 | C39: 2018-09-16 | D39: =COUNTIFS(Running!$A:$A,"*",Running!$E:$E,"<="&TODAY(),Running!$E:$E,">="&EDATE($B39,0),Running!$E:$E,"<="&EDATE($C39,0)) -> 6 | E39: =COUNTIFS(Running!$A:$A,"",Running!$G:$G,0,Running!$E:$E,"<="&TODAY(),Running!$E:$E,">="&EDATE($B39,0),Running!$E:$E,"<="&EDATE($C39,0)) -> 1 | F39: 0.857 | G39: =SUMIFS(Running!$F:$F,Running!$A:$A,"*",Running!$E:$E,"<="&TODAY(),Running!$E:$E,">="&EDATE($B39,0),Running!$E:$E,"<="&EDATE($C39,0)) -> 2948 | H39: =SUMIFS(Running!$G:$G,Running!$A:$A,"*",Running!$E:$E,"<="&TODAY(),Running!$E:$E,">="&EDATE($B39,0),Running!$E:$E,"<="&EDATE($C39,0)) -> 24.76 | I39: =TIME(INT((SUMIFS(Running!$K:$K,Running!$E:$E,">="&EDATE($B39,0),Running!$E:$E,"<="&EDATE($C39,0),Running!$A:$A,"*",Running!$E:$E,"<="&TODAY())*60+SUMIFS(Running!$L:$L,Running!$E:$E,">="&EDATE($B39,0),Running!$E:$E,"<="&EDATE($C39,0),Running!$A:$A,"*",Running!$E:$E,"<="&TODAY()))/(60*60)),MOD(MOD(SUMIFS(Running!$K:$K,Running!$E:$E,">="&EDATE($B39,0),Running!$E:$E,"<="&EDATE($C39,0),Running!$A:$A,"*",Running!$E:$E,"<="&TODAY()),60)+INT(SUMIFS(Running!$L:$L,Running!$E:$E,">="&EDATE($B39,0),Running!$E:$E,"<="&EDATE($C39,0),Running!$A:$A,"*",Running!$E:$E,"<="&TODAY())/60),60),MOD(SUMIFS(Running!$L:$L,Running!$E:$E,">="&EDATE($B39,0),Running!$E:$E,"<="&EDATE($C39,0),Running!$A:$A,"*",Running!$E:$E,"<="&TODAY()),60))+INT(INT((SUMIFS(Running!$K:$K,Running!$E:$E,">="&EDATE($B39,0),Running!$E:$E,"<="&EDATE($C39,0),Running!$A:$A,"*",Running!$E:$E,"<="&TODAY())*60+SUMIFS(Running!$L:$L,Running!$E:$E,">="&EDATE($B39,0),Running!$E:$E,"<="&EDATE($C39,0),Running!$A:$A,"*",Running!$E:$E,"<="&TODAY()))/(60*60))/24) -> 0.1361111111 | J39: 00:07:55 | K39: 7.579 | L39: =SUMIFS(Running!$M:$M,Running!$A:$A,"*",Running!$E:$E,"<="&TODAY(),Running!$E:$E,">="&EDATE($B39,0),Running!$E:$E,"<="&EDATE($C39,0)) -> 146 | M39: =SUMIFS(Running!$N:$N,Running!$A:$A,"*",Running!$E:$E,"<="&TODAY(),Running!$E:$E,">="&EDATE($B39,0),Running!$E:$E,"<="&EDATE($C39,0)) -> 2.01 | N39: =TIME(INT((SUMIFS(Running!$R:$R,Running!$E:$E,">="&EDATE($B39,0),Running!$E:$E,"<="&EDATE($C39,0),Running!$A:$A,"*",Running!$E:$E,"<="&TODAY())*60+SUMIFS(Running!$S:$S,Running!$E:$E,">="&EDATE($B39,0),Running!$E:$E,"<="&EDATE($C39,0),Running!$A:$A,"*",Running!$E:$E,"<="&TODAY()))/(60*60)),MOD(MOD(SUMIFS(Running!$R:$R,Running!$E:$E,">="&EDATE($B39,0),Running!$E:$E,"<="&EDATE($C39,0),Running!$A:$A,"*",Running!$E:$E,"<="&TODAY()),60)+INT(SUMIFS(Running!$S:$S,Running!$E:$E,">="&EDATE($B39,0),Running!$E:$E,"<="&EDATE($C39,0),Running!$A:$A,"*",Running!$E:$E,"<="&TODAY())/60),60),MOD(SUMIFS(Running!$S:$S,Running!$E:$E,">="&EDATE($B39,0),Running!$E:$E,"<="&EDATE($C39,0),Running!$A:$A,"*",Running!$E:$E,"<="&TODAY()),60))+INT(INT((SUMIFS(Running!$R:$R,Running!$E:$E,">="&EDATE($B39,0),Running!$E:$E,"<="&EDATE($C39,0),Running!$A:$A,"*",Running!$E:$E,"<="&TODAY())*60+SUMIFS(Running!$S:$S,Running!$E:$E,">="&EDATE($B39,0),Running!$E:$E,"<="&EDATE($C39,0),Running!$A:$A,"*",Running!$E:$E,"<="&TODAY()))/(60*60))/24) -> 0.02083333333 | O39: 00:14:56 | P39: 4.02 | Q39: 3094 | R39: 26.77 | S39: 03:46:00 | T39: 00:08:27 | U39: 7.107
A40: 39 | B40: 2018-09-17 | C40: 2018-09-23 | D40: =COUNTIFS(Running!$A:$A,"*",Running!$E:$E,"<="&TODAY(),Running!$E:$E,">="&EDATE($B40,0),Running!$E:$E,"<="&EDATE($C40,0)) -> 6 | E40: =COUNTIFS(Running!$A:$A,"",Running!$G:$G,0,Running!$E:$E,"<="&TODAY(),Running!$E:$E,">="&EDATE($B40,0),Running!$E:$E,"<="&EDATE($C40,0)) -> 1 | F40: 0.857 | G40: =SUMIFS(Running!$F:$F,Running!$A:$A,"*",Running!$E:$E,"<="&TODAY(),Running!$E:$E,">="&EDATE($B40,0),Running!$E:$E,"<="&EDATE($C40,0)) -> 2767 | H40: =SUMIFS(Running!$G:$G,Running!$A:$A,"*",Running!$E:$E,"<="&TODAY(),Running!$E:$E,">="&EDATE($B40,0),Running!$E:$E,"<="&EDATE($C40,0)) -> 21.61 | I40: =TIME(INT((SUMIFS(Running!$K:$K,Running!$E:$E,">="&EDATE($B40,0),Running!$E:$E,"<="&EDATE($C40,0),Running!$A:$A,"*",Running!$E:$E,"<="&TODAY())*60+SUMIFS(Running!$L:$L,Running!$E:$E,">="&EDATE($B40,0),Running!$E:$E,"<="&EDATE($C40,0),Running!$A:$A,"*",Running!$E:$E,"<="&TODAY()))/(60*60)),MOD(MOD(SUMIFS(Running!$K:$K,Running!$E:$E,">="&EDATE($B40,0),Running!$E:$E,"<="&EDATE($C40,0),Running!$A:$A,"*",Running!$E:$E,"<="&TODAY()),60)+INT(SUMIFS(Running!$L:$L,Running!$E:$E,">="&EDATE($B40,0),Running!$E:$E,"<="&EDATE($C40,0),Running!$A:$A,"*",Running!$E:$E,"<="&TODAY())/60),60),MOD(SUMIFS(Running!$L:$L,Running!$E:$E,">="&EDATE($B40,0),Running!$E:$E,"<="&EDATE($C40,0),Running!$A:$A,"*",Running!$E:$E,"<="&TODAY()),60))+INT(INT((SUMIFS(Running!$K:$K,Running!$E:$E,">="&EDATE($B40,0),Running!$E:$E,"<="&EDATE($C40,0),Running!$A:$A,"*",Running!$E:$E,"<="&TODAY())*60+SUMIFS(Running!$L:$L,Running!$E:$E,">="&EDATE($B40,0),Running!$E:$E,"<="&EDATE($C40,0),Running!$A:$A,"*",Running!$E:$E,"<="&TODAY()))/(60*60))/24) -> 0.1201388889 | J40: 00:08:01 | K40: 7.494 | L40: =SUMIFS(Running!$M:$M,Running!$A:$A,"*",Running!$E:$E,"<="&TODAY(),Running!$E:$E,">="&EDATE($B40,0),Running!$E:$E,"<="&EDATE($C40,0)) -> 127 | M40: =SUMIFS(Running!$N:$N,Running!$A:$A,"*",Running!$E:$E,"<="&TODAY(),Running!$E:$E,">="&EDATE($B40,0),Running!$E:$E,"<="&EDATE($C40,0)) -> 1.75 | N40: =TIME(INT((SUMIFS(Running!$R:$R,Running!$E:$E,">="&EDATE($B40,0),Running!$E:$E,"<="&EDATE($C40,0),Running!$A:$A,"*",Running!$E:$E,"<="&TODAY())*60+SUMIFS(Running!$S:$S,Running!$E:$E,">="&EDATE($B40,0),Running!$E:$E,"<="&EDATE($C40,0),Running!$A:$A,"*",Running!$E:$E,"<="&TODAY()))/(60*60)),MOD(MOD(SUMIFS(Running!$R:$R,Running!$E:$E,">="&EDATE($B40,0),Running!$E:$E,"<="&EDATE($C40,0),Running!$A:$A,"*",Running!$E:$E,"<="&TODAY()),60)+INT(SUMIFS(Running!$S:$S,Running!$E:$E,">="&EDATE($B40,0),Running!$E:$E,"<="&EDATE($C40,0),Running!$A:$A,"*",Running!$E:$E,"<="&TODAY())/60),60),MOD(SUMIFS(Running!$S:$S,Running!$E:$E,">="&EDATE($B40,0),Running!$E:$E,"<="&EDATE($C40,0),Running!$A:$A,"*",Running!$E:$E,"<="&TODAY()),60))+INT(INT((SUMIFS(Running!$R:$R,Running!$E:$E,">="&EDATE($B40,0),Running!$E:$E,"<="&EDATE($C40,0),Running!$A:$A,"*",Running!$E:$E,"<="&TODAY())*60+SUMIFS(Running!$S:$S,Running!$E:$E,">="&EDATE($B40,0),Running!$E:$E,"<="&EDATE($C40,0),Running!$A:$A,"*",Running!$E:$E,"<="&TODAY()))/(60*60))/24) -> 0.01902777778 | O40: 00:15:40 | P40: 3.832 | Q40: 2894 | R40: 23.36 | S40: 03:20:24 | T40: 00:08:35 | U40: 6.994
A41: 40 | B41: 2018-09-24 | C41: 2018-09-30 | D41: =COUNTIFS(Running!$A:$A,"*",Running!$E:$E,"<="&TODAY(),Running!$E:$E,">="&EDATE($B41,0),Running!$E:$E,"<="&EDATE($C41,0)) -> 6 | E41: =COUNTIFS(Running!$A:$A,"",Running!$G:$G,0,Running!$E:$E,"<="&TODAY(),Running!$E:$E,">="&EDATE($B41,0),Running!$E:$E,"<="&EDATE($C41,0)) -> 1 | F41: 0.857 | G41: =SUMIFS(Running!$F:$F,Running!$A:$A,"*",Running!$E:$E,"<="&TODAY(),Running!$E:$E,">="&EDATE($B41,0),Running!$E:$E,"<="&EDATE($C41,0)) -> 2846 | H41: =SUMIFS(Running!$G:$G,Running!$A:$A,"*",Running!$E:$E,"<="&TODAY(),Running!$E:$E,">="&EDATE($B41,0),Running!$E:$E,"<="&EDATE($C41,0)) -> 23.53 | I41: =TIME(INT((SUMIFS(Running!$K:$K,Running!$E:$E,">="&EDATE($B41,0),Running!$E:$E,"<="&EDATE($C41,0),Running!$A:$A,"*",Running!$E:$E,"<="&TODAY())*60+SUMIFS(Running!$L:$L,Running!$E:$E,">="&EDATE($B41,0),Running!$E:$E,"<="&EDATE($C41,0),Running!$A:$A,"*",Running!$E:$E,"<="&TODAY()))/(60*60)),MOD(MOD(SUMIFS(Running!$K:$K,Running!$E:$E,">="&EDATE($B41,0),Running!$E:$E,"<="&EDATE($C41,0),Running!$A:$A,"*",Running!$E:$E,"<="&TODAY()),60)+INT(SUMIFS(Running!$L:$L,Running!$E:$E,">="&EDATE($B41,0),Running!$E:$E,"<="&EDATE($C41,0),Running!$A:$A,"*",Running!$E:$E,"<="&TODAY())/60),60),MOD(SUMIFS(Running!$L:$L,Running!$E:$E,">="&EDATE($B41,0),Running!$E:$E,"<="&EDATE($C41,0),Running!$A:$A,"*",Running!$E:$E,"<="&TODAY()),60))+INT(INT((SUMIFS(Running!$K:$K,Running!$E:$E,">="&EDATE($B41,0),Running!$E:$E,"<="&EDATE($C41,0),Running!$A:$A,"*",Running!$E:$E,"<="&TODAY())*60+SUMIFS(Running!$L:$L,Running!$E:$E,">="&EDATE($B41,0),Running!$E:$E,"<="&EDATE($C41,0),Running!$A:$A,"*",Running!$E:$E,"<="&TODAY()))/(60*60))/24) -> 0.1267361111 | J41: 00:07:46 | K41: 7.735 | L41: =SUMIFS(Running!$M:$M,Running!$A:$A,"*",Running!$E:$E,"<="&TODAY(),Running!$E:$E,">="&EDATE($B41,0),Running!$E:$E,"<="&EDATE($C41,0)) -> 147 | M41: =SUMIFS(Running!$N:$N,Running!$A:$A,"*",Running!$E:$E,"<="&TODAY(),Running!$E:$E,">="&EDATE($B41,0),Running!$E:$E,"<="&EDATE($C41,0)) -> 1.85 | N41: =TIME(INT((SUMIFS(Running!$R:$R,Running!$E:$E,">="&EDATE($B41,0),Running!$E:$E,"<="&EDATE($C41,0),Running!$A:$A,"*",Running!$E:$E,"<="&TODAY())*60+SUMIFS(Running!$S:$S,Running!$E:$E,">="&EDATE($B41,0),Running!$E:$E,"<="&EDATE($C41,0),Running!$A:$A,"*",Running!$E:$E,"<="&TODAY()))/(60*60)),MOD(MOD(SUMIFS(Running!$R:$R,Running!$E:$E,">="&EDATE($B41,0),Running!$E:$E,"<="&EDATE($C41,0),Running!$A:$A,"*",Running!$E:$E,"<="&TODAY()),60)+INT(SUMIFS(Running!$S:$S,Running!$E:$E,">="&EDATE($B41,0),Running!$E:$E,"<="&EDATE($C41,0),Running!$A:$A,"*",Running!$E:$E,"<="&TODAY())/60),60),MOD(SUMIFS(Running!$S:$S,Running!$E:$E,">="&EDATE($B41,0),Running!$E:$E,"<="&EDATE($C41,0),Running!$A:$A,"*",Running!$E:$E,"<="&TODAY()),60))+INT(INT((SUMIFS(Running!$R:$R,Running!$E:$E,">="&EDATE($B41,0),Running!$E:$E,"<="&EDATE($C41,0),Running!$A:$A,"*",Running!$E:$E,"<="&TODAY())*60+SUMIFS(Running!$S:$S,Running!$E:$E,">="&EDATE($B41,0),Running!$E:$E,"<="&EDATE($C41,0),Running!$A:$A,"*",Running!$E:$E,"<="&TODAY()))/(60*60))/24) -> 0.01909722222 | O41: 00:14:52 | P41: 4.036 | Q41: 2993 | R41: 25.38 | S41: 03:30:00 | T41: 00:08:17 | U41: 7.251
A42: 41 | B42: 2018-10-01 | C42: 2018-10-07 | D42: =COUNTIFS(Running!$A:$A,"*",Running!$E:$E,"<="&TODAY(),Running!$E:$E,">="&EDATE($B42,0),Running!$E:$E,"<="&EDATE($C42,0)) -> 6 | E42: =COUNTIFS(Running!$A:$A,"",Running!$G:$G,0,Running!$E:$E,"<="&TODAY(),Running!$E:$E,">="&EDATE($B42,0),Running!$E:$E,"<="&EDATE($C42,0)) -> 1 | F42: 0.857 | G42: =SUMIFS(Running!$F:$F,Running!$A:$A,"*",Running!$E:$E,"<="&TODAY(),Running!$E:$E,">="&EDATE($B42,0),Running!$E:$E,"<="&EDATE($C42,0)) -> 2850 | H42: =SUMIFS(Running!$G:$G,Running!$A:$A,"*",Running!$E:$E,"<="&TODAY(),Running!$E:$E,">="&EDATE($B42,0),Running!$E:$E,"<="&EDATE($C42,0)) -> 23.96 | I42: =TIME(INT((SUMIFS(Running!$K:$K,Running!$E:$E,">="&EDATE($B42,0),Running!$E:$E,"<="&EDATE($C42,0),Running!$A:$A,"*",Running!$E:$E,"<="&TODAY())*60+SUMIFS(Running!$L:$L,Running!$E:$E,">="&EDATE($B42,0),Running!$E:$E,"<="&EDATE($C42,0),Running!$A:$A,"*",Running!$E:$E,"<="&TODAY()))/(60*60)),MOD(MOD(SUMIFS(Running!$K:$K,Running!$E:$E,">="&EDATE($B42,0),Running!$E:$E,"<="&EDATE($C42,0),Running!$A:$A,"*",Running!$E:$E,"<="&TODAY()),60)+INT(SUMIFS(Running!$L:$L,Running!$E:$E,">="&EDATE($B42,0),Running!$E:$E,"<="&EDATE($C42,0),Running!$A:$A,"*",Running!$E:$E,"<="&TODAY())/60),60),MOD(SUMIFS(Running!$L:$L,Running!$E:$E,">="&EDATE($B42,0),Running!$E:$E,"<="&EDATE($C42,0),Running!$A:$A,"*",Running!$E:$E,"<="&TODAY()),60))+INT(INT((SUMIFS(Running!$K:$K,Running!$E:$E,">="&EDATE($B42,0),Running!$E:$E,"<="&EDATE($C42,0),Running!$A:$A,"*",Running!$E:$E,"<="&TODAY())*60+SUMIFS(Running!$L:$L,Running!$E:$E,">="&EDATE($B42,0),Running!$E:$E,"<="&EDATE($C42,0),Running!$A:$A,"*",Running!$E:$E,"<="&TODAY()))/(60*60))/24) -> 0.1298611111 | J42: 00:07:49 | K42: 7.687 | L42: =SUMIFS(Running!$M:$M,Running!$A:$A,"*",Running!$E:$E,"<="&TODAY(),Running!$E:$E,">="&EDATE($B42,0),Running!$E:$E,"<="&EDATE($C42,0)) -> 135 | M42: =SUMIFS(Running!$N:$N,Running!$A:$A,"*",Running!$E:$E,"<="&TODAY(),Running!$E:$E,">="&EDATE($B42,0),Running!$E:$E,"<="&EDATE($C42,0)) -> 1.9 | N42: =TIME(INT((SUMIFS(Running!$R:$R,Running!$E:$E,">="&EDATE($B42,0),Running!$E:$E,"<="&EDATE($C42,0),Running!$A:$A,"*",Running!$E:$E,"<="&TODAY())*60+SUMIFS(Running!$S:$S,Running!$E:$E,">="&EDATE($B42,0),Running!$E:$E,"<="&EDATE($C42,0),Running!$A:$A,"*",Running!$E:$E,"<="&TODAY()))/(60*60)),MOD(MOD(SUMIFS(Running!$R:$R,Running!$E:$E,">="&EDATE($B42,0),Running!$E:$E,"<="&EDATE($C42,0),Running!$A:$A,"*",Running!$E:$E,"<="&TODAY()),60)+INT(SUMIFS(Running!$S:$S,Running!$E:$E,">="&EDATE($B42,0),Running!$E:$E,"<="&EDATE($C42,0),Running!$A:$A,"*",Running!$E:$E,"<="&TODAY())/60),60),MOD(SUMIFS(Running!$S:$S,Running!$E:$E,">="&EDATE($B42,0),Running!$E:$E,"<="&EDATE($C42,0),Running!$A:$A,"*",Running!$E:$E,"<="&TODAY()),60))+INT(INT((SUMIFS(Running!$R:$R,Running!$E:$E,">="&EDATE($B42,0),Running!$E:$E,"<="&EDATE($C42,0),Running!$A:$A,"*",Running!$E:$E,"<="&TODAY())*60+SUMIFS(Running!$S:$S,Running!$E:$E,">="&EDATE($B42,0),Running!$E:$E,"<="&EDATE($C42,0),Running!$A:$A,"*",Running!$E:$E,"<="&TODAY()))/(60*60))/24) -> 0.01972222222 | O42: 00:14:57 | P42: 4.014 | Q42: 2985 | R42: 25.86 | S42: 03:35:24 | T42: 00:08:20 | U42: 7.203
A43: 42 | B43: 2018-10-08 | C43: 2018-10-14 | D43: =COUNTIFS(Running!$A:$A,"*",Running!$E:$E,"<="&TODAY(),Running!$E:$E,">="&EDATE($B43,0),Running!$E:$E,"<="&EDATE($C43,0)) -> 6 | E43: =COUNTIFS(Running!$A:$A,"",Running!$G:$G,0,Running!$E:$E,"<="&TODAY(),Running!$E:$E,">="&EDATE($B43,0),Running!$E:$E,"<="&EDATE($C43,0)) -> 1 | F43: 0.857 | G43: =SUMIFS(Running!$F:$F,Running!$A:$A,"*",Running!$E:$E,"<="&TODAY(),Running!$E:$E,">="&EDATE($B43,0),Running!$E:$E,"<="&EDATE($C43,0)) -> 3427 | H43: =SUMIFS(Running!$G:$G,Running!$A:$A,"*",Running!$E:$E,"<="&TODAY(),Running!$E:$E,">="&EDATE($B43,0),Running!$E:$E,"<="&EDATE($C43,0)) -> 28.7 | I43: =TIME(INT((SUMIFS(Running!$K:$K,Running!$E:$E,">="&EDATE($B43,0),Running!$E:$E,"<="&EDATE($C43,0),Running!$A:$A,"*",Running!$E:$E,"<="&TODAY())*60+SUMIFS(Running!$L:$L,Running!$E:$E,">="&EDATE($B43,0),Running!$E:$E,"<="&EDATE($C43,0),Running!$A:$A,"*",Running!$E:$E,"<="&TODAY()))/(60*60)),MOD(MOD(SUMIFS(Running!$K:$K,Running!$E:$E,">="&EDATE($B43,0),Running!$E:$E,"<="&EDATE($C43,0),Running!$A:$A,"*",Running!$E:$E,"<="&TODAY()),60)+INT(SUMIFS(Running!$L:$L,Running!$E:$E,">="&EDATE($B43,0),Running!$E:$E,"<="&EDATE($C43,0),Running!$A:$A,"*",Running!$E:$E,"<="&TODAY())/60),60),MOD(SUMIFS(Running!$L:$L,Running!$E:$E,">="&EDATE($B43,0),Running!$E:$E,"<="&EDATE($C43,0),Running!$A:$A,"*",Running!$E:$E,"<="&TODAY()),60))+INT(INT((SUMIFS(Running!$K:$K,Running!$E:$E,">="&EDATE($B43,0),Running!$E:$E,"<="&EDATE($C43,0),Running!$A:$A,"*",Running!$E:$E,"<="&TODAY())*60+SUMIFS(Running!$L:$L,Running!$E:$E,">="&EDATE($B43,0),Running!$E:$E,"<="&EDATE($C43,0),Running!$A:$A,"*",Running!$E:$E,"<="&TODAY()))/(60*60))/24) -> 0.1652777778 | J43: 00:08:18 | K43: 7.235 | L43: =SUMIFS(Running!$M:$M,Running!$A:$A,"*",Running!$E:$E,"<="&TODAY(),Running!$E:$E,">="&EDATE($B43,0),Running!$E:$E,"<="&EDATE($C43,0)) -> 128 | M43: =SUMIFS(Running!$N:$N,Running!$A:$A,"*",Running!$E:$E,"<="&TODAY(),Running!$E:$E,">="&EDATE($B43,0),Running!$E:$E,"<="&EDATE($C43,0)) -> 1.75 | N43: =TIME(INT((SUMIFS(Running!$R:$R,Running!$E:$E,">="&EDATE($B43,0),Running!$E:$E,"<="&EDATE($C43,0),Running!$A:$A,"*",Running!$E:$E,"<="&TODAY())*60+SUMIFS(Running!$S:$S,Running!$E:$E,">="&EDATE($B43,0),Running!$E:$E,"<="&EDATE($C43,0),Running!$A:$A,"*",Running!$E:$E,"<="&TODAY()))/(60*60)),MOD(MOD(SUMIFS(Running!$R:$R,Running!$E:$E,">="&EDATE($B43,0),Running!$E:$E,"<="&EDATE($C43,0),Running!$A:$A,"*",Running!$E:$E,"<="&TODAY()),60)+INT(SUMIFS(Running!$S:$S,Running!$E:$E,">="&EDATE($B43,0),Running!$E:$E,"<="&EDATE($C43,0),Running!$A:$A,"*",Running!$E:$E,"<="&TODAY())/60),60),MOD(SUMIFS(Running!$S:$S,Running!$E:$E,">="&EDATE($B43,0),Running!$E:$E,"<="&EDATE($C43,0),Running!$A:$A,"*",Running!$E:$E,"<="&TODAY()),60))+INT(INT((SUMIFS(Running!$R:$R,Running!$E:$E,">="&EDATE($B43,0),Running!$E:$E,"<="&EDATE($C43,0),Running!$A:$A,"*",Running!$E:$E,"<="&TODAY())*60+SUMIFS(Running!$S:$S,Running!$E:$E,">="&EDATE($B43,0),Running!$E:$E,"<="&EDATE($C43,0),Running!$A:$A,"*",Running!$E:$E,"<="&TODAY()))/(60*60))/24) -> 0.01842592593 | O43: 00:15:10 | P43: 3.957 | Q43: 3555 | R43: 30.45 | S43: 04:24:32 | T43: 00:08:42 | U43: 6.906
A44: 43 | B44: 2018-10-15 | C44: 2018-10-21 | D44: =COUNTIFS(Running!$A:$A,"*",Running!$E:$E,"<="&TODAY(),Running!$E:$E,">="&EDATE($B44,0),Running!$E:$E,"<="&EDATE($C44,0)) -> 3 | E44: =COUNTIFS(Running!$A:$A,"",Running!$G:$G,0,Running!$E:$E,"<="&TODAY(),Running!$E:$E,">="&EDATE($B44,0),Running!$E:$E,"<="&EDATE($C44,0)) -> 4 | F44: 0.428 | G44: =SUMIFS(Running!$F:$F,Running!$A:$A,"*",Running!$E:$E,"<="&TODAY(),Running!$E:$E,">="&EDATE($B44,0),Running!$E:$E,"<="&EDATE($C44,0)) -> 1946 | H44: =SUMIFS(Running!$G:$G,Running!$A:$A,"*",Running!$E:$E,"<="&TODAY(),Running!$E:$E,">="&EDATE($B44,0),Running!$E:$E,"<="&EDATE($C44,0)) -> 16.34 | I44: =TIME(INT((SUMIFS(Running!$K:$K,Running!$E:$E,">="&EDATE($B44,0),Running!$E:$E,"<="&EDATE($C44,0),Running!$A:$A,"*",Running!$E:$E,"<="&TODAY())*60+SUMIFS(Running!$L:$L,Running!$E:$E,">="&EDATE($B44,0),Running!$E:$E,"<="&EDATE($C44,0),Running!$A:$A,"*",Running!$E:$E,"<="&TODAY()))/(60*60)),MOD(MOD(SUMIFS(Running!$K:$K,Running!$E:$E,">="&EDATE($B44,0),Running!$E:$E,"<="&EDATE($C44,0),Running!$A:$A,"*",Running!$E:$E,"<="&TODAY()),60)+INT(SUMIFS(Running!$L:$L,Running!$E:$E,">="&EDATE($B44,0),Running!$E:$E,"<="&EDATE($C44,0),Running!$A:$A,"*",Running!$E:$E,"<="&TODAY())/60),60),MOD(SUMIFS(Running!$L:$L,Running!$E:$E,">="&EDATE($B44,0),Running!$E:$E,"<="&EDATE($C44,0),Running!$A:$A,"*",Running!$E:$E,"<="&TODAY()),60))+INT(INT((SUMIFS(Running!$K:$K,Running!$E:$E,">="&EDATE($B44,0),Running!$E:$E,"<="&EDATE($C44,0),Running!$A:$A,"*",Running!$E:$E,"<="&TODAY())*60+SUMIFS(Running!$L:$L,Running!$E:$E,">="&EDATE($B44,0),Running!$E:$E,"<="&EDATE($C44,0),Running!$A:$A,"*",Running!$E:$E,"<="&TODAY()))/(60*60))/24) -> 0.09027777778 | J44: 00:07:58 | K44: 7.541 | L44: =SUMIFS(Running!$M:$M,Running!$A:$A,"*",Running!$E:$E,"<="&TODAY(),Running!$E:$E,">="&EDATE($B44,0),Running!$E:$E,"<="&EDATE($C44,0)) -> 72 | M44: =SUMIFS(Running!$N:$N,Running!$A:$A,"*",Running!$E:$E,"<="&TODAY(),Running!$E:$E,">="&EDATE($B44,0),Running!$E:$E,"<="&EDATE($C44,0)) -> 1.01 | N44: =TIME(INT((SUMIFS(Running!$R:$R,Running!$E:$E,">="&EDATE($B44,0),Running!$E:$E,"<="&EDATE($C44,0),Running!$A:$A,"*",Running!$E:$E,"<="&TODAY())*60+SUMIFS(Running!$S:$S,Running!$E:$E,">="&EDATE($B44,0),Running!$E:$E,"<="&EDATE($C44,0),Running!$A:$A,"*",Running!$E:$E,"<="&TODAY()))/(60*60)),MOD(MOD(SUMIFS(Running!$R:$R,Running!$E:$E,">="&EDATE($B44,0),Running!$E:$E,"<="&EDATE($C44,0),Running!$A:$A,"*",Running!$E:$E,"<="&TODAY()),60)+INT(SUMIFS(Running!$S:$S,Running!$E:$E,">="&EDATE($B44,0),Running!$E:$E,"<="&EDATE($C44,0),Running!$A:$A,"*",Running!$E:$E,"<="&TODAY())/60),60),MOD(SUMIFS(Running!$S:$S,Running!$E:$E,">="&EDATE($B44,0),Running!$E:$E,"<="&EDATE($C44,0),Running!$A:$A,"*",Running!$E:$E,"<="&TODAY()),60))+INT(INT((SUMIFS(Running!$R:$R,Running!$E:$E,">="&EDATE($B44,0),Running!$E:$E,"<="&EDATE($C44,0),Running!$A:$A,"*",Running!$E:$E,"<="&TODAY())*60+SUMIFS(Running!$S:$S,Running!$E:$E,">="&EDATE($B44,0),Running!$E:$E,"<="&EDATE($C44,0),Running!$A:$A,"*",Running!$E:$E,"<="&TODAY()))/(60*60))/24) -> 0.01041666667 | O44: 00:14:52 | P44: 4.04 | Q44: 2018 | R44: 17.35 | S44: 02:25:00 | T44: 00:08:22 | U44: 7.179
A45: 44 | B45: 2018-10-22 | C45: 2018-10-28 | D45: =COUNTIFS(Running!$A:$A,"*",Running!$E:$E,"<="&TODAY(),Running!$E:$E,">="&EDATE($B45,0),Running!$E:$E,"<="&EDATE($C45,0)) -> 7 | E45: =COUNTIFS(Running!$A:$A,"",Running!$G:$G,0,Running!$E:$E,"<="&TODAY(),Running!$E:$E,">="&EDATE($B45,0),Running!$E:$E,"<="&EDATE($C45,0)) -> 0 | F45: 1 | G45: =SUMIFS(Running!$F:$F,Running!$A:$A,"*",Running!$E:$E,"<="&TODAY(),Running!$E:$E,">="&EDATE($B45,0),Running!$E:$E,"<="&EDATE($C45,0)) -> 3958 | H45: =SUMIFS(Running!$G:$G,Running!$A:$A,"*",Running!$E:$E,"<="&TODAY(),Running!$E:$E,">="&EDATE($B45,0),Running!$E:$E,"<="&EDATE($C45,0)) -> 33.18 | I45: =TIME(INT((SUMIFS(Running!$K:$K,Running!$E:$E,">="&EDATE($B45,0),Running!$E:$E,"<="&EDATE($C45,0),Running!$A:$A,"*",Running!$E:$E,"<="&TODAY())*60+SUMIFS(Running!$L:$L,Running!$E:$E,">="&EDATE($B45,0),Running!$E:$E,"<="&EDATE($C45,0),Running!$A:$A,"*",Running!$E:$E,"<="&TODAY()))/(60*60)),MOD(MOD(SUMIFS(Running!$K:$K,Running!$E:$E,">="&EDATE($B45,0),Running!$E:$E,"<="&EDATE($C45,0),Running!$A:$A,"*",Running!$E:$E,"<="&TODAY()),60)+INT(SUMIFS(Running!$L:$L,Running!$E:$E,">="&EDATE($B45,0),Running!$E:$E,"<="&EDATE($C45,0),Running!$A:$A,"*",Running!$E:$E,"<="&TODAY())/60),60),MOD(SUMIFS(Running!$L:$L,Running!$E:$E,">="&EDATE($B45,0),Running!$E:$E,"<="&EDATE($C45,0),Running!$A:$A,"*",Running!$E:$E,"<="&TODAY()),60))+INT(INT((SUMIFS(Running!$K:$K,Running!$E:$E,">="&EDATE($B45,0),Running!$E:$E,"<="&EDATE($C45,0),Running!$A:$A,"*",Running!$E:$E,"<="&TODAY())*60+SUMIFS(Running!$L:$L,Running!$E:$E,">="&EDATE($B45,0),Running!$E:$E,"<="&EDATE($C45,0),Running!$A:$A,"*",Running!$E:$E,"<="&TODAY()))/(60*60))/24) -> 0.1875 | J45: 00:08:09 | K45: 7.373 | L45: =SUMIFS(Running!$M:$M,Running!$A:$A,"*",Running!$E:$E,"<="&TODAY(),Running!$E:$E,">="&EDATE($B45,0),Running!$E:$E,"<="&EDATE($C45,0)) -> 162 | M45: =SUMIFS(Running!$N:$N,Running!$A:$A,"*",Running!$E:$E,"<="&TODAY(),Running!$E:$E,">="&EDATE($B45,0),Running!$E:$E,"<="&EDATE($C45,0)) -> 2.26 | N45: =TIME(INT((SUMIFS(Running!$R:$R,Running!$E:$E,">="&EDATE($B45,0),Running!$E:$E,"<="&EDATE($C45,0),Running!$A:$A,"*",Running!$E:$E,"<="&TODAY())*60+SUMIFS(Running!$S:$S,Running!$E:$E,">="&EDATE($B45,0),Running!$E:$E,"<="&EDATE($C45,0),Running!$A:$A,"*",Running!$E:$E,"<="&TODAY()))/(60*60)),MOD(MOD(SUMIFS(Running!$R:$R,Running!$E:$E,">="&EDATE($B45,0),Running!$E:$E,"<="&EDATE($C45,0),Running!$A:$A,"*",Running!$E:$E,"<="&TODAY()),60)+INT(SUMIFS(Running!$S:$S,Running!$E:$E,">="&EDATE($B45,0),Running!$E:$E,"<="&EDATE($C45,0),Running!$A:$A,"*",Running!$E:$E,"<="&TODAY())/60),60),MOD(SUMIFS(Running!$S:$S,Running!$E:$E,">="&EDATE($B45,0),Running!$E:$E,"<="&EDATE($C45,0),Running!$A:$A,"*",Running!$E:$E,"<="&TODAY()),60))+INT(INT((SUMIFS(Running!$R:$R,Running!$E:$E,">="&EDATE($B45,0),Running!$E:$E,"<="&EDATE($C45,0),Running!$A:$A,"*",Running!$E:$E,"<="&TODAY())*60+SUMIFS(Running!$S:$S,Running!$E:$E,">="&EDATE($B45,0),Running!$E:$E,"<="&EDATE($C45,0),Running!$A:$A,"*",Running!$E:$E,"<="&TODAY()))/(60*60))/24) -> 0.02333333333 | O45: 00:14:53 | P45: 4.035 | Q45: 4120 | R45: 35.44 | S45: 05:03:36 | T45: 00:08:34 | U45: 7.003
A46: 45 | B46: 2018-10-29 | C46: 2018-11-04 | D46: =COUNTIFS(Running!$A:$A,"*",Running!$E:$E,"<="&TODAY(),Running!$E:$E,">="&EDATE($B46,0),Running!$E:$E,"<="&EDATE($C46,0)) -> 6 | E46: =COUNTIFS(Running!$A:$A,"",Running!$G:$G,0,Running!$E:$E,"<="&TODAY(),Running!$E:$E,">="&EDATE($B46,0),Running!$E:$E,"<="&EDATE($C46,0)) -> 1 | F46: 0.857 | G46: =SUMIFS(Running!$F:$F,Running!$A:$A,"*",Running!$E:$E,"<="&TODAY(),Running!$E:$E,">="&EDATE($B46,0),Running!$E:$E,"<="&EDATE($C46,0)) -> 3483 | H46: =SUMIFS(Running!$G:$G,Running!$A:$A,"*",Running!$E:$E,"<="&TODAY(),Running!$E:$E,">="&EDATE($B46,0),Running!$E:$E,"<="&EDATE($C46,0)) -> 29.19 | I46: =TIME(INT((SUMIFS(Running!$K:$K,Running!$E:$E,">="&EDATE($B46,0),Running!$E:$E,"<="&EDATE($C46,0),Running!$A:$A,"*",Running!$E:$E,"<="&TODAY())*60+SUMIFS(Running!$L:$L,Running!$E:$E,">="&EDATE($B46,0),Running!$E:$E,"<="&EDATE($C46,0),Running!$A:$A,"*",Running!$E:$E,"<="&TODAY()))/(60*60)),MOD(MOD(SUMIFS(Running!$K:$K,Running!$E:$E,">="&EDATE($B46,0),Running!$E:$E,"<="&EDATE($C46,0),Running!$A:$A,"*",Running!$E:$E,"<="&TODAY()),60)+INT(SUMIFS(Running!$L:$L,Running!$E:$E,">="&EDATE($B46,0),Running!$E:$E,"<="&EDATE($C46,0),Running!$A:$A,"*",Running!$E:$E,"<="&TODAY())/60),60),MOD(SUMIFS(Running!$L:$L,Running!$E:$E,">="&EDATE($B46,0),Running!$E:$E,"<="&EDATE($C46,0),Running!$A:$A,"*",Running!$E:$E,"<="&TODAY()),60))+INT(INT((SUMIFS(Running!$K:$K,Running!$E:$E,">="&EDATE($B46,0),Running!$E:$E,"<="&EDATE($C46,0),Running!$A:$A,"*",Running!$E:$E,"<="&TODAY())*60+SUMIFS(Running!$L:$L,Running!$E:$E,">="&EDATE($B46,0),Running!$E:$E,"<="&EDATE($C46,0),Running!$A:$A,"*",Running!$E:$E,"<="&TODAY()))/(60*60))/24) -> 0.1652777778 | J46: 00:08:10 | K46: 7.358 | L46: =SUMIFS(Running!$M:$M,Running!$A:$A,"*",Running!$E:$E,"<="&TODAY(),Running!$E:$E,">="&EDATE($B46,0),Running!$E:$E,"<="&EDATE($C46,0)) -> 139 | M46: =SUMIFS(Running!$N:$N,Running!$A:$A,"*",Running!$E:$E,"<="&TODAY(),Running!$E:$E,">="&EDATE($B46,0),Running!$E:$E,"<="&EDATE($C46,0)) -> 1.92 | N46: =TIME(INT((SUMIFS(Running!$R:$R,Running!$E:$E,">="&EDATE($B46,0),Running!$E:$E,"<="&EDATE($C46,0),Running!$A:$A,"*",Running!$E:$E,"<="&TODAY())*60+SUMIFS(Running!$S:$S,Running!$E:$E,">="&EDATE($B46,0),Running!$E:$E,"<="&EDATE($C46,0),Running!$A:$A,"*",Running!$E:$E,"<="&TODAY()))/(60*60)),MOD(MOD(SUMIFS(Running!$R:$R,Running!$E:$E,">="&EDATE($B46,0),Running!$E:$E,"<="&EDATE($C46,0),Running!$A:$A,"*",Running!$E:$E,"<="&TODAY()),60)+INT(SUMIFS(Running!$S:$S,Running!$E:$E,">="&EDATE($B46,0),Running!$E:$E,"<="&EDATE($C46,0),Running!$A:$A,"*",Running!$E:$E,"<="&TODAY())/60),60),MOD(SUMIFS(Running!$S:$S,Running!$E:$E,">="&EDATE($B46,0),Running!$E:$E,"<="&EDATE($C46,0),Running!$A:$A,"*",Running!$E:$E,"<="&TODAY()),60))+INT(INT((SUMIFS(Running!$R:$R,Running!$E:$E,">="&EDATE($B46,0),Running!$E:$E,"<="&EDATE($C46,0),Running!$A:$A,"*",Running!$E:$E,"<="&TODAY())*60+SUMIFS(Running!$S:$S,Running!$E:$E,">="&EDATE($B46,0),Running!$E:$E,"<="&EDATE($C46,0),Running!$A:$A,"*",Running!$E:$E,"<="&TODAY()))/(60*60))/24) -> 0.02013888889 | O46: 00:15:07 | P46: 3.972 | Q46: 3622 | R46: 31.11 | S46: 04:27:00 | T46: 00:08:35 | U46: 6.991
A47: 46 | B47: 2018-11-05 | C47: 2018-11-11 | D47: =COUNTIFS(Running!$A:$A,"*",Running!$E:$E,"<="&TODAY(),Running!$E:$E,">="&EDATE($B47,0),Running!$E:$E,"<="&EDATE($C47,0)) -> 7 | E47: =COUNTIFS(Running!$A:$A,"",Running!$G:$G,0,Running!$E:$E,"<="&TODAY(),Running!$E:$E,">="&EDATE($B47,0),Running!$E:$E,"<="&EDATE($C47,0)) -> 0 | F47: 1 | G47: =SUMIFS(Running!$F:$F,Running!$A:$A,"*",Running!$E:$E,"<="&TODAY(),Running!$E:$E,">="&EDATE($B47,0),Running!$E:$E,"<="&EDATE($C47,0)) -> 4147 | H47: =SUMIFS(Running!$G:$G,Running!$A:$A,"*",Running!$E:$E,"<="&TODAY(),Running!$E:$E,">="&EDATE($B47,0),Running!$E:$E,"<="&EDATE($C47,0)) -> 34.78 | I47: =TIME(INT((SUMIFS(Running!$K:$K,Running!$E:$E,">="&EDATE($B47,0),Running!$E:$E,"<="&EDATE($C47,0),Running!$A:$A,"*",Running!$E:$E,"<="&TODAY())*60+SUMIFS(Running!$L:$L,Running!$E:$E,">="&EDATE($B47,0),Running!$E:$E,"<="&EDATE($C47,0),Running!$A:$A,"*",Running!$E:$E,"<="&TODAY()))/(60*60)),MOD(MOD(SUMIFS(Running!$K:$K,Running!$E:$E,">="&EDATE($B47,0),Running!$E:$E,"<="&EDATE($C47,0),Running!$A:$A,"*",Running!$E:$E,"<="&TODAY()),60)+INT(SUMIFS(Running!$L:$L,Running!$E:$E,">="&EDATE($B47,0),Running!$E:$E,"<="&EDATE($C47,0),Running!$A:$A,"*",Running!$E:$E,"<="&TODAY())/60),60),MOD(SUMIFS(Running!$L:$L,Running!$E:$E,">="&EDATE($B47,0),Running!$E:$E,"<="&EDATE($C47,0),Running!$A:$A,"*",Running!$E:$E,"<="&TODAY()),60))+INT(INT((SUMIFS(Running!$K:$K,Running!$E:$E,">="&EDATE($B47,0),Running!$E:$E,"<="&EDATE($C47,0),Running!$A:$A,"*",Running!$E:$E,"<="&TODAY())*60+SUMIFS(Running!$L:$L,Running!$E:$E,">="&EDATE($B47,0),Running!$E:$E,"<="&EDATE($C47,0),Running!$A:$A,"*",Running!$E:$E,"<="&TODAY()))/(60*60))/24) -> 0.1944444444 | J47: 00:08:04 | K47: 7.452 | L47: =SUMIFS(Running!$M:$M,Running!$A:$A,"*",Running!$E:$E,"<="&TODAY(),Running!$E:$E,">="&EDATE($B47,0),Running!$E:$E,"<="&EDATE($C47,0)) -> 160 | M47: =SUMIFS(Running!$N:$N,Running!$A:$A,"*",Running!$E:$E,"<="&TODAY(),Running!$E:$E,">="&EDATE($B47,0),Running!$E:$E,"<="&EDATE($C47,0)) -> 2.21 | N47: =TIME(INT((SUMIFS(Running!$R:$R,Running!$E:$E,">="&EDATE($B47,0),Running!$E:$E,"<="&EDATE($C47,0),Running!$A:$A,"*",Running!$E:$E,"<="&TODAY())*60+SUMIFS(Running!$S:$S,Running!$E:$E,">="&EDATE($B47,0),Running!$E:$E,"<="&EDATE($C47,0),Running!$A:$A,"*",Running!$E:$E,"<="&TODAY()))/(60*60)),MOD(MOD(SUMIFS(Running!$R:$R,Running!$E:$E,">="&EDATE($B47,0),Running!$E:$E,"<="&EDATE($C47,0),Running!$A:$A,"*",Running!$E:$E,"<="&TODAY()),60)+INT(SUMIFS(Running!$S:$S,Running!$E:$E,">="&EDATE($B47,0),Running!$E:$E,"<="&EDATE($C47,0),Running!$A:$A,"*",Running!$E:$E,"<="&TODAY())/60),60),MOD(SUMIFS(Running!$S:$S,Running!$E:$E,">="&EDATE($B47,0),Running!$E:$E,"<="&EDATE($C47,0),Running!$A:$A,"*",Running!$E:$E,"<="&TODAY()),60))+INT(INT((SUMIFS(Running!$R:$R,Running!$E:$E,">="&EDATE($B47,0),Running!$E:$E,"<="&EDATE($C47,0),Running!$A:$A,"*",Running!$E:$E,"<="&TODAY())*60+SUMIFS(Running!$S:$S,Running!$E:$E,">="&EDATE($B47,0),Running!$E:$E,"<="&EDATE($C47,0),Running!$A:$A,"*",Running!$E:$E,"<="&TODAY()))/(60*60))/24) -> 0.02298611111 | O47: 00:14:59 | P47: 4.006 | Q47: 4307 | R47: 36.99 | S47: 05:13:06 | T47: 00:08:28 | U47: 7.088
A48: 47 | B48: 2018-11-12 | C48: 2018-11-18 | D48: =COUNTIFS(Running!$A:$A,"*",Running!$E:$E,"<="&TODAY(),Running!$E:$E,">="&EDATE($B48,0),Running!$E:$E,"<="&EDATE($C48,0)) -> 4 | E48: =COUNTIFS(Running!$A:$A,"",Running!$G:$G,0,Running!$E:$E,"<="&TODAY(),Running!$E:$E,">="&EDATE($B48,0),Running!$E:$E,"<="&EDATE($C48,0)) -> 3 | F48: 0.571 | G48: =SUMIFS(Running!$F:$F,Running!$A:$A,"*",Running!$E:$E,"<="&TODAY(),Running!$E:$E,">="&EDATE($B48,0),Running!$E:$E,"<="&EDATE($C48,0)) -> 2207 | H48: =SUMIFS(Running!$G:$G,Running!$A:$A,"*",Running!$E:$E,"<="&TODAY(),Running!$E:$E,">="&EDATE($B48,0),Running!$E:$E,"<="&EDATE($C48,0)) -> 19.9 | I48: =TIME(INT((SUMIFS(Running!$K:$K,Running!$E:$E,">="&EDATE($B48,0),Running!$E:$E,"<="&EDATE($C48,0),Running!$A:$A,"*",Running!$E:$E,"<="&TODAY())*60+SUMIFS(Running!$L:$L,Running!$E:$E,">="&EDATE($B48,0),Running!$E:$E,"<="&EDATE($C48,0),Running!$A:$A,"*",Running!$E:$E,"<="&TODAY()))/(60*60)),MOD(MOD(SUMIFS(Running!$K:$K,Running!$E:$E,">="&EDATE($B48,0),Running!$E:$E,"<="&EDATE($C48,0),Running!$A:$A,"*",Running!$E:$E,"<="&TODAY()),60)+INT(SUMIFS(Running!$L:$L,Running!$E:$E,">="&EDATE($B48,0),Running!$E:$E,"<="&EDATE($C48,0),Running!$A:$A,"*",Running!$E:$E,"<="&TODAY())/60),60),MOD(SUMIFS(Running!$L:$L,Running!$E:$E,">="&EDATE($B48,0),Running!$E:$E,"<="&EDATE($C48,0),Running!$A:$A,"*",Running!$E:$E,"<="&TODAY()),60))+INT(INT((SUMIFS(Running!$K:$K,Running!$E:$E,">="&EDATE($B48,0),Running!$E:$E,"<="&EDATE($C48,0),Running!$A:$A,"*",Running!$E:$E,"<="&TODAY())*60+SUMIFS(Running!$L:$L,Running!$E:$E,">="&EDATE($B48,0),Running!$E:$E,"<="&EDATE($C48,0),Running!$A:$A,"*",Running!$E:$E,"<="&TODAY()))/(60*60))/24) -> 0.1164351852 | J48: 00:08:26 | K48: 7.121 | L48: =SUMIFS(Running!$M:$M,Running!$A:$A,"*",Running!$E:$E,"<="&TODAY(),Running!$E:$E,">="&EDATE($B48,0),Running!$E:$E,"<="&EDATE($C48,0)) -> 48 | M48: =SUMIFS(Running!$N:$N,Running!$A:$A,"*",Running!$E:$E,"<="&TODAY(),Running!$E:$E,">="&EDATE($B48,0),Running!$E:$E,"<="&EDATE($C48,0)) -> 1.16 | N48: =TIME(INT((SUMIFS(Running!$R:$R,Running!$E:$E,">="&EDATE($B48,0),Running!$E:$E,"<="&EDATE($C48,0),Running!$A:$A,"*",Running!$E:$E,"<="&TODAY())*60+SUMIFS(Running!$S:$S,Running!$E:$E,">="&EDATE($B48,0),Running!$E:$E,"<="&EDATE($C48,0),Running!$A:$A,"*",Running!$E:$E,"<="&TODAY()))/(60*60)),MOD(MOD(SUMIFS(Running!$R:$R,Running!$E:$E,">="&EDATE($B48,0),Running!$E:$E,"<="&EDATE($C48,0),Running!$A:$A,"*",Running!$E:$E,"<="&TODAY()),60)+INT(SUMIFS(Running!$S:$S,Running!$E:$E,">="&EDATE($B48,0),Running!$E:$E,"<="&EDATE($C48,0),Running!$A:$A,"*",Running!$E:$E,"<="&TODAY())/60),60),MOD(SUMIFS(Running!$S:$S,Running!$E:$E,">="&EDATE($B48,0),Running!$E:$E,"<="&EDATE($C48,0),Running!$A:$A,"*",Running!$E:$E,"<="&TODAY()),60))+INT(INT((SUMIFS(Running!$R:$R,Running!$E:$E,">="&EDATE($B48,0),Running!$E:$E,"<="&EDATE($C48,0),Running!$A:$A,"*",Running!$E:$E,"<="&TODAY())*60+SUMIFS(Running!$S:$S,Running!$E:$E,">="&EDATE($B48,0),Running!$E:$E,"<="&EDATE($C48,0),Running!$A:$A,"*",Running!$E:$E,"<="&TODAY()))/(60*60))/24) -> 0.01267361111 | O48: 00:15:44 | P48: 3.813 | Q48: 2255 | R48: 21.06 | S48: 03:05:55 | T48: 00:08:50 | U48: 6.796
A49: 48 | B49: 2018-11-19 | C49: 2018-11-25 | D49: =COUNTIFS(Running!$A:$A,"*",Running!$E:$E,"<="&TODAY(),Running!$E:$E,">="&EDATE($B49,0),Running!$E:$E,"<="&EDATE($C49,0)) -> 7 | E49: =COUNTIFS(Running!$A:$A,"",Running!$G:$G,0,Running!$E:$E,"<="&TODAY(),Running!$E:$E,">="&EDATE($B49,0),Running!$E:$E,"<="&EDATE($C49,0)) -> 0 | F49: 1 | G49: =SUMIFS(Running!$F:$F,Running!$A:$A,"*",Running!$E:$E,"<="&TODAY(),Running!$E:$E,">="&EDATE($B49,0),Running!$E:$E,"<="&EDATE($C49,0)) -> 3212 | H49: =SUMIFS(Running!$G:$G,Running!$A:$A,"*",Running!$E:$E,"<="&TODAY(),Running!$E:$E,">="&EDATE($B49,0),Running!$E:$E,"<="&EDATE($C49,0)) -> 29.99 | I49: =TIME(INT((SUMIFS(Running!$K:$K,Running!$E:$E,">="&EDATE($B49,0),Running!$E:$E,"<="&EDATE($C49,0),Running!$A:$A,"*",Running!$E:$E,"<="&TODAY())*60+SUMIFS(Running!$L:$L,Running!$E:$E,">="&EDATE($B49,0),Running!$E:$E,"<="&EDATE($C49,0),Running!$A:$A,"*",Running!$E:$E,"<="&TODAY()))/(60*60)),MOD(MOD(SUMIFS(Running!$K:$K,Running!$E:$E,">="&EDATE($B49,0),Running!$E:$E,"<="&EDATE($C49,0),Running!$A:$A,"*",Running!$E:$E,"<="&TODAY()),60)+INT(SUMIFS(Running!$L:$L,Running!$E:$E,">="&EDATE($B49,0),Running!$E:$E,"<="&EDATE($C49,0),Running!$A:$A,"*",Running!$E:$E,"<="&TODAY())/60),60),MOD(SUMIFS(Running!$L:$L,Running!$E:$E,">="&EDATE($B49,0),Running!$E:$E,"<="&EDATE($C49,0),Running!$A:$A,"*",Running!$E:$E,"<="&TODAY()),60))+INT(INT((SUMIFS(Running!$K:$K,Running!$E:$E,">="&EDATE($B49,0),Running!$E:$E,"<="&EDATE($C49,0),Running!$A:$A,"*",Running!$E:$E,"<="&TODAY())*60+SUMIFS(Running!$L:$L,Running!$E:$E,">="&EDATE($B49,0),Running!$E:$E,"<="&EDATE($C49,0),Running!$A:$A,"*",Running!$E:$E,"<="&TODAY()))/(60*60))/24) -> 0.1746527778 | J49: 00:08:24 | K49: 7.154 | L49: =SUMIFS(Running!$M:$M,Running!$A:$A,"*",Running!$E:$E,"<="&TODAY(),Running!$E:$E,">="&EDATE($B49,0),Running!$E:$E,"<="&EDATE($C49,0)) -> 22 | M49: =SUMIFS(Running!$N:$N,Running!$A:$A,"*",Running!$E:$E,"<="&TODAY(),Running!$E:$E,">="&EDATE($B49,0),Running!$E:$E,"<="&EDATE($C49,0)) -> 2.02 | N49: =TIME(INT((SUMIFS(Running!$R:$R,Running!$E:$E,">="&EDATE($B49,0),Running!$E:$E,"<="&EDATE($C49,0),Running!$A:$A,"*",Running!$E:$E,"<="&TODAY())*60+SUMIFS(Running!$S:$S,Running!$E:$E,">="&EDATE($B49,0),Running!$E:$E,"<="&EDATE($C49,0),Running!$A:$A,"*",Running!$E:$E,"<="&TODAY()))/(60*60)),MOD(MOD(SUMIFS(Running!$R:$R,Running!$E:$E,">="&EDATE($B49,0),Running!$E:$E,"<="&EDATE($C49,0),Running!$A:$A,"*",Running!$E:$E,"<="&TODAY()),60)+INT(SUMIFS(Running!$S:$S,Running!$E:$E,">="&EDATE($B49,0),Running!$E:$E,"<="&EDATE($C49,0),Running!$A:$A,"*",Running!$E:$E,"<="&TODAY())/60),60),MOD(SUMIFS(Running!$S:$S,Running!$E:$E,">="&EDATE($B49,0),Running!$E:$E,"<="&EDATE($C49,0),Running!$A:$A,"*",Running!$E:$E,"<="&TODAY()),60))+INT(INT((SUMIFS(Running!$R:$R,Running!$E:$E,">="&EDATE($B49,0),Running!$E:$E,"<="&EDATE($C49,0),Running!$A:$A,"*",Running!$E:$E,"<="&TODAY())*60+SUMIFS(Running!$S:$S,Running!$E:$E,">="&EDATE($B49,0),Running!$E:$E,"<="&EDATE($C49,0),Running!$A:$A,"*",Running!$E:$E,"<="&TODAY()))/(60*60))/24) -> 0.02400462963 | O49: 00:17:07 | P49: 3.506 | Q49: 3234 | R49: 32.01 | S49: 04:46:04 | T49: 00:08:57 | U49: 6.713
A50: 49 | B50: 2018-11-26 | C50: 2018-12-02 | D50: =COUNTIFS(Running!$A:$A,"*",Running!$E:$E,"<="&TODAY(),Running!$E:$E,">="&EDATE($B50,0),Running!$E:$E,"<="&EDATE($C50,0)) -> 6 | E50: =COUNTIFS(Running!$A:$A,"",Running!$G:$G,0,Running!$E:$E,"<="&TODAY(),Running!$E:$E,">="&EDATE($B50,0),Running!$E:$E,"<="&EDATE($C50,0)) -> 1 | F50: 0.857 | G50: =SUMIFS(Running!$F:$F,Running!$A:$A,"*",Running!$E:$E,"<="&TODAY(),Running!$E:$E,">="&EDATE($B50,0),Running!$E:$E,"<="&EDATE($C50,0)) -> 3669 | H50: =SUMIFS(Running!$G:$G,Running!$A:$A,"*",Running!$E:$E,"<="&TODAY(),Running!$E:$E,">="&EDATE($B50,0),Running!$E:$E,"<="&EDATE($C50,0)) -> 30.83 | I50: =TIME(INT((SUMIFS(Running!$K:$K,Running!$E:$E,">="&EDATE($B50,0),Running!$E:$E,"<="&EDATE($C50,0),Running!$A:$A,"*",Running!$E:$E,"<="&TODAY())*60+SUMIFS(Running!$L:$L,Running!$E:$E,">="&EDATE($B50,0),Running!$E:$E,"<="&EDATE($C50,0),Running!$A:$A,"*",Running!$E:$E,"<="&TODAY()))/(60*60)),MOD(MOD(SUMIFS(Running!$K:$K,Running!$E:$E,">="&EDATE($B50,0),Running!$E:$E,"<="&EDATE($C50,0),Running!$A:$A,"*",Running!$E:$E,"<="&TODAY()),60)+INT(SUMIFS(Running!$L:$L,Running!$E:$E,">="&EDATE($B50,0),Running!$E:$E,"<="&EDATE($C50,0),Running!$A:$A,"*",Running!$E:$E,"<="&TODAY())/60),60),MOD(SUMIFS(Running!$L:$L,Running!$E:$E,">="&EDATE($B50,0),Running!$E:$E,"<="&EDATE($C50,0),Running!$A:$A,"*",Running!$E:$E,"<="&TODAY()),60))+INT(INT((SUMIFS(Running!$K:$K,Running!$E:$E,">="&EDATE($B50,0),Running!$E:$E,"<="&EDATE($C50,0),Running!$A:$A,"*",Running!$E:$E,"<="&TODAY())*60+SUMIFS(Running!$L:$L,Running!$E:$E,">="&EDATE($B50,0),Running!$E:$E,"<="&EDATE($C50,0),Running!$A:$A,"*",Running!$E:$E,"<="&TODAY()))/(60*60))/24) -> 0.1689236111 | J50: 00:07:54 | K50: 7.604 | L50: =SUMIFS(Running!$M:$M,Running!$A:$A,"*",Running!$E:$E,"<="&TODAY(),Running!$E:$E,">="&EDATE($B50,0),Running!$E:$E,"<="&EDATE($C50,0)) -> 139 | M50: =SUMIFS(Running!$N:$N,Running!$A:$A,"*",Running!$E:$E,"<="&TODAY(),Running!$E:$E,">="&EDATE($B50,0),Running!$E:$E,"<="&EDATE($C50,0)) -> 1.93 | N50: =TIME(INT((SUMIFS(Running!$R:$R,Running!$E:$E,">="&EDATE($B50,0),Running!$E:$E,"<="&EDATE($C50,0),Running!$A:$A,"*",Running!$E:$E,"<="&TODAY())*60+SUMIFS(Running!$S:$S,Running!$E:$E,">="&EDATE($B50,0),Running!$E:$E,"<="&EDATE($C50,0),Running!$A:$A,"*",Running!$E:$E,"<="&TODAY()))/(60*60)),MOD(MOD(SUMIFS(Running!$R:$R,Running!$E:$E,">="&EDATE($B50,0),Running!$E:$E,"<="&EDATE($C50,0),Running!$A:$A,"*",Running!$E:$E,"<="&TODAY()),60)+INT(SUMIFS(Running!$S:$S,Running!$E:$E,">="&EDATE($B50,0),Running!$E:$E,"<="&EDATE($C50,0),Running!$A:$A,"*",Running!$E:$E,"<="&TODAY())/60),60),MOD(SUMIFS(Running!$S:$S,Running!$E:$E,">="&EDATE($B50,0),Running!$E:$E,"<="&EDATE($C50,0),Running!$A:$A,"*",Running!$E:$E,"<="&TODAY()),60))+INT(INT((SUMIFS(Running!$R:$R,Running!$E:$E,">="&EDATE($B50,0),Running!$E:$E,"<="&EDATE($C50,0),Running!$A:$A,"*",Running!$E:$E,"<="&TODAY())*60+SUMIFS(Running!$S:$S,Running!$E:$E,">="&EDATE($B50,0),Running!$E:$E,"<="&EDATE($C50,0),Running!$A:$A,"*",Running!$E:$E,"<="&TODAY()))/(60*60))/24) -> 0.02013888889 | O50: 00:15:02 | P50: 3.993 | Q50: 3808 | R50: 32.76 | S50: 04:32:15 | T50: 00:08:19 | U50: 7.219
A51: 50 | B51: 2018-12-03 | C51: 2018-12-09 | D51: =COUNTIFS(Running!$A:$A,"*",Running!$E:$E,"<="&TODAY(),Running!$E:$E,">="&EDATE($B51,0),Running!$E:$E,"<="&EDATE($C51,0)) -> 6 | E51: =COUNTIFS(Running!$A:$A,"",Running!$G:$G,0,Running!$E:$E,"<="&TODAY(),Running!$E:$E,">="&EDATE($B51,0),Running!$E:$E,"<="&EDATE($C51,0)) -> 1 | F51: 0.857 | G51: =SUMIFS(Running!$F:$F,Running!$A:$A,"*",Running!$E:$E,"<="&TODAY(),Running!$E:$E,">="&EDATE($B51,0),Running!$E:$E,"<="&EDATE($C51,0)) -> 3365 | H51: =SUMIFS(Running!$G:$G,Running!$A:$A,"*",Running!$E:$E,"<="&TODAY(),Running!$E:$E,">="&EDATE($B51,0),Running!$E:$E,"<="&EDATE($C51,0)) -> 30.95 | I51: =TIME(INT((SUMIFS(Running!$K:$K,Running!$E:$E,">="&EDATE($B51,0),Running!$E:$E,"<="&EDATE($C51,0),Running!$A:$A,"*",Running!$E:$E,"<="&TODAY())*60+SUMIFS(Running!$L:$L,Running!$E:$E,">="&EDATE($B51,0),Running!$E:$E,"<="&EDATE($C51,0),Running!$A:$A,"*",Running!$E:$E,"<="&TODAY()))/(60*60)),MOD(MOD(SUMIFS(Running!$K:$K,Running!$E:$E,">="&EDATE($B51,0),Running!$E:$E,"<="&EDATE($C51,0),Running!$A:$A,"*",Running!$E:$E,"<="&TODAY()),60)+INT(SUMIFS(Running!$L:$L,Running!$E:$E,">="&EDATE($B51,0),Running!$E:$E,"<="&EDATE($C51,0),Running!$A:$A,"*",Running!$E:$E,"<="&TODAY())/60),60),MOD(SUMIFS(Running!$L:$L,Running!$E:$E,">="&EDATE($B51,0),Running!$E:$E,"<="&EDATE($C51,0),Running!$A:$A,"*",Running!$E:$E,"<="&TODAY()),60))+INT(INT((SUMIFS(Running!$K:$K,Running!$E:$E,">="&EDATE($B51,0),Running!$E:$E,"<="&EDATE($C51,0),Running!$A:$A,"*",Running!$E:$E,"<="&TODAY())*60+SUMIFS(Running!$L:$L,Running!$E:$E,">="&EDATE($B51,0),Running!$E:$E,"<="&EDATE($C51,0),Running!$A:$A,"*",Running!$E:$E,"<="&TODAY()))/(60*60))/24) -> 0.1763888889 | J51: 00:08:13 | K51: 7.311 | L51: =SUMIFS(Running!$M:$M,Running!$A:$A,"*",Running!$E:$E,"<="&TODAY(),Running!$E:$E,">="&EDATE($B51,0),Running!$E:$E,"<="&EDATE($C51,0)) -> 134 | M51: =SUMIFS(Running!$N:$N,Running!$A:$A,"*",Running!$E:$E,"<="&TODAY(),Running!$E:$E,">="&EDATE($B51,0),Running!$E:$E,"<="&EDATE($C51,0)) -> 1.83 | N51: =TIME(INT((SUMIFS(Running!$R:$R,Running!$E:$E,">="&EDATE($B51,0),Running!$E:$E,"<="&EDATE($C51,0),Running!$A:$A,"*",Running!$E:$E,"<="&TODAY())*60+SUMIFS(Running!$S:$S,Running!$E:$E,">="&EDATE($B51,0),Running!$E:$E,"<="&EDATE($C51,0),Running!$A:$A,"*",Running!$E:$E,"<="&TODAY()))/(60*60)),MOD(MOD(SUMIFS(Running!$R:$R,Running!$E:$E,">="&EDATE($B51,0),Running!$E:$E,"<="&EDATE($C51,0),Running!$A:$A,"*",Running!$E:$E,"<="&TODAY()),60)+INT(SUMIFS(Running!$S:$S,Running!$E:$E,">="&EDATE($B51,0),Running!$E:$E,"<="&EDATE($C51,0),Running!$A:$A,"*",Running!$E:$E,"<="&TODAY())/60),60),MOD(SUMIFS(Running!$S:$S,Running!$E:$E,">="&EDATE($B51,0),Running!$E:$E,"<="&EDATE($C51,0),Running!$A:$A,"*",Running!$E:$E,"<="&TODAY()),60))+INT(INT((SUMIFS(Running!$R:$R,Running!$E:$E,">="&EDATE($B51,0),Running!$E:$E,"<="&EDATE($C51,0),Running!$A:$A,"*",Running!$E:$E,"<="&TODAY())*60+SUMIFS(Running!$S:$S,Running!$E:$E,">="&EDATE($B51,0),Running!$E:$E,"<="&EDATE($C51,0),Running!$A:$A,"*",Running!$E:$E,"<="&TODAY()))/(60*60))/24) -> 0.01902777778 | O51: 00:14:59 | P51: 4.007 | Q51: 3499 | R51: 32.78 | S51: 04:41:24 | T51: 00:08:36 | U51: 6.989
A52: 51 | B52: 2018-12-10 | C52: 2018-12-16 | D52: =COUNTIFS(Running!$A:$A,"*",Running!$E:$E,"<="&TODAY(),Running!$E:$E,">="&EDATE($B52,0),Running!$E:$E,"<="&EDATE($C52,0)) -> 5 | E52: =COUNTIFS(Running!$A:$A,"",Running!$G:$G,0,Running!$E:$E,"<="&TODAY(),Running!$E:$E,">="&EDATE($B52,0),Running!$E:$E,"<="&EDATE($C52,0)) -> 2 | F52: 0.714 | G52: =SUMIFS(Running!$F:$F,Running!$A:$A,"*",Running!$E:$E,"<="&TODAY(),Running!$E:$E,">="&EDATE($B52,0),Running!$E:$E,"<="&EDATE($C52,0)) -> 2755 | H52: =SUMIFS(Running!$G:$G,Running!$A:$A,"*",Running!$E:$E,"<="&TODAY(),Running!$E:$E,">="&EDATE($B52,0),Running!$E:$E,"<="&EDATE($C52,0)) -> 23.1 | I52: =TIME(INT((SUMIFS(Running!$K:$K,Running!$E:$E,">="&EDATE($B52,0),Running!$E:$E,"<="&EDATE($C52,0),Running!$A:$A,"*",Running!$E:$E,"<="&TODAY())*60+SUMIFS(Running!$L:$L,Running!$E:$E,">="&EDATE($B52,0),Running!$E:$E,"<="&EDATE($C52,0),Running!$A:$A,"*",Running!$E:$E,"<="&TODAY()))/(60*60)),MOD(MOD(SUMIFS(Running!$K:$K,Running!$E:$E,">="&EDATE($B52,0),Running!$E:$E,"<="&EDATE($C52,0),Running!$A:$A,"*",Running!$E:$E,"<="&TODAY()),60)+INT(SUMIFS(Running!$L:$L,Running!$E:$E,">="&EDATE($B52,0),Running!$E:$E,"<="&EDATE($C52,0),Running!$A:$A,"*",Running!$E:$E,"<="&TODAY())/60),60),MOD(SUMIFS(Running!$L:$L,Running!$E:$E,">="&EDATE($B52,0),Running!$E:$E,"<="&EDATE($C52,0),Running!$A:$A,"*",Running!$E:$E,"<="&TODAY()),60))+INT(INT((SUMIFS(Running!$K:$K,Running!$E:$E,">="&EDATE($B52,0),Running!$E:$E,"<="&EDATE($C52,0),Running!$A:$A,"*",Running!$E:$E,"<="&TODAY())*60+SUMIFS(Running!$L:$L,Running!$E:$E,">="&EDATE($B52,0),Running!$E:$E,"<="&EDATE($C52,0),Running!$A:$A,"*",Running!$E:$E,"<="&TODAY()))/(60*60))/24) -> 0.128125 | J52: 00:08:00 | K52: 7.512 | L52: =SUMIFS(Running!$M:$M,Running!$A:$A,"*",Running!$E:$E,"<="&TODAY(),Running!$E:$E,">="&EDATE($B52,0),Running!$E:$E,"<="&EDATE($C52,0)) -> 98 | M52: =SUMIFS(Running!$N:$N,Running!$A:$A,"*",Running!$E:$E,"<="&TODAY(),Running!$E:$E,">="&EDATE($B52,0),Running!$E:$E,"<="&EDATE($C52,0)) -> 1.34 | N52: =TIME(INT((SUMIFS(Running!$R:$R,Running!$E:$E,">="&EDATE($B52,0),Running!$E:$E,"<="&EDATE($C52,0),Running!$A:$A,"*",Running!$E:$E,"<="&TODAY())*60+SUMIFS(Running!$S:$S,Running!$E:$E,">="&EDATE($B52,0),Running!$E:$E,"<="&EDATE($C52,0),Running!$A:$A,"*",Running!$E:$E,"<="&TODAY()))/(60*60)),MOD(MOD(SUMIFS(Running!$R:$R,Running!$E:$E,">="&EDATE($B52,0),Running!$E:$E,"<="&EDATE($C52,0),Running!$A:$A,"*",Running!$E:$E,"<="&TODAY()),60)+INT(SUMIFS(Running!$S:$S,Running!$E:$E,">="&EDATE($B52,0),Running!$E:$E,"<="&EDATE($C52,0),Running!$A:$A,"*",Running!$E:$E,"<="&TODAY())/60),60),MOD(SUMIFS(Running!$S:$S,Running!$E:$E,">="&EDATE($B52,0),Running!$E:$E,"<="&EDATE($C52,0),Running!$A:$A,"*",Running!$E:$E,"<="&TODAY()),60))+INT(INT((SUMIFS(Running!$R:$R,Running!$E:$E,">="&EDATE($B52,0),Running!$E:$E,"<="&EDATE($C52,0),Running!$A:$A,"*",Running!$E:$E,"<="&TODAY())*60+SUMIFS(Running!$S:$S,Running!$E:$E,">="&EDATE($B52,0),Running!$E:$E,"<="&EDATE($C52,0),Running!$A:$A,"*",Running!$E:$E,"<="&TODAY()))/(60*60))/24) -> 0.01400462963 | O52: 00:15:03 | P52: 3.986 | Q52: 2853 | R52: 24.44 | S52: 03:24:40 | T52: 00:08:23 | U52: 7.164
A53: 52 | B53: 2018-12-17 | C53: 2018-12-23 | D53: =COUNTIFS(Running!$A:$A,"*",Running!$E:$E,"<="&TODAY(),Running!$E:$E,">="&EDATE($B53,0),Running!$E:$E,"<="&EDATE($C53,0)) -> 7 | E53: =COUNTIFS(Running!$A:$A,"",Running!$G:$G,0,Running!$E:$E,"<="&TODAY(),Running!$E:$E,">="&EDATE($B53,0),Running!$E:$E,"<="&EDATE($C53,0)) -> 0 | F53: 1 | G53: =SUMIFS(Running!$F:$F,Running!$A:$A,"*",Running!$E:$E,"<="&TODAY(),Running!$E:$E,">="&EDATE($B53,0),Running!$E:$E,"<="&EDATE($C53,0)) -> 3935 | H53: =SUMIFS(Running!$G:$G,Running!$A:$A,"*",Running!$E:$E,"<="&TODAY(),Running!$E:$E,">="&EDATE($B53,0),Running!$E:$E,"<="&EDATE($C53,0)) -> 35.08 | I53: =TIME(INT((SUMIFS(Running!$K:$K,Running!$E:$E,">="&EDATE($B53,0),Running!$E:$E,"<="&EDATE($C53,0),Running!$A:$A,"*",Running!$E:$E,"<="&TODAY())*60+SUMIFS(Running!$L:$L,Running!$E:$E,">="&EDATE($B53,0),Running!$E:$E,"<="&EDATE($C53,0),Running!$A:$A,"*",Running!$E:$E,"<="&TODAY()))/(60*60)),MOD(MOD(SUMIFS(Running!$K:$K,Running!$E:$E,">="&EDATE($B53,0),Running!$E:$E,"<="&EDATE($C53,0),Running!$A:$A,"*",Running!$E:$E,"<="&TODAY()),60)+INT(SUMIFS(Running!$L:$L,Running!$E:$E,">="&EDATE($B53,0),Running!$E:$E,"<="&EDATE($C53,0),Running!$A:$A,"*",Running!$E:$E,"<="&TODAY())/60),60),MOD(SUMIFS(Running!$L:$L,Running!$E:$E,">="&EDATE($B53,0),Running!$E:$E,"<="&EDATE($C53,0),Running!$A:$A,"*",Running!$E:$E,"<="&TODAY()),60))+INT(INT((SUMIFS(Running!$K:$K,Running!$E:$E,">="&EDATE($B53,0),Running!$E:$E,"<="&EDATE($C53,0),Running!$A:$A,"*",Running!$E:$E,"<="&TODAY())*60+SUMIFS(Running!$L:$L,Running!$E:$E,">="&EDATE($B53,0),Running!$E:$E,"<="&EDATE($C53,0),Running!$A:$A,"*",Running!$E:$E,"<="&TODAY()))/(60*60))/24) -> 0.2076388889 | J53: 00:08:32 | K53: 7.039 | L53: =SUMIFS(Running!$M:$M,Running!$A:$A,"*",Running!$E:$E,"<="&TODAY(),Running!$E:$E,">="&EDATE($B53,0),Running!$E:$E,"<="&EDATE($C53,0)) -> 96 | M53: =SUMIFS(Running!$N:$N,Running!$A:$A,"*",Running!$E:$E,"<="&TODAY(),Running!$E:$E,">="&EDATE($B53,0),Running!$E:$E,"<="&EDATE($C53,0)) -> 2.21 | N53: =TIME(INT((SUMIFS(Running!$R:$R,Running!$E:$E,">="&EDATE($B53,0),Running!$E:$E,"<="&EDATE($C53,0),Running!$A:$A,"*",Running!$E:$E,"<="&TODAY())*60+SUMIFS(Running!$S:$S,Running!$E:$E,">="&EDATE($B53,0),Running!$E:$E,"<="&EDATE($C53,0),Running!$A:$A,"*",Running!$E:$E,"<="&TODAY()))/(60*60)),MOD(MOD(SUMIFS(Running!$R:$R,Running!$E:$E,">="&EDATE($B53,0),Running!$E:$E,"<="&EDATE($C53,0),Running!$A:$A,"*",Running!$E:$E,"<="&TODAY()),60)+INT(SUMIFS(Running!$S:$S,Running!$E:$E,">="&EDATE($B53,0),Running!$E:$E,"<="&EDATE($C53,0),Running!$A:$A,"*",Running!$E:$E,"<="&TODAY())/60),60),MOD(SUMIFS(Running!$S:$S,Running!$E:$E,">="&EDATE($B53,0),Running!$E:$E,"<="&EDATE($C53,0),Running!$A:$A,"*",Running!$E:$E,"<="&TODAY()),60))+INT(INT((SUMIFS(Running!$R:$R,Running!$E:$E,">="&EDATE($B53,0),Running!$E:$E,"<="&EDATE($C53,0),Running!$A:$A,"*",Running!$E:$E,"<="&TODAY())*60+SUMIFS(Running!$S:$S,Running!$E:$E,">="&EDATE($B53,0),Running!$E:$E,"<="&EDATE($C53,0),Running!$A:$A,"*",Running!$E:$E,"<="&TODAY()))/(60*60))/24) -> 0.02378472222 | O53: 00:15:30 | P53: 3.871 | Q53: 4031 | R53: 37.29 | S53: 05:33:15 | T53: 00:08:57 | U53: 6.713
A54: 53 | B54: 2018-12-24 | C54: 2018-12-30 | D54: =COUNTIFS(Running!$A:$A,"*",Running!$E:$E,"<="&TODAY(),Running!$E:$E,">="&EDATE($B54,0),Running!$E:$E,"<="&EDATE($C54,0)) -> 6 | E54: =COUNTIFS(Running!$A:$A,"",Running!$G:$G,0,Running!$E:$E,"<="&TODAY(),Running!$E:$E,">="&EDATE($B54,0),Running!$E:$E,"<="&EDATE($C54,0)) -> 1 | F54: 0.857 | G54: =SUMIFS(Running!$F:$F,Running!$A:$A,"*",Running!$E:$E,"<="&TODAY(),Running!$E:$E,">="&EDATE($B54,0),Running!$E:$E,"<="&EDATE($C54,0)) -> 2477 | H54: =SUMIFS(Running!$G:$G,Running!$A:$A,"*",Running!$E:$E,"<="&TODAY(),Running!$E:$E,">="&EDATE($B54,0),Running!$E:$E,"<="&EDATE($C54,0)) -> 23.67 | I54: =TIME(INT((SUMIFS(Running!$K:$K,Running!$E:$E,">="&EDATE($B54,0),Running!$E:$E,"<="&EDATE($C54,0),Running!$A:$A,"*",Running!$E:$E,"<="&TODAY())*60+SUMIFS(Running!$L:$L,Running!$E:$E,">="&EDATE($B54,0),Running!$E:$E,"<="&EDATE($C54,0),Running!$A:$A,"*",Running!$E:$E,"<="&TODAY()))/(60*60)),MOD(MOD(SUMIFS(Running!$K:$K,Running!$E:$E,">="&EDATE($B54,0),Running!$E:$E,"<="&EDATE($C54,0),Running!$A:$A,"*",Running!$E:$E,"<="&TODAY()),60)+INT(SUMIFS(Running!$L:$L,Running!$E:$E,">="&EDATE($B54,0),Running!$E:$E,"<="&EDATE($C54,0),Running!$A:$A,"*",Running!$E:$E,"<="&TODAY())/60),60),MOD(SUMIFS(Running!$L:$L,Running!$E:$E,">="&EDATE($B54,0),Running!$E:$E,"<="&EDATE($C54,0),Running!$A:$A,"*",Running!$E:$E,"<="&TODAY()),60))+INT(INT((SUMIFS(Running!$K:$K,Running!$E:$E,">="&EDATE($B54,0),Running!$E:$E,"<="&EDATE($C54,0),Running!$A:$A,"*",Running!$E:$E,"<="&TODAY())*60+SUMIFS(Running!$L:$L,Running!$E:$E,">="&EDATE($B54,0),Running!$E:$E,"<="&EDATE($C54,0),Running!$A:$A,"*",Running!$E:$E,"<="&TODAY()))/(60*60))/24) -> 0.1420138889 | J54: 00:08:39 | K54: 6.944 | L54: =SUMIFS(Running!$M:$M,Running!$A:$A,"*",Running!$E:$E,"<="&TODAY(),Running!$E:$E,">="&EDATE($B54,0),Running!$E:$E,"<="&EDATE($C54,0)) -> 0 | M54: =SUMIFS(Running!$N:$N,Running!$A:$A,"*",Running!$E:$E,"<="&TODAY(),Running!$E:$E,">="&EDATE($B54,0),Running!$E:$E,"<="&EDATE($C54,0)) -> 1.59 | N54: =TIME(INT((SUMIFS(Running!$R:$R,Running!$E:$E,">="&EDATE($B54,0),Running!$E:$E,"<="&EDATE($C54,0),Running!$A:$A,"*",Running!$E:$E,"<="&TODAY())*60+SUMIFS(Running!$S:$S,Running!$E:$E,">="&EDATE($B54,0),Running!$E:$E,"<="&EDATE($C54,0),Running!$A:$A,"*",Running!$E:$E,"<="&TODAY()))/(60*60)),MOD(MOD(SUMIFS(Running!$R:$R,Running!$E:$E,">="&EDATE($B54,0),Running!$E:$E,"<="&EDATE($C54,0),Running!$A:$A,"*",Running!$E:$E,"<="&TODAY()),60)+INT(SUMIFS(Running!$S:$S,Running!$E:$E,">="&EDATE($B54,0),Running!$E:$E,"<="&EDATE($C54,0),Running!$A:$A,"*",Running!$E:$E,"<="&TODAY())/60),60),MOD(SUMIFS(Running!$S:$S,Running!$E:$E,">="&EDATE($B54,0),Running!$E:$E,"<="&EDATE($C54,0),Running!$A:$A,"*",Running!$E:$E,"<="&TODAY()),60))+INT(INT((SUMIFS(Running!$R:$R,Running!$E:$E,">="&EDATE($B54,0),Running!$E:$E,"<="&EDATE($C54,0),Running!$A:$A,"*",Running!$E:$E,"<="&TODAY())*60+SUMIFS(Running!$S:$S,Running!$E:$E,">="&EDATE($B54,0),Running!$E:$E,"<="&EDATE($C54,0),Running!$A:$A,"*",Running!$E:$E,"<="&TODAY()))/(60*60))/24) -> 0.01956018519 | O54: 00:17:43 | P54: 3.386 | Q54: 2477 | R54: 25.26 | S54: 03:52:40 | T54: 00:09:13 | U54: 6.514
A55: 54 | B55: 2018-12-31 | C55: 2019-01-06 | D55: =COUNTIFS(Running!$A:$A,"*",Running!$E:$E,"<="&TODAY(),Running!$E:$E,">="&EDATE($B55,0),Running!$E:$E,"<="&EDATE($C55,0)) -> 6 | E55: =COUNTIFS(Running!$A:$A,"",Running!$G:$G,0,Running!$E:$E,"<="&TODAY(),Running!$E:$E,">="&EDATE($B55,0),Running!$E:$E,"<="&EDATE($C55,0)) -> 1 | F55: 0.857 | G55: =SUMIFS(Running!$F:$F,Running!$A:$A,"*",Running!$E:$E,"<="&TODAY(),Running!$E:$E,">="&EDATE($B55,0),Running!$E:$E,"<="&EDATE($C55,0)) -> 2980 | H55: =SUMIFS(Running!$G:$G,Running!$A:$A,"*",Running!$E:$E,"<="&TODAY(),Running!$E:$E,">="&EDATE($B55,0),Running!$E:$E,"<="&EDATE($C55,0)) -> 28.82 | I55: =TIME(INT((SUMIFS(Running!$K:$K,Running!$E:$E,">="&EDATE($B55,0),Running!$E:$E,"<="&EDATE($C55,0),Running!$A:$A,"*",Running!$E:$E,"<="&TODAY())*60+SUMIFS(Running!$L:$L,Running!$E:$E,">="&EDATE($B55,0),Running!$E:$E,"<="&EDATE($C55,0),Running!$A:$A,"*",Running!$E:$E,"<="&TODAY()))/(60*60)),MOD(MOD(SUMIFS(Running!$K:$K,Running!$E:$E,">="&EDATE($B55,0),Running!$E:$E,"<="&EDATE($C55,0),Running!$A:$A,"*",Running!$E:$E,"<="&TODAY()),60)+INT(SUMIFS(Running!$L:$L,Running!$E:$E,">="&EDATE($B55,0),Running!$E:$E,"<="&EDATE($C55,0),Running!$A:$A,"*",Running!$E:$E,"<="&TODAY())/60),60),MOD(SUMIFS(Running!$L:$L,Running!$E:$E,">="&EDATE($B55,0),Running!$E:$E,"<="&EDATE($C55,0),Running!$A:$A,"*",Running!$E:$E,"<="&TODAY()),60))+INT(INT((SUMIFS(Running!$K:$K,Running!$E:$E,">="&EDATE($B55,0),Running!$E:$E,"<="&EDATE($C55,0),Running!$A:$A,"*",Running!$E:$E,"<="&TODAY())*60+SUMIFS(Running!$L:$L,Running!$E:$E,">="&EDATE($B55,0),Running!$E:$E,"<="&EDATE($C55,0),Running!$A:$A,"*",Running!$E:$E,"<="&TODAY()))/(60*60))/24) -> 0.1777777778 | J55: 00:08:53 | K55: 6.754 | L55: =SUMIFS(Running!$M:$M,Running!$A:$A,"*",Running!$E:$E,"<="&TODAY(),Running!$E:$E,">="&EDATE($B55,0),Running!$E:$E,"<="&EDATE($C55,0)) -> 0 | M55: =SUMIFS(Running!$N:$N,Running!$A:$A,"*",Running!$E:$E,"<="&TODAY(),Running!$E:$E,">="&EDATE($B55,0),Running!$E:$E,"<="&EDATE($C55,0)) -> 1.52 | N55: =TIME(INT((SUMIFS(Running!$R:$R,Running!$E:$E,">="&EDATE($B55,0),Running!$E:$E,"<="&EDATE($C55,0),Running!$A:$A,"*",Running!$E:$E,"<="&TODAY())*60+SUMIFS(Running!$S:$S,Running!$E:$E,">="&EDATE($B55,0),Running!$E:$E,"<="&EDATE($C55,0),Running!$A:$A,"*",Running!$E:$E,"<="&TODAY()))/(60*60)),MOD(MOD(SUMIFS(Running!$R:$R,Running!$E:$E,">="&EDATE($B55,0),Running!$E:$E,"<="&EDATE($C55,0),Running!$A:$A,"*",Running!$E:$E,"<="&TODAY()),60)+INT(SUMIFS(Running!$S:$S,Running!$E:$E,">="&EDATE($B55,0),Running!$E:$E,"<="&EDATE($C55,0),Running!$A:$A,"*",Running!$E:$E,"<="&TODAY())/60),60),MOD(SUMIFS(Running!$S:$S,Running!$E:$E,">="&EDATE($B55,0),Running!$E:$E,"<="&EDATE($C55,0),Running!$A:$A,"*",Running!$E:$E,"<="&TODAY()),60))+INT(INT((SUMIFS(Running!$R:$R,Running!$E:$E,">="&EDATE($B55,0),Running!$E:$E,"<="&EDATE($C55,0),Running!$A:$A,"*",Running!$E:$E,"<="&TODAY())*60+SUMIFS(Running!$S:$S,Running!$E:$E,">="&EDATE($B55,0),Running!$E:$E,"<="&EDATE($C55,0),Running!$A:$A,"*",Running!$E:$E,"<="&TODAY()))/(60*60))/24) -> 0.01940972222 | O55: 00:18:24 | P55: 3.262 | Q55: 2980 | R55: 30.34 | S55: 04:43:57 | T55: 00:09:22 | U55: 6.41
A56: 55 | B56: 2019-01-07 | C56: 2019-01-13 | D56: =COUNTIFS(Running!$A:$A,"*",Running!$E:$E,"<="&TODAY(),Running!$E:$E,">="&EDATE($B56,0),Running!$E:$E,"<="&EDATE($C56,0)) -> 5 | E56: =COUNTIFS(Running!$A:$A,"",Running!$G:$G,0,Running!$E:$E,"<="&TODAY(),Running!$E:$E,">="&EDATE($B56,0),Running!$E:$E,"<="&EDATE($C56,0)) -> 2 | F56: 0.714 | G56: =SUMIFS(Running!$F:$F,Running!$A:$A,"*",Running!$E:$E,"<="&TODAY(),Running!$E:$E,">="&EDATE($B56,0),Running!$E:$E,"<="&EDATE($C56,0)) -> 2531 | H56: =SUMIFS(Running!$G:$G,Running!$A:$A,"*",Running!$E:$E,"<="&TODAY(),Running!$E:$E,">="&EDATE($B56,0),Running!$E:$E,"<="&EDATE($C56,0)) -> 24.42 | I56: =TIME(INT((SUMIFS(Running!$K:$K,Running!$E:$E,">="&EDATE($B56,0),Running!$E:$E,"<="&EDATE($C56,0),Running!$A:$A,"*",Running!$E:$E,"<="&TODAY())*60+SUMIFS(Running!$L:$L,Running!$E:$E,">="&EDATE($B56,0),Running!$E:$E,"<="&EDATE($C56,0),Running!$A:$A,"*",Running!$E:$E,"<="&TODAY()))/(60*60)),MOD(MOD(SUMIFS(Running!$K:$K,Running!$E:$E,">="&EDATE($B56,0),Running!$E:$E,"<="&EDATE($C56,0),Running!$A:$A,"*",Running!$E:$E,"<="&TODAY()),60)+INT(SUMIFS(Running!$L:$L,Running!$E:$E,">="&EDATE($B56,0),Running!$E:$E,"<="&EDATE($C56,0),Running!$A:$A,"*",Running!$E:$E,"<="&TODAY())/60),60),MOD(SUMIFS(Running!$L:$L,Running!$E:$E,">="&EDATE($B56,0),Running!$E:$E,"<="&EDATE($C56,0),Running!$A:$A,"*",Running!$E:$E,"<="&TODAY()),60))+INT(INT((SUMIFS(Running!$K:$K,Running!$E:$E,">="&EDATE($B56,0),Running!$E:$E,"<="&EDATE($C56,0),Running!$A:$A,"*",Running!$E:$E,"<="&TODAY())*60+SUMIFS(Running!$L:$L,Running!$E:$E,">="&EDATE($B56,0),Running!$E:$E,"<="&EDATE($C56,0),Running!$A:$A,"*",Running!$E:$E,"<="&TODAY()))/(60*60))/24) -> 0.1479166667 | J56: 00:08:44 | K56: 6.878 | L56: =SUMIFS(Running!$M:$M,Running!$A:$A,"*",Running!$E:$E,"<="&TODAY(),Running!$E:$E,">="&EDATE($B56,0),Running!$E:$E,"<="&EDATE($C56,0)) -> 0 | M56: =SUMIFS(Running!$N:$N,Running!$A:$A,"*",Running!$E:$E,"<="&TODAY(),Running!$E:$E,">="&EDATE($B56,0),Running!$E:$E,"<="&EDATE($C56,0)) -> 1.31 | N56: =TIME(INT((SUMIFS(Running!$R:$R,Running!$E:$E,">="&EDATE($B56,0),Running!$E:$E,"<="&EDATE($C56,0),Running!$A:$A,"*",Running!$E:$E,"<="&TODAY())*60+SUMIFS(Running!$S:$S,Running!$E:$E,">="&EDATE($B56,0),Running!$E:$E,"<="&EDATE($C56,0),Running!$A:$A,"*",Running!$E:$E,"<="&TODAY()))/(60*60)),MOD(MOD(SUMIFS(Running!$R:$R,Running!$E:$E,">="&EDATE($B56,0),Running!$E:$E,"<="&EDATE($C56,0),Running!$A:$A,"*",Running!$E:$E,"<="&TODAY()),60)+INT(SUMIFS(Running!$S:$S,Running!$E:$E,">="&EDATE($B56,0),Running!$E:$E,"<="&EDATE($C56,0),Running!$A:$A,"*",Running!$E:$E,"<="&TODAY())/60),60),MOD(SUMIFS(Running!$S:$S,Running!$E:$E,">="&EDATE($B56,0),Running!$E:$E,"<="&EDATE($C56,0),Running!$A:$A,"*",Running!$E:$E,"<="&TODAY()),60))+INT(INT((SUMIFS(Running!$R:$R,Running!$E:$E,">="&EDATE($B56,0),Running!$E:$E,"<="&EDATE($C56,0),Running!$A:$A,"*",Running!$E:$E,"<="&TODAY())*60+SUMIFS(Running!$S:$S,Running!$E:$E,">="&EDATE($B56,0),Running!$E:$E,"<="&EDATE($C56,0),Running!$A:$A,"*",Running!$E:$E,"<="&TODAY()))/(60*60))/24) -> 0.01585648148 | O56: 00:17:26 | P56: 3.442 | Q56: 2531 | R56: 25.73 | S56: 03:55:50 | T56: 00:09:10 | U56: 6.546
A57: 56 | B57: 2019-01-14 | C57: 2019-01-20 | D57: =COUNTIFS(Running!$A:$A,"*",Running!$E:$E,"<="&TODAY(),Running!$E:$E,">="&EDATE($B57,0),Running!$E:$E,"<="&EDATE($C57,0)) -> 6 | E57: =COUNTIFS(Running!$A:$A,"",Running!$G:$G,0,Running!$E:$E,"<="&TODAY(),Running!$E:$E,">="&EDATE($B57,0),Running!$E:$E,"<="&EDATE($C57,0)) -> 1 | F57: 0.857 | G57: =SUMIFS(Running!$F:$F,Running!$A:$A,"*",Running!$E:$E,"<="&TODAY(),Running!$E:$E,">="&EDATE($B57,0),Running!$E:$E,"<="&EDATE($C57,0)) -> 3433 | H57: =SUMIFS(Running!$G:$G,Running!$A:$A,"*",Running!$E:$E,"<="&TODAY(),Running!$E:$E,">="&EDATE($B57,0),Running!$E:$E,"<="&EDATE($C57,0)) -> 28.79 | I57: =TIME(INT((SUMIFS(Running!$K:$K,Running!$E:$E,">="&EDATE($B57,0),Running!$E:$E,"<="&EDATE($C57,0),Running!$A:$A,"*",Running!$E:$E,"<="&TODAY())*60+SUMIFS(Running!$L:$L,Running!$E:$E,">="&EDATE($B57,0),Running!$E:$E,"<="&EDATE($C57,0),Running!$A:$A,"*",Running!$E:$E,"<="&TODAY()))/(60*60)),MOD(MOD(SUMIFS(Running!$K:$K,Running!$E:$E,">="&EDATE($B57,0),Running!$E:$E,"<="&EDATE($C57,0),Running!$A:$A,"*",Running!$E:$E,"<="&TODAY()),60)+INT(SUMIFS(Running!$L:$L,Running!$E:$E,">="&EDATE($B57,0),Running!$E:$E,"<="&EDATE($C57,0),Running!$A:$A,"*",Running!$E:$E,"<="&TODAY())/60),60),MOD(SUMIFS(Running!$L:$L,Running!$E:$E,">="&EDATE($B57,0),Running!$E:$E,"<="&EDATE($C57,0),Running!$A:$A,"*",Running!$E:$E,"<="&TODAY()),60))+INT(INT((SUMIFS(Running!$K:$K,Running!$E:$E,">="&EDATE($B57,0),Running!$E:$E,"<="&EDATE($C57,0),Running!$A:$A,"*",Running!$E:$E,"<="&TODAY())*60+SUMIFS(Running!$L:$L,Running!$E:$E,">="&EDATE($B57,0),Running!$E:$E,"<="&EDATE($C57,0),Running!$A:$A,"*",Running!$E:$E,"<="&TODAY()))/(60*60))/24) -> 0.1611111111 | J57: 00:08:04 | K57: 7.445 | L57: =SUMIFS(Running!$M:$M,Running!$A:$A,"*",Running!$E:$E,"<="&TODAY(),Running!$E:$E,">="&EDATE($B57,0),Running!$E:$E,"<="&EDATE($C57,0)) -> 139 | M57: =SUMIFS(Running!$N:$N,Running!$A:$A,"*",Running!$E:$E,"<="&TODAY(),Running!$E:$E,">="&EDATE($B57,0),Running!$E:$E,"<="&EDATE($C57,0)) -> 1.93 | N57: =TIME(INT((SUMIFS(Running!$R:$R,Running!$E:$E,">="&EDATE($B57,0),Running!$E:$E,"<="&EDATE($C57,0),Running!$A:$A,"*",Running!$E:$E,"<="&TODAY())*60+SUMIFS(Running!$S:$S,Running!$E:$E,">="&EDATE($B57,0),Running!$E:$E,"<="&EDATE($C57,0),Running!$A:$A,"*",Running!$E:$E,"<="&TODAY()))/(60*60)),MOD(MOD(SUMIFS(Running!$R:$R,Running!$E:$E,">="&EDATE($B57,0),Running!$E:$E,"<="&EDATE($C57,0),Running!$A:$A,"*",Running!$E:$E,"<="&TODAY()),60)+INT(SUMIFS(Running!$S:$S,Running!$E:$E,">="&EDATE($B57,0),Running!$E:$E,"<="&EDATE($C57,0),Running!$A:$A,"*",Running!$E:$E,"<="&TODAY())/60),60),MOD(SUMIFS(Running!$S:$S,Running!$E:$E,">="&EDATE($B57,0),Running!$E:$E,"<="&EDATE($C57,0),Running!$A:$A,"*",Running!$E:$E,"<="&TODAY()),60))+INT(INT((SUMIFS(Running!$R:$R,Running!$E:$E,">="&EDATE($B57,0),Running!$E:$E,"<="&EDATE($C57,0),Running!$A:$A,"*",Running!$E:$E,"<="&TODAY())*60+SUMIFS(Running!$S:$S,Running!$E:$E,">="&EDATE($B57,0),Running!$E:$E,"<="&EDATE($C57,0),Running!$A:$A,"*",Running!$E:$E,"<="&TODAY()))/(60*60))/24) -> 0.02013888889 | O57: 00:15:02 | P57: 3.993 | Q57: 3572 | R57: 30.72 | S57: 04:21:00 | T57: 00:08:30 | U57: 7.062
A58: 57 | B58: 2019-01-21 | C58: 2019-01-27 | D58: =COUNTIFS(Running!$A:$A,"*",Running!$E:$E,"<="&TODAY(),Running!$E:$E,">="&EDATE($B58,0),Running!$E:$E,"<="&EDATE($C58,0)) -> 3 | E58: =COUNTIFS(Running!$A:$A,"",Running!$G:$G,0,Running!$E:$E,"<="&TODAY(),Running!$E:$E,">="&EDATE($B58,0),Running!$E:$E,"<="&EDATE($C58,0)) -> 4 | F58: 0.428 | G58: =SUMIFS(Running!$F:$F,Running!$A:$A,"*",Running!$E:$E,"<="&TODAY(),Running!$E:$E,">="&EDATE($B58,0),Running!$E:$E,"<="&EDATE($C58,0)) -> 1310 | H58: =SUMIFS(Running!$G:$G,Running!$A:$A,"*",Running!$E:$E,"<="&TODAY(),Running!$E:$E,">="&EDATE($B58,0),Running!$E:$E,"<="&EDATE($C58,0)) -> 11 | I58: =TIME(INT((SUMIFS(Running!$K:$K,Running!$E:$E,">="&EDATE($B58,0),Running!$E:$E,"<="&EDATE($C58,0),Running!$A:$A,"*",Running!$E:$E,"<="&TODAY())*60+SUMIFS(Running!$L:$L,Running!$E:$E,">="&EDATE($B58,0),Running!$E:$E,"<="&EDATE($C58,0),Running!$A:$A,"*",Running!$E:$E,"<="&TODAY()))/(60*60)),MOD(MOD(SUMIFS(Running!$K:$K,Running!$E:$E,">="&EDATE($B58,0),Running!$E:$E,"<="&EDATE($C58,0),Running!$A:$A,"*",Running!$E:$E,"<="&TODAY()),60)+INT(SUMIFS(Running!$L:$L,Running!$E:$E,">="&EDATE($B58,0),Running!$E:$E,"<="&EDATE($C58,0),Running!$A:$A,"*",Running!$E:$E,"<="&TODAY())/60),60),MOD(SUMIFS(Running!$L:$L,Running!$E:$E,">="&EDATE($B58,0),Running!$E:$E,"<="&EDATE($C58,0),Running!$A:$A,"*",Running!$E:$E,"<="&TODAY()),60))+INT(INT((SUMIFS(Running!$K:$K,Running!$E:$E,">="&EDATE($B58,0),Running!$E:$E,"<="&EDATE($C58,0),Running!$A:$A,"*",Running!$E:$E,"<="&TODAY())*60+SUMIFS(Running!$L:$L,Running!$E:$E,">="&EDATE($B58,0),Running!$E:$E,"<="&EDATE($C58,0),Running!$A:$A,"*",Running!$E:$E,"<="&TODAY()))/(60*60))/24) -> 0.06111111111 | J58: 00:08:00 | K58: 7.5 | L58: =SUMIFS(Running!$M:$M,Running!$A:$A,"*",Running!$E:$E,"<="&TODAY(),Running!$E:$E,">="&EDATE($B58,0),Running!$E:$E,"<="&EDATE($C58,0)) -> 68 | M58: =SUMIFS(Running!$N:$N,Running!$A:$A,"*",Running!$E:$E,"<="&TODAY(),Running!$E:$E,">="&EDATE($B58,0),Running!$E:$E,"<="&EDATE($C58,0)) -> 0.93 | N58: =TIME(INT((SUMIFS(Running!$R:$R,Running!$E:$E,">="&EDATE($B58,0),Running!$E:$E,"<="&EDATE($C58,0),Running!$A:$A,"*",Running!$E:$E,"<="&TODAY())*60+SUMIFS(Running!$S:$S,Running!$E:$E,">="&EDATE($B58,0),Running!$E:$E,"<="&EDATE($C58,0),Running!$A:$A,"*",Running!$E:$E,"<="&TODAY()))/(60*60)),MOD(MOD(SUMIFS(Running!$R:$R,Running!$E:$E,">="&EDATE($B58,0),Running!$E:$E,"<="&EDATE($C58,0),Running!$A:$A,"*",Running!$E:$E,"<="&TODAY()),60)+INT(SUMIFS(Running!$S:$S,Running!$E:$E,">="&EDATE($B58,0),Running!$E:$E,"<="&EDATE($C58,0),Running!$A:$A,"*",Running!$E:$E,"<="&TODAY())/60),60),MOD(SUMIFS(Running!$S:$S,Running!$E:$E,">="&EDATE($B58,0),Running!$E:$E,"<="&EDATE($C58,0),Running!$A:$A,"*",Running!$E:$E,"<="&TODAY()),60))+INT(INT((SUMIFS(Running!$R:$R,Running!$E:$E,">="&EDATE($B58,0),Running!$E:$E,"<="&EDATE($C58,0),Running!$A:$A,"*",Running!$E:$E,"<="&TODAY())*60+SUMIFS(Running!$S:$S,Running!$E:$E,">="&EDATE($B58,0),Running!$E:$E,"<="&EDATE($C58,0),Running!$A:$A,"*",Running!$E:$E,"<="&TODAY()))/(60*60))/24) -> 0.009722222222 | O58: 00:15:04 | P58: 3.985 | Q58: 1378 | R58: 11.93 | S58: 01:42:00 | T58: 00:08:33 | U58: 7.017
A59: 58 | B59: 2019-01-28 | C59: 2019-02-03 | D59: =COUNTIFS(Running!$A:$A,"*",Running!$E:$E,"<="&TODAY(),Running!$E:$E,">="&EDATE($B59,0),Running!$E:$E,"<="&EDATE($C59,0)) -> 5 | E59: =COUNTIFS(Running!$A:$A,"",Running!$G:$G,0,Running!$E:$E,"<="&TODAY(),Running!$E:$E,">="&EDATE($B59,0),Running!$E:$E,"<="&EDATE($C59,0)) -> 2 | F59: 0.714 | G59: =SUMIFS(Running!$F:$F,Running!$A:$A,"*",Running!$E:$E,"<="&TODAY(),Running!$E:$E,">="&EDATE($B59,0),Running!$E:$E,"<="&EDATE($C59,0)) -> 2346 | H59: =SUMIFS(Running!$G:$G,Running!$A:$A,"*",Running!$E:$E,"<="&TODAY(),Running!$E:$E,">="&EDATE($B59,0),Running!$E:$E,"<="&EDATE($C59,0)) -> 19.71 | I59: =TIME(INT((SUMIFS(Running!$K:$K,Running!$E:$E,">="&EDATE($B59,0),Running!$E:$E,"<="&EDATE($C59,0),Running!$A:$A,"*",Running!$E:$E,"<="&TODAY())*60+SUMIFS(Running!$L:$L,Running!$E:$E,">="&EDATE($B59,0),Running!$E:$E,"<="&EDATE($C59,0),Running!$A:$A,"*",Running!$E:$E,"<="&TODAY()))/(60*60)),MOD(MOD(SUMIFS(Running!$K:$K,Running!$E:$E,">="&EDATE($B59,0),Running!$E:$E,"<="&EDATE($C59,0),Running!$A:$A,"*",Running!$E:$E,"<="&TODAY()),60)+INT(SUMIFS(Running!$L:$L,Running!$E:$E,">="&EDATE($B59,0),Running!$E:$E,"<="&EDATE($C59,0),Running!$A:$A,"*",Running!$E:$E,"<="&TODAY())/60),60),MOD(SUMIFS(Running!$L:$L,Running!$E:$E,">="&EDATE($B59,0),Running!$E:$E,"<="&EDATE($C59,0),Running!$A:$A,"*",Running!$E:$E,"<="&TODAY()),60))+INT(INT((SUMIFS(Running!$K:$K,Running!$E:$E,">="&EDATE($B59,0),Running!$E:$E,"<="&EDATE($C59,0),Running!$A:$A,"*",Running!$E:$E,"<="&TODAY())*60+SUMIFS(Running!$L:$L,Running!$E:$E,">="&EDATE($B59,0),Running!$E:$E,"<="&EDATE($C59,0),Running!$A:$A,"*",Running!$E:$E,"<="&TODAY()))/(60*60))/24) -> 0.1083333333 | J59: 00:07:55 | K59: 7.58 | L59: =SUMIFS(Running!$M:$M,Running!$A:$A,"*",Running!$E:$E,"<="&TODAY(),Running!$E:$E,">="&EDATE($B59,0),Running!$E:$E,"<="&EDATE($C59,0)) -> 116 | M59: =SUMIFS(Running!$N:$N,Running!$A:$A,"*",Running!$E:$E,"<="&TODAY(),Running!$E:$E,">="&EDATE($B59,0),Running!$E:$E,"<="&EDATE($C59,0)) -> 1.61 | N59: =TIME(INT((SUMIFS(Running!$R:$R,Running!$E:$E,">="&EDATE($B59,0),Running!$E:$E,"<="&EDATE($C59,0),Running!$A:$A,"*",Running!$E:$E,"<="&TODAY())*60+SUMIFS(Running!$S:$S,Running!$E:$E,">="&EDATE($B59,0),Running!$E:$E,"<="&EDATE($C59,0),Running!$A:$A,"*",Running!$E:$E,"<="&TODAY()))/(60*60)),MOD(MOD(SUMIFS(Running!$R:$R,Running!$E:$E,">="&EDATE($B59,0),Running!$E:$E,"<="&EDATE($C59,0),Running!$A:$A,"*",Running!$E:$E,"<="&TODAY()),60)+INT(SUMIFS(Running!$S:$S,Running!$E:$E,">="&EDATE($B59,0),Running!$E:$E,"<="&EDATE($C59,0),Running!$A:$A,"*",Running!$E:$E,"<="&TODAY())/60),60),MOD(SUMIFS(Running!$S:$S,Running!$E:$E,">="&EDATE($B59,0),Running!$E:$E,"<="&EDATE($C59,0),Running!$A:$A,"*",Running!$E:$E,"<="&TODAY()),60))+INT(INT((SUMIFS(Running!$R:$R,Running!$E:$E,">="&EDATE($B59,0),Running!$E:$E,"<="&EDATE($C59,0),Running!$A:$A,"*",Running!$E:$E,"<="&TODAY())*60+SUMIFS(Running!$S:$S,Running!$E:$E,">="&EDATE($B59,0),Running!$E:$E,"<="&EDATE($C59,0),Running!$A:$A,"*",Running!$E:$E,"<="&TODAY()))/(60*60))/24) -> 0.01666666667 | O59: 00:14:55 | P59: 4.025 | Q59: 2462 | R59: 21.32 | S59: 03:00:00 | T59: 00:08:27 | U59: 7.106
A60: 59 | B60: 2019-02-04 | C60: 2019-02-10 | D60: =COUNTIFS(Running!$A:$A,"*",Running!$E:$E,"<="&TODAY(),Running!$E:$E,">="&EDATE($B60,0),Running!$E:$E,"<="&EDATE($C60,0)) -> 2 | E60: =COUNTIFS(Running!$A:$A,"",Running!$G:$G,0,Running!$E:$E,"<="&TODAY(),Running!$E:$E,">="&EDATE($B60,0),Running!$E:$E,"<="&EDATE($C60,0)) -> 5 | F60: 0.285 | G60: =SUMIFS(Running!$F:$F,Running!$A:$A,"*",Running!$E:$E,"<="&TODAY(),Running!$E:$E,">="&EDATE($B60,0),Running!$E:$E,"<="&EDATE($C60,0)) -> 1372 | H60: =SUMIFS(Running!$G:$G,Running!$A:$A,"*",Running!$E:$E,"<="&TODAY(),Running!$E:$E,">="&EDATE($B60,0),Running!$E:$E,"<="&EDATE($C60,0)) -> 11.5 | I60: =TIME(INT((SUMIFS(Running!$K:$K,Running!$E:$E,">="&EDATE($B60,0),Running!$E:$E,"<="&EDATE($C60,0),Running!$A:$A,"*",Running!$E:$E,"<="&TODAY())*60+SUMIFS(Running!$L:$L,Running!$E:$E,">="&EDATE($B60,0),Running!$E:$E,"<="&EDATE($C60,0),Running!$A:$A,"*",Running!$E:$E,"<="&TODAY()))/(60*60)),MOD(MOD(SUMIFS(Running!$K:$K,Running!$E:$E,">="&EDATE($B60,0),Running!$E:$E,"<="&EDATE($C60,0),Running!$A:$A,"*",Running!$E:$E,"<="&TODAY()),60)+INT(SUMIFS(Running!$L:$L,Running!$E:$E,">="&EDATE($B60,0),Running!$E:$E,"<="&EDATE($C60,0),Running!$A:$A,"*",Running!$E:$E,"<="&TODAY())/60),60),MOD(SUMIFS(Running!$L:$L,Running!$E:$E,">="&EDATE($B60,0),Running!$E:$E,"<="&EDATE($C60,0),Running!$A:$A,"*",Running!$E:$E,"<="&TODAY()),60))+INT(INT((SUMIFS(Running!$K:$K,Running!$E:$E,">="&EDATE($B60,0),Running!$E:$E,"<="&EDATE($C60,0),Running!$A:$A,"*",Running!$E:$E,"<="&TODAY())*60+SUMIFS(Running!$L:$L,Running!$E:$E,">="&EDATE($B60,0),Running!$E:$E,"<="&EDATE($C60,0),Running!$A:$A,"*",Running!$E:$E,"<="&TODAY()))/(60*60))/24) -> 0.06527777778 | J60: 00:08:11 | K60: 7.34 | L60: =SUMIFS(Running!$M:$M,Running!$A:$A,"*",Running!$E:$E,"<="&TODAY(),Running!$E:$E,">="&EDATE($B60,0),Running!$E:$E,"<="&EDATE($C60,0)) -> 49 | M60: =SUMIFS(Running!$N:$N,Running!$A:$A,"*",Running!$E:$E,"<="&TODAY(),Running!$E:$E,">="&EDATE($B60,0),Running!$E:$E,"<="&EDATE($C60,0)) -> 0.66 | N60: =TIME(INT((SUMIFS(Running!$R:$R,Running!$E:$E,">="&EDATE($B60,0),Running!$E:$E,"<="&EDATE($C60,0),Running!$A:$A,"*",Running!$E:$E,"<="&TODAY())*60+SUMIFS(Running!$S:$S,Running!$E:$E,">="&EDATE($B60,0),Running!$E:$E,"<="&EDATE($C60,0),Running!$A:$A,"*",Running!$E:$E,"<="&TODAY()))/(60*60)),MOD(MOD(SUMIFS(Running!$R:$R,Running!$E:$E,">="&EDATE($B60,0),Running!$E:$E,"<="&EDATE($C60,0),Running!$A:$A,"*",Running!$E:$E,"<="&TODAY()),60)+INT(SUMIFS(Running!$S:$S,Running!$E:$E,">="&EDATE($B60,0),Running!$E:$E,"<="&EDATE($C60,0),Running!$A:$A,"*",Running!$E:$E,"<="&TODAY())/60),60),MOD(SUMIFS(Running!$S:$S,Running!$E:$E,">="&EDATE($B60,0),Running!$E:$E,"<="&EDATE($C60,0),Running!$A:$A,"*",Running!$E:$E,"<="&TODAY()),60))+INT(INT((SUMIFS(Running!$R:$R,Running!$E:$E,">="&EDATE($B60,0),Running!$E:$E,"<="&EDATE($C60,0),Running!$A:$A,"*",Running!$E:$E,"<="&TODAY())*60+SUMIFS(Running!$S:$S,Running!$E:$E,">="&EDATE($B60,0),Running!$E:$E,"<="&EDATE($C60,0),Running!$A:$A,"*",Running!$E:$E,"<="&TODAY()))/(60*60))/24) -> 0.006944444444 | O60: 00:15:10 | P60: 3.96 | Q60: 1421 | R60: 12.16 | S60: 01:44:00 | T60: 00:08:34 | U60: 7.015
A61: 60 | B61: 2019-02-11 | C61: 2019-02-17 | D61: =COUNTIFS(Running!$A:$A,"*",Running!$E:$E,"<="&TODAY(),Running!$E:$E,">="&EDATE($B61,0),Running!$E:$E,"<="&EDATE($C61,0)) -> 4 | E61: =COUNTIFS(Running!$A:$A,"",Running!$G:$G,0,Running!$E:$E,"<="&TODAY(),Running!$E:$E,">="&EDATE($B61,0),Running!$E:$E,"<="&EDATE($C61,0)) -> 3 | F61: 0.571 | G61: =SUMIFS(Running!$F:$F,Running!$A:$A,"*",Running!$E:$E,"<="&TODAY(),Running!$E:$E,">="&EDATE($B61,0),Running!$E:$E,"<="&EDATE($C61,0)) -> 2046 | H61: =SUMIFS(Running!$G:$G,Running!$A:$A,"*",Running!$E:$E,"<="&TODAY(),Running!$E:$E,">="&EDATE($B61,0),Running!$E:$E,"<="&EDATE($C61,0)) -> 17.19 | I61: =TIME(INT((SUMIFS(Running!$K:$K,Running!$E:$E,">="&EDATE($B61,0),Running!$E:$E,"<="&EDATE($C61,0),Running!$A:$A,"*",Running!$E:$E,"<="&TODAY())*60+SUMIFS(Running!$L:$L,Running!$E:$E,">="&EDATE($B61,0),Running!$E:$E,"<="&EDATE($C61,0),Running!$A:$A,"*",Running!$E:$E,"<="&TODAY()))/(60*60)),MOD(MOD(SUMIFS(Running!$K:$K,Running!$E:$E,">="&EDATE($B61,0),Running!$E:$E,"<="&EDATE($C61,0),Running!$A:$A,"*",Running!$E:$E,"<="&TODAY()),60)+INT(SUMIFS(Running!$L:$L,Running!$E:$E,">="&EDATE($B61,0),Running!$E:$E,"<="&EDATE($C61,0),Running!$A:$A,"*",Running!$E:$E,"<="&TODAY())/60),60),MOD(SUMIFS(Running!$L:$L,Running!$E:$E,">="&EDATE($B61,0),Running!$E:$E,"<="&EDATE($C61,0),Running!$A:$A,"*",Running!$E:$E,"<="&TODAY()),60))+INT(INT((SUMIFS(Running!$K:$K,Running!$E:$E,">="&EDATE($B61,0),Running!$E:$E,"<="&EDATE($C61,0),Running!$A:$A,"*",Running!$E:$E,"<="&TODAY())*60+SUMIFS(Running!$L:$L,Running!$E:$E,">="&EDATE($B61,0),Running!$E:$E,"<="&EDATE($C61,0),Running!$A:$A,"*",Running!$E:$E,"<="&TODAY()))/(60*60))/24) -> 0.09375 | J61: 00:07:52 | K61: 7.64 | L61: =SUMIFS(Running!$M:$M,Running!$A:$A,"*",Running!$E:$E,"<="&TODAY(),Running!$E:$E,">="&EDATE($B61,0),Running!$E:$E,"<="&EDATE($C61,0)) -> 86 | M61: =SUMIFS(Running!$N:$N,Running!$A:$A,"*",Running!$E:$E,"<="&TODAY(),Running!$E:$E,">="&EDATE($B61,0),Running!$E:$E,"<="&EDATE($C61,0)) -> 1.2 | N61: =TIME(INT((SUMIFS(Running!$R:$R,Running!$E:$E,">="&EDATE($B61,0),Running!$E:$E,"<="&EDATE($C61,0),Running!$A:$A,"*",Running!$E:$E,"<="&TODAY())*60+SUMIFS(Running!$S:$S,Running!$E:$E,">="&EDATE($B61,0),Running!$E:$E,"<="&EDATE($C61,0),Running!$A:$A,"*",Running!$E:$E,"<="&TODAY()))/(60*60)),MOD(MOD(SUMIFS(Running!$R:$R,Running!$E:$E,">="&EDATE($B61,0),Running!$E:$E,"<="&EDATE($C61,0),Running!$A:$A,"*",Running!$E:$E,"<="&TODAY()),60)+INT(SUMIFS(Running!$S:$S,Running!$E:$E,">="&EDATE($B61,0),Running!$E:$E,"<="&EDATE($C61,0),Running!$A:$A,"*",Running!$E:$E,"<="&TODAY())/60),60),MOD(SUMIFS(Running!$S:$S,Running!$E:$E,">="&EDATE($B61,0),Running!$E:$E,"<="&EDATE($C61,0),Running!$A:$A,"*",Running!$E:$E,"<="&TODAY()),60))+INT(INT((SUMIFS(Running!$R:$R,Running!$E:$E,">="&EDATE($B61,0),Running!$E:$E,"<="&EDATE($C61,0),Running!$A:$A,"*",Running!$E:$E,"<="&TODAY())*60+SUMIFS(Running!$S:$S,Running!$E:$E,">="&EDATE($B61,0),Running!$E:$E,"<="&EDATE($C61,0),Running!$A:$A,"*",Running!$E:$E,"<="&TODAY()))/(60*60))/24) -> 0.0125 | O61: 00:15:00 | P61: 4 | Q61: 2132 | R61: 18.39 | S61: 02:33:00 | T61: 00:08:20 | U61: 7.211
A62: 61 | B62: 2019-02-18 | C62: 2019-02-24 | D62: =COUNTIFS(Running!$A:$A,"*",Running!$E:$E,"<="&TODAY(),Running!$E:$E,">="&EDATE($B62,0),Running!$E:$E,"<="&EDATE($C62,0)) -> 5 | E62: =COUNTIFS(Running!$A:$A,"",Running!$G:$G,0,Running!$E:$E,"<="&TODAY(),Running!$E:$E,">="&EDATE($B62,0),Running!$E:$E,"<="&EDATE($C62,0)) -> 2 | F62: 0.714 | G62: =SUMIFS(Running!$F:$F,Running!$A:$A,"*",Running!$E:$E,"<="&TODAY(),Running!$E:$E,">="&EDATE($B62,0),Running!$E:$E,"<="&EDATE($C62,0)) -> 2303 | H62: =SUMIFS(Running!$G:$G,Running!$A:$A,"*",Running!$E:$E,"<="&TODAY(),Running!$E:$E,">="&EDATE($B62,0),Running!$E:$E,"<="&EDATE($C62,0)) -> 19.34 | I62: =TIME(INT((SUMIFS(Running!$K:$K,Running!$E:$E,">="&EDATE($B62,0),Running!$E:$E,"<="&EDATE($C62,0),Running!$A:$A,"*",Running!$E:$E,"<="&TODAY())*60+SUMIFS(Running!$L:$L,Running!$E:$E,">="&EDATE($B62,0),Running!$E:$E,"<="&EDATE($C62,0),Running!$A:$A,"*",Running!$E:$E,"<="&TODAY()))/(60*60)),MOD(MOD(SUMIFS(Running!$K:$K,Running!$E:$E,">="&EDATE($B62,0),Running!$E:$E,"<="&EDATE($C62,0),Running!$A:$A,"*",Running!$E:$E,"<="&TODAY()),60)+INT(SUMIFS(Running!$L:$L,Running!$E:$E,">="&EDATE($B62,0),Running!$E:$E,"<="&EDATE($C62,0),Running!$A:$A,"*",Running!$E:$E,"<="&TODAY())/60),60),MOD(SUMIFS(Running!$L:$L,Running!$E:$E,">="&EDATE($B62,0),Running!$E:$E,"<="&EDATE($C62,0),Running!$A:$A,"*",Running!$E:$E,"<="&TODAY()),60))+INT(INT((SUMIFS(Running!$K:$K,Running!$E:$E,">="&EDATE($B62,0),Running!$E:$E,"<="&EDATE($C62,0),Running!$A:$A,"*",Running!$E:$E,"<="&TODAY())*60+SUMIFS(Running!$L:$L,Running!$E:$E,">="&EDATE($B62,0),Running!$E:$E,"<="&EDATE($C62,0),Running!$A:$A,"*",Running!$E:$E,"<="&TODAY()))/(60*60))/24) -> 0.1069444444 | J62: 00:07:58 | K62: 7.535 | L62: =SUMIFS(Running!$M:$M,Running!$A:$A,"*",Running!$E:$E,"<="&TODAY(),Running!$E:$E,">="&EDATE($B62,0),Running!$E:$E,"<="&EDATE($C62,0)) -> 107 | M62: =SUMIFS(Running!$N:$N,Running!$A:$A,"*",Running!$E:$E,"<="&TODAY(),Running!$E:$E,">="&EDATE($B62,0),Running!$E:$E,"<="&EDATE($C62,0)) -> 1.47 | N62: =TIME(INT((SUMIFS(Running!$R:$R,Running!$E:$E,">="&EDATE($B62,0),Running!$E:$E,"<="&EDATE($C62,0),Running!$A:$A,"*",Running!$E:$E,"<="&TODAY())*60+SUMIFS(Running!$S:$S,Running!$E:$E,">="&EDATE($B62,0),Running!$E:$E,"<="&EDATE($C62,0),Running!$A:$A,"*",Running!$E:$E,"<="&TODAY()))/(60*60)),MOD(MOD(SUMIFS(Running!$R:$R,Running!$E:$E,">="&EDATE($B62,0),Running!$E:$E,"<="&EDATE($C62,0),Running!$A:$A,"*",Running!$E:$E,"<="&TODAY()),60)+INT(SUMIFS(Running!$S:$S,Running!$E:$E,">="&EDATE($B62,0),Running!$E:$E,"<="&EDATE($C62,0),Running!$A:$A,"*",Running!$E:$E,"<="&TODAY())/60),60),MOD(SUMIFS(Running!$S:$S,Running!$E:$E,">="&EDATE($B62,0),Running!$E:$E,"<="&EDATE($C62,0),Running!$A:$A,"*",Running!$E:$E,"<="&TODAY()),60))+INT(INT((SUMIFS(Running!$R:$R,Running!$E:$E,">="&EDATE($B62,0),Running!$E:$E,"<="&EDATE($C62,0),Running!$A:$A,"*",Running!$E:$E,"<="&TODAY())*60+SUMIFS(Running!$S:$S,Running!$E:$E,">="&EDATE($B62,0),Running!$E:$E,"<="&EDATE($C62,0),Running!$A:$A,"*",Running!$E:$E,"<="&TODAY()))/(60*60))/24) -> 0.01527777778 | O62: 00:14:58 | P62: 4.009 | Q62: 2410 | R62: 20.81 | S62: 02:56:00 | T62: 00:08:28 | U62: 7.094
A63: 62 | B63: 2019-02-25 | C63: 2019-03-03 | D63: =COUNTIFS(Running!$A:$A,"*",Running!$E:$E,"<="&TODAY(),Running!$E:$E,">="&EDATE($B63,0),Running!$E:$E,"<="&EDATE($C63,0)) -> 6 | E63: =COUNTIFS(Running!$A:$A,"",Running!$G:$G,0,Running!$E:$E,"<="&TODAY(),Running!$E:$E,">="&EDATE($B63,0),Running!$E:$E,"<="&EDATE($C63,0)) -> 1 | F63: 0.857 | G63: =SUMIFS(Running!$F:$F,Running!$A:$A,"*",Running!$E:$E,"<="&TODAY(),Running!$E:$E,">="&EDATE($B63,0),Running!$E:$E,"<="&EDATE($C63,0)) -> 2810 | H63: =SUMIFS(Running!$G:$G,Running!$A:$A,"*",Running!$E:$E,"<="&TODAY(),Running!$E:$E,">="&EDATE($B63,0),Running!$E:$E,"<="&EDATE($C63,0)) -> 23.58 | I63: =TIME(INT((SUMIFS(Running!$K:$K,Running!$E:$E,">="&EDATE($B63,0),Running!$E:$E,"<="&EDATE($C63,0),Running!$A:$A,"*",Running!$E:$E,"<="&TODAY())*60+SUMIFS(Running!$L:$L,Running!$E:$E,">="&EDATE($B63,0),Running!$E:$E,"<="&EDATE($C63,0),Running!$A:$A,"*",Running!$E:$E,"<="&TODAY()))/(60*60)),MOD(MOD(SUMIFS(Running!$K:$K,Running!$E:$E,">="&EDATE($B63,0),Running!$E:$E,"<="&EDATE($C63,0),Running!$A:$A,"*",Running!$E:$E,"<="&TODAY()),60)+INT(SUMIFS(Running!$L:$L,Running!$E:$E,">="&EDATE($B63,0),Running!$E:$E,"<="&EDATE($C63,0),Running!$A:$A,"*",Running!$E:$E,"<="&TODAY())/60),60),MOD(SUMIFS(Running!$L:$L,Running!$E:$E,">="&EDATE($B63,0),Running!$E:$E,"<="&EDATE($C63,0),Running!$A:$A,"*",Running!$E:$E,"<="&TODAY()),60))+INT(INT((SUMIFS(Running!$K:$K,Running!$E:$E,">="&EDATE($B63,0),Running!$E:$E,"<="&EDATE($C63,0),Running!$A:$A,"*",Running!$E:$E,"<="&TODAY())*60+SUMIFS(Running!$L:$L,Running!$E:$E,">="&EDATE($B63,0),Running!$E:$E,"<="&EDATE($C63,0),Running!$A:$A,"*",Running!$E:$E,"<="&TODAY()))/(60*60))/24) -> 0.1322916667 | J63: 00:08:05 | K63: 7.426 | L63: =SUMIFS(Running!$M:$M,Running!$A:$A,"*",Running!$E:$E,"<="&TODAY(),Running!$E:$E,">="&EDATE($B63,0),Running!$E:$E,"<="&EDATE($C63,0)) -> 134 | M63: =SUMIFS(Running!$N:$N,Running!$A:$A,"*",Running!$E:$E,"<="&TODAY(),Running!$E:$E,">="&EDATE($B63,0),Running!$E:$E,"<="&EDATE($C63,0)) -> 1.82 | N63: =TIME(INT((SUMIFS(Running!$R:$R,Running!$E:$E,">="&EDATE($B63,0),Running!$E:$E,"<="&EDATE($C63,0),Running!$A:$A,"*",Running!$E:$E,"<="&TODAY())*60+SUMIFS(Running!$S:$S,Running!$E:$E,">="&EDATE($B63,0),Running!$E:$E,"<="&EDATE($C63,0),Running!$A:$A,"*",Running!$E:$E,"<="&TODAY()))/(60*60)),MOD(MOD(SUMIFS(Running!$R:$R,Running!$E:$E,">="&EDATE($B63,0),Running!$E:$E,"<="&EDATE($C63,0),Running!$A:$A,"*",Running!$E:$E,"<="&TODAY()),60)+INT(SUMIFS(Running!$S:$S,Running!$E:$E,">="&EDATE($B63,0),Running!$E:$E,"<="&EDATE($C63,0),Running!$A:$A,"*",Running!$E:$E,"<="&TODAY())/60),60),MOD(SUMIFS(Running!$S:$S,Running!$E:$E,">="&EDATE($B63,0),Running!$E:$E,"<="&EDATE($C63,0),Running!$A:$A,"*",Running!$E:$E,"<="&TODAY()),60))+INT(INT((SUMIFS(Running!$R:$R,Running!$E:$E,">="&EDATE($B63,0),Running!$E:$E,"<="&EDATE($C63,0),Running!$A:$A,"*",Running!$E:$E,"<="&TODAY())*60+SUMIFS(Running!$S:$S,Running!$E:$E,">="&EDATE($B63,0),Running!$E:$E,"<="&EDATE($C63,0),Running!$A:$A,"*",Running!$E:$E,"<="&TODAY()))/(60*60))/24) -> 0.01909722222 | O63: 00:15:07 | P63: 3.97 | Q63: 2944 | R63: 25.4 | S63: 03:38:00 | T63: 00:08:35 | U63: 6.99
A64: 63 | B64: 2019-03-04 | C64: 2019-03-10 | D64: =COUNTIFS(Running!$A:$A,"*",Running!$E:$E,"<="&TODAY(),Running!$E:$E,">="&EDATE($B64,0),Running!$E:$E,"<="&EDATE($C64,0)) -> 4 | E64: =COUNTIFS(Running!$A:$A,"",Running!$G:$G,0,Running!$E:$E,"<="&TODAY(),Running!$E:$E,">="&EDATE($B64,0),Running!$E:$E,"<="&EDATE($C64,0)) -> 3 | F64: 0.571 | G64: =SUMIFS(Running!$F:$F,Running!$A:$A,"*",Running!$E:$E,"<="&TODAY(),Running!$E:$E,">="&EDATE($B64,0),Running!$E:$E,"<="&EDATE($C64,0)) -> 1738 | H64: =SUMIFS(Running!$G:$G,Running!$A:$A,"*",Running!$E:$E,"<="&TODAY(),Running!$E:$E,">="&EDATE($B64,0),Running!$E:$E,"<="&EDATE($C64,0)) -> 14.11 | I64: =TIME(INT((SUMIFS(Running!$K:$K,Running!$E:$E,">="&EDATE($B64,0),Running!$E:$E,"<="&EDATE($C64,0),Running!$A:$A,"*",Running!$E:$E,"<="&TODAY())*60+SUMIFS(Running!$L:$L,Running!$E:$E,">="&EDATE($B64,0),Running!$E:$E,"<="&EDATE($C64,0),Running!$A:$A,"*",Running!$E:$E,"<="&TODAY()))/(60*60)),MOD(MOD(SUMIFS(Running!$K:$K,Running!$E:$E,">="&EDATE($B64,0),Running!$E:$E,"<="&EDATE($C64,0),Running!$A:$A,"*",Running!$E:$E,"<="&TODAY()),60)+INT(SUMIFS(Running!$L:$L,Running!$E:$E,">="&EDATE($B64,0),Running!$E:$E,"<="&EDATE($C64,0),Running!$A:$A,"*",Running!$E:$E,"<="&TODAY())/60),60),MOD(SUMIFS(Running!$L:$L,Running!$E:$E,">="&EDATE($B64,0),Running!$E:$E,"<="&EDATE($C64,0),Running!$A:$A,"*",Running!$E:$E,"<="&TODAY()),60))+INT(INT((SUMIFS(Running!$K:$K,Running!$E:$E,">="&EDATE($B64,0),Running!$E:$E,"<="&EDATE($C64,0),Running!$A:$A,"*",Running!$E:$E,"<="&TODAY())*60+SUMIFS(Running!$L:$L,Running!$E:$E,">="&EDATE($B64,0),Running!$E:$E,"<="&EDATE($C64,0),Running!$A:$A,"*",Running!$E:$E,"<="&TODAY()))/(60*60))/24) -> 0.07847222222 | J64: 00:08:01 | K64: 7.492 | L64: =SUMIFS(Running!$M:$M,Running!$A:$A,"*",Running!$E:$E,"<="&TODAY(),Running!$E:$E,">="&EDATE($B64,0),Running!$E:$E,"<="&EDATE($C64,0)) -> 72 | M64: =SUMIFS(Running!$N:$N,Running!$A:$A,"*",Running!$E:$E,"<="&TODAY(),Running!$E:$E,">="&EDATE($B64,0),Running!$E:$E,"<="&EDATE($C64,0)) -> 1.34 | N64: =TIME(INT((SUMIFS(Running!$R:$R,Running!$E:$E,">="&EDATE($B64,0),Running!$E:$E,"<="&EDATE($C64,0),Running!$A:$A,"*",Running!$E:$E,"<="&TODAY())*60+SUMIFS(Running!$S:$S,Running!$E:$E,">="&EDATE($B64,0),Running!$E:$E,"<="&EDATE($C64,0),Running!$A:$A,"*",Running!$E:$E,"<="&TODAY()))/(60*60)),MOD(MOD(SUMIFS(Running!$R:$R,Running!$E:$E,">="&EDATE($B64,0),Running!$E:$E,"<="&EDATE($C64,0),Running!$A:$A,"*",Running!$E:$E,"<="&TODAY()),60)+INT(SUMIFS(Running!$S:$S,Running!$E:$E,">="&EDATE($B64,0),Running!$E:$E,"<="&EDATE($C64,0),Running!$A:$A,"*",Running!$E:$E,"<="&TODAY())/60),60),MOD(SUMIFS(Running!$S:$S,Running!$E:$E,">="&EDATE($B64,0),Running!$E:$E,"<="&EDATE($C64,0),Running!$A:$A,"*",Running!$E:$E,"<="&TODAY()),60))+INT(INT((SUMIFS(Running!$R:$R,Running!$E:$E,">="&EDATE($B64,0),Running!$E:$E,"<="&EDATE($C64,0),Running!$A:$A,"*",Running!$E:$E,"<="&TODAY())*60+SUMIFS(Running!$S:$S,Running!$E:$E,">="&EDATE($B64,0),Running!$E:$E,"<="&EDATE($C64,0),Running!$A:$A,"*",Running!$E:$E,"<="&TODAY()))/(60*60))/24) -> 0.01388888889 | O64: 00:14:56 | P64: 4.02 | Q64: 1810 | R64: 15.45 | S64: 02:13:00 | T64: 00:08:37 | U64: 6.969
A65: 64 | B65: 2019-03-11 | C65: 2019-03-17 | D65: =COUNTIFS(Running!$A:$A,"*",Running!$E:$E,"<="&TODAY(),Running!$E:$E,">="&EDATE($B65,0),Running!$E:$E,"<="&EDATE($C65,0)) -> 3 | E65: =COUNTIFS(Running!$A:$A,"",Running!$G:$G,0,Running!$E:$E,"<="&TODAY(),Running!$E:$E,">="&EDATE($B65,0),Running!$E:$E,"<="&EDATE($C65,0)) -> 4 | F65: 0.428 | G65: =SUMIFS(Running!$F:$F,Running!$A:$A,"*",Running!$E:$E,"<="&TODAY(),Running!$E:$E,">="&EDATE($B65,0),Running!$E:$E,"<="&EDATE($C65,0)) -> 1304 | H65: =SUMIFS(Running!$G:$G,Running!$A:$A,"*",Running!$E:$E,"<="&TODAY(),Running!$E:$E,">="&EDATE($B65,0),Running!$E:$E,"<="&EDATE($C65,0)) -> 10.93 | I65: =TIME(INT((SUMIFS(Running!$K:$K,Running!$E:$E,">="&EDATE($B65,0),Running!$E:$E,"<="&EDATE($C65,0),Running!$A:$A,"*",Running!$E:$E,"<="&TODAY())*60+SUMIFS(Running!$L:$L,Running!$E:$E,">="&EDATE($B65,0),Running!$E:$E,"<="&EDATE($C65,0),Running!$A:$A,"*",Running!$E:$E,"<="&TODAY()))/(60*60)),MOD(MOD(SUMIFS(Running!$K:$K,Running!$E:$E,">="&EDATE($B65,0),Running!$E:$E,"<="&EDATE($C65,0),Running!$A:$A,"*",Running!$E:$E,"<="&TODAY()),60)+INT(SUMIFS(Running!$L:$L,Running!$E:$E,">="&EDATE($B65,0),Running!$E:$E,"<="&EDATE($C65,0),Running!$A:$A,"*",Running!$E:$E,"<="&TODAY())/60),60),MOD(SUMIFS(Running!$L:$L,Running!$E:$E,">="&EDATE($B65,0),Running!$E:$E,"<="&EDATE($C65,0),Running!$A:$A,"*",Running!$E:$E,"<="&TODAY()),60))+INT(INT((SUMIFS(Running!$K:$K,Running!$E:$E,">="&EDATE($B65,0),Running!$E:$E,"<="&EDATE($C65,0),Running!$A:$A,"*",Running!$E:$E,"<="&TODAY())*60+SUMIFS(Running!$L:$L,Running!$E:$E,">="&EDATE($B65,0),Running!$E:$E,"<="&EDATE($C65,0),Running!$A:$A,"*",Running!$E:$E,"<="&TODAY()))/(60*60))/24) -> 0.06111111111 | J65: 00:08:04 | K65: 7.452 | L65: =SUMIFS(Running!$M:$M,Running!$A:$A,"*",Running!$E:$E,"<="&TODAY(),Running!$E:$E,">="&EDATE($B65,0),Running!$E:$E,"<="&EDATE($C65,0)) -> 67 | M65: =SUMIFS(Running!$N:$N,Running!$A:$A,"*",Running!$E:$E,"<="&TODAY(),Running!$E:$E,">="&EDATE($B65,0),Running!$E:$E,"<="&EDATE($C65,0)) -> 0.93 | N65: =TIME(INT((SUMIFS(Running!$R:$R,Running!$E:$E,">="&EDATE($B65,0),Running!$E:$E,"<="&EDATE($C65,0),Running!$A:$A,"*",Running!$E:$E,"<="&TODAY())*60+SUMIFS(Running!$S:$S,Running!$E:$E,">="&EDATE($B65,0),Running!$E:$E,"<="&EDATE($C65,0),Running!$A:$A,"*",Running!$E:$E,"<="&TODAY()))/(60*60)),MOD(MOD(SUMIFS(Running!$R:$R,Running!$E:$E,">="&EDATE($B65,0),Running!$E:$E,"<="&EDATE($C65,0),Running!$A:$A,"*",Running!$E:$E,"<="&TODAY()),60)+INT(SUMIFS(Running!$S:$S,Running!$E:$E,">="&EDATE($B65,0),Running!$E:$E,"<="&EDATE($C65,0),Running!$A:$A,"*",Running!$E:$E,"<="&TODAY())/60),60),MOD(SUMIFS(Running!$S:$S,Running!$E:$E,">="&EDATE($B65,0),Running!$E:$E,"<="&EDATE($C65,0),Running!$A:$A,"*",Running!$E:$E,"<="&TODAY()),60))+INT(INT((SUMIFS(Running!$R:$R,Running!$E:$E,">="&EDATE($B65,0),Running!$E:$E,"<="&EDATE($C65,0),Running!$A:$A,"*",Running!$E:$E,"<="&TODAY())*60+SUMIFS(Running!$S:$S,Running!$E:$E,">="&EDATE($B65,0),Running!$E:$E,"<="&EDATE($C65,0),Running!$A:$A,"*",Running!$E:$E,"<="&TODAY()))/(60*60))/24) -> 0.009722222222 | O65: 00:15:04 | P65: 3.985 | Q65: 1371 | R65: 11.86 | S65: 01:42:00 | T65: 00:08:37 | U65: 6.976
A66: 65 | B66: 2019-03-18 | C66: 2019-03-24 | D66: =COUNTIFS(Running!$A:$A,"*",Running!$E:$E,"<="&TODAY(),Running!$E:$E,">="&EDATE($B66,0),Running!$E:$E,"<="&EDATE($C66,0)) -> 6 | E66: =COUNTIFS(Running!$A:$A,"",Running!$G:$G,0,Running!$E:$E,"<="&TODAY(),Running!$E:$E,">="&EDATE($B66,0),Running!$E:$E,"<="&EDATE($C66,0)) -> 1 | F66: 0.857 | G66: =SUMIFS(Running!$F:$F,Running!$A:$A,"*",Running!$E:$E,"<="&TODAY(),Running!$E:$E,">="&EDATE($B66,0),Running!$E:$E,"<="&EDATE($C66,0)) -> 2954 | H66: =SUMIFS(Running!$G:$G,Running!$A:$A,"*",Running!$E:$E,"<="&TODAY(),Running!$E:$E,">="&EDATE($B66,0),Running!$E:$E,"<="&EDATE($C66,0)) -> 28.36 | I66: =TIME(INT((SUMIFS(Running!$K:$K,Running!$E:$E,">="&EDATE($B66,0),Running!$E:$E,"<="&EDATE($C66,0),Running!$A:$A,"*",Running!$E:$E,"<="&TODAY())*60+SUMIFS(Running!$L:$L,Running!$E:$E,">="&EDATE($B66,0),Running!$E:$E,"<="&EDATE($C66,0),Running!$A:$A,"*",Running!$E:$E,"<="&TODAY()))/(60*60)),MOD(MOD(SUMIFS(Running!$K:$K,Running!$E:$E,">="&EDATE($B66,0),Running!$E:$E,"<="&EDATE($C66,0),Running!$A:$A,"*",Running!$E:$E,"<="&TODAY()),60)+INT(SUMIFS(Running!$L:$L,Running!$E:$E,">="&EDATE($B66,0),Running!$E:$E,"<="&EDATE($C66,0),Running!$A:$A,"*",Running!$E:$E,"<="&TODAY())/60),60),MOD(SUMIFS(Running!$L:$L,Running!$E:$E,">="&EDATE($B66,0),Running!$E:$E,"<="&EDATE($C66,0),Running!$A:$A,"*",Running!$E:$E,"<="&TODAY()),60))+INT(INT((SUMIFS(Running!$K:$K,Running!$E:$E,">="&EDATE($B66,0),Running!$E:$E,"<="&EDATE($C66,0),Running!$A:$A,"*",Running!$E:$E,"<="&TODAY())*60+SUMIFS(Running!$L:$L,Running!$E:$E,">="&EDATE($B66,0),Running!$E:$E,"<="&EDATE($C66,0),Running!$A:$A,"*",Running!$E:$E,"<="&TODAY()))/(60*60))/24) -> 0.1736111111 | J66: 00:08:49 | K66: 6.806 | L66: =SUMIFS(Running!$M:$M,Running!$A:$A,"*",Running!$E:$E,"<="&TODAY(),Running!$E:$E,">="&EDATE($B66,0),Running!$E:$E,"<="&EDATE($C66,0)) -> 0 | M66: =SUMIFS(Running!$N:$N,Running!$A:$A,"*",Running!$E:$E,"<="&TODAY(),Running!$E:$E,">="&EDATE($B66,0),Running!$E:$E,"<="&EDATE($C66,0)) -> 1.83 | N66: =TIME(INT((SUMIFS(Running!$R:$R,Running!$E:$E,">="&EDATE($B66,0),Running!$E:$E,"<="&EDATE($C66,0),Running!$A:$A,"*",Running!$E:$E,"<="&TODAY())*60+SUMIFS(Running!$S:$S,Running!$E:$E,">="&EDATE($B66,0),Running!$E:$E,"<="&EDATE($C66,0),Running!$A:$A,"*",Running!$E:$E,"<="&TODAY()))/(60*60)),MOD(MOD(SUMIFS(Running!$R:$R,Running!$E:$E,">="&EDATE($B66,0),Running!$E:$E,"<="&EDATE($C66,0),Running!$A:$A,"*",Running!$E:$E,"<="&TODAY()),60)+INT(SUMIFS(Running!$S:$S,Running!$E:$E,">="&EDATE($B66,0),Running!$E:$E,"<="&EDATE($C66,0),Running!$A:$A,"*",Running!$E:$E,"<="&TODAY())/60),60),MOD(SUMIFS(Running!$S:$S,Running!$E:$E,">="&EDATE($B66,0),Running!$E:$E,"<="&EDATE($C66,0),Running!$A:$A,"*",Running!$E:$E,"<="&TODAY()),60))+INT(INT((SUMIFS(Running!$R:$R,Running!$E:$E,">="&EDATE($B66,0),Running!$E:$E,"<="&EDATE($C66,0),Running!$A:$A,"*",Running!$E:$E,"<="&TODAY())*60+SUMIFS(Running!$S:$S,Running!$E:$E,">="&EDATE($B66,0),Running!$E:$E,"<="&EDATE($C66,0),Running!$A:$A,"*",Running!$E:$E,"<="&TODAY()))/(60*60))/24) -> 0.0234375 | O66: 00:18:27 | P66: 3.253 | Q66: 2954 | R66: 30.19 | S66: 04:43:45 | T66: 00:09:24 | U66: 6.383
A67: 66 | B67: 2019-03-25 | C67: 2019-03-31 | D67: =COUNTIFS(Running!$A:$A,"*",Running!$E:$E,"<="&TODAY(),Running!$E:$E,">="&EDATE($B67,0),Running!$E:$E,"<="&EDATE($C67,0)) -> 7 | E67: =COUNTIFS(Running!$A:$A,"",Running!$G:$G,0,Running!$E:$E,"<="&TODAY(),Running!$E:$E,">="&EDATE($B67,0),Running!$E:$E,"<="&EDATE($C67,0)) -> 0 | F67: 1 | G67: =SUMIFS(Running!$F:$F,Running!$A:$A,"*",Running!$E:$E,"<="&TODAY(),Running!$E:$E,">="&EDATE($B67,0),Running!$E:$E,"<="&EDATE($C67,0)) -> 2759 | H67: =SUMIFS(Running!$G:$G,Running!$A:$A,"*",Running!$E:$E,"<="&TODAY(),Running!$E:$E,">="&EDATE($B67,0),Running!$E:$E,"<="&EDATE($C67,0)) -> 22.95 | I67: =TIME(INT((SUMIFS(Running!$K:$K,Running!$E:$E,">="&EDATE($B67,0),Running!$E:$E,"<="&EDATE($C67,0),Running!$A:$A,"*",Running!$E:$E,"<="&TODAY())*60+SUMIFS(Running!$L:$L,Running!$E:$E,">="&EDATE($B67,0),Running!$E:$E,"<="&EDATE($C67,0),Running!$A:$A,"*",Running!$E:$E,"<="&TODAY()))/(60*60)),MOD(MOD(SUMIFS(Running!$K:$K,Running!$E:$E,">="&EDATE($B67,0),Running!$E:$E,"<="&EDATE($C67,0),Running!$A:$A,"*",Running!$E:$E,"<="&TODAY()),60)+INT(SUMIFS(Running!$L:$L,Running!$E:$E,">="&EDATE($B67,0),Running!$E:$E,"<="&EDATE($C67,0),Running!$A:$A,"*",Running!$E:$E,"<="&TODAY())/60),60),MOD(SUMIFS(Running!$L:$L,Running!$E:$E,">="&EDATE($B67,0),Running!$E:$E,"<="&EDATE($C67,0),Running!$A:$A,"*",Running!$E:$E,"<="&TODAY()),60))+INT(INT((SUMIFS(Running!$K:$K,Running!$E:$E,">="&EDATE($B67,0),Running!$E:$E,"<="&EDATE($C67,0),Running!$A:$A,"*",Running!$E:$E,"<="&TODAY())*60+SUMIFS(Running!$L:$L,Running!$E:$E,">="&EDATE($B67,0),Running!$E:$E,"<="&EDATE($C67,0),Running!$A:$A,"*",Running!$E:$E,"<="&TODAY()))/(60*60))/24) -> 0.1243055556 | J67: 00:07:48 | K67: 7.692 | L67: =SUMIFS(Running!$M:$M,Running!$A:$A,"*",Running!$E:$E,"<="&TODAY(),Running!$E:$E,">="&EDATE($B67,0),Running!$E:$E,"<="&EDATE($C67,0)) -> 154 | M67: =SUMIFS(Running!$N:$N,Running!$A:$A,"*",Running!$E:$E,"<="&TODAY(),Running!$E:$E,">="&EDATE($B67,0),Running!$E:$E,"<="&EDATE($C67,0)) -> 2.11 | N67: =TIME(INT((SUMIFS(Running!$R:$R,Running!$E:$E,">="&EDATE($B67,0),Running!$E:$E,"<="&EDATE($C67,0),Running!$A:$A,"*",Running!$E:$E,"<="&TODAY())*60+SUMIFS(Running!$S:$S,Running!$E:$E,">="&EDATE($B67,0),Running!$E:$E,"<="&EDATE($C67,0),Running!$A:$A,"*",Running!$E:$E,"<="&TODAY()))/(60*60)),MOD(MOD(SUMIFS(Running!$R:$R,Running!$E:$E,">="&EDATE($B67,0),Running!$E:$E,"<="&EDATE($C67,0),Running!$A:$A,"*",Running!$E:$E,"<="&TODAY()),60)+INT(SUMIFS(Running!$S:$S,Running!$E:$E,">="&EDATE($B67,0),Running!$E:$E,"<="&EDATE($C67,0),Running!$A:$A,"*",Running!$E:$E,"<="&TODAY())/60),60),MOD(SUMIFS(Running!$S:$S,Running!$E:$E,">="&EDATE($B67,0),Running!$E:$E,"<="&EDATE($C67,0),Running!$A:$A,"*",Running!$E:$E,"<="&TODAY()),60))+INT(INT((SUMIFS(Running!$R:$R,Running!$E:$E,">="&EDATE($B67,0),Running!$E:$E,"<="&EDATE($C67,0),Running!$A:$A,"*",Running!$E:$E,"<="&TODAY())*60+SUMIFS(Running!$S:$S,Running!$E:$E,">="&EDATE($B67,0),Running!$E:$E,"<="&EDATE($C67,0),Running!$A:$A,"*",Running!$E:$E,"<="&TODAY()))/(60*60))/24) -> 0.02180555556 | O67: 00:14:53 | P67: 4.031 | Q67: 2913 | R67: 25.06 | S67: 03:30:24 | T67: 00:08:24 | U67: 7.146
A68: 67 | B68: 2019-04-01 | C68: 2019-04-07 | D68: =COUNTIFS(Running!$A:$A,"*",Running!$E:$E,"<="&TODAY(),Running!$E:$E,">="&EDATE($B68,0),Running!$E:$E,"<="&EDATE($C68,0)) -> 7 | E68: =COUNTIFS(Running!$A:$A,"",Running!$G:$G,0,Running!$E:$E,"<="&TODAY(),Running!$E:$E,">="&EDATE($B68,0),Running!$E:$E,"<="&EDATE($C68,0)) -> 0 | F68: =IFERROR(ROUNDDOWN($D68/SUM($D68:$E68),3),0) -> 1 | G68: =SUMIFS(Running!$F:$F,Running!$A:$A,"*",Running!$E:$E,"<="&TODAY(),Running!$E:$E,">="&EDATE($B68,0),Running!$E:$E,"<="&EDATE($C68,0)) -> 3093 | H68: =SUMIFS(Running!$G:$G,Running!$A:$A,"*",Running!$E:$E,"<="&TODAY(),Running!$E:$E,">="&EDATE($B68,0),Running!$E:$E,"<="&EDATE($C68,0)) -> 25.99 | I68: =TIME(INT((SUMIFS(Running!$K:$K,Running!$E:$E,">="&EDATE($B68,0),Running!$E:$E,"<="&EDATE($C68,0),Running!$A:$A,"*",Running!$E:$E,"<="&TODAY())*60+SUMIFS(Running!$L:$L,Running!$E:$E,">="&EDATE($B68,0),Running!$E:$E,"<="&EDATE($C68,0),Running!$A:$A,"*",Running!$E:$E,"<="&TODAY()))/(60*60)),MOD(MOD(SUMIFS(Running!$K:$K,Running!$E:$E,">="&EDATE($B68,0),Running!$E:$E,"<="&EDATE($C68,0),Running!$A:$A,"*",Running!$E:$E,"<="&TODAY()),60)+INT(SUMIFS(Running!$L:$L,Running!$E:$E,">="&EDATE($B68,0),Running!$E:$E,"<="&EDATE($C68,0),Running!$A:$A,"*",Running!$E:$E,"<="&TODAY())/60),60),MOD(SUMIFS(Running!$L:$L,Running!$E:$E,">="&EDATE($B68,0),Running!$E:$E,"<="&EDATE($C68,0),Running!$A:$A,"*",Running!$E:$E,"<="&TODAY()),60))+INT(INT((SUMIFS(Running!$K:$K,Running!$E:$E,">="&EDATE($B68,0),Running!$E:$E,"<="&EDATE($C68,0),Running!$A:$A,"*",Running!$E:$E,"<="&TODAY())*60+SUMIFS(Running!$L:$L,Running!$E:$E,">="&EDATE($B68,0),Running!$E:$E,"<="&EDATE($C68,0),Running!$A:$A,"*",Running!$E:$E,"<="&TODAY()))/(60*60))/24) -> 0.1409722222 | J68: =IFERROR(TIME(,,ROUNDUP((INT($I68)*24*60*60+HOUR($I68)*60*60+MINUTE($I68)*60+SECOND($I68))/$H68,0)),0) -> 00:07:49 | K68: =IFERROR(ROUNDDOWN($H68*60*60/(HOUR($I68)*60*60+MINUTE($I68)*60+SECOND($I68)),3),0) -> 7.681 | L68: =SUMIFS(Running!$M:$M,Running!$A:$A,"*",Running!$E:$E,"<="&TODAY(),Running!$E:$E,">="&EDATE($B68,0),Running!$E:$E,"<="&EDATE($C68,0)) -> 155 | M68: =SUMIFS(Running!$N:$N,Running!$A:$A,"*",Running!$E:$E,"<="&TODAY(),Running!$E:$E,">="&EDATE($B68,0),Running!$E:$E,"<="&EDATE($C68,0)) -> 2.16 | N68: =TIME(INT((SUMIFS(Running!$R:$R,Running!$E:$E,">="&EDATE($B68,0),Running!$E:$E,"<="&EDATE($C68,0),Running!$A:$A,"*",Running!$E:$E,"<="&TODAY())*60+SUMIFS(Running!$S:$S,Running!$E:$E,">="&EDATE($B68,0),Running!$E:$E,"<="&EDATE($C68,0),Running!$A:$A,"*",Running!$E:$E,"<="&TODAY()))/(60*60)),MOD(MOD(SUMIFS(Running!$R:$R,Running!$E:$E,">="&EDATE($B68,0),Running!$E:$E,"<="&EDATE($C68,0),Running!$A:$A,"*",Running!$E:$E,"<="&TODAY()),60)+INT(SUMIFS(Running!$S:$S,Running!$E:$E,">="&EDATE($B68,0),Running!$E:$E,"<="&EDATE($C68,0),Running!$A:$A,"*",Running!$E:$E,"<="&TODAY())/60),60),MOD(SUMIFS(Running!$S:$S,Running!$E:$E,">="&EDATE($B68,0),Running!$E:$E,"<="&EDATE($C68,0),Running!$A:$A,"*",Running!$E:$E,"<="&TODAY()),60))+INT(INT((SUMIFS(Running!$R:$R,Running!$E:$E,">="&EDATE($B68,0),Running!$E:$E,"<="&EDATE($C68,0),Running!$A:$A,"*",Running!$E:$E,"<="&TODAY())*60+SUMIFS(Running!$S:$S,Running!$E:$E,">="&EDATE($B68,0),Running!$E:$E,"<="&EDATE($C68,0),Running!$A:$A,"*",Running!$E:$E,"<="&TODAY()))/(60*60))/24) -> 0.02222222222 | O68: =IFERROR(TIME(,,ROUNDUP((INT($N68)*24*60*60+HOUR($N68)*60*60+MINUTE($N68)*60+SECOND($N68))/$M68,0)),0) -> 00:14:49 | P68: =IFERROR(ROUNDDOWN($M68*60*60/(INT($N68)*24*60*60+HOUR($N68)*60*60+MINUTE($N68)*60+SECOND($N68)),3),0) -> 4.05 | Q68: =$G68+$L68 -> 3248 | R68: =$H68+$M68 -> 28.15 | S68: =$I68+$N68 -> 03:55:00 | T68: =IFERROR(TIME(,,ROUNDUP((INT($S68)*24*60*60+HOUR($S68)*60*60+MINUTE($S68)*60+SECOND($S68))/$R68,0)),0) -> 00:08:21 | U68: =IFERROR(ROUNDDOWN($R68*60*60/(INT($S68)*24*60*60+HOUR($S68)*60*60+MINUTE($S68)*60+SECOND($S68)),3),0) -> 7.187
A69: 68 | B69: 2019-04-08 | C69: 2019-04-14 | D69: =COUNTIFS(Running!$A:$A,"*",Running!$E:$E,"<="&TODAY(),Running!$E:$E,">="&EDATE($B69,0),Running!$E:$E,"<="&EDATE($C69,0)) -> 5 | E69: =COUNTIFS(Running!$A:$A,"",Running!$G:$G,0,Running!$E:$E,"<="&TODAY(),Running!$E:$E,">="&EDATE($B69,0),Running!$E:$E,"<="&EDATE($C69,0)) -> 2 | F69: 0.714 | G69: =SUMIFS(Running!$F:$F,Running!$A:$A,"*",Running!$E:$E,"<="&TODAY(),Running!$E:$E,">="&EDATE($B69,0),Running!$E:$E,"<="&EDATE($C69,0)) -> 2439 | H69: =SUMIFS(Running!$G:$G,Running!$A:$A,"*",Running!$E:$E,"<="&TODAY(),Running!$E:$E,">="&EDATE($B69,0),Running!$E:$E,"<="&EDATE($C69,0)) -> 22.08 | I69: =TIME(INT((SUMIFS(Running!$K:$K,Running!$E:$E,">="&EDATE($B69,0),Running!$E:$E,"<="&EDATE($C69,0),Running!$A:$A,"*",Running!$E:$E,"<="&TODAY())*60+SUMIFS(Running!$L:$L,Running!$E:$E,">="&EDATE($B69,0),Running!$E:$E,"<="&EDATE($C69,0),Running!$A:$A,"*",Running!$E:$E,"<="&TODAY()))/(60*60)),MOD(MOD(SUMIFS(Running!$K:$K,Running!$E:$E,">="&EDATE($B69,0),Running!$E:$E,"<="&EDATE($C69,0),Running!$A:$A,"*",Running!$E:$E,"<="&TODAY()),60)+INT(SUMIFS(Running!$L:$L,Running!$E:$E,">="&EDATE($B69,0),Running!$E:$E,"<="&EDATE($C69,0),Running!$A:$A,"*",Running!$E:$E,"<="&TODAY())/60),60),MOD(SUMIFS(Running!$L:$L,Running!$E:$E,">="&EDATE($B69,0),Running!$E:$E,"<="&EDATE($C69,0),Running!$A:$A,"*",Running!$E:$E,"<="&TODAY()),60))+INT(INT((SUMIFS(Running!$K:$K,Running!$E:$E,">="&EDATE($B69,0),Running!$E:$E,"<="&EDATE($C69,0),Running!$A:$A,"*",Running!$E:$E,"<="&TODAY())*60+SUMIFS(Running!$L:$L,Running!$E:$E,">="&EDATE($B69,0),Running!$E:$E,"<="&EDATE($C69,0),Running!$A:$A,"*",Running!$E:$E,"<="&TODAY()))/(60*60))/24) -> 0.13125 | J69: 00:08:34 | K69: 7.009 | L69: =SUMIFS(Running!$M:$M,Running!$A:$A,"*",Running!$E:$E,"<="&TODAY(),Running!$E:$E,">="&EDATE($B69,0),Running!$E:$E,"<="&EDATE($C69,0)) -> 83 | M69: =SUMIFS(Running!$N:$N,Running!$A:$A,"*",Running!$E:$E,"<="&TODAY(),Running!$E:$E,">="&EDATE($B69,0),Running!$E:$E,"<="&EDATE($C69,0)) -> 1.41 | N69: =TIME(INT((SUMIFS(Running!$R:$R,Running!$E:$E,">="&EDATE($B69,0),Running!$E:$E,"<="&EDATE($C69,0),Running!$A:$A,"*",Running!$E:$E,"<="&TODAY())*60+SUMIFS(Running!$S:$S,Running!$E:$E,">="&EDATE($B69,0),Running!$E:$E,"<="&EDATE($C69,0),Running!$A:$A,"*",Running!$E:$E,"<="&TODAY()))/(60*60)),MOD(MOD(SUMIFS(Running!$R:$R,Running!$E:$E,">="&EDATE($B69,0),Running!$E:$E,"<="&EDATE($C69,0),Running!$A:$A,"*",Running!$E:$E,"<="&TODAY()),60)+INT(SUMIFS(Running!$S:$S,Running!$E:$E,">="&EDATE($B69,0),Running!$E:$E,"<="&EDATE($C69,0),Running!$A:$A,"*",Running!$E:$E,"<="&TODAY())/60),60),MOD(SUMIFS(Running!$S:$S,Running!$E:$E,">="&EDATE($B69,0),Running!$E:$E,"<="&EDATE($C69,0),Running!$A:$A,"*",Running!$E:$E,"<="&TODAY()),60))+INT(INT((SUMIFS(Running!$R:$R,Running!$E:$E,">="&EDATE($B69,0),Running!$E:$E,"<="&EDATE($C69,0),Running!$A:$A,"*",Running!$E:$E,"<="&TODAY())*60+SUMIFS(Running!$S:$S,Running!$E:$E,">="&EDATE($B69,0),Running!$E:$E,"<="&EDATE($C69,0),Running!$A:$A,"*",Running!$E:$E,"<="&TODAY()))/(60*60))/24) -> 0.01527777778 | O69: 00:15:37 | P69: 3.845 | Q69: 2522 | R69: 23.49 | S69: 03:31:00 | T69: 00:08:59 | U69: 6.679
A70: 69 | B70: 2019-04-15 | C70: 2019-04-21 | D70: =COUNTIFS(Running!$A:$A,"*",Running!$E:$E,"<="&TODAY(),Running!$E:$E,">="&EDATE($B70,0),Running!$E:$E,"<="&EDATE($C70,0)) -> 6 | E70: =COUNTIFS(Running!$A:$A,"",Running!$G:$G,0,Running!$E:$E,"<="&TODAY(),Running!$E:$E,">="&EDATE($B70,0),Running!$E:$E,"<="&EDATE($C70,0)) -> 1 | F70: 0.857 | G70: =SUMIFS(Running!$F:$F,Running!$A:$A,"*",Running!$E:$E,"<="&TODAY(),Running!$E:$E,">="&EDATE($B70,0),Running!$E:$E,"<="&EDATE($C70,0)) -> 2601 | H70: =SUMIFS(Running!$G:$G,Running!$A:$A,"*",Running!$E:$E,"<="&TODAY(),Running!$E:$E,">="&EDATE($B70,0),Running!$E:$E,"<="&EDATE($C70,0)) -> 21.84 | I70: =TIME(INT((SUMIFS(Running!$K:$K,Running!$E:$E,">="&EDATE($B70,0),Running!$E:$E,"<="&EDATE($C70,0),Running!$A:$A,"*",Running!$E:$E,"<="&TODAY())*60+SUMIFS(Running!$L:$L,Running!$E:$E,">="&EDATE($B70,0),Running!$E:$E,"<="&EDATE($C70,0),Running!$A:$A,"*",Running!$E:$E,"<="&TODAY()))/(60*60)),MOD(MOD(SUMIFS(Running!$K:$K,Running!$E:$E,">="&EDATE($B70,0),Running!$E:$E,"<="&EDATE($C70,0),Running!$A:$A,"*",Running!$E:$E,"<="&TODAY()),60)+INT(SUMIFS(Running!$L:$L,Running!$E:$E,">="&EDATE($B70,0),Running!$E:$E,"<="&EDATE($C70,0),Running!$A:$A,"*",Running!$E:$E,"<="&TODAY())/60),60),MOD(SUMIFS(Running!$L:$L,Running!$E:$E,">="&EDATE($B70,0),Running!$E:$E,"<="&EDATE($C70,0),Running!$A:$A,"*",Running!$E:$E,"<="&TODAY()),60))+INT(INT((SUMIFS(Running!$K:$K,Running!$E:$E,">="&EDATE($B70,0),Running!$E:$E,"<="&EDATE($C70,0),Running!$A:$A,"*",Running!$E:$E,"<="&TODAY())*60+SUMIFS(Running!$L:$L,Running!$E:$E,">="&EDATE($B70,0),Running!$E:$E,"<="&EDATE($C70,0),Running!$A:$A,"*",Running!$E:$E,"<="&TODAY()))/(60*60))/24) -> 0.1208333333 | J70: 00:07:59 | K70: 7.531 | L70: =SUMIFS(Running!$M:$M,Running!$A:$A,"*",Running!$E:$E,"<="&TODAY(),Running!$E:$E,">="&EDATE($B70,0),Running!$E:$E,"<="&EDATE($C70,0)) -> 125 | M70: =SUMIFS(Running!$N:$N,Running!$A:$A,"*",Running!$E:$E,"<="&TODAY(),Running!$E:$E,">="&EDATE($B70,0),Running!$E:$E,"<="&EDATE($C70,0)) -> 1.72 | N70: =TIME(INT((SUMIFS(Running!$R:$R,Running!$E:$E,">="&EDATE($B70,0),Running!$E:$E,"<="&EDATE($C70,0),Running!$A:$A,"*",Running!$E:$E,"<="&TODAY())*60+SUMIFS(Running!$S:$S,Running!$E:$E,">="&EDATE($B70,0),Running!$E:$E,"<="&EDATE($C70,0),Running!$A:$A,"*",Running!$E:$E,"<="&TODAY()))/(60*60)),MOD(MOD(SUMIFS(Running!$R:$R,Running!$E:$E,">="&EDATE($B70,0),Running!$E:$E,"<="&EDATE($C70,0),Running!$A:$A,"*",Running!$E:$E,"<="&TODAY()),60)+INT(SUMIFS(Running!$S:$S,Running!$E:$E,">="&EDATE($B70,0),Running!$E:$E,"<="&EDATE($C70,0),Running!$A:$A,"*",Running!$E:$E,"<="&TODAY())/60),60),MOD(SUMIFS(Running!$S:$S,Running!$E:$E,">="&EDATE($B70,0),Running!$E:$E,"<="&EDATE($C70,0),Running!$A:$A,"*",Running!$E:$E,"<="&TODAY()),60))+INT(INT((SUMIFS(Running!$R:$R,Running!$E:$E,">="&EDATE($B70,0),Running!$E:$E,"<="&EDATE($C70,0),Running!$A:$A,"*",Running!$E:$E,"<="&TODAY())*60+SUMIFS(Running!$S:$S,Running!$E:$E,">="&EDATE($B70,0),Running!$E:$E,"<="&EDATE($C70,0),Running!$A:$A,"*",Running!$E:$E,"<="&TODAY()))/(60*60))/24) -> 0.01805555556 | O70: 00:15:07 | P70: 3.969 | Q70: 2726 | R70: 23.56 | S70: 03:20:00 | T70: 00:08:30 | U70: 7.068
A71: 70 | B71: 2019-04-22 | C71: 2019-04-28 | D71: =COUNTIFS(Running!$A:$A,"*",Running!$E:$E,"<="&TODAY(),Running!$E:$E,">="&EDATE($B71,0),Running!$E:$E,"<="&EDATE($C71,0)) -> 5 | E71: =COUNTIFS(Running!$A:$A,"",Running!$G:$G,0,Running!$E:$E,"<="&TODAY(),Running!$E:$E,">="&EDATE($B71,0),Running!$E:$E,"<="&EDATE($C71,0)) -> 2 | F71: 0.714 | G71: =SUMIFS(Running!$F:$F,Running!$A:$A,"*",Running!$E:$E,"<="&TODAY(),Running!$E:$E,">="&EDATE($B71,0),Running!$E:$E,"<="&EDATE($C71,0)) -> 2772 | H71: =SUMIFS(Running!$G:$G,Running!$A:$A,"*",Running!$E:$E,"<="&TODAY(),Running!$E:$E,">="&EDATE($B71,0),Running!$E:$E,"<="&EDATE($C71,0)) -> 26.89 | I71: =TIME(INT((SUMIFS(Running!$K:$K,Running!$E:$E,">="&EDATE($B71,0),Running!$E:$E,"<="&EDATE($C71,0),Running!$A:$A,"*",Running!$E:$E,"<="&TODAY())*60+SUMIFS(Running!$L:$L,Running!$E:$E,">="&EDATE($B71,0),Running!$E:$E,"<="&EDATE($C71,0),Running!$A:$A,"*",Running!$E:$E,"<="&TODAY()))/(60*60)),MOD(MOD(SUMIFS(Running!$K:$K,Running!$E:$E,">="&EDATE($B71,0),Running!$E:$E,"<="&EDATE($C71,0),Running!$A:$A,"*",Running!$E:$E,"<="&TODAY()),60)+INT(SUMIFS(Running!$L:$L,Running!$E:$E,">="&EDATE($B71,0),Running!$E:$E,"<="&EDATE($C71,0),Running!$A:$A,"*",Running!$E:$E,"<="&TODAY())/60),60),MOD(SUMIFS(Running!$L:$L,Running!$E:$E,">="&EDATE($B71,0),Running!$E:$E,"<="&EDATE($C71,0),Running!$A:$A,"*",Running!$E:$E,"<="&TODAY()),60))+INT(INT((SUMIFS(Running!$K:$K,Running!$E:$E,">="&EDATE($B71,0),Running!$E:$E,"<="&EDATE($C71,0),Running!$A:$A,"*",Running!$E:$E,"<="&TODAY())*60+SUMIFS(Running!$L:$L,Running!$E:$E,">="&EDATE($B71,0),Running!$E:$E,"<="&EDATE($C71,0),Running!$A:$A,"*",Running!$E:$E,"<="&TODAY()))/(60*60))/24) -> 0.1510300926 | J71: 00:08:06 | K71: 7.418 | L71: =SUMIFS(Running!$M:$M,Running!$A:$A,"*",Running!$E:$E,"<="&TODAY(),Running!$E:$E,">="&EDATE($B71,0),Running!$E:$E,"<="&EDATE($C71,0)) -> 72 | M71: =SUMIFS(Running!$N:$N,Running!$A:$A,"*",Running!$E:$E,"<="&TODAY(),Running!$E:$E,">="&EDATE($B71,0),Running!$E:$E,"<="&EDATE($C71,0)) -> 1.21 | N71: =TIME(INT((SUMIFS(Running!$R:$R,Running!$E:$E,">="&EDATE($B71,0),Running!$E:$E,"<="&EDATE($C71,0),Running!$A:$A,"*",Running!$E:$E,"<="&TODAY())*60+SUMIFS(Running!$S:$S,Running!$E:$E,">="&EDATE($B71,0),Running!$E:$E,"<="&EDATE($C71,0),Running!$A:$A,"*",Running!$E:$E,"<="&TODAY()))/(60*60)),MOD(MOD(SUMIFS(Running!$R:$R,Running!$E:$E,">="&EDATE($B71,0),Running!$E:$E,"<="&EDATE($C71,0),Running!$A:$A,"*",Running!$E:$E,"<="&TODAY()),60)+INT(SUMIFS(Running!$S:$S,Running!$E:$E,">="&EDATE($B71,0),Running!$E:$E,"<="&EDATE($C71,0),Running!$A:$A,"*",Running!$E:$E,"<="&TODAY())/60),60),MOD(SUMIFS(Running!$S:$S,Running!$E:$E,">="&EDATE($B71,0),Running!$E:$E,"<="&EDATE($C71,0),Running!$A:$A,"*",Running!$E:$E,"<="&TODAY()),60))+INT(INT((SUMIFS(Running!$R:$R,Running!$E:$E,">="&EDATE($B71,0),Running!$E:$E,"<="&EDATE($C71,0),Running!$A:$A,"*",Running!$E:$E,"<="&TODAY())*60+SUMIFS(Running!$S:$S,Running!$E:$E,">="&EDATE($B71,0),Running!$E:$E,"<="&EDATE($C71,0),Running!$A:$A,"*",Running!$E:$E,"<="&TODAY()))/(60*60))/24) -> 0.01319444444 | O71: 00:15:43 | P71: 3.821 | Q71: 2844 | R71: 28.1 | S71: 03:56:29 | T71: 00:08:25 | U71: 7.129
A72: 71 | B72: 2019-04-29 | C72: 2019-05-05 | D72: =COUNTIFS(Running!$A:$A,"*",Running!$E:$E,"<="&TODAY(),Running!$E:$E,">="&EDATE($B72,0),Running!$E:$E,"<="&EDATE($C72,0)) -> 1 | E72: =COUNTIFS(Running!$A:$A,"",Running!$G:$G,0,Running!$E:$E,"<="&TODAY(),Running!$E:$E,">="&EDATE($B72,0),Running!$E:$E,"<="&EDATE($C72,0)) -> 6 | F72: 0.142 | G72: =SUMIFS(Running!$F:$F,Running!$A:$A,"*",Running!$E:$E,"<="&TODAY(),Running!$E:$E,">="&EDATE($B72,0),Running!$E:$E,"<="&EDATE($C72,0)) -> 512 | H72: =SUMIFS(Running!$G:$G,Running!$A:$A,"*",Running!$E:$E,"<="&TODAY(),Running!$E:$E,">="&EDATE($B72,0),Running!$E:$E,"<="&EDATE($C72,0)) -> 4.3 | I72: =TIME(INT((SUMIFS(Running!$K:$K,Running!$E:$E,">="&EDATE($B72,0),Running!$E:$E,"<="&EDATE($C72,0),Running!$A:$A,"*",Running!$E:$E,"<="&TODAY())*60+SUMIFS(Running!$L:$L,Running!$E:$E,">="&EDATE($B72,0),Running!$E:$E,"<="&EDATE($C72,0),Running!$A:$A,"*",Running!$E:$E,"<="&TODAY()))/(60*60)),MOD(MOD(SUMIFS(Running!$K:$K,Running!$E:$E,">="&EDATE($B72,0),Running!$E:$E,"<="&EDATE($C72,0),Running!$A:$A,"*",Running!$E:$E,"<="&TODAY()),60)+INT(SUMIFS(Running!$L:$L,Running!$E:$E,">="&EDATE($B72,0),Running!$E:$E,"<="&EDATE($C72,0),Running!$A:$A,"*",Running!$E:$E,"<="&TODAY())/60),60),MOD(SUMIFS(Running!$L:$L,Running!$E:$E,">="&EDATE($B72,0),Running!$E:$E,"<="&EDATE($C72,0),Running!$A:$A,"*",Running!$E:$E,"<="&TODAY()),60))+INT(INT((SUMIFS(Running!$K:$K,Running!$E:$E,">="&EDATE($B72,0),Running!$E:$E,"<="&EDATE($C72,0),Running!$A:$A,"*",Running!$E:$E,"<="&TODAY())*60+SUMIFS(Running!$L:$L,Running!$E:$E,">="&EDATE($B72,0),Running!$E:$E,"<="&EDATE($C72,0),Running!$A:$A,"*",Running!$E:$E,"<="&TODAY()))/(60*60))/24) -> 0.02361111111 | J72: 00:07:55 | K72: 7.588 | L72: =SUMIFS(Running!$M:$M,Running!$A:$A,"*",Running!$E:$E,"<="&TODAY(),Running!$E:$E,">="&EDATE($B72,0),Running!$E:$E,"<="&EDATE($C72,0)) -> 24 | M72: =SUMIFS(Running!$N:$N,Running!$A:$A,"*",Running!$E:$E,"<="&TODAY(),Running!$E:$E,">="&EDATE($B72,0),Running!$E:$E,"<="&EDATE($C72,0)) -> 0.34 | N72: =TIME(INT((SUMIFS(Running!$R:$R,Running!$E:$E,">="&EDATE($B72,0),Running!$E:$E,"<="&EDATE($C72,0),Running!$A:$A,"*",Running!$E:$E,"<="&TODAY())*60+SUMIFS(Running!$S:$S,Running!$E:$E,">="&EDATE($B72,0),Running!$E:$E,"<="&EDATE($C72,0),Running!$A:$A,"*",Running!$E:$E,"<="&TODAY()))/(60*60)),MOD(MOD(SUMIFS(Running!$R:$R,Running!$E:$E,">="&EDATE($B72,0),Running!$E:$E,"<="&EDATE($C72,0),Running!$A:$A,"*",Running!$E:$E,"<="&TODAY()),60)+INT(SUMIFS(Running!$S:$S,Running!$E:$E,">="&EDATE($B72,0),Running!$E:$E,"<="&EDATE($C72,0),Running!$A:$A,"*",Running!$E:$E,"<="&TODAY())/60),60),MOD(SUMIFS(Running!$S:$S,Running!$E:$E,">="&EDATE($B72,0),Running!$E:$E,"<="&EDATE($C72,0),Running!$A:$A,"*",Running!$E:$E,"<="&TODAY()),60))+INT(INT((SUMIFS(Running!$R:$R,Running!$E:$E,">="&EDATE($B72,0),Running!$E:$E,"<="&EDATE($C72,0),Running!$A:$A,"*",Running!$E:$E,"<="&TODAY())*60+SUMIFS(Running!$S:$S,Running!$E:$E,">="&EDATE($B72,0),Running!$E:$E,"<="&EDATE($C72,0),Running!$A:$A,"*",Running!$E:$E,"<="&TODAY()))/(60*60))/24) -> 0.003472222222 | O72: 00:14:43 | P72: 4.08 | Q72: 536 | R72: 4.64 | S72: 00:39:00 | T72: 00:08:25 | U72: 7.138
A73: 72 | B73: 2019-05-06 | C73: 2019-05-12 | D73: =COUNTIFS(Running!$A:$A,"*",Running!$E:$E,"<="&TODAY(),Running!$E:$E,">="&EDATE($B73,0),Running!$E:$E,"<="&EDATE($C73,0)) -> 2 | E73: =COUNTIFS(Running!$A:$A,"",Running!$G:$G,0,Running!$E:$E,"<="&TODAY(),Running!$E:$E,">="&EDATE($B73,0),Running!$E:$E,"<="&EDATE($C73,0)) -> 5 | F73: 0.285 | G73: =SUMIFS(Running!$F:$F,Running!$A:$A,"*",Running!$E:$E,"<="&TODAY(),Running!$E:$E,">="&EDATE($B73,0),Running!$E:$E,"<="&EDATE($C73,0)) -> 1024 | H73: =SUMIFS(Running!$G:$G,Running!$A:$A,"*",Running!$E:$E,"<="&TODAY(),Running!$E:$E,">="&EDATE($B73,0),Running!$E:$E,"<="&EDATE($C73,0)) -> 8.6 | I73: =TIME(INT((SUMIFS(Running!$K:$K,Running!$E:$E,">="&EDATE($B73,0),Running!$E:$E,"<="&EDATE($C73,0),Running!$A:$A,"*",Running!$E:$E,"<="&TODAY())*60+SUMIFS(Running!$L:$L,Running!$E:$E,">="&EDATE($B73,0),Running!$E:$E,"<="&EDATE($C73,0),Running!$A:$A,"*",Running!$E:$E,"<="&TODAY()))/(60*60)),MOD(MOD(SUMIFS(Running!$K:$K,Running!$E:$E,">="&EDATE($B73,0),Running!$E:$E,"<="&EDATE($C73,0),Running!$A:$A,"*",Running!$E:$E,"<="&TODAY()),60)+INT(SUMIFS(Running!$L:$L,Running!$E:$E,">="&EDATE($B73,0),Running!$E:$E,"<="&EDATE($C73,0),Running!$A:$A,"*",Running!$E:$E,"<="&TODAY())/60),60),MOD(SUMIFS(Running!$L:$L,Running!$E:$E,">="&EDATE($B73,0),Running!$E:$E,"<="&EDATE($C73,0),Running!$A:$A,"*",Running!$E:$E,"<="&TODAY()),60))+INT(INT((SUMIFS(Running!$K:$K,Running!$E:$E,">="&EDATE($B73,0),Running!$E:$E,"<="&EDATE($C73,0),Running!$A:$A,"*",Running!$E:$E,"<="&TODAY())*60+SUMIFS(Running!$L:$L,Running!$E:$E,">="&EDATE($B73,0),Running!$E:$E,"<="&EDATE($C73,0),Running!$A:$A,"*",Running!$E:$E,"<="&TODAY()))/(60*60))/24) -> 0.04722222222 | J73: 00:07:55 | K73: 7.588 | L73: =SUMIFS(Running!$M:$M,Running!$A:$A,"*",Running!$E:$E,"<="&TODAY(),Running!$E:$E,">="&EDATE($B73,0),Running!$E:$E,"<="&EDATE($C73,0)) -> 48 | M73: =SUMIFS(Running!$N:$N,Running!$A:$A,"*",Running!$E:$E,"<="&TODAY(),Running!$E:$E,">="&EDATE($B73,0),Running!$E:$E,"<="&EDATE($C73,0)) -> 0.68 | N73: =TIME(INT((SUMIFS(Running!$R:$R,Running!$E:$E,">="&EDATE($B73,0),Running!$E:$E,"<="&EDATE($C73,0),Running!$A:$A,"*",Running!$E:$E,"<="&TODAY())*60+SUMIFS(Running!$S:$S,Running!$E:$E,">="&EDATE($B73,0),Running!$E:$E,"<="&EDATE($C73,0),Running!$A:$A,"*",Running!$E:$E,"<="&TODAY()))/(60*60)),MOD(MOD(SUMIFS(Running!$R:$R,Running!$E:$E,">="&EDATE($B73,0),Running!$E:$E,"<="&EDATE($C73,0),Running!$A:$A,"*",Running!$E:$E,"<="&TODAY()),60)+INT(SUMIFS(Running!$S:$S,Running!$E:$E,">="&EDATE($B73,0),Running!$E:$E,"<="&EDATE($C73,0),Running!$A:$A,"*",Running!$E:$E,"<="&TODAY())/60),60),MOD(SUMIFS(Running!$S:$S,Running!$E:$E,">="&EDATE($B73,0),Running!$E:$E,"<="&EDATE($C73,0),Running!$A:$A,"*",Running!$E:$E,"<="&TODAY()),60))+INT(INT((SUMIFS(Running!$R:$R,Running!$E:$E,">="&EDATE($B73,0),Running!$E:$E,"<="&EDATE($C73,0),Running!$A:$A,"*",Running!$E:$E,"<="&TODAY())*60+SUMIFS(Running!$S:$S,Running!$E:$E,">="&EDATE($B73,0),Running!$E:$E,"<="&EDATE($C73,0),Running!$A:$A,"*",Running!$E:$E,"<="&TODAY()))/(60*60))/24) -> 0.006944444444 | O73: 00:14:43 | P73: 4.08 | Q73: 1072 | R73: 9.28 | S73: 01:18:00 | T73: 00:08:25 | U73: 7.138
